Workbook

Sheet Introduction
C4: Joint Monitoring Programme for Water Supply, Sanitation and Hygiene
C6: Estimates on household water, sanitation and hygiene by wealth quintile and sub-national region in
C7: =+Water!B5 -> Gambia
C9: Updated May 2021
C11: Follow the links below to find the following information:
C13: JMP Estimates
C14: WASH status and trends by wealth quintile (customized quintiles made without water and sanitation assets)
C15: Water
C16: Sanitation
C17: Hygiene
C19: Data inputs
C20: customized wealth quintiles and subnational data:
C21: =IF(INDIRECT(CONCATENATE("Water","!B105"))=0,"",INDIRECT(CONCATENATE("Water","!B105"))) -> MICS00
C22: =IF(INDIRECT(CONCATENATE("Water","!B106"))=0,"",INDIRECT(CONCATENATE("Water","!B106"))) -> MICS06
C23: =IF(INDIRECT(CONCATENATE("Water","!B107"))=0,"",INDIRECT(CONCATENATE("Water","!B107"))) -> MICS10
C24: =IF(INDIRECT(CONCATENATE("Water","!B108"))=0,"",INDIRECT(CONCATENATE("Water","!B108"))) -> DHS13
C25: =IF(INDIRECT(CONCATENATE("Water","!B109"))=0,"",INDIRECT(CONCATENATE("Water","!B109"))) -> MICS18
C26: =IF(INDIRECT(CONCATENATE("Water","!B110"))=0,"",INDIRECT(CONCATENATE("Water","!B110"))) -> DHS20
C27: =IF(INDIRECT(CONCATENATE("Water","!B111"))=0,"",INDIRECT(CONCATENATE("Water","!B111"))) -> 
C28: =IF(INDIRECT(CONCATENATE("Water","!B112"))=0,"",INDIRECT(CONCATENATE("Water","!B112"))) -> 
C29: =IF(INDIRECT(CONCATENATE("Water","!B113"))=0,"",INDIRECT(CONCATENATE("Water","!B113"))) -> 
C30: =IF(INDIRECT(CONCATENATE("Water","!B114"))=0,"",INDIRECT(CONCATENATE("Water","!B114"))) -> 
C31: =IF(INDIRECT(CONCATENATE("Water","!B115"))=0,"",INDIRECT(CONCATENATE("Water","!B115"))) -> 
C32: =IF(INDIRECT(CONCATENATE("Water","!B116"))=0,"",INDIRECT(CONCATENATE("Water","!B116"))) -> 
L55: =+IF(ISNUMBER(M48), "", "Insufficient data to estimate safely managed sanitation services at national level") -> Insufficient data to estimate safely managed sanitation services at national level

Sheet Water
A1: BGD
B4: Summary of trends in use of drinking water by wealth quintile (%)
B5: =IF(ISERROR(INDIRECT(CONCATENATE($B105,"!A2"))),"",INDIRECT(CONCATENATE($B105,"!A2"))) -> Gambia
B7: =B118 -> National use of drinking water sources, 2000–2020 | J7: =B218 -> Urban use of drinking water sources, 2000–2020 | R7: =B318 -> Rural use of drinking water sources, 2000–2020
B31: =IF(ISERROR(INDIRECT(CONCATENATE($B105,"!A2"))),"",INDIRECT(CONCATENATE($B105,"!A2"))) -> Gambia | F31: Poorest | J31: Poor | N31: Middle | R31: Rich | V31: Richest
F32: Basic | G32: Limited | H32: Unimproved | I32: Surface water | J32: Basic | K32: Limited | L32: Unimproved | M32: Surface water | N32: Basic | O32: Limited | P32: Unimproved | Q32: Surface water | R32: Basic | S32: Limited | T32: Unimproved | U32: Surface water | V32: Basic | W32: Limited | X32: Unimproved | Y32: Surface water
B33: NATIONAL | D33: Estimate | E33: =C99 -> 2000 | F33: =E99 -> 62.28014631 | G33: =F99 -> 9.99192796 | H33: 27.72792573 | I33: 0 | J33: =J99 -> 71.25707535 | K33: =K99 -> 9.339687561 | L33: 18.89846794 | M33: 0.504769157 | N33: =O99 -> 72.08795856 | O33: =P99 -> 7.45426255 | P33: 20.45670002 | Q33: 0.001078866048 | R33: =T99 -> 80.97453807 | S33: =U99 -> 5.786900657 | T33: 13.23856128 | U33: 0 | V33: =Y99 -> 92.64764666 | W33: =Z99 -> 2.08488629 | X33: 5.267467051 | Y33: 0
E34: =C100 -> 2020 | F34: =E100 -> 72.88194972 | G34: 11.69283045 | H34: 15.1162885 | I34: 0.3089313333 | J34: =J100 -> 77.6512569 | K34: 10.17777497 | L34: 12.17096812 | M34: 0 | N34: =O100 -> 85.08018734 | O34: 8.797725264 | P34: 6.105185158 | Q34: 0.01690223475 | R34: =T100 -> 89.97130168 | S34: 6.429860512 | T34: 3.598837811 | U34: 0 | V34: =Y100 -> 97.19291145 | W34: 2.187170164 | X34: 0.6199183832 | Y34: 0
B36: URBAN | D36: Estimate | E36: =C199 -> 2000 | F36: =E199 -> 81.07208318 | G36: =F199 -> 6.99451929 | H36: 11.92559134 | I36: 0.007806189501 | J36: =J199 -> 87.91638419 | K36: =K199 -> 5.568910054 | L36: 6.514705754 | M36: 0 | N36: =O199 -> 89.83963288 | O36: =P199 -> 4.069728078 | P36: 6.090639038 | Q36: 0 | R36: =T199 -> 93.25893468 | S36: =U199 -> 2.480470745 | T36: 4.260594574 | U36: 0 | V36: =Y199 -> 96.22058488 | W36: =Z199 -> 0.5431181607 | X36: 3.236296958 | Y36: 0
E37: =C200 -> 2020 | F37: =E200 -> 76.5418556 | G37: 6.603672491 | H37: 16.85262465 | I37: 0.001847266218 | J37: =J200 -> 85.7279339 | K37: 5.430286487 | L37: 8.841779609 | M37: 0 | N37: =O200 -> 91.32900414 | O37: 4.137196475 | P37: 4.533799383 | Q37: 0 | R37: =T200 -> 95.61410871 | S37: 2.543112896 | T37: 1.842778399 | U37: 0 | V37: =Y200 -> 99.43871706 | W37: 0.5612829435 | X37: 0 | Y37: 0
B39: RURAL | D39: Estimate | E39: =C299 -> 2000 | F39: =E299 -> 59.35447806 | G39: =F299 -> 10.39291463 | H39: 30.25260731 | I39: 0 | J39: =J299 -> 65.03964824 | K39: =K299 -> 10.75512014 | L39: 23.41815146 | M39: 0.7870801525 | N39: =O299 -> 67.61809774 | O39: =P299 -> 11.25906601 | P39: 21.12283625 | Q39: 0 | R39: =T299 -> 63.55314681 | S39: =U299 -> 9.527359869 | T39: 26.91767231 | U39: 0.001821004836 | V39: =Y299 -> 70.42283166 | W39: =Z299 -> 9.950629828 | X39: 19.62653851 | Y39: 0
E40: =C300 -> 2020 | F40: =E300 -> 70.1846489 | G40: 12.2892676 | H40: 17.08490553 | I40: 0.4411779624 | J40: =J300 -> 74.50244422 | K40: 12.31991193 | L40: 13.17764385 | M40: 0 | N40: =O300 -> 77.84760809 | O40: 12.96237823 | P40: 9.190013677 | Q40: 0 | R40: =T300 -> 80.68486007 | S40: 12.09560402 | T40: 7.191006834 | U40: 0.02852907577 | V40: =Y300 -> 83.45454946 | W40: 11.79199003 | X40: 4.753460508 | Y40: 0
A97: NATIONAL | D97: Poorest | I97: Poor | N97: Middle | S97: Rich | X97: Richest
D98: Improved | E98: Basic | F98: Limited | G98: Unimproved | H98: Surface water | I98: Improved | J98: Basic | K98: Limited | L98: Unimproved | M98: Surface water | N98: Improved | O98: Basic | P98: Limited | Q98: Unimproved | R98: Surface water | S98: Improved | T98: Basic | U98: Limited | V98: Unimproved | W98: Surface water | X98: Improved | Y98: Basic | Z98: Limited | AA98: Unimproved | AB98: Surface water
A99: Forecast period: | C99: 2000 | D99: =IF((D101+H101)>100,D101*100/(D101+H101),D101) -> 72.27207427 | E99: =D99*AVERAGEIF(E105:E116,">0")/100 -> 62.28014631 | F99: =D99*(100-AVERAGEIF(E105:E116,">0"))/100 -> 9.99192796 | G99: =100-(E99+F99+H99) -> 27.72792573 | H99: =IF((D101+H101)>100,H101*100/(D101+H101),H101) -> 0 | I99: =IF((I101+M101)>100,I101*100/(I101+M101),I101) -> 80.59676291 | J99: =I99*AVERAGEIF(J105:J116,">0")/100 -> 71.25707535 | K99: =I99*(100-AVERAGEIF(J105:J116,">0"))/100 -> 9.339687561 | L99: =100-(J99+K99+M99) -> 18.89846794 | M99: =IF((I101+M101)>100,M101*100/(I101+M101),M101) -> 0.504769157 | N99: =IF((N101+R101)>100,N101*100/(N101+R101),N101) -> 79.54222111 | O99: =N99*AVERAGEIF(O105:O116,">0")/100 -> 72.08795856 | P99: =N99*(100-AVERAGEIF(O105:O116,">0"))/100 -> 7.45426255 | Q99: =100-(O99+P99+R99) -> 20.45670002 | R99: =IF((N101+R101)>100,R101*100/(N101+R101),R101) -> 0.001078866048 | S99: =IF((S101+W101)>100,S101*100/(S101+W101),S101) -> 86.76143872 | T99: =S99*AVERAGEIF(T105:T116,">0")/100 -> 80.97453807 | U99: =S99*(100-AVERAGEIF(T105:T116,">0"))/100 -> 5.786900657 | V99: =100-(T99+U99+W99) -> 13.23856128 | W99: =IF((S101+W101)>100,W101*100/(S101+W101),W101) -> 0 | X99: =IF((X101+AB101)>100,X101*100/(X101+AB101),X101) -> 94.73253295 | Y99: =X99*AVERAGEIF(Y105:Y116,">0")/100 -> 92.64764666 | Z99: =X99*(100-AVERAGEIF(Y105:Y116,">0"))/100 -> 2.08488629 | AA99: =100-(Y99+Z99+AB99) -> 5.267467051 | AB99: =IF((X101+AB101)>100,AB101*100/(X101+AB101),AB101) -> 0
C100: 2020 | D100: =IF((D102+H102)>100,D102*100/(D102+H102),D102) -> 84.57478017 | E100: =D100*AVERAGEIF(E105:E116,">0")/100 -> 72.88194972 | F100: =D100*(100-AVERAGEIF(E105:E116,">0"))/100 -> 11.69283045 | G100: =100-(E100+F100+H100) -> 15.1162885 | H100: =IF((D102+H102)>100,H102*100/(D102+H102),H102) -> 0.3089313333 | I100: =IF((I102+M102)>100,I102*100/(I102+M102),I102) -> 87.82903188 | J100: =I100*AVERAGEIF(J105:J116,">0")/100 -> 77.6512569 | K100: =I100*(100-AVERAGEIF(J105:J116,">0"))/100 -> 10.17777497 | L100: =100-(J100+K100+M100) -> 12.17096812 | M100: =IF((I102+M102)>100,M102*100/(I102+M102),M102) -> 0 | N100: =IF((N102+R102)>100,N102*100/(N102+R102),N102) -> 93.87791261 | O100: =N100*AVERAGEIF(O105:O116,">0")/100 -> 85.08018734 | P100: =N100*(100-AVERAGEIF(O105:O116,">0"))/100 -> 8.797725264 | Q100: =100-(O100+P100+R100) -> 6.105185158 | R100: =IF((N102+R102)>100,R102*100/(N102+R102),R102) -> 0.01690223475 | S100: =IF((S102+W102)>100,S102*100/(S102+W102),S102) -> 96.40116219 | T100: =S100*AVERAGEIF(T105:T116,">0")/100 -> 89.97130168 | U100: =S100*(100-AVERAGEIF(T105:T116,">0"))/100 -> 6.429860512 | V100: =100-(T100+U100+W100) -> 3.598837811 | W100: =IF((S102+W102)>100,W102*100/(S102+W102),W102) -> 0 | X100: =IF((X102+AB102)>100,X102*100/(X102+AB102),X102) -> 99.38008162 | Y100: =X100*AVERAGEIF(Y105:Y116,">0")/100 -> 97.19291145 | Z100: =X100*(100-AVERAGEIF(Y105:Y116,">0"))/100 -> 2.187170164 | AA100: =100-(Y100+Z100+AB100) -> 0.6199183832 | AB100: =IF((X102+AB102)>100,AB102*100/(X102+AB102),AB102) -> 0
A101: Regression period: | C101: =MinRegYear(C99,C105:C116) -> 2000 | D101: =IF(MAX(C105:C116)-MIN(C105:C116)<5,AVERAGEIF(C105:C116,">0",D105:D116), IF(FORECAST($C101,D$105:D$116,$C$105:$C$116)<0,0, IF(FORECAST($C101,D$105:D$116,$C$105:$C$116)>100,100, FORECAST($C101,D$105:D$116,$C$105:$C$116)))) -> 72.27207427 | H101: =IF(MAX(C105:C116)-MIN(C105:C116)<5,AVERAGEIF(C105:C116,">0",H105:H116), IF(FORECAST($C101,H$105:H$116,$C$105:$C$116)<0,0, IF(FORECAST($C101,H$105:H$116,$C$105:$C$116)>100,100, FORECAST($C101,H$105:H$116,$C$105:$C$116)))) -> 0 | I101: =IF(MAX(C105:C116)-MIN(C105:C116)<5,AVERAGEIF(C105:C116,">0",I105:I116), IF(FORECAST($C101,I$105:I$116,$C$105:$C$116)<0,0, IF(FORECAST($C101,I$105:I$116,$C$105:$C$116)>100,100, FORECAST($C101,I$105:I$116,$C$105:$C$116)))) -> 80.59676291 | M101: =IF(MAX(C105:C116)-MIN(C105:C116)<5,AVERAGEIF(C105:C116,">0",M105:M116), IF(FORECAST($C101,M$105:M$116,$C$105:$C$116)<0,0, IF(FORECAST($C101,M$105:M$116,$C$105:$C$116)>100,100, FORECAST($C101,M$105:M$116,$C$105:$C$116)))) -> 0.504769157 | N101: =IF(MAX(C105:C116)-MIN(C105:C116)<5,AVERAGEIF(C105:C116,">0",N105:N116), IF(FORECAST($C101,N$105:N$116,$C$105:$C$116)<0,0, IF(FORECAST($C101,N$105:N$116,$C$105:$C$116)>100,100, FORECAST($C101,N$105:N$116,$C$105:$C$116)))) -> 79.54222111 | R101: =IF(MAX(C105:C116)-MIN(C105:C116)<5,AVERAGEIF(C105:C116,">0",R105:R116), IF(FORECAST($C101,R$105:R$116,$C$105:$C$116)<0,0, IF(FORECAST($C101,R$105:R$116,$C$105:$C$116)>100,100, FORECAST($C101,R$105:R$116,$C$105:$C$116)))) -> 0.001078866048 | S101: =IF(MAX(C105:C116)-MIN(C105:C116)<5,AVERAGEIF(C105:C116,">0",S105:S116), IF(FORECAST($C101,S$105:S$116,$C$105:$C$116)<0,0, IF(FORECAST($C101,S$105:S$116,$C$105:$C$116)>100,100, FORECAST($C101,S$105:S$116,$C$105:$C$116)))) -> 86.76143872 | W101: =IF(MAX(C105:C116)-MIN(C105:C116)<5,AVERAGEIF(C105:C116,">0",W105:W116), IF(FORECAST($C101,W$105:W$116,$C$105:$C$116)<0,0, IF(FORECAST($C101,W$105:W$116,$C$105:$C$116)>100,100, FORECAST($C101,W$105:W$116,$C$105:$C$116)))) -> 0 | X101: =IF(MAX(C105:C116)-MIN(C105:C116)<5,AVERAGEIF(C105:C116,">0",X105:X116), IF(FORECAST($C101,X$105:X$116,$C$105:$C$116)<0,0, IF(FORECAST($C101,X$105:X$116,$C$105:$C$116)>100,100, FORECAST($C101,X$105:X$116,$C$105:$C$116)))) -> 94.73253295 | AB101: =IF(MAX(C105:C116)-MIN(C105:C116)<5,AVERAGEIF(C105:C116,">0",AB105:AB116), IF(FORECAST($C101,AB$105:AB$116,$C$105:$C$116)<0,0, IF(FORECAST($C101,AB$105:AB$116,$C$105:$C$116)>100,100, FORECAST($C101,AB$105:AB$116,$C$105:$C$116)))) -> 0
C102: =MaxRegYear(C100,C105:C116) -> 2020 | D102: =IF(MAX(C105:C116)-MIN(C105:C116)<5,AVERAGEIF(C105:C116,">0",D105:D116), IF(FORECAST($C102,D$105:D$116,$C$105:$C$116)<0,0, IF(FORECAST($C102,D$105:D$116,$C$105:$C$116)>100,100, FORECAST($C102,D$105:D$116,$C$105:$C$116)))) -> 84.57478017 | H102: =IF(MAX(C105:C116)-MIN(C105:C116)<5,AVERAGEIF(C105:C116,">0",H105:H116), IF(FORECAST($C102,H$105:H$116,$C$105:$C$116)<0,0, IF(FORECAST($C102,H$105:H$116,$C$105:$C$116)>100,100, FORECAST($C102,H$105:H$116,$C$105:$C$116)))) -> 0.3089313333 | I102: =IF(MAX(C105:C116)-MIN(C105:C116)<5,AVERAGEIF(C105:C116,">0",I105:I116), IF(FORECAST($C102,I$105:I$116,$C$105:$C$116)<0,0, IF(FORECAST($C102,I$105:I$116,$C$105:$C$116)>100,100, FORECAST($C102,I$105:I$116,$C$105:$C$116)))) -> 87.82903188 | M102: =IF(MAX(C105:C116)-MIN(C105:C116)<5,AVERAGEIF(C105:C116,">0",M105:M116), IF(FORECAST($C102,M$105:M$116,$C$105:$C$116)<0,0, IF(FORECAST($C102,M$105:M$116,$C$105:$C$116)>100,100, FORECAST($C102,M$105:M$116,$C$105:$C$116)))) -> 0 | N102: =IF(MAX(C105:C116)-MIN(C105:C116)<5,AVERAGEIF(C105:C116,">0",N105:N116), IF(FORECAST($C102,N$105:N$116,$C$105:$C$116)<0,0, IF(FORECAST($C102,N$105:N$116,$C$105:$C$116)>100,100, FORECAST($C102,N$105:N$116,$C$105:$C$116)))) -> 93.87791261 | R102: =IF(MAX(C105:C116)-MIN(C105:C116)<5,AVERAGEIF(C105:C116,">0",R105:R116), IF(FORECAST($C102,R$105:R$116,$C$105:$C$116)<0,0, IF(FORECAST($C102,R$105:R$116,$C$105:$C$116)>100,100, FORECAST($C102,R$105:R$116,$C$105:$C$116)))) -> 0.01690223475 | S102: =IF(MAX(C105:C116)-MIN(C105:C116)<5,AVERAGEIF(C105:C116,">0",S105:S116), IF(FORECAST($C102,S$105:S$116,$C$105:$C$116)<0,0, IF(FORECAST($C102,S$105:S$116,$C$105:$C$116)>100,100, FORECAST($C102,S$105:S$116,$C$105:$C$116)))) -> 96.40116219 | W102: =IF(MAX(C105:C116)-MIN(C105:C116)<5,AVERAGEIF(C105:C116,">0",W105:W116), IF(FORECAST($C102,W$105:W$116,$C$105:$C$116)<0,0, IF(FORECAST($C102,W$105:W$116,$C$105:$C$116)>100,100, FORECAST($C102,W$105:W$116,$C$105:$C$116)))) -> 0 | X102: =IF(MAX(C105:C116)-MIN(C105:C116)<5,AVERAGEIF(C105:C116,">0",X105:X116), IF(FORECAST($C102,X$105:X$116,$C$105:$C$116)<0,0, IF(FORECAST($C102,X$105:X$116,$C$105:$C$116)>100,100, FORECAST($C102,X$105:X$116,$C$105:$C$116)))) -> 99.38008162 | AB102: =IF(MAX(C105:C116)-MIN(C105:C116)<5,AVERAGEIF(C105:C116,">0",AB105:AB116), IF(FORECAST($C102,AB$105:AB$116,$C$105:$C$116)<0,0, IF(FORECAST($C102,AB$105:AB$116,$C$105:$C$116)>100,100, FORECAST($C102,AB$105:AB$116,$C$105:$C$116)))) -> 0
B104: Survey | C104: Year | D104: Improved | E104: % Improved < = 30min | H104: Surface water | I104: Improved | J104: % Improved < = 30min | M104: Surface water | N104: Improved | O104: % Improved < = 30min | R104: Surface water | S104: Improved | T104: % Improved < = 30min | W104: Surface water | X104: Improved | Y104: % Improved < = 30min | AB104: Surface water
B105: MICS00 | C105: 2000 | D105: =IF(ISERROR(INDIRECT(CONCATENATE($B105,"!C16"))),"",INDIRECT(CONCATENATE($B105,"!C16"))) -> 71.43970323 | E105: =IF(ISERROR(INDIRECT(CONCATENATE($B105,"!C23"))),"",INDIRECT(CONCATENATE($B105,"!C23"))) -> 86.64564759 | H105: =IF(ISERROR(INDIRECT(CONCATENATE($B105,"!C21"))),"",INDIRECT(CONCATENATE($B105,"!C21"))) -> 0 | I105: =IF(ISERROR(INDIRECT(CONCATENATE($B105,"!D16"))),"",INDIRECT(CONCATENATE($B105,"!D16"))) -> 81.153275 | J105: =IF(ISERROR(INDIRECT(CONCATENATE($B105,"!D23"))),"",INDIRECT(CONCATENATE($B105,"!D23"))) -> 88.81618932 | M105: =IF(ISERROR(INDIRECT(CONCATENATE($B105,"!D21"))),"",INDIRECT(CONCATENATE($B105,"!D21"))) -> 0.6198319827 | N105: =IF(ISERROR(INDIRECT(CONCATENATE($B105,"!E16"))),"",INDIRECT(CONCATENATE($B105,"!E16"))) -> 79.52834305 | O105: =IF(ISERROR(INDIRECT(CONCATENATE($B105,"!E23"))),"",INDIRECT(CONCATENATE($B105,"!E23"))) -> 88.93533526 | R105: =IF(ISERROR(INDIRECT(CONCATENATE($B105,"!E21"))),"",INDIRECT(CONCATENATE($B105,"!E21"))) -> 0 | S105: =IF(ISERROR(INDIRECT(CONCATENATE($B105,"!F16"))),"",INDIRECT(CONCATENATE($B105,"!F16"))) -> 91.8027689 | T105: =IF(ISERROR(INDIRECT(CONCATENATE($B105,"!F23"))),"",INDIRECT(CONCATENATE($B105,"!F23"))) -> 90.91869239 | W105: =IF(ISERROR(INDIRECT(CONCATENATE($B105,"!F21"))),"",INDIRECT(CONCATENATE($B105,"!F21"))) -> 0 | X105: =IF(ISERROR(INDIRECT(CONCATENATE($B105,"!G16"))),"",INDIRECT(CONCATENATE($B105,"!G16"))) -> 95.65334271 | Y105: =IF(ISERROR(INDIRECT(CONCATENATE($B105,"!G23"))),"",INDIRECT(CONCATENATE($B105,"!G23"))) -> 96.67426927 | AB105: =IF(ISERROR(INDIRECT(CONCATENATE($B105,"!G221"))),"",INDIRECT(CONCATENATE($B105,"!G21"))) -> 0
B106: MICS06 | C106: 2006 | D106: 80.46672805 | E106: 81.72697242 | H106: 0 | I106: 85.13174335 | J106: 86.02799721 | M106: 0.008721917943 | N106: 83.0261069 | O106: 85.50324691 | R106: 0 | S106: 83.5471354 | T106: 88.1666104 | W106: 0 | X106: 93.8510736 | Y106: 95.46296733 | AB106: 0
B107: MICS10 | C107: 2010 | D107: 74.73544787 | E107: 78.68326895 | H107: 0.02056686788 | I107: 80.25846548 | J107: 81.49708893 | M107: 0.07441230125 | N107: 86.73286566 | O107: 85.76595201 | R107: 0.02725934881 | S107: 89.83278665 | T107: 86.29233557 | W107: 0 | X107: 97.61792207 | Y107: 96.38478043 | AB107: 0
B108: DHS13 | C108: 2013 | D108: 80.23635703 | E108: 89.91572301 | H108: 0.2893086633 | I108: 85.23140454 | J108: 92.26968064 | M108: 0 | N108: 90.58313076 | O108: 93.121299 | R108: 0 | S108: 92.98078817 | T108: 96.54551699 | W108: 0 | X108: 98.68326736 | Y108: 98.79734528 | AB108: 0
B109: MICS18 | C109: 2018 | D109: 78.69488892 | E109: 87.85059758 | H109: N/A | I109: 84.98791159 | J109: 87.50267485 | M109: N/A | N109: 92.15739604 | O109: 93.41313468 | R109: N/A | S109: 96.67264745 | T109: 98.89110151 | W109: N/A | X109: 99.57482565 | Y109: 99.83237778 | AB109: N/A
B110: DHS20 | C110: 2020 | D110: 89.27338529 | E110: 92.22518619 | H110: N/A | I110: 91.04587854 | J110: 94.35736646 | M110: N/A | N110: 93.25005077 | O110: 97.03230898 | R110: N/A | S110: 98.02557939 | T110: 99.1663469 | W110: N/A | X110: 98.58405434 | Y110: 99.64337944 | AB110: N/A
D111: =IF(ISERROR(INDIRECT(CONCATENATE($B111,"!C16"))),"",INDIRECT(CONCATENATE($B111,"!C16"))) ->  | E111: =IF(ISERROR(INDIRECT(CONCATENATE($B111,"!C23"))),"",INDIRECT(CONCATENATE($B111,"!C23"))) ->  | H111: =IF(ISERROR(INDIRECT(CONCATENATE($B111,"!C21"))),"",INDIRECT(CONCATENATE($B111,"!C21"))) ->  | I111: =IF(ISERROR(INDIRECT(CONCATENATE($B111,"!D16"))),"",INDIRECT(CONCATENATE($B111,"!D16"))) ->  | J111: =IF(ISERROR(INDIRECT(CONCATENATE($B111,"!D23"))),"",INDIRECT(CONCATENATE($B111,"!D23"))) ->  | M111: =IF(ISERROR(INDIRECT(CONCATENATE($B111,"!D21"))),"",INDIRECT(CONCATENATE($B111,"!D21"))) ->  | N111: =IF(ISERROR(INDIRECT(CONCATENATE($B111,"!E16"))),"",INDIRECT(CONCATENATE($B111,"!E16"))) ->  | O111: =IF(ISERROR(INDIRECT(CONCATENATE($B111,"!E23"))),"",INDIRECT(CONCATENATE($B111,"!E23"))) ->  | R111: =IF(ISERROR(INDIRECT(CONCATENATE($B111,"!E21"))),"",INDIRECT(CONCATENATE($B111,"!E21"))) ->  | S111: =IF(ISERROR(INDIRECT(CONCATENATE($B111,"!F16"))),"",INDIRECT(CONCATENATE($B111,"!F16"))) ->  | T111: =IF(ISERROR(INDIRECT(CONCATENATE($B111,"!F23"))),"",INDIRECT(CONCATENATE($B111,"!F23"))) ->  | W111: =IF(ISERROR(INDIRECT(CONCATENATE($B111,"!F21"))),"",INDIRECT(CONCATENATE($B111,"!F21"))) ->  | X111: =IF(ISERROR(INDIRECT(CONCATENATE($B111,"!G16"))),"",INDIRECT(CONCATENATE($B111,"!G16"))) ->  | Y111: =IF(ISERROR(INDIRECT(CONCATENATE($B111,"!G23"))),"",INDIRECT(CONCATENATE($B111,"!G23"))) ->  | AB111: =IF(ISERROR(INDIRECT(CONCATENATE($B111,"!G221"))),"",INDIRECT(CONCATENATE($B111,"!G21"))) -> 
D112: =IF(ISERROR(INDIRECT(CONCATENATE($B112,"!C16"))),"",INDIRECT(CONCATENATE($B112,"!C16"))) ->  | E112: =IF(ISERROR(INDIRECT(CONCATENATE($B112,"!C23"))),"",INDIRECT(CONCATENATE($B112,"!C23"))) ->  | H112: =IF(ISERROR(INDIRECT(CONCATENATE($B112,"!C21"))),"",INDIRECT(CONCATENATE($B112,"!C21"))) ->  | I112: =IF(ISERROR(INDIRECT(CONCATENATE($B112,"!D16"))),"",INDIRECT(CONCATENATE($B112,"!D16"))) ->  | J112: =IF(ISERROR(INDIRECT(CONCATENATE($B112,"!D23"))),"",INDIRECT(CONCATENATE($B112,"!D23"))) ->  | M112: =IF(ISERROR(INDIRECT(CONCATENATE($B112,"!D21"))),"",INDIRECT(CONCATENATE($B112,"!D21"))) ->  | N112: =IF(ISERROR(INDIRECT(CONCATENATE($B112,"!E16"))),"",INDIRECT(CONCATENATE($B112,"!E16"))) ->  | O112: =IF(ISERROR(INDIRECT(CONCATENATE($B112,"!E23"))),"",INDIRECT(CONCATENATE($B112,"!E23"))) ->  | R112: =IF(ISERROR(INDIRECT(CONCATENATE($B112,"!E21"))),"",INDIRECT(CONCATENATE($B112,"!E21"))) ->  | S112: =IF(ISERROR(INDIRECT(CONCATENATE($B112,"!F16"))),"",INDIRECT(CONCATENATE($B112,"!F16"))) ->  | T112: =IF(ISERROR(INDIRECT(CONCATENATE($B112,"!F23"))),"",INDIRECT(CONCATENATE($B112,"!F23"))) ->  | W112: =IF(ISERROR(INDIRECT(CONCATENATE($B112,"!F21"))),"",INDIRECT(CONCATENATE($B112,"!F21"))) ->  | X112: =IF(ISERROR(INDIRECT(CONCATENATE($B112,"!G16"))),"",INDIRECT(CONCATENATE($B112,"!G16"))) ->  | Y112: =IF(ISERROR(INDIRECT(CONCATENATE($B112,"!G23"))),"",INDIRECT(CONCATENATE($B112,"!G23"))) ->  | AB112: =IF(ISERROR(INDIRECT(CONCATENATE($B112,"!G221"))),"",INDIRECT(CONCATENATE($B112,"!G21"))) -> 
B118: =CONCATENATE("National use of drinking water sources, ",C99,"–",C100) -> National use of drinking water sources, 2000–2020 | S118: Data points used for regression
E153: =IF(ISERROR(INDIRECT(CONCATENATE($B153,"!M18"))),"",INDIRECT(CONCATENATE($B153,"!M18"))) ->  | F153: =IF(ISERROR(INDIRECT(CONCATENATE($B153,"!M19"))),"",INDIRECT(CONCATENATE($B153,"!M19"))) ->  | G153: =IF(ISERROR(INDIRECT(CONCATENATE($B153,"!M20"))),"",INDIRECT(CONCATENATE($B153,"!M20"))) ->  | H153: =IF(ISERROR(INDIRECT(CONCATENATE($B153,"!M21"))),"",INDIRECT(CONCATENATE($B153,"!M21"))) ->  | J153: =IF(ISERROR(INDIRECT(CONCATENATE($B153,"!N18"))),"",INDIRECT(CONCATENATE($B153,"!N18"))) ->  | K153: =IF(ISERROR(INDIRECT(CONCATENATE($B153,"!N19"))),"",INDIRECT(CONCATENATE($B153,"!N19"))) ->  | L153: =IF(ISERROR(INDIRECT(CONCATENATE($B153,"!N20"))),"",INDIRECT(CONCATENATE($B153,"!N20"))) ->  | M153: =IF(ISERROR(INDIRECT(CONCATENATE($B153,"!N21"))),"",INDIRECT(CONCATENATE($B153,"!N21"))) ->  | O153: =IF(ISERROR(INDIRECT(CONCATENATE($B153,"!O18"))),"",INDIRECT(CONCATENATE($B153,"!O18"))) ->  | P153: =IF(ISERROR(INDIRECT(CONCATENATE($B153,"!O19"))),"",INDIRECT(CONCATENATE($B153,"!O19"))) ->  | Q153: =IF(ISERROR(INDIRECT(CONCATENATE($B153,"!O20"))),"",INDIRECT(CONCATENATE($B153,"!O20"))) ->  | R153: =IF(ISERROR(INDIRECT(CONCATENATE($B153,"!O21"))),"",INDIRECT(CONCATENATE($B153,"!O21"))) ->  | T153: =IF(ISERROR(INDIRECT(CONCATENATE($B153,"!P18"))),"",INDIRECT(CONCATENATE($B153,"!P18"))) ->  | U153: =IF(ISERROR(INDIRECT(CONCATENATE($B153,"!P19"))),"",INDIRECT(CONCATENATE($B153,"!P19"))) ->  | V153: =IF(ISERROR(INDIRECT(CONCATENATE($B153,"!P20"))),"",INDIRECT(CONCATENATE($B153,"!P20"))) ->  | W153: =IF(ISERROR(INDIRECT(CONCATENATE($B153,"!P21"))),"",INDIRECT(CONCATENATE($B153,"!P21"))) ->  | Y153: =IF(ISERROR(INDIRECT(CONCATENATE($B153,"!Q18"))),"",INDIRECT(CONCATENATE($B153,"!Q18"))) ->  | Z153: =IF(ISERROR(INDIRECT(CONCATENATE($B153,"!Q19"))),"",INDIRECT(CONCATENATE($B153,"!Q19"))) ->  | AA153: =IF(ISERROR(INDIRECT(CONCATENATE($B153,"!Q20"))),"",INDIRECT(CONCATENATE($B153,"!Q20"))) ->  | AB153: =IF(ISERROR(INDIRECT(CONCATENATE($B153,"!Q21"))),"",INDIRECT(CONCATENATE($B153,"!Q1"))) -> 
A197: URBAN | D197: Poorest | I197: Poor | N197: Middle | S197: Rich | X197: Richest
D198: Improved | E198: Basic | F198: Limited | G198: Unimproved | H198: Surface water | I198: Improved | J198: Basic | K198: Limited | L198: Unimproved | M198: Surface water | N198: Improved | O198: Basic | P198: Limited | Q198: Unimproved | R198: Surface water | S198: Improved | T198: Basic | U198: Limited | V198: Unimproved | W198: Surface water | X198: Improved | Y198: Basic | Z198: Limited | AA198: Unimproved | AB198: Surface water
A199: Forecast period: | C199: 2000 | D199: =IF((D201+H201)>100,D201*100/(D201+H201),D201) -> 88.06660247 | E199: =D199*AVERAGEIF(E205:E216,">0")/100 -> 81.07208318 | F199: =D199*(100-AVERAGEIF(E205:E216,">0"))/100 -> 6.99451929 | G199: =100-(E199+F199+H199) -> 11.92559134 | H199: =IF((D201+H201)>100,H201*100/(D201+H201),H201) -> 0.007806189501 | I199: =IF((I201+M201)>100,I201*100/(I201+M201),I201) -> 93.48529425 | J199: =I199*AVERAGEIF(J205:J216,">0")/100 -> 87.91638419 | K199: =I199*(100-AVERAGEIF(J205:J216,">0"))/100 -> 5.568910054 | L199: =100-(J199+K199+M199) -> 6.514705754 | M199: =IF((I201+M201)>100,M201*100/(I201+M201),M201) -> 0 | N199: =IF((N201+R201)>100,N201*100/(N201+R201),N201) -> 93.90936096 | O199: =N199*AVERAGEIF(O205:O216,">0")/100 -> 89.83963288 | P199: =N199*(100-AVERAGEIF(O205:O216,">0"))/100 -> 4.069728078 | Q199: =100-(O199+P199+R199) -> 6.090639038 | R199: =IF((N201+R201)>100,R201*100/(N201+R201),R201) -> 0 | S199: =IF((S201+W201)>100,S201*100/(S201+W201),S201) -> 95.73940543 | T199: =S199*AVERAGEIF(T205:T216,">0")/100 -> 93.25893468 | U199: =S199*(100-AVERAGEIF(T205:T216,">0"))/100 -> 2.480470745 | V199: =100-(T199+U199+W199) -> 4.260594574 | W199: =IF((S201+W201)>100,W201*100/(S201+W201),W201) -> 0 | X199: =IF((X201+AB201)>100,X201*100/(X201+AB201),X201) -> 96.76370304 | Y199: =X199*AVERAGEIF(Y205:Y216,">0")/100 -> 96.22058488 | Z199: =X199*(100-AVERAGEIF(Y205:Y216,">0"))/100 -> 0.5431181607 | AA199: =100-(Y199+Z199+AB199) -> 3.236296958 | AB199: =IF((X201+AB201)>100,AB201*100/(X201+AB201),AB201) -> 0
C200: 2020 | D200: =IF((D202+H202)>100,D202*100/(D202+H202),D202) -> 83.14552809 | E200: =D200*AVERAGEIF(E205:E216,">0")/100 -> 76.5418556 | F200: =D200*(100-AVERAGEIF(E205:E216,">0"))/100 -> 6.603672491 | G200: =100-(E200+F200+H200) -> 16.85262465 | H200: =IF((D202+H202)>100,H202*100/(D202+H202),H202) -> 0.001847266218 | I200: =IF((I202+M202)>100,I202*100/(I202+M202),I202) -> 91.15822039 | J200: =I200*AVERAGEIF(J205:J216,">0")/100 -> 85.7279339 | K200: =I200*(100-AVERAGEIF(J205:J216,">0"))/100 -> 5.430286487 | L200: =100-(J200+K200+M200) -> 8.841779609 | M200: =IF((I202+M202)>100,M202*100/(I202+M202),M202) -> 0 | N200: =IF((N202+R202)>100,N202*100/(N202+R202),N202) -> 95.46620062 | O200: =N200*AVERAGEIF(O205:O216,">0")/100 -> 91.32900414 | P200: =N200*(100-AVERAGEIF(O205:O216,">0"))/100 -> 4.137196475 | Q200: =100-(O200+P200+R200) -> 4.533799383 | R200: =IF((N202+R202)>100,R202*100/(N202+R202),R202) -> 0 | S200: =IF((S202+W202)>100,S202*100/(S202+W202),S202) -> 98.1572216 | T200: =S200*AVERAGEIF(T205:T216,">0")/100 -> 95.61410871 | U200: =S200*(100-AVERAGEIF(T205:T216,">0"))/100 -> 2.543112896 | V200: =100-(T200+U200+W200) -> 1.842778399 | W200: =IF((S202+W202)>100,W202*100/(S202+W202),W202) -> 0 | X200: =IF((X202+AB202)>100,X202*100/(X202+AB202),X202) -> 100 | Y200: =X200*AVERAGEIF(Y205:Y216,">0")/100 -> 99.43871706 | Z200: =X200*(100-AVERAGEIF(Y205:Y216,">0"))/100 -> 0.5612829435 | AA200: =100-(Y200+Z200+AB200) -> 0 | AB200: =IF((X202+AB202)>100,AB202*100/(X202+AB202),AB202) -> 0
A201: Regression period: | C201: =MinRegYear(C199,C205:C216) -> 2000 | D201: =IF(MAX(C205:C216)-MIN(C205:C216)<5,AVERAGEIF(C205:C216,">0",D205:D216), IF(FORECAST($C201,D$205:D$216,$C$205:$C$216)<0,0, IF(FORECAST($C201,D$205:D$216,$C$205:$C$216)>100,100, FORECAST($C201,D$205:D$216,$C$205:$C$216)))) -> 88.06660247 | H201: =IF(MAX(C205:C216)-MIN(C205:C216)<5,AVERAGEIF(C205:C216,">0",H205:H216), IF(FORECAST($C201,H$205:H$216,$C$205:$C$216)<0,0, IF(FORECAST($C201,H$205:H$216,$C$205:$C$216)>100,100, FORECAST($C201,H$205:H$216,$C$205:$C$216)))) -> 0.007806189501 | I201: =IF(MAX(C205:C216)-MIN(C205:C216)<5,AVERAGEIF(C205:C216,">0",I205:I216), IF(FORECAST($C201,I$205:I$216,$C$205:$C$216)<0,0, IF(FORECAST($C201,I$205:I$216,$C$205:$C$216)>100,100, FORECAST($C201,I$205:I$216,$C$205:$C$216)))) -> 93.48529425 | M201: =IF(MAX(C205:C216)-MIN(C205:C216)<5,AVERAGEIF(C205:C216,">0",M205:M216), IF(FORECAST($C201,M$205:M$216,$C$205:$C$216)<0,0, IF(FORECAST($C201,M$205:M$216,$C$205:$C$216)>100,100, FORECAST($C201,M$205:M$216,$C$205:$C$216)))) -> 0 | N201: =IF(MAX(C205:C216)-MIN(C205:C216)<5,AVERAGEIF(C205:C216,">0",N205:N216), IF(FORECAST($C201,N$205:N$216,$C$205:$C$216)<0,0, IF(FORECAST($C201,N$205:N$216,$C$205:$C$216)>100,100, FORECAST($C201,N$205:N$216,$C$205:$C$216)))) -> 93.90936096 | R201: =IF(MAX(C205:C216)-MIN(C205:C216)<5,AVERAGEIF(C205:C216,">0",R205:R216), IF(FORECAST($C201,R$205:R$216,$C$205:$C$216)<0,0, IF(FORECAST($C201,R$205:R$216,$C$205:$C$216)>100,100, FORECAST($C201,R$205:R$216,$C$205:$C$216)))) -> 0 | S201: =IF(MAX(C205:C216)-MIN(C205:C216)<5,AVERAGEIF(C205:C216,">0",S205:S216), IF(FORECAST($C201,S$205:S$216,$C$205:$C$216)<0,0, IF(FORECAST($C201,S$205:S$216,$C$205:$C$216)>100,100, FORECAST($C201,S$205:S$216,$C$205:$C$216)))) -> 95.73940543 | W201: =IF(MAX(C205:C216)-MIN(C205:C216)<5,AVERAGEIF(C205:C216,">0",W205:W216), IF(FORECAST($C201,W$205:W$216,$C$205:$C$216)<0,0, IF(FORECAST($C201,W$205:W$216,$C$205:$C$216)>100,100, FORECAST($C201,W$205:W$216,$C$205:$C$216)))) -> 0 | X201: =IF(MAX(C205:C216)-MIN(C205:C216)<5,AVERAGEIF(C205:C216,">0",X205:X216), IF(FORECAST($C201,X$205:X$216,$C$205:$C$216)<0,0, IF(FORECAST($C201,X$205:X$216,$C$205:$C$216)>100,100, FORECAST($C201,X$205:X$216,$C$205:$C$216)))) -> 96.76370304 | AB201: =IF(MAX(C205:C216)-MIN(C205:C216)<5,AVERAGEIF(C205:C216,">0",AB205:AB216), IF(FORECAST($C201,AB$205:AB$216,$C$205:$C$216)<0,0, IF(FORECAST($C201,AB$205:AB$216,$C$205:$C$216)>100,100, FORECAST($C201,AB$205:AB$216,$C$205:$C$216)))) -> 0
C202: =MaxRegYear(C200,C205:C216) -> 2020 | D202: =IF(MAX(C205:C216)-MIN(C205:C216)<5,AVERAGEIF(C205:C216,">0",D205:D216), IF(FORECAST($C202,D$205:D$216,$C$205:$C$216)<0,0, IF(FORECAST($C202,D$205:D$216,$C$205:$C$216)>100,100, FORECAST($C202,D$205:D$216,$C$205:$C$216)))) -> 83.14552809 | H202: =IF(MAX(C205:C216)-MIN(C205:C216)<5,AVERAGEIF(C205:C216,">0",H205:H216), IF(FORECAST($C202,H$205:H$216,$C$205:$C$216)<0,0, IF(FORECAST($C202,H$205:H$216,$C$205:$C$216)>100,100, FORECAST($C202,H$205:H$216,$C$205:$C$216)))) -> 0.001847266218 | I202: =IF(MAX(C205:C216)-MIN(C205:C216)<5,AVERAGEIF(C205:C216,">0",I205:I216), IF(FORECAST($C202,I$205:I$216,$C$205:$C$216)<0,0, IF(FORECAST($C202,I$205:I$216,$C$205:$C$216)>100,100, FORECAST($C202,I$205:I$216,$C$205:$C$216)))) -> 91.15822039 | M202: =IF(MAX(C205:C216)-MIN(C205:C216)<5,AVERAGEIF(C205:C216,">0",M205:M216), IF(FORECAST($C202,M$205:M$216,$C$205:$C$216)<0,0, IF(FORECAST($C202,M$205:M$216,$C$205:$C$216)>100,100, FORECAST($C202,M$205:M$216,$C$205:$C$216)))) -> 0 | N202: =IF(MAX(C205:C216)-MIN(C205:C216)<5,AVERAGEIF(C205:C216,">0",N205:N216), IF(FORECAST($C202,N$205:N$216,$C$205:$C$216)<0,0, IF(FORECAST($C202,N$205:N$216,$C$205:$C$216)>100,100, FORECAST($C202,N$205:N$216,$C$205:$C$216)))) -> 95.46620062 | R202: =IF(MAX(C205:C216)-MIN(C205:C216)<5,AVERAGEIF(C205:C216,">0",R205:R216), IF(FORECAST($C202,R$205:R$216,$C$205:$C$216)<0,0, IF(FORECAST($C202,R$205:R$216,$C$205:$C$216)>100,100, FORECAST($C202,R$205:R$216,$C$205:$C$216)))) -> 0 | S202: =IF(MAX(C205:C216)-MIN(C205:C216)<5,AVERAGEIF(C205:C216,">0",S205:S216), IF(FORECAST($C202,S$205:S$216,$C$205:$C$216)<0,0, IF(FORECAST($C202,S$205:S$216,$C$205:$C$216)>100,100, FORECAST($C202,S$205:S$216,$C$205:$C$216)))) -> 98.1572216 | W202: =IF(MAX(C205:C216)-MIN(C205:C216)<5,AVERAGEIF(C205:C216,">0",W205:W216), IF(FORECAST($C202,W$205:W$216,$C$205:$C$216)<0,0, IF(FORECAST($C202,W$205:W$216,$C$205:$C$216)>100,100, FORECAST($C202,W$205:W$216,$C$205:$C$216)))) -> 0 | X202: =IF(MAX(C205:C216)-MIN(C205:C216)<5,AVERAGEIF(C205:C216,">0",X205:X216), IF(FORECAST($C202,X$205:X$216,$C$205:$C$216)<0,0, IF(FORECAST($C202,X$205:X$216,$C$205:$C$216)>100,100, FORECAST($C202,X$205:X$216,$C$205:$C$216)))) -> 100 | AB202: =IF(MAX(C205:C216)-MIN(C205:C216)<5,AVERAGEIF(C205:C216,">0",AB205:AB216), IF(FORECAST($C202,AB$205:AB$216,$C$205:$C$216)<0,0, IF(FORECAST($C202,AB$205:AB$216,$C$205:$C$216)>100,100, FORECAST($C202,AB$205:AB$216,$C$205:$C$216)))) -> 0
B204: Survey | C204: Year | D204: Improved | E204: % Improved < = 30min | H204: Surface water | I204: Improved | J204: % Improved < = 30min | M204: Surface water | N204: Improved | O204: % Improved < = 30min | R204: Surface water | S204: Improved | T204: % Improved < = 30min | W204: Surface water | X204: Improved | Y204: % Improved < = 30min | AB204: Surface water
B205: MICS00 | C205: 2000 | D205: =IF(ISERROR(INDIRECT(CONCATENATE($B205,"!H16"))),"",INDIRECT(CONCATENATE($B205,"!H16"))) -> 84.84418017 | E205: =IF(ISERROR(INDIRECT(CONCATENATE($B205,"!H23"))),"",INDIRECT(CONCATENATE($B205,"!H23"))) -> 90.45978068 | H205: =IF(ISERROR(INDIRECT(CONCATENATE($B205,"!H21"))),"",INDIRECT(CONCATENATE($B205,"!H21"))) -> 0 | I205: =IF(ISERROR(INDIRECT(CONCATENATE($B205,"!I16"))),"",INDIRECT(CONCATENATE($B205,"!I16"))) -> 95.94009664 | J205: =IF(ISERROR(INDIRECT(CONCATENATE($B205,"!I23"))),"",INDIRECT(CONCATENATE($B205,"!I23"))) -> 90.23440207 | M205: =IF(ISERROR(INDIRECT(CONCATENATE($B205,"!I21"))),"",INDIRECT(CONCATENATE($B205,"!I21"))) -> 0 | N205: =IF(ISERROR(INDIRECT(CONCATENATE($B205,"!J16"))),"",INDIRECT(CONCATENATE($B205,"!J16"))) -> 97.38582379 | O205: =IF(ISERROR(INDIRECT(CONCATENATE($B205,"!J23"))),"",INDIRECT(CONCATENATE($B205,"!J23"))) -> 89.45906146 | R205: =IF(ISERROR(INDIRECT(CONCATENATE($B205,"!J21"))),"",INDIRECT(CONCATENATE($B205,"!J21"))) -> 0 | S205: =IF(ISERROR(INDIRECT(CONCATENATE($B205,"!K16"))),"",INDIRECT(CONCATENATE($B205,"!K16"))) -> 97.45273293 | T205: =IF(ISERROR(INDIRECT(CONCATENATE($B205,"!K23"))),"",INDIRECT(CONCATENATE($B205,"!K23"))) -> 95.0025704 | W205: =IF(ISERROR(INDIRECT(CONCATENATE($B205,"!K21"))),"",INDIRECT(CONCATENATE($B205,"!K21"))) -> 0 | X205: =IF(ISERROR(INDIRECT(CONCATENATE($B205,"!L16"))),"",INDIRECT(CONCATENATE($B205,"!L16"))) -> 97.32510253 | Y205: =IF(ISERROR(INDIRECT(CONCATENATE($B205,"!L23"))),"",INDIRECT(CONCATENATE($B205,"!L23"))) -> 99.24395664 | AB205: =IF(ISERROR(INDIRECT(CONCATENATE($B205,"!L221"))),"",INDIRECT(CONCATENATE($B205,"!L21"))) -> 0
B206: MICS06 | C206: 2006 | D206: 89.0065426 | E206: 81.79508351 | H206: 0.02258431924 | I206: 88.67787577 | J206: 91.65427618 | M206: 0 | N206: 88.88532619 | O206: 91.80957652 | R206: 0 | S206: 93.1339894 | T206: 94.89788651 | W206: 0 | X206: 96.44898713 | Y206: 98.21794361 | AB206: 0
B207: MICS10 | C207: 2010 | D207: 89.16361938 | E207: 90.89630649 | H207: 0 | I207: 93.28907075 | J207: 92.51219755 | M207: 0 | N207: 95.26975298 | O207: 95.17958117 | R207: 0 | S207: 97.48745104 | T207: 97.93961408 | W207: 0 | X207: 98.5760516 | Y207: 99.6691368 | AB207: 0
B208: DHS13 | C208: 2013 | D208: 86.41371188 | E208: 97.63760477 | H208: 0 | I208: 92.08676623 | J208: 94.92412518 | M208: 0 | N208: 95.13258845 | O208: 98.91839599 | R208: 0 | S208: 97.9227446 | T208: 97.50407565 | W208: 0 | X208: 99.73756387 | Y208: 99.87096796 | AB208: 0
B209: MICS18 | C209: 2018 | D209: 75.74992365 | E209: 94.5442846 | H209: N/A | I209: 90.37216602 | J209: 96.93063209 | M209: N/A | N209: 95.33414814 | O209: 99.05987278 | R209: N/A | S209: 99.26064817 | T209: 99.71218651 | W209: N/A | X209: 99.84932919 | Y209: 100 | AB209: N/A
B210: DHS20 | C210: 2020 | D210: 86.73603794 | E210: 97.01310233 | H210: N/A | I210: 92.75009266 | J210: 98.00242421 | M210: N/A | N210: 96.66393907 | O210: 99.57145199 | R210: N/A | S210: 97.27855061 | T210: 99.398527 | W210: N/A | X210: 99.83347962 | Y210: 99.63029732 | AB210: N/A
B218: =CONCATENATE("Urban use of drinking water sources, ",C199,"–",C200) -> Urban use of drinking water sources, 2000–2020 | S218: Data points used for regression
E253: =IF(ISERROR(INDIRECT(CONCATENATE($B253,"!M18"))),"",INDIRECT(CONCATENATE($B253,"!M18"))) ->  | F253: =IF(ISERROR(INDIRECT(CONCATENATE($B253,"!M19"))),"",INDIRECT(CONCATENATE($B253,"!M19"))) ->  | G253: =IF(ISERROR(INDIRECT(CONCATENATE($B253,"!M20"))),"",INDIRECT(CONCATENATE($B253,"!M20"))) ->  | H253: =IF(ISERROR(INDIRECT(CONCATENATE($B253,"!M21"))),"",INDIRECT(CONCATENATE($B253,"!M21"))) ->  | J253: =IF(ISERROR(INDIRECT(CONCATENATE($B253,"!N18"))),"",INDIRECT(CONCATENATE($B253,"!N18"))) ->  | K253: =IF(ISERROR(INDIRECT(CONCATENATE($B253,"!N19"))),"",INDIRECT(CONCATENATE($B253,"!N19"))) ->  | L253: =IF(ISERROR(INDIRECT(CONCATENATE($B253,"!N20"))),"",INDIRECT(CONCATENATE($B253,"!N20"))) ->  | M253: =IF(ISERROR(INDIRECT(CONCATENATE($B253,"!N21"))),"",INDIRECT(CONCATENATE($B253,"!N21"))) ->  | O253: =IF(ISERROR(INDIRECT(CONCATENATE($B253,"!O18"))),"",INDIRECT(CONCATENATE($B253,"!O18"))) ->  | P253: =IF(ISERROR(INDIRECT(CONCATENATE($B253,"!O19"))),"",INDIRECT(CONCATENATE($B253,"!O19"))) ->  | Q253: =IF(ISERROR(INDIRECT(CONCATENATE($B253,"!O20"))),"",INDIRECT(CONCATENATE($B253,"!O20"))) ->  | R253: =IF(ISERROR(INDIRECT(CONCATENATE($B253,"!O21"))),"",INDIRECT(CONCATENATE($B253,"!O21"))) ->  | T253: =IF(ISERROR(INDIRECT(CONCATENATE($B253,"!P18"))),"",INDIRECT(CONCATENATE($B253,"!P18"))) ->  | U253: =IF(ISERROR(INDIRECT(CONCATENATE($B253,"!P19"))),"",INDIRECT(CONCATENATE($B253,"!P19"))) ->  | V253: =IF(ISERROR(INDIRECT(CONCATENATE($B253,"!P20"))),"",INDIRECT(CONCATENATE($B253,"!P20"))) ->  | W253: =IF(ISERROR(INDIRECT(CONCATENATE($B253,"!P21"))),"",INDIRECT(CONCATENATE($B253,"!P21"))) ->  | Y253: =IF(ISERROR(INDIRECT(CONCATENATE($B253,"!Q18"))),"",INDIRECT(CONCATENATE($B253,"!Q18"))) ->  | Z253: =IF(ISERROR(INDIRECT(CONCATENATE($B253,"!Q19"))),"",INDIRECT(CONCATENATE($B253,"!Q19"))) ->  | AA253: =IF(ISERROR(INDIRECT(CONCATENATE($B253,"!Q20"))),"",INDIRECT(CONCATENATE($B253,"!Q20"))) ->  | AB253: =IF(ISERROR(INDIRECT(CONCATENATE($B253,"!Q21"))),"",INDIRECT(CONCATENATE($B253,"!Q1"))) -> 
E254: =IF(ISERROR(INDIRECT(CONCATENATE($B254,"!M18"))),"",INDIRECT(CONCATENATE($B254,"!M18"))) ->  | F254: =IF(ISERROR(INDIRECT(CONCATENATE($B254,"!M19"))),"",INDIRECT(CONCATENATE($B254,"!M19"))) ->  | G254: =IF(ISERROR(INDIRECT(CONCATENATE($B254,"!M20"))),"",INDIRECT(CONCATENATE($B254,"!M20"))) ->  | H254: =IF(ISERROR(INDIRECT(CONCATENATE($B254,"!M21"))),"",INDIRECT(CONCATENATE($B254,"!M21"))) ->  | J254: =IF(ISERROR(INDIRECT(CONCATENATE($B254,"!N18"))),"",INDIRECT(CONCATENATE($B254,"!N18"))) ->  | K254: =IF(ISERROR(INDIRECT(CONCATENATE($B254,"!N19"))),"",INDIRECT(CONCATENATE($B254,"!N19"))) ->  | L254: =IF(ISERROR(INDIRECT(CONCATENATE($B254,"!N20"))),"",INDIRECT(CONCATENATE($B254,"!N20"))) ->  | M254: =IF(ISERROR(INDIRECT(CONCATENATE($B254,"!N21"))),"",INDIRECT(CONCATENATE($B254,"!N21"))) ->  | O254: =IF(ISERROR(INDIRECT(CONCATENATE($B254,"!O18"))),"",INDIRECT(CONCATENATE($B254,"!O18"))) ->  | P254: =IF(ISERROR(INDIRECT(CONCATENATE($B254,"!O19"))),"",INDIRECT(CONCATENATE($B254,"!O19"))) ->  | Q254: =IF(ISERROR(INDIRECT(CONCATENATE($B254,"!O20"))),"",INDIRECT(CONCATENATE($B254,"!O20"))) ->  | R254: =IF(ISERROR(INDIRECT(CONCATENATE($B254,"!O21"))),"",INDIRECT(CONCATENATE($B254,"!O21"))) ->  | T254: =IF(ISERROR(INDIRECT(CONCATENATE($B254,"!P18"))),"",INDIRECT(CONCATENATE($B254,"!P18"))) ->  | U254: =IF(ISERROR(INDIRECT(CONCATENATE($B254,"!P19"))),"",INDIRECT(CONCATENATE($B254,"!P19"))) ->  | V254: =IF(ISERROR(INDIRECT(CONCATENATE($B254,"!P20"))),"",INDIRECT(CONCATENATE($B254,"!P20"))) ->  | W254: =IF(ISERROR(INDIRECT(CONCATENATE($B254,"!P21"))),"",INDIRECT(CONCATENATE($B254,"!P21"))) ->  | Y254: =IF(ISERROR(INDIRECT(CONCATENATE($B254,"!Q18"))),"",INDIRECT(CONCATENATE($B254,"!Q18"))) ->  | Z254: =IF(ISERROR(INDIRECT(CONCATENATE($B254,"!Q19"))),"",INDIRECT(CONCATENATE($B254,"!Q19"))) ->  | AA254: =IF(ISERROR(INDIRECT(CONCATENATE($B254,"!Q20"))),"",INDIRECT(CONCATENATE($B254,"!Q20"))) ->  | AB254: =IF(ISERROR(INDIRECT(CONCATENATE($B254,"!Q21"))),"",INDIRECT(CONCATENATE($B254,"!Q1"))) -> 
E255: =IF(ISERROR(INDIRECT(CONCATENATE($B255,"!M18"))),"",INDIRECT(CONCATENATE($B255,"!M18"))) ->  | F255: =IF(ISERROR(INDIRECT(CONCATENATE($B255,"!M19"))),"",INDIRECT(CONCATENATE($B255,"!M19"))) ->  | G255: =IF(ISERROR(INDIRECT(CONCATENATE($B255,"!M20"))),"",INDIRECT(CONCATENATE($B255,"!M20"))) ->  | H255: =IF(ISERROR(INDIRECT(CONCATENATE($B255,"!M21"))),"",INDIRECT(CONCATENATE($B255,"!M21"))) ->  | J255: =IF(ISERROR(INDIRECT(CONCATENATE($B255,"!N18"))),"",INDIRECT(CONCATENATE($B255,"!N18"))) ->  | K255: =IF(ISERROR(INDIRECT(CONCATENATE($B255,"!N19"))),"",INDIRECT(CONCATENATE($B255,"!N19"))) ->  | L255: =IF(ISERROR(INDIRECT(CONCATENATE($B255,"!N20"))),"",INDIRECT(CONCATENATE($B255,"!N20"))) ->  | M255: =IF(ISERROR(INDIRECT(CONCATENATE($B255,"!N21"))),"",INDIRECT(CONCATENATE($B255,"!N21"))) ->  | O255: =IF(ISERROR(INDIRECT(CONCATENATE($B255,"!O18"))),"",INDIRECT(CONCATENATE($B255,"!O18"))) ->  | P255: =IF(ISERROR(INDIRECT(CONCATENATE($B255,"!O19"))),"",INDIRECT(CONCATENATE($B255,"!O19"))) ->  | Q255: =IF(ISERROR(INDIRECT(CONCATENATE($B255,"!O20"))),"",INDIRECT(CONCATENATE($B255,"!O20"))) ->  | R255: =IF(ISERROR(INDIRECT(CONCATENATE($B255,"!O21"))),"",INDIRECT(CONCATENATE($B255,"!O21"))) ->  | T255: =IF(ISERROR(INDIRECT(CONCATENATE($B255,"!P18"))),"",INDIRECT(CONCATENATE($B255,"!P18"))) ->  | U255: =IF(ISERROR(INDIRECT(CONCATENATE($B255,"!P19"))),"",INDIRECT(CONCATENATE($B255,"!P19"))) ->  | V255: =IF(ISERROR(INDIRECT(CONCATENATE($B255,"!P20"))),"",INDIRECT(CONCATENATE($B255,"!P20"))) ->  | W255: =IF(ISERROR(INDIRECT(CONCATENATE($B255,"!P21"))),"",INDIRECT(CONCATENATE($B255,"!P21"))) ->  | Y255: =IF(ISERROR(INDIRECT(CONCATENATE($B255,"!Q18"))),"",INDIRECT(CONCATENATE($B255,"!Q18"))) ->  | Z255: =IF(ISERROR(INDIRECT(CONCATENATE($B255,"!Q19"))),"",INDIRECT(CONCATENATE($B255,"!Q19"))) ->  | AA255: =IF(ISERROR(INDIRECT(CONCATENATE($B255,"!Q20"))),"",INDIRECT(CONCATENATE($B255,"!Q20"))) ->  | AB255: =IF(ISERROR(INDIRECT(CONCATENATE($B255,"!Q21"))),"",INDIRECT(CONCATENATE($B255,"!Q1"))) -> 
E256: =IF(ISERROR(INDIRECT(CONCATENATE($B256,"!M18"))),"",INDIRECT(CONCATENATE($B256,"!M18"))) ->  | F256: =IF(ISERROR(INDIRECT(CONCATENATE($B256,"!M19"))),"",INDIRECT(CONCATENATE($B256,"!M19"))) ->  | G256: =IF(ISERROR(INDIRECT(CONCATENATE($B256,"!M20"))),"",INDIRECT(CONCATENATE($B256,"!M20"))) ->  | H256: =IF(ISERROR(INDIRECT(CONCATENATE($B256,"!M21"))),"",INDIRECT(CONCATENATE($B256,"!M21"))) ->  | J256: =IF(ISERROR(INDIRECT(CONCATENATE($B256,"!N18"))),"",INDIRECT(CONCATENATE($B256,"!N18"))) ->  | K256: =IF(ISERROR(INDIRECT(CONCATENATE($B256,"!N19"))),"",INDIRECT(CONCATENATE($B256,"!N19"))) ->  | L256: =IF(ISERROR(INDIRECT(CONCATENATE($B256,"!N20"))),"",INDIRECT(CONCATENATE($B256,"!N20"))) ->  | M256: =IF(ISERROR(INDIRECT(CONCATENATE($B256,"!N21"))),"",INDIRECT(CONCATENATE($B256,"!N21"))) ->  | O256: =IF(ISERROR(INDIRECT(CONCATENATE($B256,"!O18"))),"",INDIRECT(CONCATENATE($B256,"!O18"))) ->  | P256: =IF(ISERROR(INDIRECT(CONCATENATE($B256,"!O19"))),"",INDIRECT(CONCATENATE($B256,"!O19"))) ->  | Q256: =IF(ISERROR(INDIRECT(CONCATENATE($B256,"!O20"))),"",INDIRECT(CONCATENATE($B256,"!O20"))) ->  | R256: =IF(ISERROR(INDIRECT(CONCATENATE($B256,"!O21"))),"",INDIRECT(CONCATENATE($B256,"!O21"))) ->  | T256: =IF(ISERROR(INDIRECT(CONCATENATE($B256,"!P18"))),"",INDIRECT(CONCATENATE($B256,"!P18"))) ->  | U256: =IF(ISERROR(INDIRECT(CONCATENATE($B256,"!P19"))),"",INDIRECT(CONCATENATE($B256,"!P19"))) ->  | V256: =IF(ISERROR(INDIRECT(CONCATENATE($B256,"!P20"))),"",INDIRECT(CONCATENATE($B256,"!P20"))) ->  | W256: =IF(ISERROR(INDIRECT(CONCATENATE($B256,"!P21"))),"",INDIRECT(CONCATENATE($B256,"!P21"))) ->  | Y256: =IF(ISERROR(INDIRECT(CONCATENATE($B256,"!Q18"))),"",INDIRECT(CONCATENATE($B256,"!Q18"))) ->  | Z256: =IF(ISERROR(INDIRECT(CONCATENATE($B256,"!Q19"))),"",INDIRECT(CONCATENATE($B256,"!Q19"))) ->  | AA256: =IF(ISERROR(INDIRECT(CONCATENATE($B256,"!Q20"))),"",INDIRECT(CONCATENATE($B256,"!Q20"))) ->  | AB256: =IF(ISERROR(INDIRECT(CONCATENATE($B256,"!Q21"))),"",INDIRECT(CONCATENATE($B256,"!Q1"))) -> 
E257: =IF(ISERROR(INDIRECT(CONCATENATE($B257,"!M18"))),"",INDIRECT(CONCATENATE($B257,"!M18"))) ->  | F257: =IF(ISERROR(INDIRECT(CONCATENATE($B257,"!M19"))),"",INDIRECT(CONCATENATE($B257,"!M19"))) ->  | G257: =IF(ISERROR(INDIRECT(CONCATENATE($B257,"!M20"))),"",INDIRECT(CONCATENATE($B257,"!M20"))) ->  | H257: =IF(ISERROR(INDIRECT(CONCATENATE($B257,"!M21"))),"",INDIRECT(CONCATENATE($B257,"!M21"))) ->  | J257: =IF(ISERROR(INDIRECT(CONCATENATE($B257,"!N18"))),"",INDIRECT(CONCATENATE($B257,"!N18"))) ->  | K257: =IF(ISERROR(INDIRECT(CONCATENATE($B257,"!N19"))),"",INDIRECT(CONCATENATE($B257,"!N19"))) ->  | L257: =IF(ISERROR(INDIRECT(CONCATENATE($B257,"!N20"))),"",INDIRECT(CONCATENATE($B257,"!N20"))) ->  | M257: =IF(ISERROR(INDIRECT(CONCATENATE($B257,"!N21"))),"",INDIRECT(CONCATENATE($B257,"!N21"))) ->  | O257: =IF(ISERROR(INDIRECT(CONCATENATE($B257,"!O18"))),"",INDIRECT(CONCATENATE($B257,"!O18"))) ->  | P257: =IF(ISERROR(INDIRECT(CONCATENATE($B257,"!O19"))),"",INDIRECT(CONCATENATE($B257,"!O19"))) ->  | Q257: =IF(ISERROR(INDIRECT(CONCATENATE($B257,"!O20"))),"",INDIRECT(CONCATENATE($B257,"!O20"))) ->  | R257: =IF(ISERROR(INDIRECT(CONCATENATE($B257,"!O21"))),"",INDIRECT(CONCATENATE($B257,"!O21"))) ->  | T257: =IF(ISERROR(INDIRECT(CONCATENATE($B257,"!P18"))),"",INDIRECT(CONCATENATE($B257,"!P18"))) ->  | U257: =IF(ISERROR(INDIRECT(CONCATENATE($B257,"!P19"))),"",INDIRECT(CONCATENATE($B257,"!P19"))) ->  | V257: =IF(ISERROR(INDIRECT(CONCATENATE($B257,"!P20"))),"",INDIRECT(CONCATENATE($B257,"!P20"))) ->  | W257: =IF(ISERROR(INDIRECT(CONCATENATE($B257,"!P21"))),"",INDIRECT(CONCATENATE($B257,"!P21"))) ->  | Y257: =IF(ISERROR(INDIRECT(CONCATENATE($B257,"!Q18"))),"",INDIRECT(CONCATENATE($B257,"!Q18"))) ->  | Z257: =IF(ISERROR(INDIRECT(CONCATENATE($B257,"!Q19"))),"",INDIRECT(CONCATENATE($B257,"!Q19"))) ->  | AA257: =IF(ISERROR(INDIRECT(CONCATENATE($B257,"!Q20"))),"",INDIRECT(CONCATENATE($B257,"!Q20"))) ->  | AB257: =IF(ISERROR(INDIRECT(CONCATENATE($B257,"!Q21"))),"",INDIRECT(CONCATENATE($B257,"!Q1"))) -> 
A297: RURAL | D297: Poorest | I297: Poor | N297: Middle | S297: Rich | X297: Richest
D298: Improved | E298: Basic | F298: Limited | G298: Unimproved | H298: Surface water | I298: Improved | J298: Basic | K298: Limited | L298: Unimproved | M298: Surface water | N298: Improved | O298: Basic | P298: Limited | Q298: Unimproved | R298: Surface water | S298: Improved | T298: Basic | U298: Limited | V298: Unimproved | W298: Surface water | X298: Improved | Y298: Basic | Z298: Limited | AA298: Unimproved | AB298: Surface water
A299: Forecast period: | C299: 2000 | D299: =IF((D301+H301)>100,D301*100/(D301+H301),D301) -> 69.74739269 | E299: =D299*AVERAGEIF(E305:E316,">0")/100 -> 59.35447806 | F299: =D299*(100-AVERAGEIF(E305:E316,">0"))/100 -> 10.39291463 | G299: =100-(E299+F299+H299) -> 30.25260731 | H299: =IF((D301+H301)>100,H301*100/(D301+H301),H301) -> 0 | I299: =IF((I301+M301)>100,I301*100/(I301+M301),I301) -> 75.79476839 | J299: =I299*AVERAGEIF(J305:J316,">0")/100 -> 65.03964824 | K299: =I299*(100-AVERAGEIF(J305:J316,">0"))/100 -> 10.75512014 | L299: =100-(J299+K299+M299) -> 23.41815146 | M299: =IF((I301+M301)>100,M301*100/(I301+M301),M301) -> 0.7870801525 | N299: =IF((N301+R301)>100,N301*100/(N301+R301),N301) -> 78.87716375 | O299: =N299*AVERAGEIF(O305:O316,">0")/100 -> 67.61809774 | P299: =N299*(100-AVERAGEIF(O305:O316,">0"))/100 -> 11.25906601 | Q299: =100-(O299+P299+R299) -> 21.12283625 | R299: =IF((N301+R301)>100,R301*100/(N301+R301),R301) -> 0 | S299: =IF((S301+W301)>100,S301*100/(S301+W301),S301) -> 73.08050668 | T299: =S299*AVERAGEIF(T305:T316,">0")/100 -> 63.55314681 | U299: =S299*(100-AVERAGEIF(T305:T316,">0"))/100 -> 9.527359869 | V299: =100-(T299+U299+W299) -> 26.91767231 | W299: =IF((S301+W301)>100,W301*100/(S301+W301),W301) -> 0.001821004836 | X299: =IF((X301+AB301)>100,X301*100/(X301+AB301),X301) -> 80.37346149 | Y299: =X299*AVERAGEIF(Y305:Y316,">0")/100 -> 70.42283166 | Z299: =X299*(100-AVERAGEIF(Y305:Y316,">0"))/100 -> 9.950629828 | AA299: =100-(Y299+Z299+AB299) -> 19.62653851 | AB299: =IF((X301+AB301)>100,AB301*100/(X301+AB301),AB301) -> 0
C300: 2020 | D300: =IF((D302+H302)>100,D302*100/(D302+H302),D302) -> 82.47391651 | E300: =D300*AVERAGEIF(E305:E316,">0")/100 -> 70.1846489 | F300: =D300*(100-AVERAGEIF(E305:E316,">0"))/100 -> 12.2892676 | G300: =100-(E300+F300+H300) -> 17.08490553 | H300: =IF((D302+H302)>100,H302*100/(D302+H302),H302) -> 0.4411779624 | I300: =IF((I302+M302)>100,I302*100/(I302+M302),I302) -> 86.82235615 | J300: =I300*AVERAGEIF(J305:J316,">0")/100 -> 74.50244422 | K300: =I300*(100-AVERAGEIF(J305:J316,">0"))/100 -> 12.31991193 | L300: =100-(J300+K300+M300) -> 13.17764385 | M300: =IF((I302+M302)>100,M302*100/(I302+M302),M302) -> 0 | N300: =IF((N302+R302)>100,N302*100/(N302+R302),N302) -> 90.80998632 | O300: =N300*AVERAGEIF(O305:O316,">0")/100 -> 77.84760809 | P300: =N300*(100-AVERAGEIF(O305:O316,">0"))/100 -> 12.96237823 | Q300: =100-(O300+P300+R300) -> 9.190013677 | R300: =IF((N302+R302)>100,R302*100/(N302+R302),R302) -> 0 | S300: =IF((S302+W302)>100,S302*100/(S302+W302),S302) -> 92.78046409 | T300: =S300*AVERAGEIF(T305:T316,">0")/100 -> 80.68486007 | U300: =S300*(100-AVERAGEIF(T305:T316,">0"))/100 -> 12.09560402 | V300: =100-(T300+U300+W300) -> 7.191006834 | W300: =IF((S302+W302)>100,W302*100/(S302+W302),W302) -> 0.02852907577 | X300: =IF((X302+AB302)>100,X302*100/(X302+AB302),X302) -> 95.24653949 | Y300: =X300*AVERAGEIF(Y305:Y316,">0")/100 -> 83.45454946 | Z300: =X300*(100-AVERAGEIF(Y305:Y316,">0"))/100 -> 11.79199003 | AA300: =100-(Y300+Z300+AB300) -> 4.753460508 | AB300: =IF((X302+AB302)>100,AB302*100/(X302+AB302),AB302) -> 0
A301: Regression period: | C301: =MinRegYear(C299,C305:C316) -> 2000 | D301: =IF(MAX(C305:C316)-MIN(C305:C316)<5,AVERAGEIF(C305:C316,">0",D305:D316), IF(FORECAST($C301,D$305:D$316,$C$305:$C$316)<0,0, IF(FORECAST($C301,D$305:D$316,$C$305:$C$316)>100,100, FORECAST($C301,D$305:D$316,$C$305:$C$316)))) -> 69.74739269 | H301: =IF(MAX(C305:C316)-MIN(C305:C316)<5,AVERAGEIF(C305:C316,">0",H305:H316), IF(FORECAST($C301,H$305:H$316,$C$305:$C$316)<0,0, IF(FORECAST($C301,H$305:H$316,$C$305:$C$316)>100,100, FORECAST($C301,H$305:H$316,$C$305:$C$316)))) -> 0 | I301: =IF(MAX(C305:C316)-MIN(C305:C316)<5,AVERAGEIF(C305:C316,">0",I305:I316), IF(FORECAST($C301,I$305:I$316,$C$305:$C$316)<0,0, IF(FORECAST($C301,I$305:I$316,$C$305:$C$316)>100,100, FORECAST($C301,I$305:I$316,$C$305:$C$316)))) -> 75.79476839 | M301: =IF(MAX(C305:C316)-MIN(C305:C316)<5,AVERAGEIF(C305:C316,">0",M305:M316), IF(FORECAST($C301,M$305:M$316,$C$305:$C$316)<0,0, IF(FORECAST($C301,M$305:M$316,$C$305:$C$316)>100,100, FORECAST($C301,M$305:M$316,$C$305:$C$316)))) -> 0.7870801525 | N301: =IF(MAX(C305:C316)-MIN(C305:C316)<5,AVERAGEIF(C305:C316,">0",N305:N316), IF(FORECAST($C301,N$305:N$316,$C$305:$C$316)<0,0, IF(FORECAST($C301,N$305:N$316,$C$305:$C$316)>100,100, FORECAST($C301,N$305:N$316,$C$305:$C$316)))) -> 78.87716375 | R301: =IF(MAX(C305:C316)-MIN(C305:C316)<5,AVERAGEIF(C305:C316,">0",R305:R316), IF(FORECAST($C301,R$305:R$316,$C$305:$C$316)<0,0, IF(FORECAST($C301,R$305:R$316,$C$305:$C$316)>100,100, FORECAST($C301,R$305:R$316,$C$305:$C$316)))) -> 0 | S301: =IF(MAX(C305:C316)-MIN(C305:C316)<5,AVERAGEIF(C305:C316,">0",S305:S316), IF(FORECAST($C301,S$305:S$316,$C$305:$C$316)<0,0, IF(FORECAST($C301,S$305:S$316,$C$305:$C$316)>100,100, FORECAST($C301,S$305:S$316,$C$305:$C$316)))) -> 73.08050668 | W301: =IF(MAX(C305:C316)-MIN(C305:C316)<5,AVERAGEIF(C305:C316,">0",W305:W316), IF(FORECAST($C301,W$305:W$316,$C$305:$C$316)<0,0, IF(FORECAST($C301,W$305:W$316,$C$305:$C$316)>100,100, FORECAST($C301,W$305:W$316,$C$305:$C$316)))) -> 0.001821004836 | X301: =IF(MAX(C305:C316)-MIN(C305:C316)<5,AVERAGEIF(C305:C316,">0",X305:X316), IF(FORECAST($C301,X$305:X$316,$C$305:$C$316)<0,0, IF(FORECAST($C301,X$305:X$316,$C$305:$C$316)>100,100, FORECAST($C301,X$305:X$316,$C$305:$C$316)))) -> 80.37346149 | AB301: =IF(MAX(C305:C316)-MIN(C305:C316)<5,AVERAGEIF(C305:C316,">0",AB305:AB316), IF(FORECAST($C301,AB$305:AB$316,$C$305:$C$316)<0,0, IF(FORECAST($C301,AB$305:AB$316,$C$305:$C$316)>100,100, FORECAST($C301,AB$305:AB$316,$C$305:$C$316)))) -> 0
C302: =MaxRegYear(C300,C305:C316) -> 2020 | D302: =IF(MAX(C305:C316)-MIN(C305:C316)<5,AVERAGEIF(C305:C316,">0",D305:D316), IF(FORECAST($C302,D$305:D$316,$C$305:$C$316)<0,0, IF(FORECAST($C302,D$305:D$316,$C$305:$C$316)>100,100, FORECAST($C302,D$305:D$316,$C$305:$C$316)))) -> 82.47391651 | H302: =IF(MAX(C305:C316)-MIN(C305:C316)<5,AVERAGEIF(C305:C316,">0",H305:H316), IF(FORECAST($C302,H$305:H$316,$C$305:$C$316)<0,0, IF(FORECAST($C302,H$305:H$316,$C$305:$C$316)>100,100, FORECAST($C302,H$305:H$316,$C$305:$C$316)))) -> 0.4411779624 | I302: =IF(MAX(C305:C316)-MIN(C305:C316)<5,AVERAGEIF(C305:C316,">0",I305:I316), IF(FORECAST($C302,I$305:I$316,$C$305:$C$316)<0,0, IF(FORECAST($C302,I$305:I$316,$C$305:$C$316)>100,100, FORECAST($C302,I$305:I$316,$C$305:$C$316)))) -> 86.82235615 | M302: =IF(MAX(C305:C316)-MIN(C305:C316)<5,AVERAGEIF(C305:C316,">0",M305:M316), IF(FORECAST($C302,M$305:M$316,$C$305:$C$316)<0,0, IF(FORECAST($C302,M$305:M$316,$C$305:$C$316)>100,100, FORECAST($C302,M$305:M$316,$C$305:$C$316)))) -> 0 | N302: =IF(MAX(C305:C316)-MIN(C305:C316)<5,AVERAGEIF(C305:C316,">0",N305:N316), IF(FORECAST($C302,N$305:N$316,$C$305:$C$316)<0,0, IF(FORECAST($C302,N$305:N$316,$C$305:$C$316)>100,100, FORECAST($C302,N$305:N$316,$C$305:$C$316)))) -> 90.80998632 | R302: =IF(MAX(C305:C316)-MIN(C305:C316)<5,AVERAGEIF(C305:C316,">0",R305:R316), IF(FORECAST($C302,R$305:R$316,$C$305:$C$316)<0,0, IF(FORECAST($C302,R$305:R$316,$C$305:$C$316)>100,100, FORECAST($C302,R$305:R$316,$C$305:$C$316)))) -> 0 | S302: =IF(MAX(C305:C316)-MIN(C305:C316)<5,AVERAGEIF(C305:C316,">0",S305:S316), IF(FORECAST($C302,S$305:S$316,$C$305:$C$316)<0,0, IF(FORECAST($C302,S$305:S$316,$C$305:$C$316)>100,100, FORECAST($C302,S$305:S$316,$C$305:$C$316)))) -> 92.78046409 | W302: =IF(MAX(C305:C316)-MIN(C305:C316)<5,AVERAGEIF(C305:C316,">0",W305:W316), IF(FORECAST($C302,W$305:W$316,$C$305:$C$316)<0,0, IF(FORECAST($C302,W$305:W$316,$C$305:$C$316)>100,100, FORECAST($C302,W$305:W$316,$C$305:$C$316)))) -> 0.02852907577 | X302: =IF(MAX(C305:C316)-MIN(C305:C316)<5,AVERAGEIF(C305:C316,">0",X305:X316), IF(FORECAST($C302,X$305:X$316,$C$305:$C$316)<0,0, IF(FORECAST($C302,X$305:X$316,$C$305:$C$316)>100,100, FORECAST($C302,X$305:X$316,$C$305:$C$316)))) -> 95.24653949 | AB302: =IF(MAX(C305:C316)-MIN(C305:C316)<5,AVERAGEIF(C305:C316,">0",AB305:AB316), IF(FORECAST($C302,AB$305:AB$316,$C$305:$C$316)<0,0, IF(FORECAST($C302,AB$305:AB$316,$C$305:$C$316)>100,100, FORECAST($C302,AB$305:AB$316,$C$305:$C$316)))) -> 0
B304: Survey | C304: Year | D304: Improved | E304: % Improved < = 30min | H304: Surface water | I304: Improved | J304: % Improved < = 30min | M304: Surface water | N304: Improved | O304: % Improved < = 30min | R304: Surface water | S304: Improved | T304: % Improved < = 30min | W304: Surface water | X304: Improved | Y304: % Improved < = 30min | AB304: Surface water
B305: MICS00 | C305: 2000 | D305: =IF(ISERROR(INDIRECT(CONCATENATE($B305,"!M16"))),"",INDIRECT(CONCATENATE($B305,"!M16"))) -> 69.09746096 | E305: =IF(ISERROR(INDIRECT(CONCATENATE($B305,"!M23"))),"",INDIRECT(CONCATENATE($B305,"!M23"))) -> 89.75280898 | H305: =IF(ISERROR(INDIRECT(CONCATENATE($B305,"!M21"))),"",INDIRECT(CONCATENATE($B305,"!M21"))) -> 0 | I305: =IF(ISERROR(INDIRECT(CONCATENATE($B305,"!N16"))),"",INDIRECT(CONCATENATE($B305,"!N16"))) -> 77.57732723 | J305: =IF(ISERROR(INDIRECT(CONCATENATE($B305,"!N23"))),"",INDIRECT(CONCATENATE($B305,"!N23"))) -> 83.00170999 | M305: =IF(ISERROR(INDIRECT(CONCATENATE($B305,"!N21"))),"",INDIRECT(CONCATENATE($B305,"!N21"))) -> 1.01384238 | N305: =IF(ISERROR(INDIRECT(CONCATENATE($B305,"!O16"))),"",INDIRECT(CONCATENATE($B305,"!O16"))) -> 79.06274672 | O305: =IF(ISERROR(INDIRECT(CONCATENATE($B305,"!O23"))),"",INDIRECT(CONCATENATE($B305,"!O23"))) -> 88.8174704 | R305: =IF(ISERROR(INDIRECT(CONCATENATE($B305,"!O21"))),"",INDIRECT(CONCATENATE($B305,"!O21"))) -> 0 | S305: =IF(ISERROR(INDIRECT(CONCATENATE($B305,"!P16"))),"",INDIRECT(CONCATENATE($B305,"!P16"))) -> 74.06394666 | T305: =IF(ISERROR(INDIRECT(CONCATENATE($B305,"!P23"))),"",INDIRECT(CONCATENATE($B305,"!P23"))) -> 88.87883956 | W305: =IF(ISERROR(INDIRECT(CONCATENATE($B305,"!P21"))),"",INDIRECT(CONCATENATE($B305,"!P21"))) -> 0 | X305: =IF(ISERROR(INDIRECT(CONCATENATE($B305,"!Q16"))),"",INDIRECT(CONCATENATE($B305,"!Q16"))) -> 84.59013028 | Y305: =IF(ISERROR(INDIRECT(CONCATENATE($B305,"!Q23"))),"",INDIRECT(CONCATENATE($B305,"!Q23"))) -> 93.89425992 | AB305: =IF(ISERROR(INDIRECT(CONCATENATE($B305,"!Q221"))),"",INDIRECT(CONCATENATE($B305,"!Q21"))) -> 0
B306: MICS06 | C306: 2006 | D306: 78.01088228 | E306: 80.81891281 | H306: 0 | I306: 80.78438217 | J306: 86.00882014 | M306: 0 | N306: 86.73431627 | O306: 85.35643243 | R306: 0 | S306: 80.53901378 | T306: 85.20259898 | W306: 0 | X306: 80.81357443 | Y306: 85.5488651 | AB306: 0
B307: MICS10 | C307: 2010 | D307: 72.4519171 | E307: 76.11214226 | H307: 0.03806810203 | I307: 74.85439922 | J307: 79.61268243 | M307: 0.1339318661 | N307: 78.72440149 | O307: 78.14485805 | R307: 0 | S307: 78.97190468 | T307: 78.43616741 | W307: 0.0460107222 | X307: 85.26369928 | Y307: 75.64283961 | AB307: 0
B308: DHS13 | C308: 2013 | D308: 77.69181868 | E308: 90.24410387 | H308: 0.4078877417 | I308: 84.13042355 | J308: 89.49135999 | M308: 0.1795489733 | N308: 86.53861189 | O308: 88.1563623 | R308: 0 | S308: 85.97462115 | T308: 91.51606093 | W308: 0 | X308: 89.12277762 | Y308: 92.39407209 | AB308: 0
B309: MICS18 | C309: 2018 | D309: 76.02289256 | E309: 85.86797717 | H309: N/A | I309: 84.30843101 | J309: 84.31175913 | M309: N/A | N309: 88.74770472 | O309: 81.98076361 | R309: N/A | S309: 89.61733541 | T309: 86.08544597 | W309: N/A | X309: 95.69036911 | Y309: 84.43553166 | AB309: N/A
B310: DHS20 | C310: 2020 | D310: 87.84323934 | E310: 87.79929673 | H310: N/A | I310: 90.05606612 | J310: 92.43491505 | M310: N/A | N310: 93.43015703 | O310: 91.89905091 | R310: N/A | S310: 95.31107573 | T310: 91.66008409 | W310: N/A | X310: 96.58502953 | Y310: 93.80148068 | AB310: N/A
B318: =CONCATENATE("Rural use of drinking water sources, ",C299,"–",C300) -> Rural use of drinking water sources, 2000–2020 | S318: Data points used for regression

Sheet Sanitation
B4: Summary of trends in use of sanitation facilities by wealth quintile (%)
B5: =IF(ISERROR(INDIRECT(CONCATENATE($B105,"!A2"))),"",INDIRECT(CONCATENATE($B105,"!A2"))) -> Gambia
B7: =B118 -> National use of sanitation facilities, 2000–2020 | J7: =B218 -> Urban use of sanitation facilities, 2000–2020 | R7: =B318 -> Rural use of sanitation facilities, 2000–2020
B31: =IF(ISERROR(INDIRECT(CONCATENATE($B105,"!A2"))),"",INDIRECT(CONCATENATE($B105,"!A2"))) -> Gambia | F31: Poorest | J31: Poor | N31: Middle | R31: Rich | V31: Richest
F32: Basic | G32: Limited | H32: Unimproved | I32: Open defecation | J32: Basic | K32: Limited | L32: Unimproved | M32: Open defecation | N32: Basic | O32: Limited | P32: Unimproved | Q32: Open defecation | R32: Basic | S32: Limited | T32: Unimproved | U32: Open defecation | V32: Basic | W32: Limited | X32: Unimproved | Y32: Open defecation
B33: NATIONAL | D33: Estimate | E33: =C99 -> 2000 | F33: =E99 -> 39.39755893 | G33: =F99 -> 20.30305746 | H33: 18.52179717 | I33: 21.77758643 | J33: =J99 -> 52.47228275 | K33: =K99 -> 26.00176462 | L33: 13.15360673 | M33: 8.372345901 | N33: =O99 -> 54.74363972 | O33: =P99 -> 32.4700767 | P33: 10.45936611 | Q33: 2.326917467 | R33: =T99 -> 55.8137093 | S33: =U99 -> 34.11675763 | T33: 8.461756285 | U33: 1.607776786 | V33: =Y99 -> 80.94752039 | W33: =Z99 -> 15.70014778 | X33: 2.960203009 | Y33: 0.3921288194
E34: =C100 -> 2020 | F34: =E100 -> 19.7988346 | G34: 10.20309094 | H34: 68.54508764 | I34: 1.452986824 | J34: =J100 -> 30.55159226 | K34: 15.13933203 | L34: 54.30907571 | M34: 0 | N34: =O100 -> 38.74047797 | O34: 22.97812672 | P34: 38.27916591 | Q34: 0.002229403005 | R34: =T100 -> 50.48538367 | S34: 30.85975865 | T34: 18.65485768 | U34: 0 | V34: =Y100 -> 78.68138639 | W34: 15.26062056 | X34: 6.05799305 | Y34: 0
B36: URBAN | D36: Estimate | E36: =C199 -> 2000 | F36: =E199 -> 43.40016511 | G36: =F199 -> 41.70207109 | H36: 12.40954 | I36: 2.4882238 | J36: =J199 -> 47.57244581 | K36: =K199 -> 48.27980609 | L36: 1.575214785 | M36: 2.572533317 | N36: =O199 -> 52.71420903 | O36: =P199 -> 44.51115562 | P36: 2.374247496 | Q36: 0.4003878525 | R36: =T199 -> 70.61800857 | S36: =U199 -> 26.78853579 | T36: 1.798765041 | U36: 0.7946905968 | V36: =Y199 -> 90.68323095 | W36: =Z199 -> 8.663973329 | X36: 0.652795725 | Y36: 0
E37: =C200 -> 2020 | F37: =E200 -> 24.13954166 | G37: 23.1950473 | H37: 52.06759279 | I37: 0.5978182457 | J37: =J200 -> 32.0987692 | K37: 32.57604957 | L37: 35.32518123 | M37: 0 | N37: =O200 -> 43.50250498 | O37: 36.73291897 | P37: 19.46702264 | Q37: 0.2975534168 | R37: =T200 -> 64.61777749 | S37: 24.5123826 | T37: 10.86983991 | U37: 0 | V37: =Y200 -> 88.07156434 | W37: 8.414451895 | X37: 3.51398376 | Y37: 0
B39: RURAL | D39: Estimate | E39: =C299 -> 2000 | F39: =E299 -> 36.46515854 | G39: =F299 -> 21.41738327 | H39: 15.95662842 | I39: 26.16082976 | J39: =J299 -> 48.6516982 | K39: =K299 -> 22.55366466 | L39: 13.5465496 | M39: 15.24808754 | N39: =O299 -> 57.66726258 | O39: =P299 -> 24.29775671 | P39: 10.90099292 | Q39: 7.133987788 | R39: =T299 -> 67.34307734 | S39: =U299 -> 19.64688919 | T39: 10.43159438 | U39: 2.57843909 | V39: =Y299 -> 75.5707578 | W39: =Z299 -> 15.69932853 | X39: 7.107132632 | Y39: 1.62278104
E40: =C300 -> 2020 | F40: =E300 -> 15.02096976 | G40: 8.82239045 | H40: 71.6418265 | I40: 4.514813293 | J40: =J300 -> 18.6241916 | K40: 8.633691882 | L40: 72.40209022 | M40: 0.3400263002 | N40: =O300 -> 24.41817578 | O40: 10.28845254 | P40: 65.29337168 | Q40: 0 | R40: =T300 -> 37.01387753 | S40: 10.79854944 | T40: 51.91474563 | U40: 0.2728273947 | V40: =Y300 -> 46.75389363 | W40: 9.712814286 | X40: 43.53329209 | Y40: 0
A97: NATIONAL | D97: Poorest | I97: Poor | N97: Middle | S97: Rich | X97: Richest
D98: Improved | E98: Basic | F98: Limited | G98: Unimproved | H98: Open defecation | I98: Improved | J98: Basic | K98: Limited | L98: Unimproved | M98: Open defecation | N98: Improved | O98: Basic | P98: Limited | Q98: Unimproved | R98: Open defecation | S98: Improved | T98: Basic | U98: Limited | V98: Unimproved | W98: Open defecation | X98: Improved | Y98: Basic | Z98: Limited | AA98: Unimproved | AB98: Open defecation
A99: Forecast period: | C99: 2000 | D99: =IF((D101+H101)>100,D101*100/(D101+H101),D101) -> 59.70061639 | E99: =D99*AVERAGEIF(E105:E116,">0")/100 -> 39.39755893 | F99: =D99*(100-AVERAGEIF(E105:E116,">0"))/100 -> 20.30305746 | G99: =100-(E99+F99+H99) -> 18.52179717 | H99: =IF((D101+H101)>100,H101*100/(D101+H101),H101) -> 21.77758643 | I99: =IF((I101+M101)>100,I101*100/(I101+M101),I101) -> 78.47404737 | J99: =I99*AVERAGEIF(J105:J116,">0")/100 -> 52.47228275 | K99: =I99*(100-AVERAGEIF(J105:J116,">0"))/100 -> 26.00176462 | L99: =100-(J99+K99+M99) -> 13.15360673 | M99: =IF((I101+M101)>100,M101*100/(I101+M101),M101) -> 8.372345901 | N99: =IF((N101+R101)>100,N101*100/(N101+R101),N101) -> 87.21371642 | O99: =N99*AVERAGEIF(O105:O116,">0")/100 -> 54.74363972 | P99: =N99*(100-AVERAGEIF(O105:O116,">0"))/100 -> 32.4700767 | Q99: =100-(O99+P99+R99) -> 10.45936611 | R99: =IF((N101+R101)>100,R101*100/(N101+R101),R101) -> 2.326917467 | S99: =IF((S101+W101)>100,S101*100/(S101+W101),S101) -> 89.93046693 | T99: =S99*AVERAGEIF(T105:T116,">0")/100 -> 55.8137093 | U99: =S99*(100-AVERAGEIF(T105:T116,">0"))/100 -> 34.11675763 | V99: =100-(T99+U99+W99) -> 8.461756285 | W99: =IF((S101+W101)>100,W101*100/(S101+W101),W101) -> 1.607776786 | X99: =IF((X101+AB101)>100,X101*100/(X101+AB101),X101) -> 96.64766817 | Y99: =X99*AVERAGEIF(Y105:Y116,">0")/100 -> 80.94752039 | Z99: =X99*(100-AVERAGEIF(Y105:Y116,">0"))/100 -> 15.70014778 | AA99: =100-(Y99+Z99+AB99) -> 2.960203009 | AB99: =IF((X101+AB101)>100,AB101*100/(X101+AB101),AB101) -> 0.3921288194
C100: 2020 | D100: =IF((D102+H102)>100,D102*100/(D102+H102),D102) -> 30.00192554 | E100: =D100*AVERAGEIF(E105:E116,">0")/100 -> 19.7988346 | F100: =D100*(100-AVERAGEIF(E105:E116,">0"))/100 -> 10.20309094 | G100: =100-(E100+F100+H100) -> 68.54508764 | H100: =IF((D102+H102)>100,H102*100/(D102+H102),H102) -> 1.452986824 | I100: =IF((I102+M102)>100,I102*100/(I102+M102),I102) -> 45.69092429 | J100: =I100*AVERAGEIF(J105:J116,">0")/100 -> 30.55159226 | K100: =I100*(100-AVERAGEIF(J105:J116,">0"))/100 -> 15.13933203 | L100: =100-(J100+K100+M100) -> 54.30907571 | M100: =IF((I102+M102)>100,M102*100/(I102+M102),M102) -> 0 | N100: =IF((N102+R102)>100,N102*100/(N102+R102),N102) -> 61.71860469 | O100: =N100*AVERAGEIF(O105:O116,">0")/100 -> 38.74047797 | P100: =N100*(100-AVERAGEIF(O105:O116,">0"))/100 -> 22.97812672 | Q100: =100-(O100+P100+R100) -> 38.27916591 | R100: =IF((N102+R102)>100,R102*100/(N102+R102),R102) -> 0.002229403005 | S100: =IF((S102+W102)>100,S102*100/(S102+W102),S102) -> 81.34514232 | T100: =S100*AVERAGEIF(T105:T116,">0")/100 -> 50.48538367 | U100: =S100*(100-AVERAGEIF(T105:T116,">0"))/100 -> 30.85975865 | V100: =100-(T100+U100+W100) -> 18.65485768 | W100: =IF((S102+W102)>100,W102*100/(S102+W102),W102) -> 0 | X100: =IF((X102+AB102)>100,X102*100/(X102+AB102),X102) -> 93.94200695 | Y100: =X100*AVERAGEIF(Y105:Y116,">0")/100 -> 78.68138639 | Z100: =X100*(100-AVERAGEIF(Y105:Y116,">0"))/100 -> 15.26062056 | AA100: =100-(Y100+Z100+AB100) -> 6.05799305 | AB100: =IF((X102+AB102)>100,AB102*100/(X102+AB102),AB102) -> 0
A101: Regression period: | C101: =MinRegYear(C99,C105:C116) -> 2000 | D101: =IF(MAX(C105:C116)-MIN(C105:C116)<5,AVERAGEIF(C105:C116,">0",D105:D116), IF(FORECAST($C101,D$105:D$116,$C$105:$C$116)<0,0, IF(FORECAST($C101,D$105:D$116,$C$105:$C$116)>100,100, FORECAST($C101,D$105:D$116,$C$105:$C$116)))) -> 59.70061639 | H101: =IF(MAX(C105:C116)-MIN(C105:C116)<5,AVERAGEIF(C105:C116,">0",H105:H116), IF(FORECAST($C101,H$105:H$116,$C$105:$C$116)<0,0, IF(FORECAST($C101,H$105:H$116,$C$105:$C$116)>100,100, FORECAST($C101,H$105:H$116,$C$105:$C$116)))) -> 21.77758643 | I101: =IF(MAX(C105:C116)-MIN(C105:C116)<5,AVERAGEIF(C105:C116,">0",I105:I116), IF(FORECAST($C101,I$105:I$116,$C$105:$C$116)<0,0, IF(FORECAST($C101,I$105:I$116,$C$105:$C$116)>100,100, FORECAST($C101,I$105:I$116,$C$105:$C$116)))) -> 78.47404737 | M101: =IF(MAX(C105:C116)-MIN(C105:C116)<5,AVERAGEIF(C105:C116,">0",M105:M116), IF(FORECAST($C101,M$105:M$116,$C$105:$C$116)<0,0, IF(FORECAST($C101,M$105:M$116,$C$105:$C$116)>100,100, FORECAST($C101,M$105:M$116,$C$105:$C$116)))) -> 8.372345901 | N101: =IF(MAX(C105:C116)-MIN(C105:C116)<5,AVERAGEIF(C105:C116,">0",N105:N116), IF(FORECAST($C101,N$105:N$116,$C$105:$C$116)<0,0, IF(FORECAST($C101,N$105:N$116,$C$105:$C$116)>100,100, FORECAST($C101,N$105:N$116,$C$105:$C$116)))) -> 87.21371642 | R101: =IF(MAX(C105:C116)-MIN(C105:C116)<5,AVERAGEIF(C105:C116,">0",R105:R116), IF(FORECAST($C101,R$105:R$116,$C$105:$C$116)<0,0, IF(FORECAST($C101,R$105:R$116,$C$105:$C$116)>100,100, FORECAST($C101,R$105:R$116,$C$105:$C$116)))) -> 2.326917467 | S101: =IF(MAX(C105:C116)-MIN(C105:C116)<5,AVERAGEIF(C105:C116,">0",S105:S116), IF(FORECAST($C101,S$105:S$116,$C$105:$C$116)<0,0, IF(FORECAST($C101,S$105:S$116,$C$105:$C$116)>100,100, FORECAST($C101,S$105:S$116,$C$105:$C$116)))) -> 89.93046693 | W101: =IF(MAX(C105:C116)-MIN(C105:C116)<5,AVERAGEIF(C105:C116,">0",W105:W116), IF(FORECAST($C101,W$105:W$116,$C$105:$C$116)<0,0, IF(FORECAST($C101,W$105:W$116,$C$105:$C$116)>100,100, FORECAST($C101,W$105:W$116,$C$105:$C$116)))) -> 1.607776786 | X101: =IF(MAX(C105:C116)-MIN(C105:C116)<5,AVERAGEIF(C105:C116,">0",X105:X116), IF(FORECAST($C101,X$105:X$116,$C$105:$C$116)<0,0, IF(FORECAST($C101,X$105:X$116,$C$105:$C$116)>100,100, FORECAST($C101,X$105:X$116,$C$105:$C$116)))) -> 96.64766817 | AB101: =IF(MAX(C105:C116)-MIN(C105:C116)<5,AVERAGEIF(C105:C116,">0",AB105:AB116), IF(FORECAST($C101,AB$105:AB$116,$C$105:$C$116)<0,0, IF(FORECAST($C101,AB$105:AB$116,$C$105:$C$116)>100,100, FORECAST($C101,AB$105:AB$116,$C$105:$C$116)))) -> 0.3921288194
C102: =MaxRegYear(C100,C105:C116) -> 2020 | D102: =IF(MAX(C105:C116)-MIN(C105:C116)<5,AVERAGEIF(C105:C116,">0",D105:D116), IF(FORECAST($C102,D$105:D$116,$C$105:$C$116)<0,0, IF(FORECAST($C102,D$105:D$116,$C$105:$C$116)>100,100, FORECAST($C102,D$105:D$116,$C$105:$C$116)))) -> 30.00192554 | H102: =IF(MAX(C105:C116)-MIN(C105:C116)<5,AVERAGEIF(C105:C116,">0",H105:H116), IF(FORECAST($C102,H$105:H$116,$C$105:$C$116)<0,0, IF(FORECAST($C102,H$105:H$116,$C$105:$C$116)>100,100, FORECAST($C102,H$105:H$116,$C$105:$C$116)))) -> 1.452986824 | I102: =IF(MAX(C105:C116)-MIN(C105:C116)<5,AVERAGEIF(C105:C116,">0",I105:I116), IF(FORECAST($C102,I$105:I$116,$C$105:$C$116)<0,0, IF(FORECAST($C102,I$105:I$116,$C$105:$C$116)>100,100, FORECAST($C102,I$105:I$116,$C$105:$C$116)))) -> 45.69092429 | M102: =IF(MAX(C105:C116)-MIN(C105:C116)<5,AVERAGEIF(C105:C116,">0",M105:M116), IF(FORECAST($C102,M$105:M$116,$C$105:$C$116)<0,0, IF(FORECAST($C102,M$105:M$116,$C$105:$C$116)>100,100, FORECAST($C102,M$105:M$116,$C$105:$C$116)))) -> 0 | N102: =IF(MAX(C105:C116)-MIN(C105:C116)<5,AVERAGEIF(C105:C116,">0",N105:N116), IF(FORECAST($C102,N$105:N$116,$C$105:$C$116)<0,0, IF(FORECAST($C102,N$105:N$116,$C$105:$C$116)>100,100, FORECAST($C102,N$105:N$116,$C$105:$C$116)))) -> 61.71860469 | R102: =IF(MAX(C105:C116)-MIN(C105:C116)<5,AVERAGEIF(C105:C116,">0",R105:R116), IF(FORECAST($C102,R$105:R$116,$C$105:$C$116)<0,0, IF(FORECAST($C102,R$105:R$116,$C$105:$C$116)>100,100, FORECAST($C102,R$105:R$116,$C$105:$C$116)))) -> 0.002229403005 | S102: =IF(MAX(C105:C116)-MIN(C105:C116)<5,AVERAGEIF(C105:C116,">0",S105:S116), IF(FORECAST($C102,S$105:S$116,$C$105:$C$116)<0,0, IF(FORECAST($C102,S$105:S$116,$C$105:$C$116)>100,100, FORECAST($C102,S$105:S$116,$C$105:$C$116)))) -> 81.34514232 | W102: =IF(MAX(C105:C116)-MIN(C105:C116)<5,AVERAGEIF(C105:C116,">0",W105:W116), IF(FORECAST($C102,W$105:W$116,$C$105:$C$116)<0,0, IF(FORECAST($C102,W$105:W$116,$C$105:$C$116)>100,100, FORECAST($C102,W$105:W$116,$C$105:$C$116)))) -> 0 | X102: =IF(MAX(C105:C116)-MIN(C105:C116)<5,AVERAGEIF(C105:C116,">0",X105:X116), IF(FORECAST($C102,X$105:X$116,$C$105:$C$116)<0,0, IF(FORECAST($C102,X$105:X$116,$C$105:$C$116)>100,100, FORECAST($C102,X$105:X$116,$C$105:$C$116)))) -> 93.94200695 | AB102: =IF(MAX(C105:C116)-MIN(C105:C116)<5,AVERAGEIF(C105:C116,">0",AB105:AB116), IF(FORECAST($C102,AB$105:AB$116,$C$105:$C$116)<0,0, IF(FORECAST($C102,AB$105:AB$116,$C$105:$C$116)>100,100, FORECAST($C102,AB$105:AB$116,$C$105:$C$116)))) -> 0
B104: Survey | C104: Year | D104: Improved | E104: Not shared | H104: Open defecation | I104: Improved | J104: Not shared | M104: Open defecation | N104: Improved | O104: Not shared | R104: Open defecation | S104: Improved | T104: Not shared | W104: Open defecation | X104: Improved | Y104: Not shared | AB104: Open defecation
B105: MICS00 | C105: 2000 | D105: =IF(ISERROR(INDIRECT(CONCATENATE($B105,"!C122"))),"",INDIRECT(CONCATENATE($B105,"!C122"))) -> 51.15547385 | E105: =IF(ISERROR(INDIRECT(CONCATENATE($B105,"!C129"))),"",INDIRECT(CONCATENATE($B105,"!C129"))) -> N/A | H105: =IF(ISERROR(INDIRECT(CONCATENATE($B105,"!C127"))),"",INDIRECT(CONCATENATE($B105,"!C127"))) -> 23.16881344 | I105: =IF(ISERROR(INDIRECT(CONCATENATE($B105,"!D122"))),"",INDIRECT(CONCATENATE($B105,"!D122"))) -> 73.71671582 | J105: =IF(ISERROR(INDIRECT(CONCATENATE($B105,"!D129"))),"",INDIRECT(CONCATENATE($B105,"!D129"))) -> N/A | M105: =IF(ISERROR(INDIRECT(CONCATENATE($B105,"!D127"))),"",INDIRECT(CONCATENATE($B105,"!D127"))) -> 9.88315978 | N105: =IF(ISERROR(INDIRECT(CONCATENATE($B105,"!E122"))),"",INDIRECT(CONCATENATE($B105,"!E122"))) -> 83.16707021 | O105: =IF(ISERROR(INDIRECT(CONCATENATE($B105,"!E129"))),"",INDIRECT(CONCATENATE($B105,"!E129"))) -> N/A | R105: =IF(ISERROR(INDIRECT(CONCATENATE($B105,"!E127"))),"",INDIRECT(CONCATENATE($B105,"!E127"))) -> 2.923745337 | S105: =IF(ISERROR(INDIRECT(CONCATENATE($B105,"!F122"))),"",INDIRECT(CONCATENATE($B105,"!F122"))) -> 89.41783344 | T105: =IF(ISERROR(INDIRECT(CONCATENATE($B105,"!F129"))),"",INDIRECT(CONCATENATE($B105,"!F129"))) -> N/A | W105: =IF(ISERROR(INDIRECT(CONCATENATE($B105,"!F127"))),"",INDIRECT(CONCATENATE($B105,"!F127"))) -> 2.426376116 | X105: =IF(ISERROR(INDIRECT(CONCATENATE($B105,"!G122"))),"",INDIRECT(CONCATENATE($B105,"!G122"))) -> 97.78480844 | Y105: =IF(ISERROR(INDIRECT(CONCATENATE($B105,"!G129"))),"",INDIRECT(CONCATENATE($B105,"!G129"))) -> N/A | AB105: =IF(ISERROR(INDIRECT(CONCATENATE($B105,"!G2127"))),"",INDIRECT(CONCATENATE($B105,"!G127"))) -> 0.5223651335
B106: MICS06 | C106: 2006 | D106: 60.05886917 | E106: 67.50889851 | H106: 14.9804934 | I106: 78.90375421 | J106: 68.44052983 | M106: 5.138747534 | N106: 90.16704906 | O106: 56.91419186 | R106: 1.07955298 | S106: 94.61859873 | T106: 53.23488237 | W106: 0.367960332 | X106: 97.55410649 | Y106: 72.79166512 | AB106: 0.1940538706
B107: MICS10 | C107: 2010 | D107: 58.02740582 | E107: 66.05277705 | H107: 10.72244955 | I107: 69.92834691 | J107: 63.18772165 | M107: 2.452276239 | N107: 76.71882749 | O107: 54.05471642 | R107: 0.9649932532 | S107: 83.35755119 | T107: 56.7022164 | W107: 0.001503580646 | X107: 93.48018583 | Y107: 81.46403674 | AB107: 0.004321898326
B108: DHS13 | C108: 2013 | D108: 29.98475588 | E108: 64.41662329 | H108: 7.327806592 | I108: 41.17098112 | J108: 60.62774828 | M108: 1.216325398 | N108: 58.20333995 | O108: 60.76794353 | R108: 0.4101462613 | S108: 74.25055149 | T108: 59.24884218 | W108: 0.2175634289 | X108: 89.89815104 | Y108: 84.46888007 | AB108: 0
B109: MICS18 | C109: 2018 | D109: 24.1085156 | E109: 73.66198092 | H109: 3.27111956 | I109: 41.43986723 | J109: 76.55510556 | M109: 1.027299238 | N109: 62.7931187 | O109: 75.39134564 | R109: 0.5340607648 | S109: 83.2332631 | T109: 63.28268413 | W109: 0.3009213245 | X109: 97.35540301 | Y109: 88.14024935 | AB109: 0
B110: DHS20 | C110: 2020 | D110: 35.37806366 | E110: 58.31911859 | H110: 3.107427375 | I110: 55.8611566 | J110: 65.51778751 | M110: 0.5629514202 | N110: 66.82426882 | O110: 66.71945158 | R110: 0.2613011909 | S110: 85.94416618 | T110: 77.84728458 | W110: 0 | X110: 94.74938914 | Y110: 91.91154439 | AB110: 0
B118: =CONCATENATE("National use of sanitation facilities, ",C99,"–",C100) -> National use of sanitation facilities, 2000–2020 | S118: Data points used for regression
A197: URBAN | D197: Poorest | I197: Poor | N197: Middle | S197: Rich | X197: Richest
D198: Improved | E198: Basic | F198: Limited | G198: Unimproved | H198: Open defecation | I198: Improved | J198: Basic | K198: Limited | L198: Unimproved | M198: Open defecation | N198: Improved | O198: Basic | P198: Limited | Q198: Unimproved | R198: Open defecation | S198: Improved | T198: Basic | U198: Limited | V198: Unimproved | W198: Open defecation | X198: Improved | Y198: Basic | Z198: Limited | AA198: Unimproved | AB198: Open defecation
A199: Forecast period: | C199: 2000 | D199: =IF((D201+H201)>100,D201*100/(D201+H201),D201) -> 85.1022362 | E199: =D199*AVERAGEIF(E205:E216,">0")/100 -> 43.40016511 | F199: =D199*(100-AVERAGEIF(E205:E216,">0"))/100 -> 41.70207109 | G199: =100-(E199+F199+H199) -> 12.40954 | H199: =IF((D201+H201)>100,H201*100/(D201+H201),H201) -> 2.4882238 | I199: =IF((I201+M201)>100,I201*100/(I201+M201),I201) -> 95.8522519 | J199: =I199*AVERAGEIF(J205:J216,">0")/100 -> 47.57244581 | K199: =I199*(100-AVERAGEIF(J205:J216,">0"))/100 -> 48.27980609 | L199: =100-(J199+K199+M199) -> 1.575214785 | M199: =IF((I201+M201)>100,M201*100/(I201+M201),M201) -> 2.572533317 | N199: =IF((N201+R201)>100,N201*100/(N201+R201),N201) -> 97.22536465 | O199: =N199*AVERAGEIF(O205:O216,">0")/100 -> 52.71420903 | P199: =N199*(100-AVERAGEIF(O205:O216,">0"))/100 -> 44.51115562 | Q199: =100-(O199+P199+R199) -> 2.374247496 | R199: =IF((N201+R201)>100,R201*100/(N201+R201),R201) -> 0.4003878525 | S199: =IF((S201+W201)>100,S201*100/(S201+W201),S201) -> 97.40654436 | T199: =S199*AVERAGEIF(T205:T216,">0")/100 -> 70.61800857 | U199: =S199*(100-AVERAGEIF(T205:T216,">0"))/100 -> 26.78853579 | V199: =100-(T199+U199+W199) -> 1.798765041 | W199: =IF((S201+W201)>100,W201*100/(S201+W201),W201) -> 0.7946905968 | X199: =IF((X201+AB201)>100,X201*100/(X201+AB201),X201) -> 99.34720427 | Y199: =X199*AVERAGEIF(Y205:Y216,">0")/100 -> 90.68323095 | Z199: =X199*(100-AVERAGEIF(Y205:Y216,">0"))/100 -> 8.663973329 | AA199: =100-(Y199+Z199+AB199) -> 0.652795725 | AB199: =IF((X201+AB201)>100,AB201*100/(X201+AB201),AB201) -> 0
C200: 2020 | D200: =IF((D202+H202)>100,D202*100/(D202+H202),D202) -> 47.33458896 | E200: =D200*AVERAGEIF(E205:E216,">0")/100 -> 24.13954166 | F200: =D200*(100-AVERAGEIF(E205:E216,">0"))/100 -> 23.1950473 | G200: =100-(E200+F200+H200) -> 52.06759279 | H200: =IF((D202+H202)>100,H202*100/(D202+H202),H202) -> 0.5978182457 | I200: =IF((I202+M202)>100,I202*100/(I202+M202),I202) -> 64.67481877 | J200: =I200*AVERAGEIF(J205:J216,">0")/100 -> 32.0987692 | K200: =I200*(100-AVERAGEIF(J205:J216,">0"))/100 -> 32.57604957 | L200: =100-(J200+K200+M200) -> 35.32518123 | M200: =IF((I202+M202)>100,M202*100/(I202+M202),M202) -> 0 | N200: =IF((N202+R202)>100,N202*100/(N202+R202),N202) -> 80.23542394 | O200: =N200*AVERAGEIF(O205:O216,">0")/100 -> 43.50250498 | P200: =N200*(100-AVERAGEIF(O205:O216,">0"))/100 -> 36.73291897 | Q200: =100-(O200+P200+R200) -> 19.46702264 | R200: =IF((N202+R202)>100,R202*100/(N202+R202),R202) -> 0.2975534168 | S200: =IF((S202+W202)>100,S202*100/(S202+W202),S202) -> 89.13016009 | T200: =S200*AVERAGEIF(T205:T216,">0")/100 -> 64.61777749 | U200: =S200*(100-AVERAGEIF(T205:T216,">0"))/100 -> 24.5123826 | V200: =100-(T200+U200+W200) -> 10.86983991 | W200: =IF((S202+W202)>100,W202*100/(S202+W202),W202) -> 0 | X200: =IF((X202+AB202)>100,X202*100/(X202+AB202),X202) -> 96.48601624 | Y200: =X200*AVERAGEIF(Y205:Y216,">0")/100 -> 88.07156434 | Z200: =X200*(100-AVERAGEIF(Y205:Y216,">0"))/100 -> 8.414451895 | AA200: =100-(Y200+Z200+AB200) -> 3.51398376 | AB200: =IF((X202+AB202)>100,AB202*100/(X202+AB202),AB202) -> 0
A201: Regression period: | C201: =MinRegYear(C199,C205:C216) -> 2000 | D201: =IF(MAX(C205:C216)-MIN(C205:C216)<5,AVERAGEIF(C205:C216,">0",D205:D216), IF(FORECAST($C201,D$205:D$216,$C$205:$C$216)<0,0, IF(FORECAST($C201,D$205:D$216,$C$205:$C$216)>100,100, FORECAST($C201,D$205:D$216,$C$205:$C$216)))) -> 85.1022362 | H201: =IF(MAX(C205:C216)-MIN(C205:C216)<5,AVERAGEIF(C205:C216,">0",H205:H216), IF(FORECAST($C201,H$205:H$216,$C$205:$C$216)<0,0, IF(FORECAST($C201,H$205:H$216,$C$205:$C$216)>100,100, FORECAST($C201,H$205:H$216,$C$205:$C$216)))) -> 2.4882238 | I201: =IF(MAX(C205:C216)-MIN(C205:C216)<5,AVERAGEIF(C205:C216,">0",I205:I216), IF(FORECAST($C201,I$205:I$216,$C$205:$C$216)<0,0, IF(FORECAST($C201,I$205:I$216,$C$205:$C$216)>100,100, FORECAST($C201,I$205:I$216,$C$205:$C$216)))) -> 95.8522519 | M201: =IF(MAX(C205:C216)-MIN(C205:C216)<5,AVERAGEIF(C205:C216,">0",M205:M216), IF(FORECAST($C201,M$205:M$216,$C$205:$C$216)<0,0, IF(FORECAST($C201,M$205:M$216,$C$205:$C$216)>100,100, FORECAST($C201,M$205:M$216,$C$205:$C$216)))) -> 2.572533317 | N201: =IF(MAX(C205:C216)-MIN(C205:C216)<5,AVERAGEIF(C205:C216,">0",N205:N216), IF(FORECAST($C201,N$205:N$216,$C$205:$C$216)<0,0, IF(FORECAST($C201,N$205:N$216,$C$205:$C$216)>100,100, FORECAST($C201,N$205:N$216,$C$205:$C$216)))) -> 97.22536465 | R201: =IF(MAX(C205:C216)-MIN(C205:C216)<5,AVERAGEIF(C205:C216,">0",R205:R216), IF(FORECAST($C201,R$205:R$216,$C$205:$C$216)<0,0, IF(FORECAST($C201,R$205:R$216,$C$205:$C$216)>100,100, FORECAST($C201,R$205:R$216,$C$205:$C$216)))) -> 0.4003878525 | S201: =IF(MAX(C205:C216)-MIN(C205:C216)<5,AVERAGEIF(C205:C216,">0",S205:S216), IF(FORECAST($C201,S$205:S$216,$C$205:$C$216)<0,0, IF(FORECAST($C201,S$205:S$216,$C$205:$C$216)>100,100, FORECAST($C201,S$205:S$216,$C$205:$C$216)))) -> 97.40654436 | W201: =IF(MAX(C205:C216)-MIN(C205:C216)<5,AVERAGEIF(C205:C216,">0",W205:W216), IF(FORECAST($C201,W$205:W$216,$C$205:$C$216)<0,0, IF(FORECAST($C201,W$205:W$216,$C$205:$C$216)>100,100, FORECAST($C201,W$205:W$216,$C$205:$C$216)))) -> 0.7946905968 | X201: =IF(MAX(C205:C216)-MIN(C205:C216)<5,AVERAGEIF(C205:C216,">0",X205:X216), IF(FORECAST($C201,X$205:X$216,$C$205:$C$216)<0,0, IF(FORECAST($C201,X$205:X$216,$C$205:$C$216)>100,100, FORECAST($C201,X$205:X$216,$C$205:$C$216)))) -> 99.34720427 | AB201: =IF(MAX(C205:C216)-MIN(C205:C216)<5,AVERAGEIF(C205:C216,">0",AB205:AB216), IF(FORECAST($C201,AB$205:AB$216,$C$205:$C$216)<0,0, IF(FORECAST($C201,AB$205:AB$216,$C$205:$C$216)>100,100, FORECAST($C201,AB$205:AB$216,$C$205:$C$216)))) -> 0
C202: =MaxRegYear(C200,C205:C216) -> 2020 | D202: =IF(MAX(C205:C216)-MIN(C205:C216)<5,AVERAGEIF(C205:C216,">0",D205:D216), IF(FORECAST($C202,D$205:D$216,$C$205:$C$216)<0,0, IF(FORECAST($C202,D$205:D$216,$C$205:$C$216)>100,100, FORECAST($C202,D$205:D$216,$C$205:$C$216)))) -> 47.33458896 | H202: =IF(MAX(C205:C216)-MIN(C205:C216)<5,AVERAGEIF(C205:C216,">0",H205:H216), IF(FORECAST($C202,H$205:H$216,$C$205:$C$216)<0,0, IF(FORECAST($C202,H$205:H$216,$C$205:$C$216)>100,100, FORECAST($C202,H$205:H$216,$C$205:$C$216)))) -> 0.5978182457 | I202: =IF(MAX(C205:C216)-MIN(C205:C216)<5,AVERAGEIF(C205:C216,">0",I205:I216), IF(FORECAST($C202,I$205:I$216,$C$205:$C$216)<0,0, IF(FORECAST($C202,I$205:I$216,$C$205:$C$216)>100,100, FORECAST($C202,I$205:I$216,$C$205:$C$216)))) -> 64.67481877 | M202: =IF(MAX(C205:C216)-MIN(C205:C216)<5,AVERAGEIF(C205:C216,">0",M205:M216), IF(FORECAST($C202,M$205:M$216,$C$205:$C$216)<0,0, IF(FORECAST($C202,M$205:M$216,$C$205:$C$216)>100,100, FORECAST($C202,M$205:M$216,$C$205:$C$216)))) -> 0 | N202: =IF(MAX(C205:C216)-MIN(C205:C216)<5,AVERAGEIF(C205:C216,">0",N205:N216), IF(FORECAST($C202,N$205:N$216,$C$205:$C$216)<0,0, IF(FORECAST($C202,N$205:N$216,$C$205:$C$216)>100,100, FORECAST($C202,N$205:N$216,$C$205:$C$216)))) -> 80.23542394 | R202: =IF(MAX(C205:C216)-MIN(C205:C216)<5,AVERAGEIF(C205:C216,">0",R205:R216), IF(FORECAST($C202,R$205:R$216,$C$205:$C$216)<0,0, IF(FORECAST($C202,R$205:R$216,$C$205:$C$216)>100,100, FORECAST($C202,R$205:R$216,$C$205:$C$216)))) -> 0.2975534168 | S202: =IF(MAX(C205:C216)-MIN(C205:C216)<5,AVERAGEIF(C205:C216,">0",S205:S216), IF(FORECAST($C202,S$205:S$216,$C$205:$C$216)<0,0, IF(FORECAST($C202,S$205:S$216,$C$205:$C$216)>100,100, FORECAST($C202,S$205:S$216,$C$205:$C$216)))) -> 89.13016009 | W202: =IF(MAX(C205:C216)-MIN(C205:C216)<5,AVERAGEIF(C205:C216,">0",W205:W216), IF(FORECAST($C202,W$205:W$216,$C$205:$C$216)<0,0, IF(FORECAST($C202,W$205:W$216,$C$205:$C$216)>100,100, FORECAST($C202,W$205:W$216,$C$205:$C$216)))) -> 0 | X202: =IF(MAX(C205:C216)-MIN(C205:C216)<5,AVERAGEIF(C205:C216,">0",X205:X216), IF(FORECAST($C202,X$205:X$216,$C$205:$C$216)<0,0, IF(FORECAST($C202,X$205:X$216,$C$205:$C$216)>100,100, FORECAST($C202,X$205:X$216,$C$205:$C$216)))) -> 96.48601624 | AB202: =IF(MAX(C205:C216)-MIN(C205:C216)<5,AVERAGEIF(C205:C216,">0",AB205:AB216), IF(FORECAST($C202,AB$205:AB$216,$C$205:$C$216)<0,0, IF(FORECAST($C202,AB$205:AB$216,$C$205:$C$216)>100,100, FORECAST($C202,AB$205:AB$216,$C$205:$C$216)))) -> 0
B204: Survey | C204: Year | D204: Improved | E204: Not shared | H204: Open defecation | I204: Improved | J204: Not shared | M204: Open defecation | N204: Improved | O204: Not shared | R204: Open defecation | S204: Improved | T204: Not shared | W204: Open defecation | X204: Improved | Y204: Not shared | AB204: Open defecation
B205: MICS00 | C205: 2000 | D205: =IF(ISERROR(INDIRECT(CONCATENATE($B205,"!H122"))),"",INDIRECT(CONCATENATE($B205,"!H122"))) -> 76.7428276 | E205: =IF(ISERROR(INDIRECT(CONCATENATE($B205,"!H129"))),"",INDIRECT(CONCATENATE($B205,"!H129"))) -> N/A | H205: =IF(ISERROR(INDIRECT(CONCATENATE($B205,"!H127"))),"",INDIRECT(CONCATENATE($B205,"!H127"))) -> 2.917807813 | I205: =IF(ISERROR(INDIRECT(CONCATENATE($B205,"!I122"))),"",INDIRECT(CONCATENATE($B205,"!I122"))) -> 88.65134887 | J205: =IF(ISERROR(INDIRECT(CONCATENATE($B205,"!I129"))),"",INDIRECT(CONCATENATE($B205,"!I129"))) -> N/A | M205: =IF(ISERROR(INDIRECT(CONCATENATE($B205,"!I127"))),"",INDIRECT(CONCATENATE($B205,"!I127"))) -> 3.575287273 | N205: =IF(ISERROR(INDIRECT(CONCATENATE($B205,"!J122"))),"",INDIRECT(CONCATENATE($B205,"!J122"))) -> 95.17624327 | O205: =IF(ISERROR(INDIRECT(CONCATENATE($B205,"!J129"))),"",INDIRECT(CONCATENATE($B205,"!J129"))) -> N/A | R205: =IF(ISERROR(INDIRECT(CONCATENATE($B205,"!J127"))),"",INDIRECT(CONCATENATE($B205,"!J127"))) -> 0.8600028102 | S205: =IF(ISERROR(INDIRECT(CONCATENATE($B205,"!K122"))),"",INDIRECT(CONCATENATE($B205,"!K122"))) -> 97.28286828 | T205: =IF(ISERROR(INDIRECT(CONCATENATE($B205,"!K129"))),"",INDIRECT(CONCATENATE($B205,"!K129"))) -> N/A | W205: =IF(ISERROR(INDIRECT(CONCATENATE($B205,"!K127"))),"",INDIRECT(CONCATENATE($B205,"!K127"))) -> 0.9941284533 | X205: =IF(ISERROR(INDIRECT(CONCATENATE($B205,"!L122"))),"",INDIRECT(CONCATENATE($B205,"!L122"))) -> 99.03743723 | Y205: =IF(ISERROR(INDIRECT(CONCATENATE($B205,"!L129"))),"",INDIRECT(CONCATENATE($B205,"!L129"))) -> N/A | AB205: =IF(ISERROR(INDIRECT(CONCATENATE($B205,"!L2127"))),"",INDIRECT(CONCATENATE($B205,"!L127"))) -> 0
B206: MICS06 | C206: 2006 | D206: 81.25569254 | E206: 41.15200955 | H206: 2.259139622 | I206: 93.99609755 | J206: 35.26284932 | M206: 0.8072120939 | N206: 96.72767632 | O206: 40.86025782 | R206: 0 | S206: 95.75301457 | T206: 59.38680501 | W206: 0.4988286938 | X206: 99.64816232 | Y206: 90.58750285 | AB206: 0
B207: MICS10 | C207: 2010 | D207: 78.97618278 | E207: 34.27939018 | H207: 0.481505983 | I207: 88.65692532 | J207: 36.85660988 | M207: 0.7529580629 | N207: 90.19145407 | O207: 43.87638503 | R207: 0.003220826762 | S207: 97.32004031 | T207: 67.45147767 | W207: 0.009275448927 | X207: 99.10643403 | Y207: 88.2098997 | AB207: 0
B208: DHS13 | C208: 2013 | D208: 54.60248646 | E208: 44.82540369 | H208: 0.6264738607 | I208: 71.13949342 | J208: 46.89518923 | M208: 0.2124290202 | N208: 80.86501415 | O208: 56.85582588 | R208: 0 | S208: 85.18713757 | T208: 75.25872453 | W208: 0 | X208: 93.85751915 | Y208: 90.22077852 | AB208: 0
B209: MICS18 | C209: 2018 | D209: 39.35806174 | E209: 79.13044073 | H209: 1.647783601 | I209: 60.92110764 | J209: 70.11099375 | M209: 0.04042985675 | N209: 81.5343875 | O209: 56.71338453 | R209: 1.194608119 | S209: 89.06957008 | T209: 75.33112488 | W209: 0 | X209: 98.51018066 | Y209: 93.52207391 | AB209: 0
B210: DHS20 | C210: 2020 | D210: 53.15654783 | E210: 55.6011501 | H210: 0.6637733132 | I210: 67.30413762 | J210: 59.02943435 | M210: 0.4729697534 | N210: 81.94111124 | O210: 72.78703089 | R210: 0 | S210: 92.10074805 | T210: 85.06295635 | W210: 0 | X210: 96.33851235 | Y210: 93.85522996 | AB210: 0
B218: =CONCATENATE("Urban use of sanitation facilities, ",C199,"–",C200) -> Urban use of sanitation facilities, 2000–2020 | S218: Data points used for regression
A297: RURAL | D297: Poorest | I297: Poor | N297: Middle | S297: Rich | X297: Richest
D298: Improved | E298: Basic | F298: Limited | G298: Unimproved | H298: Open defecation | I298: Improved | J298: Basic | K298: Limited | L298: Unimproved | M298: Open defecation | N298: Improved | O298: Basic | P298: Limited | Q298: Unimproved | R298: Open defecation | S298: Improved | T298: Basic | U298: Limited | V298: Unimproved | W298: Open defecation | X298: Improved | Y298: Basic | Z298: Limited | AA298: Unimproved | AB298: Open defecation
A299: Forecast period: | C299: 2000 | D299: =IF((D301+H301)>100,D301*100/(D301+H301),D301) -> 57.88254181 | E299: =D299*AVERAGEIF(E305:E316,">0")/100 -> 36.46515854 | F299: =D299*(100-AVERAGEIF(E305:E316,">0"))/100 -> 21.41738327 | G299: =100-(E299+F299+H299) -> 15.95662842 | H299: =IF((D301+H301)>100,H301*100/(D301+H301),H301) -> 26.16082976 | I299: =IF((I301+M301)>100,I301*100/(I301+M301),I301) -> 71.20536286 | J299: =I299*AVERAGEIF(J305:J316,">0")/100 -> 48.6516982 | K299: =I299*(100-AVERAGEIF(J305:J316,">0"))/100 -> 22.55366466 | L299: =100-(J299+K299+M299) -> 13.5465496 | M299: =IF((I301+M301)>100,M301*100/(I301+M301),M301) -> 15.24808754 | N299: =IF((N301+R301)>100,N301*100/(N301+R301),N301) -> 81.96501929 | O299: =N299*AVERAGEIF(O305:O316,">0")/100 -> 57.66726258 | P299: =N299*(100-AVERAGEIF(O305:O316,">0"))/100 -> 24.29775671 | Q299: =100-(O299+P299+R299) -> 10.90099292 | R299: =IF((N301+R301)>100,R301*100/(N301+R301),R301) -> 7.133987788 | S299: =IF((S301+W301)>100,S301*100/(S301+W301),S301) -> 86.98996653 | T299: =S299*AVERAGEIF(T305:T316,">0")/100 -> 67.34307734 | U299: =S299*(100-AVERAGEIF(T305:T316,">0"))/100 -> 19.64688919 | V299: =100-(T299+U299+W299) -> 10.43159438 | W299: =IF((S301+W301)>100,W301*100/(S301+W301),W301) -> 2.57843909 | X299: =IF((X301+AB301)>100,X301*100/(X301+AB301),X301) -> 91.27008633 | Y299: =X299*AVERAGEIF(Y305:Y316,">0")/100 -> 75.5707578 | Z299: =X299*(100-AVERAGEIF(Y305:Y316,">0"))/100 -> 15.69932853 | AA299: =100-(Y299+Z299+AB299) -> 7.107132632 | AB299: =IF((X301+AB301)>100,AB301*100/(X301+AB301),AB301) -> 1.62278104
C300: 2020 | D300: =IF((D302+H302)>100,D302*100/(D302+H302),D302) -> 23.84336021 | E300: =D300*AVERAGEIF(E305:E316,">0")/100 -> 15.02096976 | F300: =D300*(100-AVERAGEIF(E305:E316,">0"))/100 -> 8.82239045 | G300: =100-(E300+F300+H300) -> 71.6418265 | H300: =IF((D302+H302)>100,H302*100/(D302+H302),H302) -> 4.514813293 | I300: =IF((I302+M302)>100,I302*100/(I302+M302),I302) -> 27.25788348 | J300: =I300*AVERAGEIF(J305:J316,">0")/100 -> 18.6241916 | K300: =I300*(100-AVERAGEIF(J305:J316,">0"))/100 -> 8.633691882 | L300: =100-(J300+K300+M300) -> 72.40209022 | M300: =IF((I302+M302)>100,M302*100/(I302+M302),M302) -> 0.3400263002 | N300: =IF((N302+R302)>100,N302*100/(N302+R302),N302) -> 34.70662832 | O300: =N300*AVERAGEIF(O305:O316,">0")/100 -> 24.41817578 | P300: =N300*(100-AVERAGEIF(O305:O316,">0"))/100 -> 10.28845254 | Q300: =100-(O300+P300+R300) -> 65.29337168 | R300: =IF((N302+R302)>100,R302*100/(N302+R302),R302) -> 0 | S300: =IF((S302+W302)>100,S302*100/(S302+W302),S302) -> 47.81242698 | T300: =S300*AVERAGEIF(T305:T316,">0")/100 -> 37.01387753 | U300: =S300*(100-AVERAGEIF(T305:T316,">0"))/100 -> 10.79854944 | V300: =100-(T300+U300+W300) -> 51.91474563 | W300: =IF((S302+W302)>100,W302*100/(S302+W302),W302) -> 0.2728273947 | X300: =IF((X302+AB302)>100,X302*100/(X302+AB302),X302) -> 56.46670791 | Y300: =X300*AVERAGEIF(Y305:Y316,">0")/100 -> 46.75389363 | Z300: =X300*(100-AVERAGEIF(Y305:Y316,">0"))/100 -> 9.712814286 | AA300: =100-(Y300+Z300+AB300) -> 43.53329209 | AB300: =IF((X302+AB302)>100,AB302*100/(X302+AB302),AB302) -> 0
A301: Regression period: | C301: =MinRegYear(C299,C305:C316) -> 2000 | D301: =IF(MAX(C305:C316)-MIN(C305:C316)<5,AVERAGEIF(C305:C316,">0",D305:D316), IF(FORECAST($C301,D$305:D$316,$C$305:$C$316)<0,0, IF(FORECAST($C301,D$305:D$316,$C$305:$C$316)>100,100, FORECAST($C301,D$305:D$316,$C$305:$C$316)))) -> 57.88254181 | H301: =IF(MAX(C305:C316)-MIN(C305:C316)<5,AVERAGEIF(C305:C316,">0",H305:H316), IF(FORECAST($C301,H$305:H$316,$C$305:$C$316)<0,0, IF(FORECAST($C301,H$305:H$316,$C$305:$C$316)>100,100, FORECAST($C301,H$305:H$316,$C$305:$C$316)))) -> 26.16082976 | I301: =IF(MAX(C305:C316)-MIN(C305:C316)<5,AVERAGEIF(C305:C316,">0",I305:I316), IF(FORECAST($C301,I$305:I$316,$C$305:$C$316)<0,0, IF(FORECAST($C301,I$305:I$316,$C$305:$C$316)>100,100, FORECAST($C301,I$305:I$316,$C$305:$C$316)))) -> 71.20536286 | M301: =IF(MAX(C305:C316)-MIN(C305:C316)<5,AVERAGEIF(C305:C316,">0",M305:M316), IF(FORECAST($C301,M$305:M$316,$C$305:$C$316)<0,0, IF(FORECAST($C301,M$305:M$316,$C$305:$C$316)>100,100, FORECAST($C301,M$305:M$316,$C$305:$C$316)))) -> 15.24808754 | N301: =IF(MAX(C305:C316)-MIN(C305:C316)<5,AVERAGEIF(C305:C316,">0",N305:N316), IF(FORECAST($C301,N$305:N$316,$C$305:$C$316)<0,0, IF(FORECAST($C301,N$305:N$316,$C$305:$C$316)>100,100, FORECAST($C301,N$305:N$316,$C$305:$C$316)))) -> 81.96501929 | R301: =IF(MAX(C305:C316)-MIN(C305:C316)<5,AVERAGEIF(C305:C316,">0",R305:R316), IF(FORECAST($C301,R$305:R$316,$C$305:$C$316)<0,0, IF(FORECAST($C301,R$305:R$316,$C$305:$C$316)>100,100, FORECAST($C301,R$305:R$316,$C$305:$C$316)))) -> 7.133987788 | S301: =IF(MAX(C305:C316)-MIN(C305:C316)<5,AVERAGEIF(C305:C316,">0",S305:S316), IF(FORECAST($C301,S$305:S$316,$C$305:$C$316)<0,0, IF(FORECAST($C301,S$305:S$316,$C$305:$C$316)>100,100, FORECAST($C301,S$305:S$316,$C$305:$C$316)))) -> 86.98996653 | W301: =IF(MAX(C305:C316)-MIN(C305:C316)<5,AVERAGEIF(C305:C316,">0",W305:W316), IF(FORECAST($C301,W$305:W$316,$C$305:$C$316)<0,0, IF(FORECAST($C301,W$305:W$316,$C$305:$C$316)>100,100, FORECAST($C301,W$305:W$316,$C$305:$C$316)))) -> 2.57843909 | X301: =IF(MAX(C305:C316)-MIN(C305:C316)<5,AVERAGEIF(C305:C316,">0",X305:X316), IF(FORECAST($C301,X$305:X$316,$C$305:$C$316)<0,0, IF(FORECAST($C301,X$305:X$316,$C$305:$C$316)>100,100, FORECAST($C301,X$305:X$316,$C$305:$C$316)))) -> 91.27008633 | AB301: =IF(MAX(C305:C316)-MIN(C305:C316)<5,AVERAGEIF(C305:C316,">0",AB305:AB316), IF(FORECAST($C301,AB$305:AB$316,$C$305:$C$316)<0,0, IF(FORECAST($C301,AB$305:AB$316,$C$305:$C$316)>100,100, FORECAST($C301,AB$305:AB$316,$C$305:$C$316)))) -> 1.62278104
C302: =MaxRegYear(C300,C305:C316) -> 2020 | D302: =IF(MAX(C305:C316)-MIN(C305:C316)<5,AVERAGEIF(C305:C316,">0",D305:D316), IF(FORECAST($C302,D$305:D$316,$C$305:$C$316)<0,0, IF(FORECAST($C302,D$305:D$316,$C$305:$C$316)>100,100, FORECAST($C302,D$305:D$316,$C$305:$C$316)))) -> 23.84336021 | H302: =IF(MAX(C305:C316)-MIN(C305:C316)<5,AVERAGEIF(C305:C316,">0",H305:H316), IF(FORECAST($C302,H$305:H$316,$C$305:$C$316)<0,0, IF(FORECAST($C302,H$305:H$316,$C$305:$C$316)>100,100, FORECAST($C302,H$305:H$316,$C$305:$C$316)))) -> 4.514813293 | I302: =IF(MAX(C305:C316)-MIN(C305:C316)<5,AVERAGEIF(C305:C316,">0",I305:I316), IF(FORECAST($C302,I$305:I$316,$C$305:$C$316)<0,0, IF(FORECAST($C302,I$305:I$316,$C$305:$C$316)>100,100, FORECAST($C302,I$305:I$316,$C$305:$C$316)))) -> 27.25788348 | M302: =IF(MAX(C305:C316)-MIN(C305:C316)<5,AVERAGEIF(C305:C316,">0",M305:M316), IF(FORECAST($C302,M$305:M$316,$C$305:$C$316)<0,0, IF(FORECAST($C302,M$305:M$316,$C$305:$C$316)>100,100, FORECAST($C302,M$305:M$316,$C$305:$C$316)))) -> 0.3400263002 | N302: =IF(MAX(C305:C316)-MIN(C305:C316)<5,AVERAGEIF(C305:C316,">0",N305:N316), IF(FORECAST($C302,N$305:N$316,$C$305:$C$316)<0,0, IF(FORECAST($C302,N$305:N$316,$C$305:$C$316)>100,100, FORECAST($C302,N$305:N$316,$C$305:$C$316)))) -> 34.70662832 | R302: =IF(MAX(C305:C316)-MIN(C305:C316)<5,AVERAGEIF(C305:C316,">0",R305:R316), IF(FORECAST($C302,R$305:R$316,$C$305:$C$316)<0,0, IF(FORECAST($C302,R$305:R$316,$C$305:$C$316)>100,100, FORECAST($C302,R$305:R$316,$C$305:$C$316)))) -> 0 | S302: =IF(MAX(C305:C316)-MIN(C305:C316)<5,AVERAGEIF(C305:C316,">0",S305:S316), IF(FORECAST($C302,S$305:S$316,$C$305:$C$316)<0,0, IF(FORECAST($C302,S$305:S$316,$C$305:$C$316)>100,100, FORECAST($C302,S$305:S$316,$C$305:$C$316)))) -> 47.81242698 | W302: =IF(MAX(C305:C316)-MIN(C305:C316)<5,AVERAGEIF(C305:C316,">0",W305:W316), IF(FORECAST($C302,W$305:W$316,$C$305:$C$316)<0,0, IF(FORECAST($C302,W$305:W$316,$C$305:$C$316)>100,100, FORECAST($C302,W$305:W$316,$C$305:$C$316)))) -> 0.2728273947 | X302: =IF(MAX(C305:C316)-MIN(C305:C316)<5,AVERAGEIF(C305:C316,">0",X305:X316), IF(FORECAST($C302,X$305:X$316,$C$305:$C$316)<0,0, IF(FORECAST($C302,X$305:X$316,$C$305:$C$316)>100,100, FORECAST($C302,X$305:X$316,$C$305:$C$316)))) -> 56.46670791 | AB302: =IF(MAX(C305:C316)-MIN(C305:C316)<5,AVERAGEIF(C305:C316,">0",AB305:AB316), IF(FORECAST($C302,AB$305:AB$316,$C$305:$C$316)<0,0, IF(FORECAST($C302,AB$305:AB$316,$C$305:$C$316)>100,100, FORECAST($C302,AB$305:AB$316,$C$305:$C$316)))) -> 0
B304: Survey | C304: Year | D304: Improved | E304: Not shared | H304: Open defecation | I304: Improved | J304: Not shared | M304: Open defecation | N304: Improved | O304: Not shared | R304: Open defecation | S304: Improved | T304: Not shared | W304: Open defecation | X304: Improved | Y304: Not shared | AB304: Open defecation
B305: MICS00 | C305: 2000 | D305: =IF(ISERROR(INDIRECT(CONCATENATE($B305,"!M122"))),"",INDIRECT(CONCATENATE($B305,"!M122"))) -> 45.8440225 | E305: =IF(ISERROR(INDIRECT(CONCATENATE($B305,"!M129"))),"",INDIRECT(CONCATENATE($B305,"!M129"))) -> N/A | H305: =IF(ISERROR(INDIRECT(CONCATENATE($B305,"!M127"))),"",INDIRECT(CONCATENATE($B305,"!M127"))) -> 29.40174591 | I305: =IF(ISERROR(INDIRECT(CONCATENATE($B305,"!N122"))),"",INDIRECT(CONCATENATE($B305,"!N122"))) -> 64.07055327 | J305: =IF(ISERROR(INDIRECT(CONCATENATE($B305,"!N129"))),"",INDIRECT(CONCATENATE($B305,"!N129"))) -> N/A | M305: =IF(ISERROR(INDIRECT(CONCATENATE($B305,"!N127"))),"",INDIRECT(CONCATENATE($B305,"!N127"))) -> 15.63377922 | N305: =IF(ISERROR(INDIRECT(CONCATENATE($B305,"!O122"))),"",INDIRECT(CONCATENATE($B305,"!O122"))) -> 74.82167477 | O305: =IF(ISERROR(INDIRECT(CONCATENATE($B305,"!O129"))),"",INDIRECT(CONCATENATE($B305,"!O129"))) -> N/A | R305: =IF(ISERROR(INDIRECT(CONCATENATE($B305,"!O127"))),"",INDIRECT(CONCATENATE($B305,"!O127"))) -> 8.518919561 | S305: =IF(ISERROR(INDIRECT(CONCATENATE($B305,"!P122"))),"",INDIRECT(CONCATENATE($B305,"!P122"))) -> 81.8543438 | T305: =IF(ISERROR(INDIRECT(CONCATENATE($B305,"!P129"))),"",INDIRECT(CONCATENATE($B305,"!P129"))) -> N/A | W305: =IF(ISERROR(INDIRECT(CONCATENATE($B305,"!P127"))),"",INDIRECT(CONCATENATE($B305,"!P127"))) -> 3.38586734 | X305: =IF(ISERROR(INDIRECT(CONCATENATE($B305,"!Q122"))),"",INDIRECT(CONCATENATE($B305,"!Q122"))) -> 88.96598366 | Y305: =IF(ISERROR(INDIRECT(CONCATENATE($B305,"!Q129"))),"",INDIRECT(CONCATENATE($B305,"!Q129"))) -> N/A | AB305: =IF(ISERROR(INDIRECT(CONCATENATE($B305,"!Q2127"))),"",INDIRECT(CONCATENATE($B305,"!Q127"))) -> 2.308575479
B306: MICS06 | C306: 2006 | D306: 57.79898468 | E306: 69.0612182 | H306: 15.73714852 | I306: 68.94869638 | J306: 68.42808877 | M306: 12.66112264 | N306: 81.57156092 | O306: 73.00092433 | R306: 3.559321706 | S306: 89.19607958 | T306: 70.55744721 | W306: 0.9725321981 | X306: 94.45990749 | Y306: 70.4586725 | AB306: 0.4124313825
B307: MICS10 | C307: 2010 | D307: 57.09762105 | E307: 60.14361507 | H307: 14.67017551 | I307: 58.48780261 | J307: 73.03038086 | M307: 6.255062109 | N307: 67.04852967 | O307: 75.77642603 | R307: 3.306613008 | S307: 68.33538543 | T307: 81.99624393 | W307: 1.172082459 | X307: 67.07100553 | Y307: 88.253484 | AB307: 0
B308: DHS13 | C308: 2013 | D308: 29.53383492 | E308: 60.99367734 | H308: 11.75768523 | I308: 30.48084418 | J308: 69.56991615 | M308: 2.897153965 | N308: 33.51294389 | O308: 62.57440992 | R308: 1.609513263 | S308: 48.98988799 | T308: 78.39767843 | W308: 0.8415060353 | X308: 56.15389501 | Y308: 82.74416601 | AB308: 0.6346038506
B309: MICS18 | C309: 2018 | D309: 17.34307583 | E309: 67.60236798 | H309: 6.283935996 | I309: 22.78208858 | J309: 68.01625824 | M309: 1.783143408 | N309: 32.88339544 | O309: 70.97267078 | R309: 0.8382279763 | S309: 44.57121283 | T309: 78.35632411 | W309: 0.9304227458 | X309: 65.28817132 | Y309: 88.91900529 | AB309: 0
B310: DHS20 | C310: 2020 | D310: 25.64645353 | E310: 57.19184114 | H310: 6.600132228 | I310: 35.23813622 | J310: 62.58480807 | M310: 2.316258723 | N310: 43.63640133 | O310: 69.45528595 | R310: 0.8678595793 | S310: 57.74813204 | T310: 77.76612659 | W310: 0.4444245819 | X310: 59.09023727 | Y310: 83.61988597 | AB310: 0
B318: =CONCATENATE("Rural use of sanitation facilities, ",C299,"–",C300) -> Rural use of sanitation facilities, 2000–2020 | S318: Data points used for regression

Sheet Hygiene
B4: Access to hygiene facilities by wealth quintile (%)
B5: =IF(ISERROR(INDIRECT(CONCATENATE($E$32,"!A2"))),"",INDIRECT(CONCATENATE($E$32,"!A2"))) -> Gambia
B7: =CONCATENATE("National ",IF(ISERROR(INDIRECT(CONCATENATE($E$32,"!A2"))),"",INDIRECT(CONCATENATE($E$32,"!A210")))) -> National Access to hygiene facilities | K7: =CONCATENATE("Urban ",IF(ISERROR(INDIRECT(CONCATENATE($E$32,"!A2"))),"",INDIRECT(CONCATENATE($E$32,"!A210")))) -> Urban Access to hygiene facilities | S7: =CONCATENATE("Rural ",IF(ISERROR(INDIRECT(CONCATENATE($E$32,"!A2"))),"",INDIRECT(CONCATENATE($E$32,"!A210")))) -> Rural Access to hygiene facilities
E32: =INDEX(B88:B100,A88) -> DHS20 | G32: =IF(ISERROR(INDIRECT(CONCATENATE($E$32,"!A2"))),"",INDIRECT(CONCATENATE($E$32,"!A2"))) -> Gambia | K32: Poorest | N32: Poor | Q32: Middle | T32: Rich | W32: Richest
K33: Basic | L33: Limited | M33: No facility | N33: Basic | O33: Limited | P33: No facility | Q33: Basic | R33: Limited | S33: No facility | T33: Basic | U33: Limited | V33: No facility | W33: Basic | X33: Limited | Y33: No facility
B34: >>> Select Survey : | G34: NATIONAL | J34: =IF(ISERROR(INDIRECT(CONCATENATE(#REF!,"!A2"))),"",INDIRECT(CONCATENATE(#REF!,"!A210"))) ->  | K34: =IF(ISERROR(INDIRECT(CONCATENATE($E$32,"!C222"))),"",INDIRECT(CONCATENATE($E$32,"!C222"))) -> 4.202194019 | L34: =IF(ISERROR(INDIRECT(CONCATENATE($E$32,"!C223"))),"",INDIRECT(CONCATENATE($E$32,"!C223"))) -> 85.80058318 | M34: =IF(ISERROR(INDIRECT(CONCATENATE($E$32,"!C224"))),"",INDIRECT(CONCATENATE($E$32,"!C224"))) -> 9.997222803 | N34: =IF(ISERROR(INDIRECT(CONCATENATE($E$32,"!D222"))),"",INDIRECT(CONCATENATE($E$32,"!D222"))) -> 4.244277076 | O34: =IF(ISERROR(INDIRECT(CONCATENATE($E$32,"!D223"))),"",INDIRECT(CONCATENATE($E$32,"!D223"))) -> 82.65349602 | P34: =IF(ISERROR(INDIRECT(CONCATENATE($E$32,"!D224"))),"",INDIRECT(CONCATENATE($E$32,"!D224"))) -> 13.10222691 | Q34: =IF(ISERROR(INDIRECT(CONCATENATE($E$32,"!E222"))),"",INDIRECT(CONCATENATE($E$32,"!E222"))) -> 4.709548349 | R34: =IF(ISERROR(INDIRECT(CONCATENATE($E$32,"!E223"))),"",INDIRECT(CONCATENATE($E$32,"!E223"))) -> 87.74691676 | S34: =IF(ISERROR(INDIRECT(CONCATENATE($E$32,"!E224"))),"",INDIRECT(CONCATENATE($E$32,"!E224"))) -> 7.543534894 | T34: =IF(ISERROR(INDIRECT(CONCATENATE($E$32,"!F222"))),"",INDIRECT(CONCATENATE($E$32,"!F222"))) -> 8.245795791 | U34: =IF(ISERROR(INDIRECT(CONCATENATE($E$32,"!F223"))),"",INDIRECT(CONCATENATE($E$32,"!F223"))) -> 84.65677466 | V34: =IF(ISERROR(INDIRECT(CONCATENATE($E$32,"!F224"))),"",INDIRECT(CONCATENATE($E$32,"!F224"))) -> 7.097429546 | W34: =IF(ISERROR(INDIRECT(CONCATENATE($E$32,"!G222"))),"",INDIRECT(CONCATENATE($E$32,"!G222"))) -> 20.16445104 | X34: =IF(ISERROR(INDIRECT(CONCATENATE($E$32,"!G223"))),"",INDIRECT(CONCATENATE($E$32,"!G223"))) -> 72.00084204 | Y34: =IF(ISERROR(INDIRECT(CONCATENATE($E$32,"!G224"))),"",INDIRECT(CONCATENATE($E$32,"!G224"))) -> 7.834706914
G37: URBAN | J37: =IF(ISERROR(INDIRECT(CONCATENATE(#REF!,"!A2"))),"",INDIRECT(CONCATENATE(#REF!,"!A210"))) ->  | K37: =IF(ISERROR(INDIRECT(CONCATENATE($E$32,"!H222"))),"",INDIRECT(CONCATENATE($E$32,"!H222"))) -> 1.509566662 | L37: =IF(ISERROR(INDIRECT(CONCATENATE($E$32,"!H223"))),"",INDIRECT(CONCATENATE($E$32,"!H223"))) -> 85.12935669 | M37: =IF(ISERROR(INDIRECT(CONCATENATE($E$32,"!H224"))),"",INDIRECT(CONCATENATE($E$32,"!H224"))) -> 13.36107665 | N37: =IF(ISERROR(INDIRECT(CONCATENATE($E$32,"!I222"))),"",INDIRECT(CONCATENATE($E$32,"!I222"))) -> 3.934645171 | O37: =IF(ISERROR(INDIRECT(CONCATENATE($E$32,"!I223"))),"",INDIRECT(CONCATENATE($E$32,"!I223"))) -> 88.64337057 | P37: =IF(ISERROR(INDIRECT(CONCATENATE($E$32,"!I224"))),"",INDIRECT(CONCATENATE($E$32,"!I224"))) -> 7.421984258 | Q37: =IF(ISERROR(INDIRECT(CONCATENATE($E$32,"!J222"))),"",INDIRECT(CONCATENATE($E$32,"!J222"))) -> 7.472213866 | R37: =IF(ISERROR(INDIRECT(CONCATENATE($E$32,"!J223"))),"",INDIRECT(CONCATENATE($E$32,"!J223"))) -> 84.93417556 | S37: =IF(ISERROR(INDIRECT(CONCATENATE($E$32,"!J224"))),"",INDIRECT(CONCATENATE($E$32,"!J224"))) -> 7.593610569 | T37: =IF(ISERROR(INDIRECT(CONCATENATE($E$32,"!K222"))),"",INDIRECT(CONCATENATE($E$32,"!K222"))) -> 10.34373014 | U37: =IF(ISERROR(INDIRECT(CONCATENATE($E$32,"!K223"))),"",INDIRECT(CONCATENATE($E$32,"!K223"))) -> 83.22600964 | V37: =IF(ISERROR(INDIRECT(CONCATENATE($E$32,"!K224"))),"",INDIRECT(CONCATENATE($E$32,"!K224"))) -> 6.43026022 | W37: =IF(ISERROR(INDIRECT(CONCATENATE($E$32,"!L222"))),"",INDIRECT(CONCATENATE($E$32,"!L222"))) -> 24.03373797 | X37: =IF(ISERROR(INDIRECT(CONCATENATE($E$32,"!L223"))),"",INDIRECT(CONCATENATE($E$32,"!L223"))) -> 67.19811565 | Y37: =IF(ISERROR(INDIRECT(CONCATENATE($E$32,"!L224"))),"",INDIRECT(CONCATENATE($E$32,"!L224"))) -> 8.768146387
G40: RURAL | J40: =IF(ISERROR(INDIRECT(CONCATENATE(#REF!,"!A2"))),"",INDIRECT(CONCATENATE(#REF!,"!A210"))) ->  | K40: =IF(ISERROR(INDIRECT(CONCATENATE($E$32,"!M222"))),"",INDIRECT(CONCATENATE($E$32,"!M222"))) -> 5.682850251 | L40: =IF(ISERROR(INDIRECT(CONCATENATE($E$32,"!M223"))),"",INDIRECT(CONCATENATE($E$32,"!M223"))) -> 82.33408495 | M40: =IF(ISERROR(INDIRECT(CONCATENATE($E$32,"!M224"))),"",INDIRECT(CONCATENATE($E$32,"!M224"))) -> 11.98306479 | N40: =IF(ISERROR(INDIRECT(CONCATENATE($E$32,"!N222"))),"",INDIRECT(CONCATENATE($E$32,"!N222"))) -> 3.964525613 | O40: =IF(ISERROR(INDIRECT(CONCATENATE($E$32,"!N223"))),"",INDIRECT(CONCATENATE($E$32,"!N223"))) -> 86.03266321 | P40: =IF(ISERROR(INDIRECT(CONCATENATE($E$32,"!N224"))),"",INDIRECT(CONCATENATE($E$32,"!N224"))) -> 10.00281118 | Q40: =IF(ISERROR(INDIRECT(CONCATENATE($E$32,"!O222"))),"",INDIRECT(CONCATENATE($E$32,"!O222"))) -> 6.625921687 | R40: =IF(ISERROR(INDIRECT(CONCATENATE($E$32,"!O223"))),"",INDIRECT(CONCATENATE($E$32,"!O223"))) -> 82.07937318 | S40: =IF(ISERROR(INDIRECT(CONCATENATE($E$32,"!O224"))),"",INDIRECT(CONCATENATE($E$32,"!O224"))) -> 11.29470513 | T40: =IF(ISERROR(INDIRECT(CONCATENATE($E$32,"!P222"))),"",INDIRECT(CONCATENATE($E$32,"!P222"))) -> 5.738579265 | U40: =IF(ISERROR(INDIRECT(CONCATENATE($E$32,"!P223"))),"",INDIRECT(CONCATENATE($E$32,"!P223"))) -> 85.34789992 | V40: =IF(ISERROR(INDIRECT(CONCATENATE($E$32,"!P224"))),"",INDIRECT(CONCATENATE($E$32,"!P224"))) -> 8.913520816 | W40: =IF(ISERROR(INDIRECT(CONCATENATE($E$32,"!Q222"))),"",INDIRECT(CONCATENATE($E$32,"!Q222"))) -> 6.558350879 | X40: =IF(ISERROR(INDIRECT(CONCATENATE($E$32,"!Q223"))),"",INDIRECT(CONCATENATE($E$32,"!Q223"))) -> 85.53634206 | Y40: =IF(ISERROR(INDIRECT(CONCATENATE($E$32,"!Q224"))),"",INDIRECT(CONCATENATE($E$32,"!Q224"))) -> 7.905307059
A88: 6 | B88: MICS00
B89: MICS06
B90: MICS10
B91: DHS13
B92: MICS18
B93: DHS20
B94: Input
B95: Template

Sheet MICS00
A2: =A1026 -> Gambia
A3: =A1034 -> 2000
A4: Use of drinking water sources
A5: by wealth quintile and sub-national region
A6: Notes:
A7: WHO/UNICEF JMP customised wealth index excludes water,
A8: sanitation and hygiene assets.
A9: Survey used for analysis: | B9: =A1025 -> MICS00
A10: =B1028 -> 
A11: =B1027 -> 
A14: Use of drinking water sources | C14: NATIONAL wealth index quintile | H14: URBAN wealth index quintile | M14: RURAL wealth index quintile | R14: SUB-REGIONS: | BA14: Raw numbers of respondents: | BB14: Use of drinking water sources | BC14: NATIONAL wealth index quintile | BH14: URBAN wealth index quintile | BM14: RURAL wealth index quintile | BR14: SUB-REGIONS:
A15: Weighted percentage (used in graphs) | C15: Poorest | D15: Poor | E15: Middle | F15: Rich | G15: Richest | H15: Poorest | I15: Poor | J15: Middle | K15: Rich | L15: Richest | M15: Poorest | N15: Poor | O15: Middle | P15: Rich | Q15: Richest | R15: banjul | S15: basse | T15: brikama | U15: janjabureh | V15: kanifing | W15: kerewan | X15: kuntaur | Y15: mansakonko | BA15: Water data, raw numbers (weighted) | BC15: Poorest | BD15: Poor | BE15: Middle | BF15: Rich | BG15: Richest | BH15: Poorest | BI15: Poor | BJ15: Middle | BK15: Rich | BL15: Richest | BM15: Poorest | BN15: Poor | BO15: Middle | BP15: Rich | BQ15: Richest | BR15: banjul | BS15: basse | BT15: brikama | BU15: janjabureh | BV15: kanifing | BW15: kerewan | BX15: kuntaur | BY15: mansakonko
A16: Water | B16: Improved | C16: 71.43970323 | D16: 81.153275 | E16: 79.52834305 | F16: 91.8027689 | G16: 95.65334271 | H16: 84.84418017 | I16: 95.94009664 | J16: 97.38582379 | K16: 97.45273293 | L16: 97.32510253 | M16: 69.09746096 | N16: 77.57732723 | O16: 79.06274672 | P16: 74.06394666 | Q16: 84.59013028 | R16: 100 | S16: 73.15327042 | T16: 76.5071473 | U16: 71.14974077 | V16: 95.46442151 | W16: 90.45980607 | X16: 86.74698795 | Y16: 92.00370485 | BA16: Water | BB16: Improved | BC16: N/A | BD16: N/A | BE16: N/A | BF16: N/A | BG16: N/A | BH16: N/A | BI16: N/A | BJ16: N/A | BK16: N/A | BL16: N/A | BM16: N/A | BN16: N/A | BO16: N/A | BP16: N/A | BQ16: N/A | BR16: N/A | BS16: N/A | BT16: N/A | BU16: N/A | BV16: N/A | BW16: N/A | BX16: N/A | BY16: N/A
B17: Not Improved | C17: 28.56029677 | D17: 18.846725 | E17: 20.47165695 | F17: 8.197231095 | G17: 4.34665729 | H17: 15.15581983 | I17: 4.059903365 | J17: 2.614176213 | K17: 2.547267074 | L17: 2.674897471 | M17: 30.90253904 | N17: 22.42267277 | O17: 20.93725328 | P17: 25.93605334 | Q17: 15.40986972 | R17: 0 | S17: 26.84672958 | T17: 23.4928527 | U17: 28.85025923 | V17: 4.53557849 | W17: 9.540193932 | X17: 13.25301205 | Y17: 7.996295153 | BB17: Not Improved | BC17: N/A | BD17: N/A | BE17: N/A | BF17: N/A | BG17: N/A | BH17: N/A | BI17: N/A | BJ17: N/A | BK17: N/A | BL17: N/A | BM17: N/A | BN17: N/A | BO17: N/A | BP17: N/A | BQ17: N/A | BR17: N/A | BS17: N/A | BT17: N/A | BU17: N/A | BV17: N/A | BW17: N/A | BX17: N/A | BY17: N/A
A18: Water ladder | B18: Basic | C18: =C16*C23/100 -> 61.8993935 | D18: =D16*D23/100 -> 72.07724636 | E18: =E16*E23/100 -> 70.72879852 | F18: 83.46587707 | G18: 92.4721701 | H18: 76.7498593 | I18: 86.57097254 | J18: 87.12044396 | K18: 92.58260121 | L18: 96.58928256 | M18: 62.01691214 | N18: 64.39050817 | O18: 70.22153166 | P18: 65.82717632 | Q18: 79.4252768 | R18: 97.93953399 | S18: 65.86397657 | T18: 68.48974518 | U18: 68.95394937 | V18: 87.72406301 | W18: 80.91961214 | X18: 74.47973713 | Y18: 85.14973757 | BA18: Water ladder | BB18: Basic | BC18: N/A | BD18: N/A | BE18: N/A | BF18: N/A | BG18: N/A | BH18: N/A | BI18: N/A | BJ18: N/A | BK18: N/A | BL18: N/A | BM18: N/A | BN18: N/A | BO18: N/A | BP18: N/A | BQ18: N/A | BR18: N/A | BS18: N/A | BT18: N/A | BU18: N/A | BV18: N/A | BW18: N/A | BX18: N/A | BY18: N/A
B19: Limited | C19: =C16*C22/100 -> 9.540309729 | D19: =D16*D22/100 -> 9.076028637 | E19: =E16*E22/100 -> 8.799544532 | F19: 8.336891839 | G19: 3.18117261 | H19: 8.094320873 | I19: 9.369124091 | J19: 10.26537983 | K19: 4.870131717 | L19: 0.7358199706 | M19: 7.080548814 | N19: 13.18681907 | O19: 8.841215059 | P19: 8.236770337 | Q19: 5.164853489 | R19: 2.060466012 | S19: 7.28929385 | T19: 8.017402113 | U19: 2.1957914 | V19: 7.740358501 | W19: 9.540193932 | X19: 12.26725082 | Y19: 6.853967274 | BB19: Limited | BC19: N/A | BD19: N/A | BE19: N/A | BF19: N/A | BG19: N/A | BH19: N/A | BI19: N/A | BJ19: N/A | BK19: N/A | BL19: N/A | BM19: N/A | BN19: N/A | BO19: N/A | BP19: N/A | BQ19: N/A | BR19: N/A | BS19: N/A | BT19: N/A | BU19: N/A | BV19: N/A | BW19: N/A | BX19: N/A | BY19: N/A
B20: Unimproved | C20: =100-C18-C19-C21 -> 28.56029677 | D20: =100-D18-D19-D21 -> 18.22689302 | E20: =100-E18-E19-E21 -> 20.47165695 | F20: 8.197231095 | G20: 4.34665729 | H20: 15.15581983 | I20: 4.059903365 | J20: 2.614176213 | K20: 2.547267074 | L20: 2.674897471 | M20: 30.90253904 | N20: 21.40883039 | O20: 20.93725328 | P20: 25.93605334 | Q20: 15.40986972 | R20: -2.220446049e-14 | S20: 26.16335828 | T20: 23.4928527 | U20: 28.85025923 | V20: 4.53557849 | W20: 9.540193932 | X20: 13.25301205 | Y20: 7.996295153 | BB20: Unimproved | BC20: N/A | BD20: N/A | BE20: N/A | BF20: N/A | BG20: N/A | BH20: N/A | BI20: N/A | BJ20: N/A | BK20: N/A | BL20: N/A | BM20: N/A | BN20: N/A | BO20: N/A | BP20: N/A | BQ20: N/A | BR20: N/A | BS20: N/A | BT20: N/A | BU20: N/A | BV20: N/A | BW20: N/A | BX20: N/A | BY20: N/A
B21: Surface water | C21: 0 | D21: 0.6198319827 | E21: 0 | F21: 0 | G21: 0 | H21: 0 | I21: 0 | J21: 0 | K21: 0 | L21: 0 | M21: 0 | N21: 1.01384238 | O21: 0 | P21: 0 | Q21: 0 | R21: 0 | S21: 0.6833712984 | T21: 0 | U21: 0 | V21: 0 | W21: 0 | X21: 0 | Y21: 0 | BB21: Surface water | BC21: N/A | BD21: N/A | BE21: N/A | BF21: N/A | BG21: N/A | BH21: N/A | BI21: N/A | BJ21: N/A | BK21: N/A | BL21: N/A | BM21: N/A | BN21: N/A | BO21: N/A | BP21: N/A | BQ21: N/A | BR21: N/A | BS21: N/A | BT21: N/A | BU21: N/A | BV21: N/A | BW21: N/A | BX21: N/A | BY21: N/A
A22: Improved water point at more than 30 minutes | B22: Yes | C22: 13.35435241 | D22: 11.18381068 | E22: 11.06466474 | F22: 9.081307611 | G22: 3.325730727 | H22: 9.540219325 | I22: 9.76559793 | J22: 10.54093854 | K22: 4.997429596 | L22: 0.7560433552 | M22: 10.24719102 | N22: 16.99829001 | O22: 11.1825296 | P22: 11.12116044 | Q22: 6.105740081 | R22: 2.060466012 | S22: 9.964412811 | T22: 10.47928513 | U22: 3.086155165 | V22: 8.108108108 | W22: 10.54633472 | X22: 14.14141414 | Y22: 7.44966443 | BA22: Improved water point at more than 30 minutes | BB22: Yes | BC22: N/A | BD22: N/A | BE22: N/A | BF22: N/A | BG22: N/A | BH22: N/A | BI22: N/A | BJ22: N/A | BK22: N/A | BL22: N/A | BM22: N/A | BN22: N/A | BO22: N/A | BP22: N/A | BQ22: N/A | BR22: N/A | BS22: N/A | BT22: N/A | BU22: N/A | BV22: N/A | BW22: N/A | BX22: N/A | BY22: N/A
B23: No | C23: 86.64564759 | D23: 88.81618932 | E23: 88.93533526 | F23: 90.91869239 | G23: 96.67426927 | H23: 90.45978068 | I23: 90.23440207 | J23: 89.45906146 | K23: 95.0025704 | L23: 99.24395664 | M23: 89.75280898 | N23: 83.00170999 | O23: 88.8174704 | P23: 88.87883956 | Q23: 93.89425992 | R23: 97.93953399 | S23: 90.03558719 | T23: 89.52071487 | U23: 96.91384483 | V23: 91.89189189 | W23: 89.45366528 | X23: 85.85858586 | Y23: 92.55033557 | BB23: No | BC23: N/A | BD23: N/A | BE23: N/A | BF23: N/A | BG23: N/A | BH23: N/A | BI23: N/A | BJ23: N/A | BK23: N/A | BL23: N/A | BM23: N/A | BN23: N/A | BO23: N/A | BP23: N/A | BQ23: N/A | BR23: N/A | BS23: N/A | BT23: N/A | BU23: N/A | BV23: N/A | BW23: N/A | BX23: N/A | BY23: N/A
A24: Manually calculated ratios | B24: Improved wells
B25: Improved springs
B26: Other
C27: NATIONAL wealth index quintile | H27: URBAN wealth index quintile | M27: RURAL wealth index quintile | R27: SUB-REGIONS: | BA27: Raw numbers of respondents: | BB27: Use of drinking water sources | BC27: NATIONAL wealth index quintile | BH27: URBAN wealth index quintile | BM27: RURAL wealth index quintile | BR27: SUB-REGIONS:
A28: Percentage based on weighted population | C28: Poorest | D28: Poor | E28: Middle | F28: Rich | G28: Richest | H28: Poorest | I28: Poor | J28: Middle | K28: Rich | L28: Richest | M28: Poorest | N28: Poor | O28: Middle | P28: Rich | Q28: Richest | R28: banjul | S28: basse | T28: brikama | U28: janjabureh | V28: kanifing | W28: kerewan | X28: kuntaur | Y28: mansakonko | BA28: Water data, raw numbers (weighted) | BC28: Poorest | BD28: Poor | BE28: Middle | BF28: Rich | BG28: Richest | BH28: Poorest | BI28: Poor | BJ28: Middle | BK28: Rich | BL28: Richest | BM28: Poorest | BN28: Poor | BO28: Middle | BP28: Rich | BQ28: Richest | BR28: banjul | BS28: basse | BT28: brikama | BU28: janjabureh | BV28: kanifing | BW28: kerewan | BX28: kuntaur | BY28: mansakonko
A29: Piped water | B29: Yes | C29: 21.0522719 | D29: 36.79966894 | E29: 52.73881271 | F29: 82.43475977 | G29: 93.09067911 | H29: 76.25343737 | I29: 90.55548702 | J29: 93.81825919 | K29: 97.45273293 | L29: 94.95506012 | M29: 17.70125228 | N29: 22.03342321 | O29: 31.68499098 | P29: 38.22652497 | Q29: 66.77173335 | R29: 100 | S29: 51.44809632 | T29: 44.28216283 | U29: 15.52302531 | V29: 93.69907659 | W29: 46.01188614 | X29: 13.69112815 | Y29: 51.89873418 | BA29: Piped water | BB29: Yes | BC29: N/A | BD29: N/A | BE29: N/A | BF29: N/A | BG29: N/A | BH29: N/A | BI29: N/A | BJ29: N/A | BK29: N/A | BL29: N/A | BM29: N/A | BN29: N/A | BO29: N/A | BP29: N/A | BQ29: N/A | BR29: N/A | BS29: N/A | BT29: N/A | BU29: N/A | BV29: N/A | BW29: N/A | BX29: N/A | BY29: N/A
B30: No | C30: 78.9477281 | D30: 63.20033106 | E30: 47.26118729 | F30: 17.56524023 | G30: 6.909320889 | H30: 23.74656263 | I30: 9.444512977 | J30: 6.181740809 | K30: 2.547267074 | L30: 5.044939884 | M30: 82.29874772 | N30: 77.96657679 | O30: 68.31500902 | P30: 61.77347503 | Q30: 33.22826665 | R30: 0 | S30: 48.55190368 | T30: 55.71783717 | U30: 84.47697469 | V30: 6.300923411 | W30: 53.98811386 | X30: 86.30887185 | Y30: 48.10126582 | BB30: No | BC30: N/A | BD30: N/A | BE30: N/A | BF30: N/A | BG30: N/A | BH30: N/A | BI30: N/A | BJ30: N/A | BK30: N/A | BL30: N/A | BM30: N/A | BN30: N/A | BO30: N/A | BP30: N/A | BQ30: N/A | BR30: N/A | BS30: N/A | BT30: N/A | BU30: N/A | BV30: N/A | BW30: N/A | BX30: N/A | BY30: N/A
A31: Piped water on premises | B31: Yes | C31: 0.1472825965 | D31: 0.8318404394 | E31: 6.760698518 | F31: 19.50874511 | G31: 58.61668955 | H31: 5.185663487 | I31: 24.84498881 | J31: 38.62877387 | K31: 62.37338696 | L31: 66.31036981 | M31: 0 | N31: 0.1857305722 | O31: 0.8257623863 | P31: 2.587125244 | Q31: 9.151919093 | R31: 45.29173888 | S31: 0.81353726 | T31: 6.152889994 | U31: 2.836230558 | V31: 53.66648561 | W31: 4.691898655 | X31: 0.6571741512 | Y31: 4.414942884 | BA31: Piped water on premises | BB31: Yes | BC31: N/A | BD31: N/A | BE31: N/A | BF31: N/A | BG31: N/A | BH31: N/A | BI31: N/A | BJ31: N/A | BK31: N/A | BL31: N/A | BM31: N/A | BN31: N/A | BO31: N/A | BP31: N/A | BQ31: N/A | BR31: N/A | BS31: N/A | BT31: N/A | BU31: N/A | BV31: N/A | BW31: N/A | BX31: N/A | BY31: N/A
B32: No | C32: 99.8527174 | D32: 99.16815956 | E32: 93.23930148 | F32: 80.49125489 | G32: 41.38331045 | H32: 94.81433651 | I32: 75.15501119 | J32: 61.37122613 | K32: 37.62661304 | L32: 33.68963019 | M32: 100 | N32: 99.81426943 | O32: 99.17423761 | P32: 97.41287476 | Q32: 90.84808091 | R32: 54.70826112 | S32: 99.18646274 | T32: 93.84711001 | U32: 97.16376944 | V32: 46.33351439 | W32: 95.30810135 | X32: 99.34282585 | Y32: 95.58505712 | BB32: No | BC32: N/A | BD32: N/A | BE32: N/A | BF32: N/A | BG32: N/A | BH32: N/A | BI32: N/A | BJ32: N/A | BK32: N/A | BL32: N/A | BM32: N/A | BN32: N/A | BO32: N/A | BP32: N/A | BQ32: N/A | BR32: N/A | BS32: N/A | BT32: N/A | BU32: N/A | BV32: N/A | BW32: N/A | BX32: N/A | BY32: N/A
A33: Piped water into dwelling | B33: Yes | C33: N/A | D33: N/A | E33: N/A | F33: N/A | G33: N/A | H33: N/A | I33: N/A | J33: N/A | K33: N/A | L33: N/A | M33: N/A | N33: N/A | O33: N/A | P33: N/A | Q33: N/A | R33: N/A | S33: N/A | T33: N/A | U33: N/A | V33: N/A | W33: N/A | X33: N/A | Y33: N/A | BA33: Piped water into dwelling | BB33: Yes | BC33: N/A | BD33: N/A | BE33: N/A | BF33: N/A | BG33: N/A | BH33: N/A | BI33: N/A | BJ33: N/A | BK33: N/A | BL33: N/A | BM33: N/A | BN33: N/A | BO33: N/A | BP33: N/A | BQ33: N/A | BR33: N/A | BS33: N/A | BT33: N/A | BU33: N/A | BV33: N/A | BW33: N/A | BX33: N/A | BY33: N/A
B34: No | C34: N/A | D34: N/A | E34: N/A | F34: N/A | G34: N/A | H34: N/A | I34: N/A | J34: N/A | K34: N/A | L34: N/A | M34: N/A | N34: N/A | O34: N/A | P34: N/A | Q34: N/A | R34: N/A | S34: N/A | T34: N/A | U34: N/A | V34: N/A | W34: N/A | X34: N/A | Y34: N/A | BB34: No | BC34: N/A | BD34: N/A | BE34: N/A | BF34: N/A | BG34: N/A | BH34: N/A | BI34: N/A | BJ34: N/A | BK34: N/A | BL34: N/A | BM34: N/A | BN34: N/A | BO34: N/A | BP34: N/A | BQ34: N/A | BR34: N/A | BS34: N/A | BT34: N/A | BU34: N/A | BV34: N/A | BW34: N/A | BX34: N/A | BY34: N/A
A35: Water source on premises | B35: Yes | C35: 3.433416593 | D35: 5.478831889 | E35: 13.5495723 | F35: 21.89052157 | G35: 61.0612234 | H35: 12.86420646 | I35: 26.34038735 | J35: 40.66606455 | K35: 64.26025132 | L35: 69.94396333 | M35: 0.9717194792 | N35: 5.686746102 | O35: 4.399284462 | P35: 11.27678769 | Q35: 11.75459081 | R35: 45.29173888 | S35: 3.384315002 | T35: 16.09695463 | U35: 5.215004575 | V35: 55.6219446 | W35: 4.973412574 | X35: 0.6571741512 | Y35: 4.939796233 | BA35: Water source on premises | BB35: Yes | BC35: N/A | BD35: N/A | BE35: N/A | BF35: N/A | BG35: N/A | BH35: N/A | BI35: N/A | BJ35: N/A | BK35: N/A | BL35: N/A | BM35: N/A | BN35: N/A | BO35: N/A | BP35: N/A | BQ35: N/A | BR35: N/A | BS35: N/A | BT35: N/A | BU35: N/A | BV35: N/A | BW35: N/A | BX35: N/A | BY35: N/A
B36: No | C36: 96.56658341 | D36: 94.52116811 | E36: 86.4504277 | F36: 78.10947843 | G36: 38.9387766 | H36: 87.13579354 | I36: 73.65961265 | J36: 59.33393545 | K36: 35.73974868 | L36: 30.05603667 | M36: 99.02828052 | N36: 94.3132539 | O36: 95.60071554 | P36: 88.72321231 | Q36: 88.24540919 | R36: 54.70826112 | S36: 96.615685 | T36: 83.90304537 | U36: 94.78499543 | V36: 44.3780554 | W36: 95.02658743 | X36: 99.34282585 | Y36: 95.06020377 | BB36: No | BC36: N/A | BD36: N/A | BE36: N/A | BF36: N/A | BG36: N/A | BH36: N/A | BI36: N/A | BJ36: N/A | BK36: N/A | BL36: N/A | BM36: N/A | BN36: N/A | BO36: N/A | BP36: N/A | BQ36: N/A | BR36: N/A | BS36: N/A | BT36: N/A | BU36: N/A | BV36: N/A | BW36: N/A | BX36: N/A | BY36: N/A
A37: Improved Water source on premises | B37: Yes | C37: 0.7690844909 | D37: 2.169087864 | E37: 9.916718082 | F37: 22.2366271 | G37: 63.00510266 | H37: 8.830484936 | I37: 27.45503525 | J37: 40.53031689 | K37: 65.85190874 | L37: 70.5680348 | M37: 0.4498810601 | N37: 1.065442416 | O37: 1.255995309 | P37: 4.685906099 | Q37: 11.42426495 | R37: 45.29173888 | S37: 1.645907473 | T37: 10.64175467 | U37: 5.572224604 | V37: 57.49644381 | W37: 5.186721992 | X37: 0.7575757576 | Y37: 5.369127517 | BA37: Improved water source on premises | BB37: Yes | BC37: N/A | BD37: N/A | BE37: N/A | BF37: N/A | BG37: N/A | BH37: N/A | BI37: N/A | BJ37: N/A | BK37: N/A | BL37: N/A | BM37: N/A | BN37: N/A | BO37: N/A | BP37: N/A | BQ37: N/A | BR37: N/A | BS37: N/A | BT37: N/A | BU37: N/A | BV37: N/A | BW37: N/A | BX37: N/A | BY37: N/A
B38: No | C38: 99.23091551 | D38: 97.83091214 | E38: 90.08328192 | F38: 77.7633729 | G38: 36.99489734 | H38: 91.16951506 | I38: 72.54496475 | J38: 59.46968311 | K38: 34.14809126 | L38: 29.4319652 | M38: 99.55011894 | N38: 98.93455758 | O38: 98.74400469 | P38: 95.3140939 | Q38: 88.57573505 | R38: 54.70826112 | S38: 98.35409253 | T38: 89.35824533 | U38: 94.4277754 | V38: 42.50355619 | W38: 94.81327801 | X38: 99.24242424 | Y38: 94.63087248 | BB38: No | BC38: N/A | BD38: N/A | BE38: N/A | BF38: N/A | BG38: N/A | BH38: N/A | BI38: N/A | BJ38: N/A | BK38: N/A | BL38: N/A | BM38: N/A | BN38: N/A | BO38: N/A | BP38: N/A | BQ38: N/A | BR38: N/A | BS38: N/A | BT38: N/A | BU38: N/A | BV38: N/A | BW38: N/A | BX38: N/A | BY38: N/A
A39: Piped water on premises available when needed | B39: Yes | C39: N/A | D39: N/A | E39: N/A | F39: N/A | G39: N/A | H39: N/A | I39: N/A | J39: N/A | K39: N/A | L39: N/A | M39: N/A | N39: N/A | O39: N/A | P39: N/A | Q39: N/A | R39: N/A | S39: N/A | T39: N/A | U39: N/A | V39: N/A | W39: N/A | X39: N/A | Y39: N/A | BA39: Piped water on premises available when needed | BB39: Yes | BC39: N/A | BD39: N/A | BE39: N/A | BF39: N/A | BG39: N/A | BH39: N/A | BI39: N/A | BJ39: N/A | BK39: N/A | BL39: N/A | BM39: N/A | BN39: N/A | BO39: N/A | BP39: N/A | BQ39: N/A | BR39: N/A | BS39: N/A | BT39: N/A | BU39: N/A | BV39: N/A | BW39: N/A | BX39: N/A | BY39: N/A
B40: No | C40: N/A | D40: N/A | E40: N/A | F40: N/A | G40: N/A | H40: N/A | I40: N/A | J40: N/A | K40: N/A | L40: N/A | M40: N/A | N40: N/A | O40: N/A | P40: N/A | Q40: N/A | R40: N/A | S40: N/A | T40: N/A | U40: N/A | V40: N/A | W40: N/A | X40: N/A | Y40: N/A | BB40: No | BC40: N/A | BD40: N/A | BE40: N/A | BF40: N/A | BG40: N/A | BH40: N/A | BI40: N/A | BJ40: N/A | BK40: N/A | BL40: N/A | BM40: N/A | BN40: N/A | BO40: N/A | BP40: N/A | BQ40: N/A | BR40: N/A | BS40: N/A | BT40: N/A | BU40: N/A | BV40: N/A | BW40: N/A | BX40: N/A | BY40: N/A
A41: Water point at more than 30 minutes | B41: Yes | C41: 13.10129732 | D41: 10.02176506 | E41: 9.27840703 | F41: 8.336891839 | G41: 3.18117261 | H41: 8.342371785 | I41: 9.369124091 | J41: 10.26537983 | K41: 4.870131717 | L41: 0.7358199706 | M41: 11.07527618 | N41: 15.19943353 | O41: 9.806807102 | P41: 9.397273446 | Q41: 5.164853489 | R41: 2.060466012 | S41: 9.990237553 | T41: 8.732131759 | U41: 2.439768222 | V41: 7.740358501 | W41: 10.47857366 | X41: 16.15553122 | Y41: 7.40969435 | BA41: Water point at more than 30 minutes | BB41: Yes | BC41: N/A | BD41: N/A | BE41: N/A | BF41: N/A | BG41: N/A | BH41: N/A | BI41: N/A | BJ41: N/A | BK41: N/A | BL41: N/A | BM41: N/A | BN41: N/A | BO41: N/A | BP41: N/A | BQ41: N/A | BR41: N/A | BS41: N/A | BT41: N/A | BU41: N/A | BV41: N/A | BW41: N/A | BX41: N/A | BY41: N/A
B42: No | C42: 86.89870268 | D42: 89.97823494 | E42: 90.72159297 | F42: 91.66310816 | G42: 96.81882739 | H42: 91.65762822 | I42: 90.63087591 | J42: 89.73462017 | K42: 95.12986828 | L42: 99.26418003 | M42: 88.92472382 | N42: 84.80056647 | O42: 90.1931929 | P42: 90.60272655 | Q42: 94.83514651 | R42: 97.93953399 | S42: 90.00976245 | T42: 91.26786824 | U42: 97.56023178 | V42: 92.2596415 | W42: 89.52142634 | X42: 83.84446878 | Y42: 92.59030565 | BB42: No | BC42: N/A | BD42: N/A | BE42: N/A | BF42: N/A | BG42: N/A | BH42: N/A | BI42: N/A | BJ42: N/A | BK42: N/A | BL42: N/A | BM42: N/A | BN42: N/A | BO42: N/A | BP42: N/A | BQ42: N/A | BR42: N/A | BS42: N/A | BT42: N/A | BU42: N/A | BV42: N/A | BW42: N/A | BX42: N/A | BY42: N/A
A43: Water source available when needed | B43: Yes | C43: N/A | D43: N/A | E43: N/A | F43: N/A | G43: N/A | H43: N/A | I43: N/A | J43: N/A | K43: N/A | L43: N/A | M43: N/A | N43: N/A | O43: N/A | P43: N/A | Q43: N/A | R43: N/A | S43: N/A | T43: N/A | U43: N/A | V43: N/A | W43: N/A | X43: N/A | Y43: N/A | BA43: Water source available when needed | BB43: Yes | BC43: N/A | BD43: N/A | BE43: N/A | BF43: N/A | BG43: N/A | BH43: N/A | BI43: N/A | BJ43: N/A | BK43: N/A | BL43: N/A | BM43: N/A | BN43: N/A | BO43: N/A | BP43: N/A | BQ43: N/A | BR43: N/A | BS43: N/A | BT43: N/A | BU43: N/A | BV43: N/A | BW43: N/A | BX43: N/A | BY43: N/A
B44: No | C44: N/A | D44: N/A | E44: N/A | F44: N/A | G44: N/A | H44: N/A | I44: N/A | J44: N/A | K44: N/A | L44: N/A | M44: N/A | N44: N/A | O44: N/A | P44: N/A | Q44: N/A | R44: N/A | S44: N/A | T44: N/A | U44: N/A | V44: N/A | W44: N/A | X44: N/A | Y44: N/A | BB44: No | BC44: N/A | BD44: N/A | BE44: N/A | BF44: N/A | BG44: N/A | BH44: N/A | BI44: N/A | BJ44: N/A | BK44: N/A | BL44: N/A | BM44: N/A | BN44: N/A | BO44: N/A | BP44: N/A | BQ44: N/A | BR44: N/A | BS44: N/A | BT44: N/A | BU44: N/A | BV44: N/A | BW44: N/A | BX44: N/A | BY44: N/A
A45: Improved water source available when needed | B45: Yes | C45: N/A | D45: N/A | E45: N/A | F45: N/A | G45: N/A | H45: N/A | I45: N/A | J45: N/A | K45: N/A | L45: N/A | M45: N/A | N45: N/A | O45: N/A | P45: N/A | Q45: N/A | R45: N/A | S45: N/A | T45: N/A | U45: N/A | V45: N/A | W45: N/A | X45: N/A | Y45: N/A | BA45: Improved water source available when needed | BB45: Yes | BC45: N/A | BD45: N/A | BE45: N/A | BF45: N/A | BG45: N/A | BH45: N/A | BI45: N/A | BJ45: N/A | BK45: N/A | BL45: N/A | BM45: N/A | BN45: N/A | BO45: N/A | BP45: N/A | BQ45: N/A | BR45: N/A | BS45: N/A | BT45: N/A | BU45: N/A | BV45: N/A | BW45: N/A | BX45: N/A | BY45: N/A
B46: No | C46: N/A | D46: N/A | E46: N/A | F46: N/A | G46: N/A | H46: N/A | I46: N/A | J46: N/A | K46: N/A | L46: N/A | M46: N/A | N46: N/A | O46: N/A | P46: N/A | Q46: N/A | R46: N/A | S46: N/A | T46: N/A | U46: N/A | V46: N/A | W46: N/A | X46: N/A | Y46: N/A | BB46: No | BC46: N/A | BD46: N/A | BE46: N/A | BF46: N/A | BG46: N/A | BH46: N/A | BI46: N/A | BJ46: N/A | BK46: N/A | BL46: N/A | BM46: N/A | BN46: N/A | BO46: N/A | BP46: N/A | BQ46: N/A | BR46: N/A | BS46: N/A | BT46: N/A | BU46: N/A | BV46: N/A | BW46: N/A | BX46: N/A | BY46: N/A
A47: Microbiological quality at point of collection | B47: Not contaminated (No E. coli in 100 mL) | C47: N/A | D47: N/A | E47: N/A | F47: N/A | G47: N/A | H47: N/A | I47: N/A | J47: N/A | K47: N/A | L47: N/A | M47: N/A | N47: N/A | O47: N/A | P47: N/A | Q47: N/A | R47: N/A | S47: N/A | T47: N/A | U47: N/A | V47: N/A | W47: N/A | X47: N/A | Y47: N/A | BA47: Microbiological quality at point of collection | BB47: Not contaminated (No E. coli in 100 mL) | BC47: N/A | BD47: N/A | BE47: N/A | BF47: N/A | BG47: N/A | BH47: N/A | BI47: N/A | BJ47: N/A | BK47: N/A | BL47: N/A | BM47: N/A | BN47: N/A | BO47: N/A | BP47: N/A | BQ47: N/A | BR47: N/A | BS47: N/A | BT47: N/A | BU47: N/A | BV47: N/A | BW47: N/A | BX47: N/A | BY47: N/A
B48: Contaminated (E. coli detected in 100 mL) | C48: N/A | D48: N/A | E48: N/A | F48: N/A | G48: N/A | H48: N/A | I48: N/A | J48: N/A | K48: N/A | L48: N/A | M48: N/A | N48: N/A | O48: N/A | P48: N/A | Q48: N/A | R48: N/A | S48: N/A | T48: N/A | U48: N/A | V48: N/A | W48: N/A | X48: N/A | Y48: N/A | BB48: Contaminated (E. coli detected in 100 mL) | BC48: N/A | BD48: N/A | BE48: N/A | BF48: N/A | BG48: N/A | BH48: N/A | BI48: N/A | BJ48: N/A | BK48: N/A | BL48: N/A | BM48: N/A | BN48: N/A | BO48: N/A | BP48: N/A | BQ48: N/A | BR48: N/A | BS48: N/A | BT48: N/A | BU48: N/A | BV48: N/A | BW48: N/A | BX48: N/A | BY48: N/A
B49: Highly contaminated (>100 CFU/100 mL) | C49: N/A | D49: N/A | E49: N/A | F49: N/A | G49: N/A | H49: N/A | I49: N/A | J49: N/A | K49: N/A | L49: N/A | M49: N/A | N49: N/A | O49: N/A | P49: N/A | Q49: N/A | R49: N/A | S49: N/A | T49: N/A | U49: N/A | V49: N/A | W49: N/A | X49: N/A | Y49: N/A | BB49: Highly contaminated (>100 CFU/100 mL) | BC49: N/A | BD49: N/A | BE49: N/A | BF49: N/A | BG49: N/A | BH49: N/A | BI49: N/A | BJ49: N/A | BK49: N/A | BL49: N/A | BM49: N/A | BN49: N/A | BO49: N/A | BP49: N/A | BQ49: N/A | BR49: N/A | BS49: N/A | BT49: N/A | BU49: N/A | BV49: N/A | BW49: N/A | BX49: N/A | BY49: N/A
A50: Microbiological quality of improved water sources at point of collection | B50: Not contaminated (No E. coli in 100 mL) | C50: N/A | D50: N/A | E50: N/A | F50: N/A | G50: N/A | H50: N/A | I50: N/A | J50: N/A | K50: N/A | L50: N/A | M50: N/A | N50: N/A | O50: N/A | P50: N/A | Q50: N/A | R50: N/A | S50: N/A | T50: N/A | U50: N/A | V50: N/A | W50: N/A | X50: N/A | Y50: N/A | BA50: Microbiological quality of improved water sources at point of collection | BB50: Not contaminated (No E. coli in 100 mL) | BC50: N/A | BD50: N/A | BE50: N/A | BF50: N/A | BG50: N/A | BH50: N/A | BI50: N/A | BJ50: N/A | BK50: N/A | BL50: N/A | BM50: N/A | BN50: N/A | BO50: N/A | BP50: N/A | BQ50: N/A | BR50: N/A | BS50: N/A | BT50: N/A | BU50: N/A | BV50: N/A | BW50: N/A | BX50: N/A | BY50: N/A
B51: Contaminated (E. coli detected in 100 mL) | C51: N/A | D51: N/A | E51: N/A | F51: N/A | G51: N/A | H51: N/A | I51: N/A | J51: N/A | K51: N/A | L51: N/A | M51: N/A | N51: N/A | O51: N/A | P51: N/A | Q51: N/A | R51: N/A | S51: N/A | T51: N/A | U51: N/A | V51: N/A | W51: N/A | X51: N/A | Y51: N/A | BB51: Contaminated (E. coli detected in 100 mL) | BC51: N/A | BD51: N/A | BE51: N/A | BF51: N/A | BG51: N/A | BH51: N/A | BI51: N/A | BJ51: N/A | BK51: N/A | BL51: N/A | BM51: N/A | BN51: N/A | BO51: N/A | BP51: N/A | BQ51: N/A | BR51: N/A | BS51: N/A | BT51: N/A | BU51: N/A | BV51: N/A | BW51: N/A | BX51: N/A | BY51: N/A
B52: Highly contaminated (>100 CFU/100 mL) | C52: N/A | D52: N/A | E52: N/A | F52: N/A | G52: N/A | H52: N/A | I52: N/A | J52: N/A | K52: N/A | L52: N/A | M52: N/A | N52: N/A | O52: N/A | P52: N/A | Q52: N/A | R52: N/A | S52: N/A | T52: N/A | U52: N/A | V52: N/A | W52: N/A | X52: N/A | Y52: N/A | BB52: Highly contaminated (>100 CFU/100 mL) | BC52: N/A | BD52: N/A | BE52: N/A | BF52: N/A | BG52: N/A | BH52: N/A | BI52: N/A | BJ52: N/A | BK52: N/A | BL52: N/A | BM52: N/A | BN52: N/A | BO52: N/A | BP52: N/A | BQ52: N/A | BR52: N/A | BS52: N/A | BT52: N/A | BU52: N/A | BV52: N/A | BW52: N/A | BX52: N/A | BY52: N/A
A53: Microbiological quality of piped on premises at point of collection | B53: Not contaminated (No E. coli in 100 mL) | C53: N/A | D53: N/A | E53: N/A | F53: N/A | G53: N/A | H53: N/A | I53: N/A | J53: N/A | K53: N/A | L53: N/A | M53: N/A | N53: N/A | O53: N/A | P53: N/A | Q53: N/A | R53: N/A | S53: N/A | T53: N/A | U53: N/A | V53: N/A | W53: N/A | X53: N/A | Y53: N/A | BA53: Microbiological quality of piped on premises at point of collection | BB53: Not contaminated (No E. coli in 100 mL) | BC53: N/A | BD53: N/A | BE53: N/A | BF53: N/A | BG53: N/A | BH53: N/A | BI53: N/A | BJ53: N/A | BK53: N/A | BL53: N/A | BM53: N/A | BN53: N/A | BO53: N/A | BP53: N/A | BQ53: N/A | BR53: N/A | BS53: N/A | BT53: N/A | BU53: N/A | BV53: N/A | BW53: N/A | BX53: N/A | BY53: N/A
B54: Contaminated (E. coli detected in 100 mL) | C54: N/A | D54: N/A | E54: N/A | F54: N/A | G54: N/A | H54: N/A | I54: N/A | J54: N/A | K54: N/A | L54: N/A | M54: N/A | N54: N/A | O54: N/A | P54: N/A | Q54: N/A | R54: N/A | S54: N/A | T54: N/A | U54: N/A | V54: N/A | W54: N/A | X54: N/A | Y54: N/A | BB54: Contaminated (E. coli detected in 100 mL) | BC54: N/A | BD54: N/A | BE54: N/A | BF54: N/A | BG54: N/A | BH54: N/A | BI54: N/A | BJ54: N/A | BK54: N/A | BL54: N/A | BM54: N/A | BN54: N/A | BO54: N/A | BP54: N/A | BQ54: N/A | BR54: N/A | BS54: N/A | BT54: N/A | BU54: N/A | BV54: N/A | BW54: N/A | BX54: N/A | BY54: N/A
B55: Highly contaminated (>100 CFU/100 mL) | C55: N/A | D55: N/A | E55: N/A | F55: N/A | G55: N/A | H55: N/A | I55: N/A | J55: N/A | K55: N/A | L55: N/A | M55: N/A | N55: N/A | O55: N/A | P55: N/A | Q55: N/A | R55: N/A | S55: N/A | T55: N/A | U55: N/A | V55: N/A | W55: N/A | X55: N/A | Y55: N/A | BB55: Highly contaminated (>100 CFU/100 mL) | BC55: N/A | BD55: N/A | BE55: N/A | BF55: N/A | BG55: N/A | BH55: N/A | BI55: N/A | BJ55: N/A | BK55: N/A | BL55: N/A | BM55: N/A | BN55: N/A | BO55: N/A | BP55: N/A | BQ55: N/A | BR55: N/A | BS55: N/A | BT55: N/A | BU55: N/A | BV55: N/A | BW55: N/A | BX55: N/A | BY55: N/A
C56: NATIONAL wealth index quintile | H56: URBAN wealth index quintile | M56: RURAL wealth index quintile | R56: SUB-REGIONS: | BA56: Raw numbers of respondents: | BB56: Use of drinking water sources | BC56: NATIONAL wealth index quintile | BH56: URBAN wealth index quintile | BM56: RURAL wealth index quintile | BR56: SUB-REGIONS:
A57: Percentage based on weighted population | C57: Poorest | D57: Poor | E57: Middle | F57: Rich | G57: Richest | H57: Poorest | I57: Poor | J57: Middle | K57: Rich | L57: Richest | M57: Poorest | N57: Poor | O57: Middle | P57: Rich | Q57: Richest | R57: banjul | S57: basse | T57: brikama | U57: janjabureh | V57: kanifing | W57: kerewan | X57: kuntaur | Y57: mansakonko | BA57: Water data, raw numbers (weighted) | BC57: Poorest | BD57: Poor | BE57: Middle | BF57: Rich | BG57: Richest | BH57: Poorest | BI57: Poor | BJ57: Middle | BK57: Rich | BL57: Richest | BM57: Poorest | BN57: Poor | BO57: Middle | BP57: Rich | BQ57: Richest | BR57: banjul | BS57: basse | BT57: brikama | BU57: janjabureh | BV57: kanifing | BW57: kerewan | BX57: kuntaur | BY57: mansakonko
A58: main source of water | B58: piped into dwelling | C58: 0 | D58: 0.2374834553 | E58: 0.7717708175 | F58: 7.346436936 | G58: 28.418511 | H58: 1.377964435 | I58: 8.170421858 | J58: 14.4419444 | K58: 31.06767577 | L58: 34.73208423 | M58: 0 | N58: 0 | O58: 0 | P58: 0 | Q58: 2.021649778 | R58: 31.27286732 | S58: 0.4230393752 | T58: 0.9322560597 | U58: 2.165294297 | V58: 25.04073873 | W58: 0.2189552706 | X58: 0.3285870756 | Y58: 0.9570855202
B59: piped into yard or plot | C59: 0.1472825965 | D59: 0.5943569841 | E59: 5.9889277 | F59: 12.16230817 | G59: 30.19817855 | H59: 3.807699052 | I59: 16.67456695 | J59: 24.18682947 | K59: 31.3057112 | L59: 31.57828558 | M59: 0 | N59: 0.1857305722 | O59: 0.8257623863 | P59: 2.587125244 | Q59: 7.130269315 | R59: 14.01887156 | S59: 0.3904978848 | T59: 5.220633934 | U59: 0.6709362611 | V59: 28.62574688 | W59: 4.472943384 | X59: 0.3285870756 | Y59: 3.457857363
B60: public tap | C60: 20.90498931 | D60: 35.9678285 | E60: 45.97811419 | F60: 62.92601466 | G60: 34.47398957 | H60: 71.06777388 | I60: 65.71049822 | J60: 55.18948532 | K60: 35.07934596 | L60: 28.64469031 | M60: 17.70125228 | N60: 21.84769264 | O60: 30.85922859 | P60: 35.63939973 | Q60: 57.61981425 | R60: 54.70826112 | S60: 50.63455906 | T60: 38.12927284 | U60: 12.68679475 | V60: 40.03259098 | W60: 41.31998749 | X60: 13.033954 | Y60: 47.48379129
B61: tubewell/borehole with pump | C61: 35.08287247 | D61: 32.48359227 | E61: 18.55502413 | F61: 4.36541704 | G61: 0.5287450825 | H61: 2.760653252 | I61: 0.2844531629 | J61: 0 | K61: 0 | L61: 0 | M61: 33.09689098 | N61: 43.34609972 | O61: 34.59398237 | P61: 27.67367894 | Q61: 9.933103287 | R61: 0 | S61: 14.05792385 | T61: 24.23865755 | U61: 23.23879231 | V61: 0.5431830527 | W61: 31.93619018 | X61: 55.99671413 | Y61: 23.27878975
B62: protected dug well | C62: 14.94028703 | D62: 11.75511643 | E62: 8.234506211 | F62: 4.847613564 | G62: 2.033918516 | H62: 5.830089552 | I62: 5.10015645 | J62: 3.245459094 | K62: 0 | L62: 2.370042413 | M62: 17.81628708 | N62: 11.93840097 | O62: 12.72801937 | P62: 8.163742749 | Q62: 7.840522037 | R62: 0 | S62: 7.614708754 | T62: 7.986326911 | U62: 31.59499848 | V62: 1.222161869 | W62: 12.16765718 | X62: 16.59364732 | Y62: 16.36307502
B63: protected spring | C63: 0.1382524739 | D63: 0.1148973551 | E63: 0 | F63: 0.09838669124 | G63: 0 | H63: 0 | I63: 0 | J63: 0.2477295328 | K63: 0 | L63: 0 | M63: 0.1023911263 | N63: 0.2594033263 | O63: 0.05575400125 | P63: 0 | Q63: 0 | R63: 0 | S63: 0 | T63: 0 | U63: 0.4269594389 | V63: 0 | W63: 0.1251172975 | X63: 0.4654983571 | Y63: 0.4631058969
B64: bottled water | C64: 0.2260193525 | D64: 0 | E64: 0 | F64: 0.02705315449 | G64: 0 | H64: 0 | I64: 0 | J64: 0 | K64: 0 | L64: 0 | M64: 0.3806394991 | N64: 0 | O64: 0 | P64: 0 | Q64: 0.04477161285 | R64: 0 | S64: 0 | T64: 0 | U64: 0.3659652333 | V64: 0 | W64: 0.2189552706 | X64: 0 | Y64: 0
B65: unprotected dug well | C65: 28.40601917 | D65: 18.1590406 | E65: 18.82002231 | F65: 7.649577429 | G65: 3.122132016 | H65: 14.0430133 | I65: 1.540146991 | J65: 1.585641778 | K65: 0.1715331229 | L65: 2.331039336 | M65: 30.64271993 | N65: 21.40883039 | O65: 20.93725328 | P65: 24.99792269 | Q65: 15.40986972 | R65: 0 | S65: 25.57761145 | T65: 23.08887508 | U65: 28.6062824 | V65: 2.797392721 | W65: 9.258680013 | X65: 12.65060241 | Y65: 7.996295153
B66: unprotected spring | C66: 0.1087165359 | D66: 0 | E66: 0.04353295435 | F66: 0 | G66: 0 | H66: 0 | I66: 0 | J66: 0 | K66: 0 | L66: 0 | M66: 0.1830896661 | N66: 0 | O66: 0 | P66: 0.07216389573 | Q66: 0 | R66: 0 | S66: 0 | T66: 0.03107520199 | U66: 0.2439768222 | V66: 0 | W66: 0 | X66: 0.3285870756 | Y66: 0
B67: pond, river or stream | C67: 0 | D67: 0.6198319827 | E67: 0 | F67: 0 | G67: 0 | H67: 0 | I67: 0 | J67: 0 | K67: 0 | L67: 0 | M67: 0 | N67: 1.01384238 | O67: 0 | P67: 0 | Q67: 0 | R67: 0 | S67: 0.6833712984 | T67: 0 | U67: 0 | V67: 0 | W67: 0 | X67: 0 | Y67: 0
B68: tanker truck vendor | C68: 0 | D68: 0 | E68: 0 | F68: 0.02953868853 | G68: 0 | H68: 0 | I68: 0 | J68: 0.07437596911 | K68: 0 | L68: 0 | M68: 0 | N68: 0 | O68: 0 | P68: 0 | Q68: 0 | R68: 0 | S68: 0.0325414904 | T68: 0 | U68: 0 | V68: 0 | W68: 0 | X68: 0 | Y68: 0
B69: other | C69: 0 | D69: 0.06785241579 | E69: 1.608101682 | F69: 0.5476536666 | G69: 1.224525275 | H69: 1.112806534 | I69: 2.519756373 | J69: 1.028534435 | K69: 2.375733951 | L69: 0.3438581349 | M69: 0 | N69: 0 | O69: 0 | P69: 0.8659667487 | Q69: 0 | R69: 0 | S69: 0.5857468272 | T69: 0.3729024239 | U69: 0 | V69: 1.738185769 | W69: 0.2815139193 | X69: 0 | Y69: 0
B70: don't know | C70: 0.04556105992 | D70: 0 | E70: 0 | F70: 0 | G70: 0 | H70: 0 | I70: 0 | J70: 0 | K70: 0 | L70: 0 | M70: 0.07672944303 | N70: 0 | O70: 0 | P70: 0 | Q70: 0 | R70: 0 | S70: 0 | T70: 0 | U70: 0 | V70: 0 | W70: 0 | X70: 0.273822563 | Y70: 0
A108: =A1026 -> Gambia
A109: =A1034 -> 2000
A110: Use of sanitation facilities
A111: by wealth quintile and sub-national region
A112: Notes:
A113: WHO/UNICEF JMP customised wealth index excludes water,
A114: sanitation and hygiene assets.
A115: Survey used for analysis: | B115: =A1025 -> MICS00
A116: =B1030 -> Improved latrines based on: | B116: MICS06
A117: =B1029 -> Shared improved based on: | B117: MICS06
A120: Use of sanitation facilities | C120: NATIONAL wealth index quintile | H120: URBAN wealth index quintile | M120: RURAL wealth index quintile | R120: SUB-REGIONS: | BA120: Raw numbers of respondents: | BB120: Use of sanitation facilities | BC120: NATIONAL wealth index quintile | BH120: URBAN wealth index quintile | BM120: RURAL wealth index quintile | BR120: SUB-REGIONS:
A121: Weighted percentage (used in graphs) | C121: Poorest | D121: Poor | E121: Middle | F121: Rich | G121: Richest | H121: Poorest | I121: Poor | J121: Middle | K121: Rich | L121: Richest | M121: Poorest | N121: Poor | O121: Middle | P121: Rich | Q121: Richest | R121: banjul | S121: basse | T121: brikama | U121: janjabureh | V121: kanifing | W121: kerewan | X121: kuntaur | Y121: mansakonko | BA121: Sanitation data, raw numbers (weighted) | BC121: Poorest | BD121: Poor | BE121: Middle | BF121: Rich | BG121: Richest | BH121: Poorest | BI121: Poor | BJ121: Middle | BK121: Rich | BL121: Richest | BM121: Poorest | BN121: Poor | BO121: Middle | BP121: Rich | BQ121: Richest | BR121: banjul | BS121: basse | BT121: brikama | BU121: janjabureh | BV121: kanifing | BW121: kerewan | BX121: kuntaur | BY121: mansakonko
A122: Sanitation | B122: Improved | C122: =C153+C154+C155+C156*MICS06!C130/100 -> 51.15547385 | D122: =D153+D154+D155+D156*MICS06!D130/100 -> 73.71671582 | E122: =E153+E154+E155+E156*MICS06!E130/100 -> 83.16707021 | F122: =F153+F154+F155+F156*MICS06!F130/100 -> 89.41783344 | G122: =G153+G154+G155+G156*MICS06!G130/100 -> 97.78480844 | H122: =H153+H154+H155+H156*MICS06!H130/100 -> 76.7428276 | I122: =I153+I154+I155+I156*MICS06!I130/100 -> 88.65134887 | J122: =J153+J154+J155+J156*MICS06!J130/100 -> 95.17624327 | K122: =K153+K154+K155+K156*MICS06!K130/100 -> 97.28286828 | L122: =L153+L154+L155+L156*MICS06!L130/100 -> 99.03743723 | M122: =M153+M154+M155+M156*MICS06!M130/100 -> 45.8440225 | N122: =N153+N154+N155+N156*MICS06!N130/100 -> 64.07055327 | O122: =O153+O154+O155+O156*MICS06!O130/100 -> 74.82167477 | P122: =P153+P154+P155+P156*MICS06!P130/100 -> 81.8543438 | Q122: =Q153+Q154+Q155+Q156*MICS06!Q130/100 -> 88.96598366 | R122: =R153+R154+R155+R156*MICS06!R130/100 -> 97.11149624 | S122: =S153+S154+S155+S156*MICS06!S130/100 -> 70.98465924 | T122: =T153+T154+T155+T156*MICS06!T130/100 -> 89.74001387 | U122: =U153+U154+U155+U156*MICS06!U130/100 -> 35.52249829 | V122: =V153+V154+V155+V156*MICS06!V130/100 -> 95.06689982 | W122: =W153+W154+W155+W156*MICS06!W130/100 -> 79.32326836 | X122: =X153+X154+X155+X156*MICS06!X130/100 -> 49.28352865 | Y122: =Y153+Y154+Y155+Y156*MICS06!Y130/100 -> 62.20521015 | BA122: Sanitation | BB122: Improved | BC122: N/A | BD122: N/A | BE122: N/A | BF122: N/A | BG122: N/A | BH122: N/A | BI122: N/A | BJ122: N/A | BK122: N/A | BL122: N/A | BM122: N/A | BN122: N/A | BO122: N/A | BP122: N/A | BQ122: N/A | BR122: N/A | BS122: N/A | BT122: N/A | BU122: N/A | BV122: N/A | BW122: N/A | BX122: N/A | BY122: N/A
B123: Not Improved | C123: =100-C122 -> 48.84452615 | D123: =100-D122 -> 26.28328418 | E123: 16.83292979 | F123: 10.58216656 | G123: 2.215191564 | H123: 23.2571724 | I123: 11.34865113 | J123: 4.823756729 | K123: 2.717131724 | L123: 0.9625627711 | M123: 54.1559775 | N123: 35.92944673 | O123: 25.17832523 | P123: 18.1456562 | Q123: 11.03401634 | R123: 2.888503755 | S123: 29.01534076 | T123: 10.25998613 | U123: 64.47750171 | V123: 4.933100177 | W123: 20.67673164 | X123: 50.71647135 | Y123: 37.79478985 | BB123: Not Improved | BC123: N/A | BD123: N/A | BE123: N/A | BF123: N/A | BG123: N/A | BH123: N/A | BI123: N/A | BJ123: N/A | BK123: N/A | BL123: N/A | BM123: N/A | BN123: N/A | BO123: N/A | BP123: N/A | BQ123: N/A | BR123: N/A | BS123: N/A | BT123: N/A | BU123: N/A | BV123: N/A | BW123: N/A | BX123: N/A | BY123: N/A
A124: Sanitation ladder | B124: Basic | C124: =C122*MICS06!C129/100 -> 34.53449692 | D124: =D122*MICS06!D129/100 -> 50.45211088 | E124: =E122*MICS06!E129/100 -> 47.3338659 | F124: =F122*MICS06!F129/100 -> 47.60147845 | G124: =G122*MICS06!G129/100 -> 71.1791903 | H124: =H122*MICS06!H129/100 -> 31.58121574 | I124: =I122*MICS06!I129/100 -> 31.26099158 | J124: =J122*MICS06!J129/100 -> 38.88925839 | K124: =K122*MICS06!K129/100 -> 57.77318729 | L124: =L122*MICS06!L129/100 -> 89.71554128 | M124: =M122*MICS06!M129/100 -> 31.66044041 | N124: =N122*MICS06!N129/100 -> 43.84225507 | O124: =O122*MICS06!O129/100 -> 54.62051418 | P124: =P122*MICS06!P129/100 -> 57.75433541 | Q124: =Q122*MICS06!Q129/100 -> 62.68425106 | R124: =R122*MICS06!R129/100 -> 39.62639586 | S124: =S122*MICS06!S129/100 -> 63.72454701 | T124: =T122*MICS06!T129/100 -> 55.34181856 | U124: =U122*MICS06!U129/100 -> 31.39788803 | V124: =V122*MICS06!V129/100 -> 53.74548629 | W124: =W122*MICS06!W129/100 -> 48.04922574 | X124: =X122*MICS06!X129/100 -> 27.57187228 | Y124: =Y122*MICS06!Y129/100 -> 37.53922124 | BA124: Sanitation ladder | BB124: Basic | BC124: N/A | BD124: N/A | BE124: N/A | BF124: N/A | BG124: N/A | BH124: N/A | BI124: N/A | BJ124: N/A | BK124: N/A | BL124: N/A | BM124: N/A | BN124: N/A | BO124: N/A | BP124: N/A | BQ124: N/A | BR124: N/A | BS124: N/A | BT124: N/A | BU124: N/A | BV124: N/A | BW124: N/A | BX124: N/A | BY124: N/A
B125: Limited | C125: =C122*MICS06!C128/100 -> 16.62097692 | D125: =D122*MICS06!D128/100 -> 23.26460494 | E125: =E122*MICS06!E128/100 -> 35.83320431 | F125: =F122*MICS06!F128/100 -> 41.81635499 | G125: =G122*MICS06!G128/100 -> 26.60561814 | H125: =H122*MICS06!H128/100 -> 45.16161186 | I125: =I122*MICS06!I128/100 -> 57.39035729 | J125: =J122*MICS06!J128/100 -> 56.28698489 | K125: =K122*MICS06!K128/100 -> 39.50968099 | L125: =L122*MICS06!L128/100 -> 9.321895954 | M125: =M122*MICS06!M128/100 -> 14.18358209 | N125: =N122*MICS06!N128/100 -> 20.2282982 | O125: =O122*MICS06!O128/100 -> 20.20116059 | P125: =P122*MICS06!P128/100 -> 24.10000839 | Q125: =Q122*MICS06!Q128/100 -> 26.2817326 | R125: =R122*MICS06!R128/100 -> 57.48510038 | S125: =S122*MICS06!S128/100 -> 7.26011223 | T125: =T122*MICS06!T128/100 -> 34.39819531 | U125: =U122*MICS06!U128/100 -> 4.124610263 | V125: =V122*MICS06!V128/100 -> 41.32141354 | W125: =W122*MICS06!W128/100 -> 31.27404262 | X125: =X122*MICS06!X128/100 -> 21.71165637 | Y125: =Y122*MICS06!Y128/100 -> 24.66598891 | BB125: Limited | BC125: N/A | BD125: N/A | BE125: N/A | BF125: N/A | BG125: N/A | BH125: N/A | BI125: N/A | BJ125: N/A | BK125: N/A | BL125: N/A | BM125: N/A | BN125: N/A | BO125: N/A | BP125: N/A | BQ125: N/A | BR125: N/A | BS125: N/A | BT125: N/A | BU125: N/A | BV125: N/A | BW125: N/A | BX125: N/A | BY125: N/A
B126: Unimproved | C126: =100-C124-C125-C127 -> 25.67571271 | D126: =100-D124-D125-D127 -> 16.4001244 | E126: 13.90918446 | F126: 8.155790449 | G126: 1.692826431 | H126: 20.33936459 | I126: 7.773363856 | J126: 3.963753919 | K126: 1.723003271 | L126: 0.9625627711 | M126: 24.75423158 | N126: 20.2956675 | O126: 16.65940567 | P126: 14.75978886 | Q126: 8.725440863 | R126: 1.482765261 | S126: 23.64599484 | T126: 4.386772953 | U126: 49.77789817 | V126: 4.471394582 | W126: 3.848455128 | X126: 7.31559512 | Y126: 29.642279 | BB126: Unimproved | BC126: N/A | BD126: N/A | BE126: N/A | BF126: N/A | BG126: N/A | BH126: N/A | BI126: N/A | BJ126: N/A | BK126: N/A | BL126: N/A | BM126: N/A | BN126: N/A | BO126: N/A | BP126: N/A | BQ126: N/A | BR126: N/A | BS126: N/A | BT126: N/A | BU126: N/A | BV126: N/A | BW126: N/A | BX126: N/A | BY126: N/A
B127: Open defecation | C127: =C160 -> 23.16881344 | D127: =D160 -> 9.88315978 | E127: 2.923745337 | F127: 2.426376116 | G127: 0.5223651335 | H127: 2.917807813 | I127: 3.575287273 | J127: 0.8600028102 | K127: 0.9941284533 | L127: 0 | M127: 29.40174591 | N127: 15.63377922 | O127: 8.518919561 | P127: 3.38586734 | Q127: 2.308575479 | R127: 1.405738494 | S127: 5.369345916 | T127: 5.873213176 | U127: 14.69960354 | V127: 0.4617055948 | W127: 16.82827651 | X127: 43.40087623 | Y127: 8.152510849 | BB127: Open defecation | BC127: N/A | BD127: N/A | BE127: N/A | BF127: N/A | BG127: N/A | BH127: N/A | BI127: N/A | BJ127: N/A | BK127: N/A | BL127: N/A | BM127: N/A | BN127: N/A | BO127: N/A | BP127: N/A | BQ127: N/A | BR127: N/A | BS127: N/A | BT127: N/A | BU127: N/A | BV127: N/A | BW127: N/A | BX127: N/A | BY127: N/A
A128: Shared among Improved Sanitation | B128: Yes | C128: N/A | D128: N/A | E128: N/A | F128: N/A | G128: N/A | H128: N/A | I128: N/A | J128: N/A | K128: N/A | L128: N/A | M128: N/A | N128: N/A | O128: N/A | P128: N/A | Q128: N/A | R128: N/A | S128: N/A | T128: N/A | U128: N/A | V128: N/A | W128: N/A | X128: N/A | Y128: N/A | BA128: Shared among improved sanitation facilities | BB128: Yes | BC128: N/A | BD128: N/A | BE128: N/A | BF128: N/A | BG128: N/A | BH128: N/A | BI128: N/A | BJ128: N/A | BK128: N/A | BL128: N/A | BM128: N/A | BN128: N/A | BO128: N/A | BP128: N/A | BQ128: N/A | BR128: N/A | BS128: N/A | BT128: N/A | BU128: N/A | BV128: N/A | BW128: N/A | BX128: N/A | BY128: N/A
B129: No | C129: N/A | D129: N/A | E129: N/A | F129: N/A | G129: N/A | H129: N/A | I129: N/A | J129: N/A | K129: N/A | L129: N/A | M129: N/A | N129: N/A | O129: N/A | P129: N/A | Q129: N/A | R129: N/A | S129: N/A | T129: N/A | U129: N/A | V129: N/A | W129: N/A | X129: N/A | Y129: N/A | BB129: No | BC129: N/A | BD129: N/A | BE129: N/A | BF129: N/A | BG129: N/A | BH129: N/A | BI129: N/A | BJ129: N/A | BK129: N/A | BL129: N/A | BM129: N/A | BN129: N/A | BO129: N/A | BP129: N/A | BQ129: N/A | BR129: N/A | BS129: N/A | BT129: N/A | BU129: N/A | BV129: N/A | BW129: N/A | BX129: N/A | BY129: N/A
A130: Manually calculated ratios | B130: Improved latrines
B131: Other
B132: Other
C133: NATIONAL wealth index quintile | H133: URBAN wealth index quintile | M133: RURAL wealth index quintile | R133: SUB-REGIONS: | BA133: Raw numbers of respondents: | BB133: Use of sanitation facilities | BC133: NATIONAL wealth index quintile | BH133: URBAN wealth index quintile | BM133: RURAL wealth index quintile | BR133: SUB-REGIONS:
A134: Percentage based on weighted population | C134: Poorest | D134: Poor | E134: Middle | F134: Rich | G134: Richest | H134: Poorest | I134: Poor | J134: Middle | K134: Rich | L134: Richest | M134: Poorest | N134: Poor | O134: Middle | P134: Rich | Q134: Richest | R134: banjul | S134: basse | T134: brikama | U134: janjabureh | V134: kanifing | W134: kerewan | X134: kuntaur | Y134: mansakonko | BA134: Sanitation data, raw numbers (weighted) | BC134: Poorest | BD134: Poor | BE134: Middle | BF134: Rich | BG134: Richest | BH134: Poorest | BI134: Poor | BJ134: Middle | BK134: Rich | BL134: Richest | BM134: Poorest | BN134: Poor | BO134: Middle | BP134: Rich | BQ134: Richest | BR134: banjul | BS134: basse | BT134: brikama | BU134: janjabureh | BV134: kanifing | BW134: kerewan | BX134: kuntaur | BY134: mansakonko
A135: Sanitation type | B135: Sewer connection | C135: N/A | D135: N/A | E135: N/A | F135: N/A | G135: N/A | H135: N/A | I135: N/A | J135: N/A | K135: N/A | L135: N/A | M135: N/A | N135: N/A | O135: N/A | P135: N/A | Q135: N/A | R135: N/A | S135: N/A | T135: N/A | U135: N/A | V135: N/A | W135: N/A | X135: N/A | Y135: N/A | BA135: Sanitation type | BB135: Sewer connection | BC135: N/A | BD135: N/A | BE135: N/A | BF135: N/A | BG135: N/A | BH135: N/A | BI135: N/A | BJ135: N/A | BK135: N/A | BL135: N/A | BM135: N/A | BN135: N/A | BO135: N/A | BP135: N/A | BQ135: N/A | BR135: N/A | BS135: N/A | BT135: N/A | BU135: N/A | BV135: N/A | BW135: N/A | BX135: N/A | BY135: N/A
B136: Septic tank connection | C136: N/A | D136: N/A | E136: N/A | F136: N/A | G136: N/A | H136: N/A | I136: N/A | J136: N/A | K136: N/A | L136: N/A | M136: N/A | N136: N/A | O136: N/A | P136: N/A | Q136: N/A | R136: N/A | S136: N/A | T136: N/A | U136: N/A | V136: N/A | W136: N/A | X136: N/A | Y136: N/A | BB136: Septic tank connection | BC136: N/A | BD136: N/A | BE136: N/A | BF136: N/A | BG136: N/A | BH136: N/A | BI136: N/A | BJ136: N/A | BK136: N/A | BL136: N/A | BM136: N/A | BN136: N/A | BO136: N/A | BP136: N/A | BQ136: N/A | BR136: N/A | BS136: N/A | BT136: N/A | BU136: N/A | BV136: N/A | BW136: N/A | BX136: N/A | BY136: N/A
B137: Improved latrines | C137: N/A | D137: N/A | E137: N/A | F137: N/A | G137: N/A | H137: N/A | I137: N/A | J137: N/A | K137: N/A | L137: N/A | M137: N/A | N137: N/A | O137: N/A | P137: N/A | Q137: N/A | R137: N/A | S137: N/A | T137: N/A | U137: N/A | V137: N/A | W137: N/A | X137: N/A | Y137: N/A | BB137: Improved latrines | BC137: N/A | BD137: N/A | BE137: N/A | BF137: N/A | BG137: N/A | BH137: N/A | BI137: N/A | BJ137: N/A | BK137: N/A | BL137: N/A | BM137: N/A | BN137: N/A | BO137: N/A | BP137: N/A | BQ137: N/A | BR137: N/A | BS137: N/A | BT137: N/A | BU137: N/A | BV137: N/A | BW137: N/A | BX137: N/A | BY137: N/A
B138: Unimproved facilities | C138: N/A | D138: N/A | E138: N/A | F138: N/A | G138: N/A | H138: N/A | I138: N/A | J138: N/A | K138: N/A | L138: N/A | M138: N/A | N138: N/A | O138: N/A | P138: N/A | Q138: N/A | R138: N/A | S138: N/A | T138: N/A | U138: N/A | V138: N/A | W138: N/A | X138: N/A | Y138: N/A | BB138: Unimproved facilities | BC138: N/A | BD138: N/A | BE138: N/A | BF138: N/A | BG138: N/A | BH138: N/A | BI138: N/A | BJ138: N/A | BK138: N/A | BL138: N/A | BM138: N/A | BN138: N/A | BO138: N/A | BP138: N/A | BQ138: N/A | BR138: N/A | BS138: N/A | BT138: N/A | BU138: N/A | BV138: N/A | BW138: N/A | BX138: N/A | BY138: N/A
B139: Open defecation | C139: =C160 -> 23.16881344 | D139: =D160 -> 9.88315978 | E139: 2.923745337 | F139: 2.426376116 | G139: 0.5223651335 | H139: 2.917807813 | I139: 3.575287273 | J139: 0.8600028102 | K139: 0.9941284533 | L139: 0 | M139: 29.40174591 | N139: 15.63377922 | O139: 8.518919561 | P139: 3.38586734 | Q139: 2.308575479 | R139: 1.405738494 | S139: 5.369345916 | T139: 5.873213176 | U139: 14.69960354 | V139: 0.4617055948 | W139: 16.82827651 | X139: 43.40087623 | Y139: 8.152510849 | BB139: Open defecation | BC139: N/A | BD139: N/A | BE139: N/A | BF139: N/A | BG139: N/A | BH139: N/A | BI139: N/A | BJ139: N/A | BK139: N/A | BL139: N/A | BM139: N/A | BN139: N/A | BO139: N/A | BP139: N/A | BQ139: N/A | BR139: N/A | BS139: N/A | BT139: N/A | BU139: N/A | BV139: N/A | BW139: N/A | BX139: N/A | BY139: N/A
A140: Septic tank emptying practices | B140: Not emptied/treated and disposed in situ | C140: N/A | D140: N/A | E140: N/A | F140: N/A | G140: N/A | H140: N/A | I140: N/A | J140: N/A | K140: N/A | L140: N/A | M140: N/A | N140: N/A | O140: N/A | P140: N/A | Q140: N/A | R140: N/A | S140: N/A | T140: N/A | U140: N/A | V140: N/A | W140: N/A | X140: N/A | Y140: N/A | BA140: Septic tank emptying practices | BB140: Not emptied/treated and disposed in situ | BC140: N/A | BD140: N/A | BE140: N/A | BF140: N/A | BG140: N/A | BH140: N/A | BI140: N/A | BJ140: N/A | BK140: N/A | BL140: N/A | BM140: N/A | BN140: N/A | BO140: N/A | BP140: N/A | BQ140: N/A | BR140: N/A | BS140: N/A | BT140: N/A | BU140: N/A | BV140: N/A | BW140: N/A | BX140: N/A | BY140: N/A
B141: Emptied and buried on site | C141: N/A | D141: N/A | E141: N/A | F141: N/A | G141: N/A | H141: N/A | I141: N/A | J141: N/A | K141: N/A | L141: N/A | M141: N/A | N141: N/A | O141: N/A | P141: N/A | Q141: N/A | R141: N/A | S141: N/A | T141: N/A | U141: N/A | V141: N/A | W141: N/A | X141: N/A | Y141: N/A | BB141: Emptied and buried on site | BC141: N/A | BD141: N/A | BE141: N/A | BF141: N/A | BG141: N/A | BH141: N/A | BI141: N/A | BJ141: N/A | BK141: N/A | BL141: N/A | BM141: N/A | BN141: N/A | BO141: N/A | BP141: N/A | BQ141: N/A | BR141: N/A | BS141: N/A | BT141: N/A | BU141: N/A | BV141: N/A | BW141: N/A | BX141: N/A | BY141: N/A
B142: Emptied and discharged locally | C142: N/A | D142: N/A | E142: N/A | F142: N/A | G142: N/A | H142: N/A | I142: N/A | J142: N/A | K142: N/A | L142: N/A | M142: N/A | N142: N/A | O142: N/A | P142: N/A | Q142: N/A | R142: N/A | S142: N/A | T142: N/A | U142: N/A | V142: N/A | W142: N/A | X142: N/A | Y142: N/A | BB142: Emptied and discharged locally | BC142: N/A | BD142: N/A | BE142: N/A | BF142: N/A | BG142: N/A | BH142: N/A | BI142: N/A | BJ142: N/A | BK142: N/A | BL142: N/A | BM142: N/A | BN142: N/A | BO142: N/A | BP142: N/A | BQ142: N/A | BR142: N/A | BS142: N/A | BT142: N/A | BU142: N/A | BV142: N/A | BW142: N/A | BX142: N/A | BY142: N/A
B143: Emptied and removed offsite | C143: N/A | D143: N/A | E143: N/A | F143: N/A | G143: N/A | H143: N/A | I143: N/A | J143: N/A | K143: N/A | L143: N/A | M143: N/A | N143: N/A | O143: N/A | P143: N/A | Q143: N/A | R143: N/A | S143: N/A | T143: N/A | U143: N/A | V143: N/A | W143: N/A | X143: N/A | Y143: N/A | BB143: Emptied and removed offsite | BC143: N/A | BD143: N/A | BE143: N/A | BF143: N/A | BG143: N/A | BH143: N/A | BI143: N/A | BJ143: N/A | BK143: N/A | BL143: N/A | BM143: N/A | BN143: N/A | BO143: N/A | BP143: N/A | BQ143: N/A | BR143: N/A | BS143: N/A | BT143: N/A | BU143: N/A | BV143: N/A | BW143: N/A | BX143: N/A | BY143: N/A
A144: Latrine emptying practices | B144: Not emptied/treated and disposed in situ | C144: N/A | D144: N/A | E144: N/A | F144: N/A | G144: N/A | H144: N/A | I144: N/A | J144: N/A | K144: N/A | L144: N/A | M144: N/A | N144: N/A | O144: N/A | P144: N/A | Q144: N/A | R144: N/A | S144: N/A | T144: N/A | U144: N/A | V144: N/A | W144: N/A | X144: N/A | Y144: N/A | BA144: Latrine emptying practices | BB144: Not emptied/treated and disposed in situ | BC144: N/A | BD144: N/A | BE144: N/A | BF144: N/A | BG144: N/A | BH144: N/A | BI144: N/A | BJ144: N/A | BK144: N/A | BL144: N/A | BM144: N/A | BN144: N/A | BO144: N/A | BP144: N/A | BQ144: N/A | BR144: N/A | BS144: N/A | BT144: N/A | BU144: N/A | BV144: N/A | BW144: N/A | BX144: N/A | BY144: N/A
B145: Emptied and buried on site | C145: N/A | D145: N/A | E145: N/A | F145: N/A | G145: N/A | H145: N/A | I145: N/A | J145: N/A | K145: N/A | L145: N/A | M145: N/A | N145: N/A | O145: N/A | P145: N/A | Q145: N/A | R145: N/A | S145: N/A | T145: N/A | U145: N/A | V145: N/A | W145: N/A | X145: N/A | Y145: N/A | BB145: Emptied and buried on site | BC145: N/A | BD145: N/A | BE145: N/A | BF145: N/A | BG145: N/A | BH145: N/A | BI145: N/A | BJ145: N/A | BK145: N/A | BL145: N/A | BM145: N/A | BN145: N/A | BO145: N/A | BP145: N/A | BQ145: N/A | BR145: N/A | BS145: N/A | BT145: N/A | BU145: N/A | BV145: N/A | BW145: N/A | BX145: N/A | BY145: N/A
B146: Emptied and discharged locally | C146: N/A | D146: N/A | E146: N/A | F146: N/A | G146: N/A | H146: N/A | I146: N/A | J146: N/A | K146: N/A | L146: N/A | M146: N/A | N146: N/A | O146: N/A | P146: N/A | Q146: N/A | R146: N/A | S146: N/A | T146: N/A | U146: N/A | V146: N/A | W146: N/A | X146: N/A | Y146: N/A | BB146: Emptied and discharged locally | BC146: N/A | BD146: N/A | BE146: N/A | BF146: N/A | BG146: N/A | BH146: N/A | BI146: N/A | BJ146: N/A | BK146: N/A | BL146: N/A | BM146: N/A | BN146: N/A | BO146: N/A | BP146: N/A | BQ146: N/A | BR146: N/A | BS146: N/A | BT146: N/A | BU146: N/A | BV146: N/A | BW146: N/A | BX146: N/A | BY146: N/A
B147: Emptied and removed offsite | C147: N/A | D147: N/A | E147: N/A | F147: N/A | G147: N/A | H147: N/A | I147: N/A | J147: N/A | K147: N/A | L147: N/A | M147: N/A | N147: N/A | O147: N/A | P147: N/A | Q147: N/A | R147: N/A | S147: N/A | T147: N/A | U147: N/A | V147: N/A | W147: N/A | X147: N/A | Y147: N/A | BB147: Emptied and removed offsite | BC147: N/A | BD147: N/A | BE147: N/A | BF147: N/A | BG147: N/A | BH147: N/A | BI147: N/A | BJ147: N/A | BK147: N/A | BL147: N/A | BM147: N/A | BN147: N/A | BO147: N/A | BP147: N/A | BQ147: N/A | BR147: N/A | BS147: N/A | BT147: N/A | BU147: N/A | BV147: N/A | BW147: N/A | BX147: N/A | BY147: N/A
A148: Shared among improved sanitation facilities | B148: Yes | C148: N/A | D148: N/A | E148: N/A | F148: N/A | G148: N/A | H148: N/A | I148: N/A | J148: N/A | K148: N/A | L148: N/A | M148: N/A | N148: N/A | O148: N/A | P148: N/A | Q148: N/A | R148: N/A | S148: N/A | T148: N/A | U148: N/A | V148: N/A | W148: N/A | X148: N/A | Y148: N/A | BA148: Shared among improved sanitation facilities | BB148: Yes | BC148: N/A | BD148: N/A | BE148: N/A | BF148: N/A | BG148: N/A | BH148: N/A | BI148: N/A | BJ148: N/A | BK148: N/A | BL148: N/A | BM148: N/A | BN148: N/A | BO148: N/A | BP148: N/A | BQ148: N/A | BR148: N/A | BS148: N/A | BT148: N/A | BU148: N/A | BV148: N/A | BW148: N/A | BX148: N/A | BY148: N/A
B149: No | C149: N/A | D149: N/A | E149: N/A | F149: N/A | G149: N/A | H149: N/A | I149: N/A | J149: N/A | K149: N/A | L149: N/A | M149: N/A | N149: N/A | O149: N/A | P149: N/A | Q149: N/A | R149: N/A | S149: N/A | T149: N/A | U149: N/A | V149: N/A | W149: N/A | X149: N/A | Y149: N/A | BB149: No | BC149: N/A | BD149: N/A | BE149: N/A | BF149: N/A | BG149: N/A | BH149: N/A | BI149: N/A | BJ149: N/A | BK149: N/A | BL149: N/A | BM149: N/A | BN149: N/A | BO149: N/A | BP149: N/A | BQ149: N/A | BR149: N/A | BS149: N/A | BT149: N/A | BU149: N/A | BV149: N/A | BW149: N/A | BX149: N/A | BY149: N/A
B150: DK/missing | C150: N/A | D150: N/A | E150: N/A | F150: N/A | G150: N/A | H150: N/A | I150: N/A | J150: N/A | K150: N/A | L150: N/A | M150: N/A | N150: N/A | O150: N/A | P150: N/A | Q150: N/A | R150: N/A | S150: N/A | T150: N/A | U150: N/A | V150: N/A | W150: N/A | X150: N/A | Y150: N/A | BB150: DK/missing | BC150: N/A | BD150: N/A | BE150: N/A | BF150: N/A | BG150: N/A | BH150: N/A | BI150: N/A | BJ150: N/A | BK150: N/A | BL150: N/A | BM150: N/A | BN150: N/A | BO150: N/A | BP150: N/A | BQ150: N/A | BR150: N/A | BS150: N/A | BT150: N/A | BU150: N/A | BV150: N/A | BW150: N/A | BX150: N/A | BY150: N/A
A151: Shared among all sanitation facilities | B151: Yes | C151: N/A | D151: N/A | E151: N/A | F151: N/A | G151: N/A | H151: N/A | I151: N/A | J151: N/A | K151: N/A | L151: N/A | M151: N/A | N151: N/A | O151: N/A | P151: N/A | Q151: N/A | R151: N/A | S151: N/A | T151: N/A | U151: N/A | V151: N/A | W151: N/A | X151: N/A | Y151: N/A | BA151: Shared among all sanitation facilities | BB151: Yes | BC151: N/A | BD151: N/A | BE151: N/A | BF151: N/A | BG151: N/A | BH151: N/A | BI151: N/A | BJ151: N/A | BK151: N/A | BL151: N/A | BM151: N/A | BN151: N/A | BO151: N/A | BP151: N/A | BQ151: N/A | BR151: N/A | BS151: N/A | BT151: N/A | BU151: N/A | BV151: N/A | BW151: N/A | BX151: N/A | BY151: N/A
B152: No | C152: N/A | D152: N/A | E152: N/A | F152: N/A | G152: N/A | H152: N/A | I152: N/A | J152: N/A | K152: N/A | L152: N/A | M152: N/A | N152: N/A | O152: N/A | P152: N/A | Q152: N/A | R152: N/A | S152: N/A | T152: N/A | U152: N/A | V152: N/A | W152: N/A | X152: N/A | Y152: N/A | BB152: No | BC152: N/A | BD152: N/A | BE152: N/A | BF152: N/A | BG152: N/A | BH152: N/A | BI152: N/A | BJ152: N/A | BK152: N/A | BL152: N/A | BM152: N/A | BN152: N/A | BO152: N/A | BP152: N/A | BQ152: N/A | BR152: N/A | BS152: N/A | BT152: N/A | BU152: N/A | BV152: N/A | BW152: N/A | BX152: N/A | BY152: N/A
A153: type of toilet facility | B153: flush to sewage system/septic tank | C153: 0.06079867202 | D153: 0.1931121612 | E153: 0.8087298995 | F153: 5.721976412 | G153: 33.07313089 | H153: 0.1576190684 | I153: 4.951215055 | J153: 10.71729749 | K153: 35.79772286 | L153: 44.37128943 | M153: 0.1023911263 | N153: 0 | O153: 0.2922069724 | P153: 0.5773111658 | Q153: 2.08842289 | R153: 61.12073946 | S153: 0.7159127888 | T153: 1.180857676 | U153: 2.012808783 | V153: 24.60619229 | W153: 0.6568658117 | X153: 0.2464403067 | Y153: 0.557966522 | BA153: type of toilet facility | BB153: flush to sewage system/septic tank | BC153: 3.628566116 | BD153: 11.52075011 | BE153: 48.24447667 | BF153: 341.0991783 | BG153: 1969.307623 | BH153: 3.726824082 | BI153: 117.1193289 | BJ153: 253.2844486 | BK153: 844.7804489 | BL153: 1044.694214 | BM153: 3.628566116 | BN153: 0 | BO153: 10.56518412 | BP153: 20.77553558 | BQ153: 75.22604468 | BR153: 336.9962748 | BS153: 38.73900843 | BT153: 98.68379402 | BU153: 26.60948485 | BV153: 1833.726871 | BW153: 30.79145908 | BX153: 2.447244018 | BY153: 5.806457877
B154: pour flush latrine | C154: 0.4182167395 | D154: 0.3779327209 | E154: 4.123969756 | F154: 8.059801306 | G154: 14.27010572 | H154: 1.40126521 | I154: 5.731688485 | J154: 16.28692208 | K154: 19.06971362 | L154: 10.78669283 | M154: 0.5585334384 | N154: 0.1416490592 | O154: 0.3816866731 | P154: 4.63601054 | Q154: 4.455076763 | R154: 28.51916041 | S154: 3.058900098 | T154: 2.299564947 | U154: 1.341872522 | V154: 13.38946225 | W154: 1.157335002 | X154: 3.368017525 | Y154: 0.5269683819 | BB154: pour flush latrine | BC154: 24.95987231 | BD154: 22.54683708 | BE154: 246.013858 | BF154: 480.4618902 | BG154: 849.6996574 | BH154: 33.13221543 | BI154: 135.5811657 | BJ154: 384.9127156 | BK154: 450.0208377 | BL154: 253.9659254 | BM154: 19.79346827 | BN154: 5.166404039 | BO154: 13.80045775 | BP154: 166.8348157 | BQ154: 160.4741096 | BR154: 157.2436934 | BS154: 165.5212178 | BT154: 192.1737041 | BU154: 17.73965657 | BV154: 997.8226795 | BW154: 54.25161839 | BX154: 33.44566825 | BY154: 5.483876884
B155: improved pit latrine | C155: 2.00800818 | D155: 6.411960412 | E155: 9.499328372 | F155: 16.6213431 | G155: 18.93092303 | H155: 9.874955953 | I155: 20.15174453 | J155: 24.6717158 | K155: 16.18802955 | L155: 19.2385927 | M155: 1.417319615 | N155: 3.59290769 | O155: 4.108023649 | P155: 8.890469613 | Q155: 11.358529 | R155: 4.968226459 | S155: 4.03514481 | T155: 3.977625855 | U155: 8.539188777 | V155: 23.57414449 | W155: 14.60744448 | X155: 0.8762322015 | Y155: 4.401735896 | BB155: improved pit latrine | BC155: 119.8412762 | BD155: 382.5268858 | BE155: 566.6788458 | BF155: 990.8335977 | BG155: 1127.22352 | BH155: 233.4883972 | BI155: 476.6827474 | BJ155: 583.072546 | BK155: 382.0167814 | BL155: 452.9606133 | BM155: 50.22737923 | BN155: 131.0450836 | BO155: 148.5317953 | BP155: 319.9388454 | BQ155: 409.1399371 | BR155: 27.3928919 | BS155: 218.3471384 | BT155: 332.4085693 | BU155: 112.8887236 | BV155: 1756.81559 | BW155: 684.7433996 | BX155: 8.701312065 | BY155: 45.80650103
B156: traditional pit latrine | C156: 68.82554389 | D156: 80.01449562 | E156: 75.40473403 | F156: 62.51549987 | G156: 32.42344969 | H156: 78.6530678 | I156: 61.48080495 | J156: 45.66148489 | K156: 27.60244724 | L156: 24.64086226 | M156: 63.63923868 | N156: 76.22693649 | O156: 82.74859825 | P156: 75.14974462 | Q156: 74.40792934 | R156: 2.503369921 | S156: 71.98177677 | T156: 84.52454941 | U156: 71.94266545 | V156: 35.76860402 | W156: 65.81169847 | X156: 47.28915663 | Y156: 85.80285183 | BB156: traditional pit latrine | BC156: 4107.623212 | BD156: 4773.531628 | BE156: 4498.240925 | BF156: 3726.681849 | BG156: 1930.622984 | BH156: 1859.712471 | BI156: 1454.307788 | BJ156: 1079.128767 | BK156: 651.3824317 | BL156: 580.1536659 | BM156: 2255.265602 | BN156: 2780.245451 | BO156: 2991.900462 | BP156: 2704.392858 | BQ156: 2680.211103 | BR156: 13.80261995 | BS156: 3895.031211 | BT156: 7063.682098 | BU156: 951.0874964 | BV156: 2665.583101 | BW156: 3085.010948 | BX156: 469.5989355 | BY156: 892.9041891
B157: open pit | C157: 5.170513261 | D157: 2.684309978 | E157: 5.707267711 | F157: 4.306346318 | G157: 0.732664086 | H157: 3.49350897 | I157: 3.419126479 | J157: 1.586933522 | K157: 0.2984677131 | L157: 0.9309960787 | M157: 4.880771224 | N157: 3.8351176 | O157: 3.232765359 | P157: 7.121437008 | Q157: 5.373917605 | R157: 0 | S157: 14.83891962 | T157: 1.149782474 | U157: 1.463860933 | V157: 1.303639326 | W157: 0.938379731 | X157: 4.709748083 | Y157: 0.3099814011 | BB157: open pit | BC157: 308.5848522 | BD157: 160.1414654 | BE157: 340.4648995 | BF157: 256.7104589 | BG157: 43.6257751 | BH157: 82.60227326 | BI157: 80.87828827 | BJ157: 37.50437856 | BK157: 7.043456078 | BL157: 21.91971946 | BM157: 172.9661712 | BN157: 139.8792704 | BO157: 116.8855108 | BP157: 256.2771634 | BQ157: 193.5712196 | BR157: 0 | BS157: 802.9539928 | BT157: 96.08685207 | BU157: 19.35235262 | BV157: 97.15109253 | BW157: 43.98779869 | BX157: 46.76955235 | BY157: 3.225809932
B158: bucket | C158: 0 | D158: 0 | E158: 1.126753796 | F158: 0.02493512808 | G158: 0.0295302801 | H158: 2.842778311 | I158: 0.03141951182 | J158: 0.05840342149 | K158: 0.03599313804 | L158: 0 | M158: 0 | N158: 0 | O158: 0 | P158: 0 | Q158: 0.007548922786 | R158: 0.6162141344 | S158: 0 | T158: 0 | U158: 0 | V158: 0.8962520369 | W158: 0 | X158: 0.0273822563 | Y158: 0 | BB158: bucket | BC158: 0 | BD158: 0 | BE158: 67.21607211 | BF158: 1.486435995 | BG158: 1.758351997 | BH158: 67.21607211 | BI158: 0.7432179973 | BJ158: 1.380261995 | BK158: 0.8493919969 | BL158: 0 | BM158: 0 | BN158: 0 | BO158: 0 | BP158: 0 | BQ158: 0.271916002 | BR158: 3.397567987 | BS158: 0 | BT158: 0 | BU158: 0 | BV158: 66.79137611 | BW158: 0 | BX158: 0.271916002 | BY158: 0
B159: other | C159: 0.3481058175 | D159: 0.4350293256 | E159: 0.4054711038 | F159: 0.3237217493 | G159: 0.01783117347 | H159: 0.6589968749 | I159: 0.6587137167 | J159: 0.1572399809 | K159: 0.01349742676 | L159: 0.03156669238 | M159: 0 | N159: 0.5696099352 | O159: 0.7177995326 | P159: 0.2391597157 | Q159: 0 | R159: 0.8665511265 | S159: 0 | T159: 0.9944064636 | U159: 0 | V159: 0 | W159: 0 | X159: 0.08214676889 | Y159: 0.2479851209 | BB159: other | BC159: 20.77553558 | BD159: 25.95312548 | BE159: 24.18822554 | BF159: 19.29774167 | BG159: 1.061739996 | BH159: 15.58165169 | BI159: 15.58165169 | BJ159: 3.716089986 | BK159: 0.3185219988 | BL159: 0.7432179973 | BM159: 0 | BN159: 20.77553558 | BO159: 25.95312548 | BP159: 8.60657385 | BQ159: 0 | BR159: 4.777829982 | BS159: 0 | BT159: 83.10214233 | BU159: 0 | BV159: 0 | BW159: 0 | BX159: 0.8157480061 | BY159: 2.580647945
B160: no facilities/bush/field | C160: 23.16881344 | D160: 9.88315978 | E160: 2.923745337 | F160: 2.426376116 | G160: 0.5223651335 | H160: 2.917807813 | I160: 3.575287273 | J160: 0.8600028102 | K160: 0.9941284533 | L160: 0 | M160: 29.40174591 | N160: 15.63377922 | O160: 8.518919561 | P160: 3.38586734 | Q160: 2.308575479 | R160: 1.405738494 | S160: 5.369345916 | T160: 5.873213176 | U160: 14.69960354 | V160: 0.4617055948 | W160: 16.82827651 | X160: 43.40087623 | Y160: 8.152510849 | BB160: no facilities/bush/field | BC160: 1382.753415 | BD160: 589.6128624 | BE160: 174.4149237 | BF160: 144.6414385 | BG160: 31.10372716 | BH160: 68.99010718 | BI160: 84.5722194 | BJ160: 20.32465161 | BK160: 23.4601593 | BL160: 0 | BM160: 1041.947509 | BN160: 570.2150129 | BO160: 308.0143943 | BP160: 121.8462617 | BQ160: 83.15605184 | BR160: 7.750701971 | BS160: 290.5425632 | BT160: 490.8220282 | BU160: 194.3298742 | BV160: 34.4076786 | BW160: 788.8478565 | BX160: 430.9868632 | BY160: 84.83880121
BB161: Total | BC161: 5968.16673 | BD161: 5965.833554 | BE161: 5965.462227 | BF161: 5961.21259 | BG161: 5954.40338 | BH161: 2364.450012 | BI161: 2365.466407 | BJ161: 2363.323859 | BK161: 2359.872029 | BL161: 2354.437356 | BM161: 3543.828696 | BN161: 3647.326758 | BO161: 3615.65093 | BP161: 3598.672053 | BQ161: 3602.050382 | BR161: 551.36158 | BS161: 5411.135132 | BT161: 8356.959188 | BU161: 1322.007588 | BV161: 7452.298389 | BW161: 4687.63308 | BX161: 993.0372394 | BY161: 1040.646284
A208: =A1026 -> Gambia
A209: =A1034 -> 2000
A210: Access to hygiene facilities
A211: by wealth quintile and sub-national region
A212: Notes:
A213: WHO/UNICEF JMP customised wealth index excludes water,
A214: sanitation and hygiene assets.
A215: Survey used for analysis: | B215: =A1025 -> MICS00
A220: Access to handwashing | C220: NATIONAL wealth index quintile | H220: URBAN wealth index quintile | M220: RURAL wealth index quintile | R220: SUB-REGIONS: | BA220: Raw numbers of respondents: | BB220: Access to handwashing | BC220: NATIONAL wealth index quintile | BH220: URBAN wealth index quintile | BM220: RURAL wealth index quintile | BR220: SUB-REGIONS:
A221: Weighted percentage (used in graphs) | C221: Poorest | D221: Poor | E221: Middle | F221: Rich | G221: Richest | H221: Poorest | I221: Poor | J221: Middle | K221: Rich | L221: Richest | M221: Poorest | N221: Poor | O221: Middle | P221: Rich | Q221: Richest | R221: banjul | S221: basse | T221: brikama | U221: janjabureh | V221: kanifing | W221: kerewan | X221: kuntaur | Y221: mansakonko | BA221: Hygiene data, raw numbers (weighted) | BC221: Poorest | BD221: Poor | BE221: Middle | BF221: Rich | BG221: Richest | BH221: Poorest | BI221: Poor | BJ221: Middle | BK221: Rich | BL221: Richest | BM221: Poorest | BN221: Poor | BO221: Middle | BP221: Rich | BQ221: Richest | BR221: banjul | BS221: basse | BT221: brikama | BU221: janjabureh | BV221: kanifing | BW221: kerewan | BX221: kuntaur | BY221: mansakonko
A222: Hygiene ladder | B222: Basic | C222: N/A | D222: N/A | E222: N/A | F222: N/A | G222: N/A | H222: N/A | I222: N/A | J222: N/A | K222: N/A | L222: N/A | M222: N/A | N222: N/A | O222: N/A | P222: N/A | Q222: N/A | R222: N/A | S222: N/A | T222: N/A | U222: N/A | V222: N/A | W222: N/A | X222: N/A | Y222: N/A | BA222: Hygiene ladder | BB222: Basic | BC222: N/A | BD222: N/A | BE222: N/A | BF222: N/A | BG222: N/A | BH222: N/A | BI222: N/A | BJ222: N/A | BK222: N/A | BL222: N/A | BM222: N/A | BN222: N/A | BO222: N/A | BP222: N/A | BQ222: N/A | BR222: N/A | BS222: N/A | BT222: N/A | BU222: N/A | BV222: N/A | BW222: N/A | BX222: N/A | BY222: N/A
B223: Limited | C223: N/A | D223: N/A | E223: N/A | F223: N/A | G223: N/A | H223: N/A | I223: N/A | J223: N/A | K223: N/A | L223: N/A | M223: N/A | N223: N/A | O223: N/A | P223: N/A | Q223: N/A | R223: N/A | S223: N/A | T223: N/A | U223: N/A | V223: N/A | W223: N/A | X223: N/A | Y223: N/A | BB223: Limited | BC223: N/A | BD223: N/A | BE223: N/A | BF223: N/A | BG223: N/A | BH223: N/A | BI223: N/A | BJ223: N/A | BK223: N/A | BL223: N/A | BM223: N/A | BN223: N/A | BO223: N/A | BP223: N/A | BQ223: N/A | BR223: N/A | BS223: N/A | BT223: N/A | BU223: N/A | BV223: N/A | BW223: N/A | BX223: N/A | BY223: N/A
B224: No facility | C224: N/A | D224: N/A | E224: N/A | F224: N/A | G224: N/A | H224: N/A | I224: N/A | J224: N/A | K224: N/A | L224: N/A | M224: N/A | N224: N/A | O224: N/A | P224: N/A | Q224: N/A | R224: N/A | S224: N/A | T224: N/A | U224: N/A | V224: N/A | W224: N/A | X224: N/A | Y224: N/A | BB224: No facility | BC224: N/A | BD224: N/A | BE224: N/A | BF224: N/A | BG224: N/A | BH224: N/A | BI224: N/A | BJ224: N/A | BK224: N/A | BL224: N/A | BM224: N/A | BN224: N/A | BO224: N/A | BP224: N/A | BQ224: N/A | BR224: N/A | BS224: N/A | BT224: N/A | BU224: N/A | BV224: N/A | BW224: N/A | BX224: N/A | BY224: N/A
BA225: Observed handwashing place | BB225: Fixed | BC225: N/A | BD225: N/A | BE225: N/A | BF225: N/A | BG225: N/A | BH225: N/A | BI225: N/A | BJ225: N/A | BK225: N/A | BL225: N/A | BM225: N/A | BN225: N/A | BO225: N/A | BP225: N/A | BQ225: N/A | BR225: N/A | BS225: N/A | BT225: N/A | BU225: N/A | BV225: N/A | BW225: N/A | BX225: N/A | BY225: N/A
BB226: Mobile | BC226: N/A | BD226: N/A | BE226: N/A | BF226: N/A | BG226: N/A | BH226: N/A | BI226: N/A | BJ226: N/A | BK226: N/A | BL226: N/A | BM226: N/A | BN226: N/A | BO226: N/A | BP226: N/A | BQ226: N/A | BR226: N/A | BS226: N/A | BT226: N/A | BU226: N/A | BV226: N/A | BW226: N/A | BX226: N/A | BY226: N/A
BA227: Water / Soap | BB227: Water and soap | BC227: N/A | BD227: N/A | BE227: N/A | BF227: N/A | BG227: N/A | BH227: N/A | BI227: N/A | BJ227: N/A | BK227: N/A | BL227: N/A | BM227: N/A | BN227: N/A | BO227: N/A | BP227: N/A | BQ227: N/A | BR227: N/A | BS227: N/A | BT227: N/A | BU227: N/A | BV227: N/A | BW227: N/A | BX227: N/A | BY227: N/A
BB228: Water only | BC228: N/A | BD228: N/A | BE228: N/A | BF228: N/A | BG228: N/A | BH228: N/A | BI228: N/A | BJ228: N/A | BK228: N/A | BL228: N/A | BM228: N/A | BN228: N/A | BO228: N/A | BP228: N/A | BQ228: N/A | BR228: N/A | BS228: N/A | BT228: N/A | BU228: N/A | BV228: N/A | BW228: N/A | BX228: N/A | BY228: N/A
BB229: Soap only | BC229: N/A | BD229: N/A | BE229: N/A | BF229: N/A | BG229: N/A | BH229: N/A | BI229: N/A | BJ229: N/A | BK229: N/A | BL229: N/A | BM229: N/A | BN229: N/A | BO229: N/A | BP229: N/A | BQ229: N/A | BR229: N/A | BS229: N/A | BT229: N/A | BU229: N/A | BV229: N/A | BW229: N/A | BX229: N/A | BY229: N/A
BB230: Neither | BC230: N/A | BD230: N/A | BE230: N/A | BF230: N/A | BG230: N/A | BH230: N/A | BI230: N/A | BJ230: N/A | BK230: N/A | BL230: N/A | BM230: N/A | BN230: N/A | BO230: N/A | BP230: N/A | BQ230: N/A | BR230: N/A | BS230: N/A | BT230: N/A | BU230: N/A | BV230: N/A | BW230: N/A | BX230: N/A | BY230: N/A
BA259: Raw numbers of respondents: | BB259: Menstrual health and hygiene | BC259: NATIONAL wealth index quintile | BH259: URBAN wealth index quintile | BM259: RURAL wealth index quintile | BR259: SUB-REGIONS:
BA260: MHH data, raw numbers (weighted) | BC260: Poorest | BD260: Poor | BE260: Middle | BF260: Rich | BG260: Richest | BH260: Poorest | BI260: Poor | BJ260: Middle | BK260: Rich | BL260: Richest | BM260: Poorest | BN260: Poor | BO260: Middle | BP260: Rich | BQ260: Richest | BR260: banjul | BS260: basse | BT260: brikama | BU260: janjabureh | BV260: kanifing | BW260: kerewan | BX260: kuntaur | BY260: mansakonko
BA261: Private place to wash and change | BB261: Yes | BC261: N/A | BD261: N/A | BE261: N/A | BF261: N/A | BG261: N/A | BH261: N/A | BI261: N/A | BJ261: N/A | BK261: N/A | BL261: N/A | BM261: N/A | BN261: N/A | BO261: N/A | BP261: N/A | BQ261: N/A | BR261: N/A | BS261: N/A | BT261: N/A | BU261: N/A | BV261: N/A | BW261: N/A | BX261: N/A | BY261: N/A
BB262: No | BC262: N/A | BD262: N/A | BE262: N/A | BF262: N/A | BG262: N/A | BH262: N/A | BI262: N/A | BJ262: N/A | BK262: N/A | BL262: N/A | BM262: N/A | BN262: N/A | BO262: N/A | BP262: N/A | BQ262: N/A | BR262: N/A | BS262: N/A | BT262: N/A | BU262: N/A | BV262: N/A | BW262: N/A | BX262: N/A | BY262: N/A
BB263: DK/not sure/missing | BC263: N/A | BD263: N/A | BE263: N/A | BF263: N/A | BG263: N/A | BH263: N/A | BI263: N/A | BJ263: N/A | BK263: N/A | BL263: N/A | BM263: N/A | BN263: N/A | BO263: N/A | BP263: N/A | BQ263: N/A | BR263: N/A | BS263: N/A | BT263: N/A | BU263: N/A | BV263: N/A | BW263: N/A | BX263: N/A | BY263: N/A
BA264: Use of menstrual materials | BB264: Materials reusable | BC264: N/A | BD264: N/A | BE264: N/A | BF264: N/A | BG264: N/A | BH264: N/A | BI264: N/A | BJ264: N/A | BK264: N/A | BL264: N/A | BM264: N/A | BN264: N/A | BO264: N/A | BP264: N/A | BQ264: N/A | BR264: N/A | BS264: N/A | BT264: N/A | BU264: N/A | BV264: N/A | BW264: N/A | BX264: N/A | BY264: N/A
BB265: Materials not reusable | BC265: N/A | BD265: N/A | BE265: N/A | BF265: N/A | BG265: N/A | BH265: N/A | BI265: N/A | BJ265: N/A | BK265: N/A | BL265: N/A | BM265: N/A | BN265: N/A | BO265: N/A | BP265: N/A | BQ265: N/A | BR265: N/A | BS265: N/A | BT265: N/A | BU265: N/A | BV265: N/A | BW265: N/A | BX265: N/A | BY265: N/A
BB266: No materials used | BC266: N/A | BD266: N/A | BE266: N/A | BF266: N/A | BG266: N/A | BH266: N/A | BI266: N/A | BJ266: N/A | BK266: N/A | BL266: N/A | BM266: N/A | BN266: N/A | BO266: N/A | BP266: N/A | BQ266: N/A | BR266: N/A | BS266: N/A | BT266: N/A | BU266: N/A | BV266: N/A | BW266: N/A | BX266: N/A | BY266: N/A
BB267: DK/not sure/missing | BC267: N/A | BD267: N/A | BE267: N/A | BF267: N/A | BG267: N/A | BH267: N/A | BI267: N/A | BJ267: N/A | BK267: N/A | BL267: N/A | BM267: N/A | BN267: N/A | BO267: N/A | BP267: N/A | BQ267: N/A | BR267: N/A | BS267: N/A | BT267: N/A | BU267: N/A | BV267: N/A | BW267: N/A | BX267: N/A | BY267: N/A
BA268: Use of menstrual materials with private place to wash and change | BB268: Materials reusable | BC268: N/A | BD268: N/A | BE268: N/A | BF268: N/A | BG268: N/A | BH268: N/A | BI268: N/A | BJ268: N/A | BK268: N/A | BL268: N/A | BM268: N/A | BN268: N/A | BO268: N/A | BP268: N/A | BQ268: N/A | BR268: N/A | BS268: N/A | BT268: N/A | BU268: N/A | BV268: N/A | BW268: N/A | BX268: N/A | BY268: N/A
BB269: Materials not reusable | BC269: N/A | BD269: N/A | BE269: N/A | BF269: N/A | BG269: N/A | BH269: N/A | BI269: N/A | BJ269: N/A | BK269: N/A | BL269: N/A | BM269: N/A | BN269: N/A | BO269: N/A | BP269: N/A | BQ269: N/A | BR269: N/A | BS269: N/A | BT269: N/A | BU269: N/A | BV269: N/A | BW269: N/A | BX269: N/A | BY269: N/A
BB270: No materials used | BC270: N/A | BD270: N/A | BE270: N/A | BF270: N/A | BG270: N/A | BH270: N/A | BI270: N/A | BJ270: N/A | BK270: N/A | BL270: N/A | BM270: N/A | BN270: N/A | BO270: N/A | BP270: N/A | BQ270: N/A | BR270: N/A | BS270: N/A | BT270: N/A | BU270: N/A | BV270: N/A | BW270: N/A | BX270: N/A | BY270: N/A
BA271: Awareness of menstruation before menarche | BB271: Yes | BC271: N/A | BD271: N/A | BE271: N/A | BF271: N/A | BG271: N/A | BH271: N/A | BI271: N/A | BJ271: N/A | BK271: N/A | BL271: N/A | BM271: N/A | BN271: N/A | BO271: N/A | BP271: N/A | BQ271: N/A | BR271: N/A | BS271: N/A | BT271: N/A | BU271: N/A | BV271: N/A | BW271: N/A | BX271: N/A | BY271: N/A
BB272: No | BC272: N/A | BD272: N/A | BE272: N/A | BF272: N/A | BG272: N/A | BH272: N/A | BI272: N/A | BJ272: N/A | BK272: N/A | BL272: N/A | BM272: N/A | BN272: N/A | BO272: N/A | BP272: N/A | BQ272: N/A | BR272: N/A | BS272: N/A | BT272: N/A | BU272: N/A | BV272: N/A | BW272: N/A | BX272: N/A | BY272: N/A
BB273: DK/not sure/missing | BC273: N/A | BD273: N/A | BE273: N/A | BF273: N/A | BG273: N/A | BH273: N/A | BI273: N/A | BJ273: N/A | BK273: N/A | BL273: N/A | BM273: N/A | BN273: N/A | BO273: N/A | BP273: N/A | BQ273: N/A | BR273: N/A | BS273: N/A | BT273: N/A | BU273: N/A | BV273: N/A | BW273: N/A | BX273: N/A | BY273: N/A
BA274: Participation in (all) activities during menstruation | BB274: Yes | BC274: N/A | BD274: N/A | BE274: N/A | BF274: N/A | BG274: N/A | BH274: N/A | BI274: N/A | BJ274: N/A | BK274: N/A | BL274: N/A | BM274: N/A | BN274: N/A | BO274: N/A | BP274: N/A | BQ274: N/A | BR274: N/A | BS274: N/A | BT274: N/A | BU274: N/A | BV274: N/A | BW274: N/A | BX274: N/A | BY274: N/A
BB275: No | BC275: N/A | BD275: N/A | BE275: N/A | BF275: N/A | BG275: N/A | BH275: N/A | BI275: N/A | BJ275: N/A | BK275: N/A | BL275: N/A | BM275: N/A | BN275: N/A | BO275: N/A | BP275: N/A | BQ275: N/A | BR275: N/A | BS275: N/A | BT275: N/A | BU275: N/A | BV275: N/A | BW275: N/A | BX275: N/A | BY275: N/A
BB276: DK/not sure/missing/no such activity | BC276: N/A | BD276: N/A | BE276: N/A | BF276: N/A | BG276: N/A | BH276: N/A | BI276: N/A | BJ276: N/A | BK276: N/A | BL276: N/A | BM276: N/A | BN276: N/A | BO276: N/A | BP276: N/A | BQ276: N/A | BR276: N/A | BS276: N/A | BT276: N/A | BU276: N/A | BV276: N/A | BW276: N/A | BX276: N/A | BY276: N/A
BA277: Participation in specific activities during menstruation | BB277: Did not go to school (amongst those usually attending school) | BC277: N/A | BD277: N/A | BE277: N/A | BF277: N/A | BG277: N/A | BH277: N/A | BI277: N/A | BJ277: N/A | BK277: N/A | BL277: N/A | BM277: N/A | BN277: N/A | BO277: N/A | BP277: N/A | BQ277: N/A | BR277: N/A | BS277: N/A | BT277: N/A | BU277: N/A | BV277: N/A | BW277: N/A | BX277: N/A | BY277: N/A
BB278: Did not go to work (amongst those who usually work) | BC278: N/A | BD278: N/A | BE278: N/A | BF278: N/A | BG278: N/A | BH278: N/A | BI278: N/A | BJ278: N/A | BK278: N/A | BL278: N/A | BM278: N/A | BN278: N/A | BO278: N/A | BP278: N/A | BQ278: N/A | BR278: N/A | BS278: N/A | BT278: N/A | BU278: N/A | BV278: N/A | BW278: N/A | BX278: N/A | BY278: N/A
BB279: Did not participate in social activities | BC279: N/A | BD279: N/A | BE279: N/A | BF279: N/A | BG279: N/A | BH279: N/A | BI279: N/A | BJ279: N/A | BK279: N/A | BL279: N/A | BM279: N/A | BN279: N/A | BO279: N/A | BP279: N/A | BQ279: N/A | BR279: N/A | BS279: N/A | BT279: N/A | BU279: N/A | BV279: N/A | BW279: N/A | BX279: N/A | BY279: N/A
BB280: Did not cook food | BC280: N/A | BD280: N/A | BE280: N/A | BF280: N/A | BG280: N/A | BH280: N/A | BI280: N/A | BJ280: N/A | BK280: N/A | BL280: N/A | BM280: N/A | BN280: N/A | BO280: N/A | BP280: N/A | BQ280: N/A | BR280: N/A | BS280: N/A | BT280: N/A | BU280: N/A | BV280: N/A | BW280: N/A | BX280: N/A | BY280: N/A
BB281: Did not eat with others | BC281: N/A | BD281: N/A | BE281: N/A | BF281: N/A | BG281: N/A | BH281: N/A | BI281: N/A | BJ281: N/A | BK281: N/A | BL281: N/A | BM281: N/A | BN281: N/A | BO281: N/A | BP281: N/A | BQ281: N/A | BR281: N/A | BS281: N/A | BT281: N/A | BU281: N/A | BV281: N/A | BW281: N/A | BX281: N/A | BY281: N/A
BB282: Did not bathe in regular place | BC282: N/A | BD282: N/A | BE282: N/A | BF282: N/A | BG282: N/A | BH282: N/A | BI282: N/A | BJ282: N/A | BK282: N/A | BL282: N/A | BM282: N/A | BN282: N/A | BO282: N/A | BP282: N/A | BQ282: N/A | BR282: N/A | BS282: N/A | BT282: N/A | BU282: N/A | BV282: N/A | BW282: N/A | BX282: N/A | BY282: N/A
BB283: Did not participate in other activities | BC283: N/A | BD283: N/A | BE283: N/A | BF283: N/A | BG283: N/A | BH283: N/A | BI283: N/A | BJ283: N/A | BK283: N/A | BL283: N/A | BM283: N/A | BN283: N/A | BO283: N/A | BP283: N/A | BQ283: N/A | BR283: N/A | BS283: N/A | BT283: N/A | BU283: N/A | BV283: N/A | BW283: N/A | BX283: N/A | BY283: N/A
BB284: DK/not sure/missing/no such activity | BC284: N/A | BD284: N/A | BE284: N/A | BF284: N/A | BG284: N/A | BH284: N/A | BI284: N/A | BJ284: N/A | BK284: N/A | BL284: N/A | BM284: N/A | BN284: N/A | BO284: N/A | BP284: N/A | BQ284: N/A | BR284: N/A | BS284: N/A | BT284: N/A | BU284: N/A | BV284: N/A | BW284: N/A | BX284: N/A | BY284: N/A
BA339: Raw numbers of respondents: | BB339: Basic water, sanitation and hygiene | BC339: NATIONAL wealth index quintile | BH339: URBAN wealth index quintile | BM339: RURAL wealth index quintile | BR339: SUB-REGIONS:
BA340: WatSan data, raw numbers (weighted) | BC340: Poorest | BD340: Poor | BE340: Middle | BF340: Rich | BG340: Richest | BH340: Poorest | BI340: Poor | BJ340: Middle | BK340: Rich | BL340: Richest | BM340: Poorest | BN340: Poor | BO340: Middle | BP340: Rich | BQ340: Richest | BR340: banjul | BS340: basse | BT340: brikama | BU340: janjabureh | BV340: kanifing | BW340: kerewan | BX340: kuntaur | BY340: mansakonko
BA341: Use of Basic Water Sanitation and Hygiene | BB341: Yes | BC341: N/A | BD341: N/A | BE341: N/A | BF341: N/A | BG341: N/A | BH341: N/A | BI341: N/A | BJ341: N/A | BK341: N/A | BL341: N/A | BM341: N/A | BN341: N/A | BO341: N/A | BP341: N/A | BQ341: N/A | BR341: N/A | BS341: N/A | BT341: N/A | BU341: N/A | BV341: N/A | BW341: N/A | BX341: N/A | BY341: N/A
BB342: No | BC342: N/A | BD342: N/A | BE342: N/A | BF342: N/A | BG342: N/A | BH342: N/A | BI342: N/A | BJ342: N/A | BK342: N/A | BL342: N/A | BM342: N/A | BN342: N/A | BO342: N/A | BP342: N/A | BQ342: N/A | BR342: N/A | BS342: N/A | BT342: N/A | BU342: N/A | BV342: N/A | BW342: N/A | BX342: N/A | BY342: N/A
BA343: Use of Basic Water and Sanitation | BB343: Yes | BC343: N/A | BD343: N/A | BE343: N/A | BF343: N/A | BG343: N/A | BH343: N/A | BI343: N/A | BJ343: N/A | BK343: N/A | BL343: N/A | BM343: N/A | BN343: N/A | BO343: N/A | BP343: N/A | BQ343: N/A | BR343: N/A | BS343: N/A | BT343: N/A | BU343: N/A | BV343: N/A | BW343: N/A | BX343: N/A | BY343: N/A
BB344: No | BC344: N/A | BD344: N/A | BE344: N/A | BF344: N/A | BG344: N/A | BH344: N/A | BI344: N/A | BJ344: N/A | BK344: N/A | BL344: N/A | BM344: N/A | BN344: N/A | BO344: N/A | BP344: N/A | BQ344: N/A | BR344: N/A | BS344: N/A | BT344: N/A | BU344: N/A | BV344: N/A | BW344: N/A | BX344: N/A | BY344: N/A
BA345: Use of Basic Water and Hygiene | BB345: Yes | BC345: N/A | BD345: N/A | BE345: N/A | BF345: N/A | BG345: N/A | BH345: N/A | BI345: N/A | BJ345: N/A | BK345: N/A | BL345: N/A | BM345: N/A | BN345: N/A | BO345: N/A | BP345: N/A | BQ345: N/A | BR345: N/A | BS345: N/A | BT345: N/A | BU345: N/A | BV345: N/A | BW345: N/A | BX345: N/A | BY345: N/A
BB346: No | BC346: N/A | BD346: N/A | BE346: N/A | BF346: N/A | BG346: N/A | BH346: N/A | BI346: N/A | BJ346: N/A | BK346: N/A | BL346: N/A | BM346: N/A | BN346: N/A | BO346: N/A | BP346: N/A | BQ346: N/A | BR346: N/A | BS346: N/A | BT346: N/A | BU346: N/A | BV346: N/A | BW346: N/A | BX346: N/A | BY346: N/A
BA347: Use of Basic Sanitation and Hygiene | BB347: Yes | BC347: N/A | BD347: N/A | BE347: N/A | BF347: N/A | BG347: N/A | BH347: N/A | BI347: N/A | BJ347: N/A | BK347: N/A | BL347: N/A | BM347: N/A | BN347: N/A | BO347: N/A | BP347: N/A | BQ347: N/A | BR347: N/A | BS347: N/A | BT347: N/A | BU347: N/A | BV347: N/A | BW347: N/A | BX347: N/A | BY347: N/A
BB348: No | BC348: N/A | BD348: N/A | BE348: N/A | BF348: N/A | BG348: N/A | BH348: N/A | BI348: N/A | BJ348: N/A | BK348: N/A | BL348: N/A | BM348: N/A | BN348: N/A | BO348: N/A | BP348: N/A | BQ348: N/A | BR348: N/A | BS348: N/A | BT348: N/A | BU348: N/A | BV348: N/A | BW348: N/A | BX348: N/A | BY348: N/A
BA349: Use of Basic Water | BB349: Yes | BC349: N/A | BD349: N/A | BE349: N/A | BF349: N/A | BG349: N/A | BH349: N/A | BI349: N/A | BJ349: N/A | BK349: N/A | BL349: N/A | BM349: N/A | BN349: N/A | BO349: N/A | BP349: N/A | BQ349: N/A | BR349: N/A | BS349: N/A | BT349: N/A | BU349: N/A | BV349: N/A | BW349: N/A | BX349: N/A | BY349: N/A
BB350: No | BC350: N/A | BD350: N/A | BE350: N/A | BF350: N/A | BG350: N/A | BH350: N/A | BI350: N/A | BJ350: N/A | BK350: N/A | BL350: N/A | BM350: N/A | BN350: N/A | BO350: N/A | BP350: N/A | BQ350: N/A | BR350: N/A | BS350: N/A | BT350: N/A | BU350: N/A | BV350: N/A | BW350: N/A | BX350: N/A | BY350: N/A
BA351: Use of Basic Sanitation | BB351: Yes | BC351: N/A | BD351: N/A | BE351: N/A | BF351: N/A | BG351: N/A | BH351: N/A | BI351: N/A | BJ351: N/A | BK351: N/A | BL351: N/A | BM351: N/A | BN351: N/A | BO351: N/A | BP351: N/A | BQ351: N/A | BR351: N/A | BS351: N/A | BT351: N/A | BU351: N/A | BV351: N/A | BW351: N/A | BX351: N/A | BY351: N/A
BB352: No | BC352: N/A | BD352: N/A | BE352: N/A | BF352: N/A | BG352: N/A | BH352: N/A | BI352: N/A | BJ352: N/A | BK352: N/A | BL352: N/A | BM352: N/A | BN352: N/A | BO352: N/A | BP352: N/A | BQ352: N/A | BR352: N/A | BS352: N/A | BT352: N/A | BU352: N/A | BV352: N/A | BW352: N/A | BX352: N/A | BY352: N/A
BA353: Access to Basic Hygiene | BB353: Yes | BC353: N/A | BD353: N/A | BE353: N/A | BF353: N/A | BG353: N/A | BH353: N/A | BI353: N/A | BJ353: N/A | BK353: N/A | BL353: N/A | BM353: N/A | BN353: N/A | BO353: N/A | BP353: N/A | BQ353: N/A | BR353: N/A | BS353: N/A | BT353: N/A | BU353: N/A | BV353: N/A | BW353: N/A | BX353: N/A | BY353: N/A
BB354: No | BC354: N/A | BD354: N/A | BE354: N/A | BF354: N/A | BG354: N/A | BH354: N/A | BI354: N/A | BJ354: N/A | BK354: N/A | BL354: N/A | BM354: N/A | BN354: N/A | BO354: N/A | BP354: N/A | BQ354: N/A | BR354: N/A | BS354: N/A | BT354: N/A | BU354: N/A | BV354: N/A | BW354: N/A | BX354: N/A | BY354: N/A
C399: INITIAL (national) Wealth Index | H399: URBAN Wealth Index | M399: RURAL Wealth Index
C400: Component Matrix | H400: Component Matrix | M400: Component Matrix
E401: Component | J401: Component | O401: Component
B402: Note: The INITIAL (national) Wealth Index is based on the first component of the Principal Component Analysis (PCA) which has been obtained at national level. The final national-level (NATIONAL) Wealth Index is based on the URBAN and RURAL specific wealth indexes. Regression procedures are used to establish the relationships between the two sets of scores (urban and rural) and the initial (national) wealth factors. This allows best use of the available information for each area and a better precision of the FINAL (NATIONAL) Wealth Index. For dependency reasons, all WASH variables (contained in the generic MICS and DHS scripts) have been excluded from the sets of asset variables used in the PCAs. The PCA can extracts as many components as there are asset variables in the input. Only the first of the components is used to represent the Wealth Index. The scores represent the weights of the asset variables on the Wealth Index (correlations between the variables and the component). The communalities are the proportion of each variable's variance that can be explained by the component. Proportion of explained variance is the part of the model's total variance that is explained by the component. For more information on the procedure used: The DHS Wealth Index, DHS Comparative Reports No. 6, Shea Oscar Rutstein, Kiersten Johnson, ORC Macro International Inc., 2004. The DHS Wealth Index: Approaches for Rural and Urban Areas, Shea O. Rutstein, ORC Macro International Inc., 2008. MICS Methodological Paper No. 4, Review of options for reporting water, sanitation and hygiene coverage by wealth quintile, UNICEF, 2016. | E402: 1 | J402: 1 | O402: 1
C403: Has bamboo with mud wall | E403: 0.8325734973 | H403: Has bamboo with mud wall | J403: 0.7606998357 | M403: Has wood floor | O403: 0.7786233867
C404: Has bamboo floor | E404: -0.8177451345 | H404: Has no wall | J404: -0.7526483502 | M404: Has bamboo floor | O404: -0.7494474348
C405: Has no wall | E405: -0.8094226512 | H405: Has bamboo floor | J405: -0.6874883938 | M405: Has no roof | O405: -0.711217129
C406: Has wood floor | E406: 0.7904446808 | H406: Household has: mobile refrigerator | J406: 0.6133335692 | M406: Has bamboo with mud wall | O406: 0.7075626662
C407: Has no roof | E407: -0.7207309152 | H407: Household has: electricity | J407: 0.6129081607 | M407: Has jute roof | O407: 0.6949232763
C408: Has jute roof | E408: 0.6585839578 | H408: Household has: television | J408: 0.6003171445 | M408: Has no wall | O408: -0.6823727305
C409: Dwelling ownership | E409: -0.5898706845 | H409: Has wood floor | J409: 0.5453544343 | M409: Dwelling ownership | O409: -0.4228148022
C410: Dwelling ownership | E410: 0.5791245135 | H410: Has no roof | J410: -0.3824531706 | M410: Household has: television | O410: 0.3729473172
C411: Household has: electricity | E411: 0.5681347889 | H411: Household has: radio | J411: 0.3651996423 | M411: Dwelling ownership | O411: 0.3729116372
C412: Household has: mobile refrigerator | E412: 0.5443869278 | H412: Household has: car | J412: 0.2898220077 | M412: Household has: mobile refrigerator | O412: 0.290253219
C413: Household has: television | E413: 0.526172217 | H413: Household has: scooter | J413: 0.2613562248 | M413: Household has: scooter | O413: 0.2741957063
C414: Household has: cart | E414: -0.376230919 | H414: Household has: cart | J414: -0.2075719311 | M414: Household has: radio | O414: 0.2591867379
C415: Household has: radio | E415: 0.26484445 | H415: Household has: bicycle | J415: 0.2044006821 | M415: Household has: car | O415: 0.2452465815
C416: Persons per sleeping rooms | E416: -0.1651296907 | H416: Has jute roof | J416: 0.1561909838 | M416: Dwelling ownership | O416: 0.1956269286
C417: Household has: car | E417: 0.1427919912 | H417: Dwelling ownership | J417: -0.1117468248 | M417: Household has: electricity | O417: 0.1935014995
C418: Household has: scooter | E418: 0.09749700908 | H418: Dwelling ownership | J418: 0.1112050479 | M418: Household has: bicycle | O418: 0.1830174366
... 117 more rows

Sheet MICS06
A2: =A1026 -> Gambia
A3: =A1034 -> 2006
A4: Use of drinking water sources
A5: by wealth quintile and sub-national region
A6: Notes:
A7: WHO/UNICEF JMP customised wealth index excludes water,
A8: sanitation and hygiene assets.
A9: Survey used for analysis: | B9: =A1025 -> MICS06
A10: =B1028 -> 
A11: =B1027 -> 
A14: Use of drinking water sources | C14: NATIONAL wealth index quintile | H14: URBAN wealth index quintile | M14: RURAL wealth index quintile | R14: SUB-REGIONS: | BA14: Raw numbers of respondents: | BB14: Use of drinking water sources | BC14: NATIONAL wealth index quintile | BH14: URBAN wealth index quintile | BM14: RURAL wealth index quintile | BR14: SUB-REGIONS:
A15: Weighted percentage (used in graphs) | C15: Poorest | D15: Poor | E15: Middle | F15: Rich | G15: Richest | H15: Poorest | I15: Poor | J15: Middle | K15: Rich | L15: Richest | M15: Poorest | N15: Poor | O15: Middle | P15: Rich | Q15: Richest | R15: Banjul | S15: Basse | T15: Brikama | U15: Janjanburay | V15: Kanifing | W15: Kerewan | X15: Kuntaur | Y15: Mansakonko | BA15: Water data, raw numbers (weighted) | BC15: Poorest | BD15: Poor | BE15: Middle | BF15: Rich | BG15: Richest | BH15: Poorest | BI15: Poor | BJ15: Middle | BK15: Rich | BL15: Richest | BM15: Poorest | BN15: Poor | BO15: Middle | BP15: Rich | BQ15: Richest | BR15: Banjul | BS15: Basse | BT15: Brikama | BU15: Janjanburay | BV15: Kanifing | BW15: Kerewan | BX15: Kuntaur | BY15: Mansakonko
A16: Water | B16: Improved | C16: 80.46672805 | D16: 85.13174335 | E16: 83.0261069 | F16: 83.5471354 | G16: 93.8510736 | H16: 89.0065426 | I16: 88.67787577 | J16: 88.88532619 | K16: 93.1339894 | L16: 96.44898713 | M16: 78.01088228 | N16: 80.78438217 | O16: 86.73431627 | P16: 80.53901378 | Q16: 80.81357443 | R16: 80.76923077 | S16: 87.57651816 | T16: 79.20283844 | U16: 81.68038094 | V16: 90.97764611 | W16: 89.09107267 | X16: 83.39680059 | Y16: 82.84912199 | BA16: Water | BB16: Improved | BC16: N/A | BD16: N/A | BE16: N/A | BF16: N/A | BG16: N/A | BH16: N/A | BI16: N/A | BJ16: N/A | BK16: N/A | BL16: N/A | BM16: N/A | BN16: N/A | BO16: N/A | BP16: N/A | BQ16: N/A | BR16: N/A | BS16: N/A | BT16: N/A | BU16: N/A | BV16: N/A | BW16: N/A | BX16: N/A | BY16: N/A
B17: Not Improved | C17: 19.53327195 | D17: 14.86825665 | E17: 16.9738931 | F17: 16.4528646 | G17: 6.148926405 | H17: 10.9934574 | I17: 11.32212423 | J17: 11.11467381 | K17: 6.866010597 | L17: 3.551012865 | M17: 21.98911772 | N17: 19.21561783 | O17: 13.26568373 | P17: 19.46098622 | Q17: 19.18642557 | R17: 19.23076923 | S17: 12.42348184 | T17: 20.79716156 | U17: 18.31961906 | V17: 9.022353892 | W17: 10.90892733 | X17: 16.60319941 | Y17: 17.15087801 | BB17: Not Improved | BC17: N/A | BD17: N/A | BE17: N/A | BF17: N/A | BG17: N/A | BH17: N/A | BI17: N/A | BJ17: N/A | BK17: N/A | BL17: N/A | BM17: N/A | BN17: N/A | BO17: N/A | BP17: N/A | BQ17: N/A | BR17: N/A | BS17: N/A | BT17: N/A | BU17: N/A | BV17: N/A | BW17: N/A | BX17: N/A | BY17: N/A
A18: Water ladder | B18: Basic | C18: =C16*C23/100 -> 65.76302064 | D18: =D16*D23/100 -> 73.2371338 | E18: =E16*E23/100 -> 70.99001718 | F18: 73.66067737 | G18: 89.59301972 | H18: 72.80297585 | I18: 81.27706517 | J18: 81.60524156 | K18: 88.38218757 | L18: 94.7302118 | M18: 63.04754693 | N18: 69.48169396 | O18: 74.03331806 | P18: 68.62133293 | Q18: 69.13509577 | R18: 80.76923077 | S18: 55.76300427 | T18: 73.60388909 | U18: 69.29248347 | V18: 84.75409585 | W18: 84.1019661 | X18: 68.60399898 | Y18: 70.96478358 | BA18: Water ladder | BB18: Basic | BC18: N/A | BD18: N/A | BE18: N/A | BF18: N/A | BG18: N/A | BH18: N/A | BI18: N/A | BJ18: N/A | BK18: N/A | BL18: N/A | BM18: N/A | BN18: N/A | BO18: N/A | BP18: N/A | BQ18: N/A | BR18: N/A | BS18: N/A | BT18: N/A | BU18: N/A | BV18: N/A | BW18: N/A | BX18: N/A | BY18: N/A
B19: Limited | C19: =C16*C22/100 -> 14.70370741 | D19: =D16*D22/100 -> 11.89460955 | E19: =E16*E22/100 -> 12.03608972 | F19: 9.886458029 | G19: 4.258053871 | H19: 16.20356675 | I19: 7.4008106 | J19: 7.280084624 | K19: 4.751801835 | L19: 1.718775336 | M19: 14.96333535 | N19: 11.30268821 | O19: 12.70099821 | P19: 11.91768085 | Q19: 11.67847866 | R19: 0 | S19: 31.81351389 | T19: 5.59894935 | U19: 12.38789747 | V19: 6.223550255 | W19: 4.989106569 | X19: 14.79280161 | Y19: 11.88433841 | BB19: Limited | BC19: N/A | BD19: N/A | BE19: N/A | BF19: N/A | BG19: N/A | BH19: N/A | BI19: N/A | BJ19: N/A | BK19: N/A | BL19: N/A | BM19: N/A | BN19: N/A | BO19: N/A | BP19: N/A | BQ19: N/A | BR19: N/A | BS19: N/A | BT19: N/A | BU19: N/A | BV19: N/A | BW19: N/A | BX19: N/A | BY19: N/A
B20: Unimproved | C20: =100-C18-C19-C21 -> 19.53327195 | D20: =100-D18-D19-D21 -> 14.85953473 | E20: =100-E18-E19-E21 -> 16.9738931 | F20: 16.4528646 | G20: 6.148926405 | H20: 10.97087308 | I20: 11.32212423 | J20: 11.11467381 | K20: 6.866010597 | L20: 3.551012865 | M20: 21.98911772 | N20: 19.21561783 | O20: 13.26568373 | P20: 19.46098622 | Q20: 19.18642557 | R20: 19.23076923 | S20: 12.42348184 | T20: 20.79716156 | U20: 18.29934878 | V20: 9.022353892 | W20: 10.90892733 | X20: 16.60319941 | Y20: 17.15087801 | BB20: Unimproved | BC20: N/A | BD20: N/A | BE20: N/A | BF20: N/A | BG20: N/A | BH20: N/A | BI20: N/A | BJ20: N/A | BK20: N/A | BL20: N/A | BM20: N/A | BN20: N/A | BO20: N/A | BP20: N/A | BQ20: N/A | BR20: N/A | BS20: N/A | BT20: N/A | BU20: N/A | BV20: N/A | BW20: N/A | BX20: N/A | BY20: N/A
B21: Surface water | C21: 0 | D21: 0.008721917943 | E21: 0 | F21: 0 | G21: 0 | H21: 0.02258431924 | I21: 0 | J21: 0 | K21: 0 | L21: 0 | M21: 0 | N21: 0 | O21: 0 | P21: 0 | Q21: 0 | R21: 0 | S21: 0 | T21: 0 | U21: 0.02027027385 | V21: 0 | W21: 0 | X21: 0 | Y21: 0 | BB21: Surface water | BC21: N/A | BD21: N/A | BE21: N/A | BF21: N/A | BG21: N/A | BH21: N/A | BI21: N/A | BJ21: N/A | BK21: N/A | BL21: N/A | BM21: N/A | BN21: N/A | BO21: N/A | BP21: N/A | BQ21: N/A | BR21: N/A | BS21: N/A | BT21: N/A | BU21: N/A | BV21: N/A | BW21: N/A | BX21: N/A | BY21: N/A
A22: Improved water point at more than 30 minutes | B22: Yes | C22: 18.27302758 | D22: 13.97200279 | E22: 14.49675309 | F22: 11.8333896 | G22: 4.537032671 | H22: 18.20491649 | I22: 8.345723819 | J22: 8.190423477 | K22: 5.102113487 | L22: 1.782056388 | M22: 19.18108719 | N22: 13.99117986 | O22: 14.64356757 | P22: 14.79740102 | Q22: 14.4511349 | R22: 0 | S22: 36.32653428 | T22: 7.069127142 | U22: 15.16630717 | V22: 6.840746624 | W22: 5.600007296 | X22: 17.73785266 | Y22: 14.34455565 | BA22: Improved water point at more than 30 minutes | BB22: Yes | BC22: N/A | BD22: N/A | BE22: N/A | BF22: N/A | BG22: N/A | BH22: N/A | BI22: N/A | BJ22: N/A | BK22: N/A | BL22: N/A | BM22: N/A | BN22: N/A | BO22: N/A | BP22: N/A | BQ22: N/A | BR22: N/A | BS22: N/A | BT22: N/A | BU22: N/A | BV22: N/A | BW22: N/A | BX22: N/A | BY22: N/A
B23: No | C23: 81.72697242 | D23: 86.02799721 | E23: 85.50324691 | F23: 88.1666104 | G23: 95.46296733 | H23: 81.79508351 | I23: 91.65427618 | J23: 91.80957652 | K23: 94.89788651 | L23: 98.21794361 | M23: 80.81891281 | N23: 86.00882014 | O23: 85.35643243 | P23: 85.20259898 | Q23: 85.5488651 | R23: 100 | S23: 63.67346572 | T23: 92.93087286 | U23: 84.83369283 | V23: 93.15925338 | W23: 94.3999927 | X23: 82.26214734 | Y23: 85.65544435 | BB23: No | BC23: N/A | BD23: N/A | BE23: N/A | BF23: N/A | BG23: N/A | BH23: N/A | BI23: N/A | BJ23: N/A | BK23: N/A | BL23: N/A | BM23: N/A | BN23: N/A | BO23: N/A | BP23: N/A | BQ23: N/A | BR23: N/A | BS23: N/A | BT23: N/A | BU23: N/A | BV23: N/A | BW23: N/A | BX23: N/A | BY23: N/A
A24: Manually calculated ratios | B24: Improved wells
B25: Improved springs
B26: Other
C27: NATIONAL wealth index quintile | H27: URBAN wealth index quintile | M27: RURAL wealth index quintile | R27: SUB-REGIONS: | BA27: Raw numbers of respondents: | BB27: Use of drinking water sources | BC27: NATIONAL wealth index quintile | BH27: URBAN wealth index quintile | BM27: RURAL wealth index quintile | BR27: SUB-REGIONS:
A28: Percentage based on weighted population | C28: Poorest | D28: Poor | E28: Middle | F28: Rich | G28: Richest | H28: Poorest | I28: Poor | J28: Middle | K28: Rich | L28: Richest | M28: Poorest | N28: Poor | O28: Middle | P28: Rich | Q28: Richest | R28: Banjul | S28: Basse | T28: Brikama | U28: Janjanburay | V28: Kanifing | W28: Kerewan | X28: Kuntaur | Y28: Mansakonko | BA28: Water data, raw numbers (weighted) | BC28: Poorest | BD28: Poor | BE28: Middle | BF28: Rich | BG28: Richest | BH28: Poorest | BI28: Poor | BJ28: Middle | BK28: Rich | BL28: Richest | BM28: Poorest | BN28: Poor | BO28: Middle | BP28: Rich | BQ28: Richest | BR28: Banjul | BS28: Basse | BT28: Brikama | BU28: Janjanburay | BV28: Kanifing | BW28: Kerewan | BX28: Kuntaur | BY28: Mansakonko
A29: Piped water | B29: Yes | C29: 19.6509992 | D29: 39.26384805 | E29: 56.79135725 | F29: 71.48397774 | G29: 92.13239706 | H29: 78.31630399 | I29: 84.89049998 | J29: 86.8760455 | K29: 91.68858052 | L29: 96.41966733 | M29: 15.15795652 | N29: 22.49408007 | O29: 37.44527327 | P29: 41.85171968 | Q29: 61.30499329 | R29: 80.76923077 | S29: 55.70550424 | T29: 51.01522528 | U29: 13.84174652 | V29: 89.1013556 | W29: 54.52275072 | X29: 9.527256292 | Y29: 38.47202208 | BA29: Piped water | BB29: Yes | BC29: N/A | BD29: N/A | BE29: N/A | BF29: N/A | BG29: N/A | BH29: N/A | BI29: N/A | BJ29: N/A | BK29: N/A | BL29: N/A | BM29: N/A | BN29: N/A | BO29: N/A | BP29: N/A | BQ29: N/A | BR29: N/A | BS29: N/A | BT29: N/A | BU29: N/A | BV29: N/A | BW29: N/A | BX29: N/A | BY29: N/A
B30: No | C30: 80.3490008 | D30: 60.73615195 | E30: 43.20864275 | F30: 28.51602226 | G30: 7.86760294 | H30: 21.68369601 | I30: 15.10950002 | J30: 13.1239545 | K30: 8.311419479 | L30: 3.580332672 | M30: 84.84204348 | N30: 77.50591993 | O30: 62.55472673 | P30: 58.14828032 | Q30: 38.69500671 | R30: 19.23076923 | S30: 44.29449576 | T30: 48.98477472 | U30: 86.15825348 | V30: 10.8986444 | W30: 45.47724928 | X30: 90.47274371 | Y30: 61.52797792 | BB30: No | BC30: N/A | BD30: N/A | BE30: N/A | BF30: N/A | BG30: N/A | BH30: N/A | BI30: N/A | BJ30: N/A | BK30: N/A | BL30: N/A | BM30: N/A | BN30: N/A | BO30: N/A | BP30: N/A | BQ30: N/A | BR30: N/A | BS30: N/A | BT30: N/A | BU30: N/A | BV30: N/A | BW30: N/A | BX30: N/A | BY30: N/A
A31: Piped water on premises | B31: Yes | C31: 0.3829508186 | D31: 1.681012354 | E31: 9.876388685 | F31: 28.01154497 | G31: 74.14078191 | H31: 13.50922854 | I31: 33.31935213 | J31: 51.30270194 | K31: 69.00100905 | L31: 90.47664321 | M31: 0 | N31: 0.1179002657 | O31: 0.521461805 | P31: 2.833876009 | Q31: 19.34617642 | R31: 77.92307692 | S31: 2.822755408 | T31: 12.95070722 | U31: 3.48961753 | V31: 60.36448514 | W31: 5.421971338 | X31: 2.755722547 | Y31: 3.035484758 | BA31: Piped water on premises | BB31: Yes | BC31: N/A | BD31: N/A | BE31: N/A | BF31: N/A | BG31: N/A | BH31: N/A | BI31: N/A | BJ31: N/A | BK31: N/A | BL31: N/A | BM31: N/A | BN31: N/A | BO31: N/A | BP31: N/A | BQ31: N/A | BR31: N/A | BS31: N/A | BT31: N/A | BU31: N/A | BV31: N/A | BW31: N/A | BX31: N/A | BY31: N/A
B32: No | C32: 99.61704918 | D32: 98.31898765 | E32: 90.12361131 | F32: 71.98845503 | G32: 25.85921809 | H32: 86.49077146 | I32: 66.68064787 | J32: 48.69729806 | K32: 30.99899095 | L32: 9.52335679 | M32: 100 | N32: 99.88209973 | O32: 99.47853819 | P32: 97.16612399 | Q32: 80.65382358 | R32: 22.07692308 | S32: 97.17724459 | T32: 87.04929278 | U32: 96.51038247 | V32: 39.63551486 | W32: 94.57802866 | X32: 97.24427745 | Y32: 96.96451524 | BB32: No | BC32: N/A | BD32: N/A | BE32: N/A | BF32: N/A | BG32: N/A | BH32: N/A | BI32: N/A | BJ32: N/A | BK32: N/A | BL32: N/A | BM32: N/A | BN32: N/A | BO32: N/A | BP32: N/A | BQ32: N/A | BR32: N/A | BS32: N/A | BT32: N/A | BU32: N/A | BV32: N/A | BW32: N/A | BX32: N/A | BY32: N/A
A33: Piped water into dwelling | B33: Yes | C33: N/A | D33: N/A | E33: N/A | F33: N/A | G33: N/A | H33: N/A | I33: N/A | J33: N/A | K33: N/A | L33: N/A | M33: N/A | N33: N/A | O33: N/A | P33: N/A | Q33: N/A | R33: N/A | S33: N/A | T33: N/A | U33: N/A | V33: N/A | W33: N/A | X33: N/A | Y33: N/A | BA33: Piped water into dwelling | BB33: Yes | BC33: N/A | BD33: N/A | BE33: N/A | BF33: N/A | BG33: N/A | BH33: N/A | BI33: N/A | BJ33: N/A | BK33: N/A | BL33: N/A | BM33: N/A | BN33: N/A | BO33: N/A | BP33: N/A | BQ33: N/A | BR33: N/A | BS33: N/A | BT33: N/A | BU33: N/A | BV33: N/A | BW33: N/A | BX33: N/A | BY33: N/A
B34: No | C34: N/A | D34: N/A | E34: N/A | F34: N/A | G34: N/A | H34: N/A | I34: N/A | J34: N/A | K34: N/A | L34: N/A | M34: N/A | N34: N/A | O34: N/A | P34: N/A | Q34: N/A | R34: N/A | S34: N/A | T34: N/A | U34: N/A | V34: N/A | W34: N/A | X34: N/A | Y34: N/A | BB34: No | BC34: N/A | BD34: N/A | BE34: N/A | BF34: N/A | BG34: N/A | BH34: N/A | BI34: N/A | BJ34: N/A | BK34: N/A | BL34: N/A | BM34: N/A | BN34: N/A | BO34: N/A | BP34: N/A | BQ34: N/A | BR34: N/A | BS34: N/A | BT34: N/A | BU34: N/A | BV34: N/A | BW34: N/A | BX34: N/A | BY34: N/A
A35: Water source on premises | B35: Yes | C35: 2.170008428 | D35: 5.190683967 | E35: 16.14744646 | F35: 33.76432135 | G35: 76.07161881 | H35: 16.21610956 | I35: 35.91795443 | J35: 52.19237869 | K35: 71.72828116 | L35: 91.32691761 | M35: 1.783548289 | N35: 2.830384078 | O35: 4.266490796 | P35: 10.90645862 | Q35: 28.29822797 | R35: 77.92307692 | S35: 6.12773152 | T35: 23.22459965 | U35: 5.899889812 | V35: 61.68417273 | W35: 7.428803293 | X35: 3.012851741 | Y35: 4.252511489 | BA35: Water source on premises | BB35: Yes | BC35: N/A | BD35: N/A | BE35: N/A | BF35: N/A | BG35: N/A | BH35: N/A | BI35: N/A | BJ35: N/A | BK35: N/A | BL35: N/A | BM35: N/A | BN35: N/A | BO35: N/A | BP35: N/A | BQ35: N/A | BR35: N/A | BS35: N/A | BT35: N/A | BU35: N/A | BV35: N/A | BW35: N/A | BX35: N/A | BY35: N/A
B36: No | C36: 97.82999157 | D36: 94.80931603 | E36: 83.85255354 | F36: 66.23567865 | G36: 23.92838119 | H36: 83.78389044 | I36: 64.08204557 | J36: 47.80762131 | K36: 28.27171884 | L36: 8.673082386 | M36: 98.21645171 | N36: 97.16961592 | O36: 95.7335092 | P36: 89.09354138 | Q36: 71.70177203 | R36: 22.07692308 | S36: 93.87226848 | T36: 76.77540035 | U36: 94.10011019 | V36: 38.31582727 | W36: 92.57119671 | X36: 96.98714826 | Y36: 95.74748851 | BB36: No | BC36: N/A | BD36: N/A | BE36: N/A | BF36: N/A | BG36: N/A | BH36: N/A | BI36: N/A | BJ36: N/A | BK36: N/A | BL36: N/A | BM36: N/A | BN36: N/A | BO36: N/A | BP36: N/A | BQ36: N/A | BR36: N/A | BS36: N/A | BT36: N/A | BU36: N/A | BV36: N/A | BW36: N/A | BX36: N/A | BY36: N/A
A37: Improved Water source on premises | B37: Yes | C37: 1.191221007 | D37: 3.657616182 | E37: 14.58803972 | F37: 36.2852831 | G37: 80.7906425 | H37: 17.86100601 | I37: 39.14664381 | J37: 58.37753041 | K37: 77.01622321 | L37: 94.68934856 | M37: 0.7938625239 | N37: 0.3575897455 | O37: 2.885644381 | P37: 6.343093027 | Q37: 28.09673648 | R37: 96.47619048 | S37: 5.61301661 | T37: 20.61606438 | U37: 4.873914912 | V37: 67.48569173 | W37: 8.174784381 | X37: 3.612670654 | Y37: 3.663870762 | BA37: Improved water source on premises | BB37: Yes | BC37: N/A | BD37: N/A | BE37: N/A | BF37: N/A | BG37: N/A | BH37: N/A | BI37: N/A | BJ37: N/A | BK37: N/A | BL37: N/A | BM37: N/A | BN37: N/A | BO37: N/A | BP37: N/A | BQ37: N/A | BR37: N/A | BS37: N/A | BT37: N/A | BU37: N/A | BV37: N/A | BW37: N/A | BX37: N/A | BY37: N/A
B38: No | C38: 98.80877899 | D38: 96.34238382 | E38: 85.41196028 | F38: 63.7147169 | G38: 19.2093575 | H38: 82.13899399 | I38: 60.85335619 | J38: 41.62246959 | K38: 22.98377679 | L38: 5.310651437 | M38: 99.20613748 | N38: 99.64241025 | O38: 97.11435562 | P38: 93.65690697 | Q38: 71.90326352 | R38: 3.523809524 | S38: 94.38698339 | T38: 79.38393562 | U38: 95.12608509 | V38: 32.51430827 | W38: 91.82521562 | X38: 96.38732935 | Y38: 96.33612924 | BB38: No | BC38: N/A | BD38: N/A | BE38: N/A | BF38: N/A | BG38: N/A | BH38: N/A | BI38: N/A | BJ38: N/A | BK38: N/A | BL38: N/A | BM38: N/A | BN38: N/A | BO38: N/A | BP38: N/A | BQ38: N/A | BR38: N/A | BS38: N/A | BT38: N/A | BU38: N/A | BV38: N/A | BW38: N/A | BX38: N/A | BY38: N/A
A39: Piped water on premises available when needed | B39: Yes | C39: N/A | D39: N/A | E39: N/A | F39: N/A | G39: N/A | H39: N/A | I39: N/A | J39: N/A | K39: N/A | L39: N/A | M39: N/A | N39: N/A | O39: N/A | P39: N/A | Q39: N/A | R39: N/A | S39: N/A | T39: N/A | U39: N/A | V39: N/A | W39: N/A | X39: N/A | Y39: N/A | BA39: Piped water on premises available when needed | BB39: Yes | BC39: N/A | BD39: N/A | BE39: N/A | BF39: N/A | BG39: N/A | BH39: N/A | BI39: N/A | BJ39: N/A | BK39: N/A | BL39: N/A | BM39: N/A | BN39: N/A | BO39: N/A | BP39: N/A | BQ39: N/A | BR39: N/A | BS39: N/A | BT39: N/A | BU39: N/A | BV39: N/A | BW39: N/A | BX39: N/A | BY39: N/A
B40: No | C40: N/A | D40: N/A | E40: N/A | F40: N/A | G40: N/A | H40: N/A | I40: N/A | J40: N/A | K40: N/A | L40: N/A | M40: N/A | N40: N/A | O40: N/A | P40: N/A | Q40: N/A | R40: N/A | S40: N/A | T40: N/A | U40: N/A | V40: N/A | W40: N/A | X40: N/A | Y40: N/A | BB40: No | BC40: N/A | BD40: N/A | BE40: N/A | BF40: N/A | BG40: N/A | BH40: N/A | BI40: N/A | BJ40: N/A | BK40: N/A | BL40: N/A | BM40: N/A | BN40: N/A | BO40: N/A | BP40: N/A | BQ40: N/A | BR40: N/A | BS40: N/A | BT40: N/A | BU40: N/A | BV40: N/A | BW40: N/A | BX40: N/A | BY40: N/A
A41: Water point at more than 30 minutes | B41: Yes | C41: 18.99268551 | D41: 13.32517402 | E41: 13.54312994 | F41: 11.13561085 | G41: 4.496825527 | H41: 16.27150559 | I41: 7.387732378 | J41: 7.85586829 | K41: 5.33716911 | L41: 1.729707676 | M41: 19.27504392 | N41: 14.51635785 | O41: 14.52467806 | P41: 14.34756937 | Q41: 13.36134391 | R41: 0.3912363067 | S41: 35.76643993 | T41: 6.007507515 | U41: 15.8012695 | V41: 6.532345501 | W41: 5.845682739 | X41: 18.80057416 | Y41: 17.44788918 | BA41: Water point at more than 30 minutes | BB41: Yes | BC41: N/A | BD41: N/A | BE41: N/A | BF41: N/A | BG41: N/A | BH41: N/A | BI41: N/A | BJ41: N/A | BK41: N/A | BL41: N/A | BM41: N/A | BN41: N/A | BO41: N/A | BP41: N/A | BQ41: N/A | BR41: N/A | BS41: N/A | BT41: N/A | BU41: N/A | BV41: N/A | BW41: N/A | BX41: N/A | BY41: N/A
B42: No | C42: 81.00731449 | D42: 86.67482598 | E42: 86.45687006 | F42: 88.86438915 | G42: 95.50317447 | H42: 83.72849441 | I42: 92.61226762 | J42: 92.14413171 | K42: 94.66283089 | L42: 98.27029232 | M42: 80.72495608 | N42: 85.48364215 | O42: 85.47532194 | P42: 85.65243063 | Q42: 86.63865609 | R42: 99.60876369 | S42: 64.23356007 | T42: 93.99249249 | U42: 84.1987305 | V42: 93.4676545 | W42: 94.15431726 | X42: 81.19942584 | Y42: 82.55211082 | BB42: No | BC42: N/A | BD42: N/A | BE42: N/A | BF42: N/A | BG42: N/A | BH42: N/A | BI42: N/A | BJ42: N/A | BK42: N/A | BL42: N/A | BM42: N/A | BN42: N/A | BO42: N/A | BP42: N/A | BQ42: N/A | BR42: N/A | BS42: N/A | BT42: N/A | BU42: N/A | BV42: N/A | BW42: N/A | BX42: N/A | BY42: N/A
A43: Water source available when needed | B43: Yes | C43: N/A | D43: N/A | E43: N/A | F43: N/A | G43: N/A | H43: N/A | I43: N/A | J43: N/A | K43: N/A | L43: N/A | M43: N/A | N43: N/A | O43: N/A | P43: N/A | Q43: N/A | R43: N/A | S43: N/A | T43: N/A | U43: N/A | V43: N/A | W43: N/A | X43: N/A | Y43: N/A | BA43: Water source available when needed | BB43: Yes | BC43: N/A | BD43: N/A | BE43: N/A | BF43: N/A | BG43: N/A | BH43: N/A | BI43: N/A | BJ43: N/A | BK43: N/A | BL43: N/A | BM43: N/A | BN43: N/A | BO43: N/A | BP43: N/A | BQ43: N/A | BR43: N/A | BS43: N/A | BT43: N/A | BU43: N/A | BV43: N/A | BW43: N/A | BX43: N/A | BY43: N/A
B44: No | C44: N/A | D44: N/A | E44: N/A | F44: N/A | G44: N/A | H44: N/A | I44: N/A | J44: N/A | K44: N/A | L44: N/A | M44: N/A | N44: N/A | O44: N/A | P44: N/A | Q44: N/A | R44: N/A | S44: N/A | T44: N/A | U44: N/A | V44: N/A | W44: N/A | X44: N/A | Y44: N/A | BB44: No | BC44: N/A | BD44: N/A | BE44: N/A | BF44: N/A | BG44: N/A | BH44: N/A | BI44: N/A | BJ44: N/A | BK44: N/A | BL44: N/A | BM44: N/A | BN44: N/A | BO44: N/A | BP44: N/A | BQ44: N/A | BR44: N/A | BS44: N/A | BT44: N/A | BU44: N/A | BV44: N/A | BW44: N/A | BX44: N/A | BY44: N/A
A45: Improved water source available when needed | B45: Yes | C45: N/A | D45: N/A | E45: N/A | F45: N/A | G45: N/A | H45: N/A | I45: N/A | J45: N/A | K45: N/A | L45: N/A | M45: N/A | N45: N/A | O45: N/A | P45: N/A | Q45: N/A | R45: N/A | S45: N/A | T45: N/A | U45: N/A | V45: N/A | W45: N/A | X45: N/A | Y45: N/A | BA45: Improved water source available when needed | BB45: Yes | BC45: N/A | BD45: N/A | BE45: N/A | BF45: N/A | BG45: N/A | BH45: N/A | BI45: N/A | BJ45: N/A | BK45: N/A | BL45: N/A | BM45: N/A | BN45: N/A | BO45: N/A | BP45: N/A | BQ45: N/A | BR45: N/A | BS45: N/A | BT45: N/A | BU45: N/A | BV45: N/A | BW45: N/A | BX45: N/A | BY45: N/A
B46: No | C46: N/A | D46: N/A | E46: N/A | F46: N/A | G46: N/A | H46: N/A | I46: N/A | J46: N/A | K46: N/A | L46: N/A | M46: N/A | N46: N/A | O46: N/A | P46: N/A | Q46: N/A | R46: N/A | S46: N/A | T46: N/A | U46: N/A | V46: N/A | W46: N/A | X46: N/A | Y46: N/A | BB46: No | BC46: N/A | BD46: N/A | BE46: N/A | BF46: N/A | BG46: N/A | BH46: N/A | BI46: N/A | BJ46: N/A | BK46: N/A | BL46: N/A | BM46: N/A | BN46: N/A | BO46: N/A | BP46: N/A | BQ46: N/A | BR46: N/A | BS46: N/A | BT46: N/A | BU46: N/A | BV46: N/A | BW46: N/A | BX46: N/A | BY46: N/A
A47: Microbiological quality at point of collection | B47: Not contaminated (No E. coli in 100 mL) | C47: N/A | D47: N/A | E47: N/A | F47: N/A | G47: N/A | H47: N/A | I47: N/A | J47: N/A | K47: N/A | L47: N/A | M47: N/A | N47: N/A | O47: N/A | P47: N/A | Q47: N/A | R47: N/A | S47: N/A | T47: N/A | U47: N/A | V47: N/A | W47: N/A | X47: N/A | Y47: N/A | BA47: Microbiological quality at point of collection | BB47: Not contaminated (No E. coli in 100 mL) | BC47: N/A | BD47: N/A | BE47: N/A | BF47: N/A | BG47: N/A | BH47: N/A | BI47: N/A | BJ47: N/A | BK47: N/A | BL47: N/A | BM47: N/A | BN47: N/A | BO47: N/A | BP47: N/A | BQ47: N/A | BR47: N/A | BS47: N/A | BT47: N/A | BU47: N/A | BV47: N/A | BW47: N/A | BX47: N/A | BY47: N/A
B48: Contaminated (E. coli detected in 100 mL) | C48: N/A | D48: N/A | E48: N/A | F48: N/A | G48: N/A | H48: N/A | I48: N/A | J48: N/A | K48: N/A | L48: N/A | M48: N/A | N48: N/A | O48: N/A | P48: N/A | Q48: N/A | R48: N/A | S48: N/A | T48: N/A | U48: N/A | V48: N/A | W48: N/A | X48: N/A | Y48: N/A | BB48: Contaminated (E. coli detected in 100 mL) | BC48: N/A | BD48: N/A | BE48: N/A | BF48: N/A | BG48: N/A | BH48: N/A | BI48: N/A | BJ48: N/A | BK48: N/A | BL48: N/A | BM48: N/A | BN48: N/A | BO48: N/A | BP48: N/A | BQ48: N/A | BR48: N/A | BS48: N/A | BT48: N/A | BU48: N/A | BV48: N/A | BW48: N/A | BX48: N/A | BY48: N/A
B49: Highly contaminated (>100 CFU/100 mL) | C49: N/A | D49: N/A | E49: N/A | F49: N/A | G49: N/A | H49: N/A | I49: N/A | J49: N/A | K49: N/A | L49: N/A | M49: N/A | N49: N/A | O49: N/A | P49: N/A | Q49: N/A | R49: N/A | S49: N/A | T49: N/A | U49: N/A | V49: N/A | W49: N/A | X49: N/A | Y49: N/A | BB49: Highly contaminated (>100 CFU/100 mL) | BC49: N/A | BD49: N/A | BE49: N/A | BF49: N/A | BG49: N/A | BH49: N/A | BI49: N/A | BJ49: N/A | BK49: N/A | BL49: N/A | BM49: N/A | BN49: N/A | BO49: N/A | BP49: N/A | BQ49: N/A | BR49: N/A | BS49: N/A | BT49: N/A | BU49: N/A | BV49: N/A | BW49: N/A | BX49: N/A | BY49: N/A
A50: Microbiological quality of improved water sources at point of collection | B50: Not contaminated (No E. coli in 100 mL) | C50: N/A | D50: N/A | E50: N/A | F50: N/A | G50: N/A | H50: N/A | I50: N/A | J50: N/A | K50: N/A | L50: N/A | M50: N/A | N50: N/A | O50: N/A | P50: N/A | Q50: N/A | R50: N/A | S50: N/A | T50: N/A | U50: N/A | V50: N/A | W50: N/A | X50: N/A | Y50: N/A | BA50: Microbiological quality of improved water sources at point of collection | BB50: Not contaminated (No E. coli in 100 mL) | BC50: N/A | BD50: N/A | BE50: N/A | BF50: N/A | BG50: N/A | BH50: N/A | BI50: N/A | BJ50: N/A | BK50: N/A | BL50: N/A | BM50: N/A | BN50: N/A | BO50: N/A | BP50: N/A | BQ50: N/A | BR50: N/A | BS50: N/A | BT50: N/A | BU50: N/A | BV50: N/A | BW50: N/A | BX50: N/A | BY50: N/A
B51: Contaminated (E. coli detected in 100 mL) | C51: N/A | D51: N/A | E51: N/A | F51: N/A | G51: N/A | H51: N/A | I51: N/A | J51: N/A | K51: N/A | L51: N/A | M51: N/A | N51: N/A | O51: N/A | P51: N/A | Q51: N/A | R51: N/A | S51: N/A | T51: N/A | U51: N/A | V51: N/A | W51: N/A | X51: N/A | Y51: N/A | BB51: Contaminated (E. coli detected in 100 mL) | BC51: N/A | BD51: N/A | BE51: N/A | BF51: N/A | BG51: N/A | BH51: N/A | BI51: N/A | BJ51: N/A | BK51: N/A | BL51: N/A | BM51: N/A | BN51: N/A | BO51: N/A | BP51: N/A | BQ51: N/A | BR51: N/A | BS51: N/A | BT51: N/A | BU51: N/A | BV51: N/A | BW51: N/A | BX51: N/A | BY51: N/A
B52: Highly contaminated (>100 CFU/100 mL) | C52: N/A | D52: N/A | E52: N/A | F52: N/A | G52: N/A | H52: N/A | I52: N/A | J52: N/A | K52: N/A | L52: N/A | M52: N/A | N52: N/A | O52: N/A | P52: N/A | Q52: N/A | R52: N/A | S52: N/A | T52: N/A | U52: N/A | V52: N/A | W52: N/A | X52: N/A | Y52: N/A | BB52: Highly contaminated (>100 CFU/100 mL) | BC52: N/A | BD52: N/A | BE52: N/A | BF52: N/A | BG52: N/A | BH52: N/A | BI52: N/A | BJ52: N/A | BK52: N/A | BL52: N/A | BM52: N/A | BN52: N/A | BO52: N/A | BP52: N/A | BQ52: N/A | BR52: N/A | BS52: N/A | BT52: N/A | BU52: N/A | BV52: N/A | BW52: N/A | BX52: N/A | BY52: N/A
A53: Microbiological quality of piped on premises at point of collection | B53: Not contaminated (No E. coli in 100 mL) | C53: N/A | D53: N/A | E53: N/A | F53: N/A | G53: N/A | H53: N/A | I53: N/A | J53: N/A | K53: N/A | L53: N/A | M53: N/A | N53: N/A | O53: N/A | P53: N/A | Q53: N/A | R53: N/A | S53: N/A | T53: N/A | U53: N/A | V53: N/A | W53: N/A | X53: N/A | Y53: N/A | BA53: Microbiological quality of piped on premises at point of collection | BB53: Not contaminated (No E. coli in 100 mL) | BC53: N/A | BD53: N/A | BE53: N/A | BF53: N/A | BG53: N/A | BH53: N/A | BI53: N/A | BJ53: N/A | BK53: N/A | BL53: N/A | BM53: N/A | BN53: N/A | BO53: N/A | BP53: N/A | BQ53: N/A | BR53: N/A | BS53: N/A | BT53: N/A | BU53: N/A | BV53: N/A | BW53: N/A | BX53: N/A | BY53: N/A
B54: Contaminated (E. coli detected in 100 mL) | C54: N/A | D54: N/A | E54: N/A | F54: N/A | G54: N/A | H54: N/A | I54: N/A | J54: N/A | K54: N/A | L54: N/A | M54: N/A | N54: N/A | O54: N/A | P54: N/A | Q54: N/A | R54: N/A | S54: N/A | T54: N/A | U54: N/A | V54: N/A | W54: N/A | X54: N/A | Y54: N/A | BB54: Contaminated (E. coli detected in 100 mL) | BC54: N/A | BD54: N/A | BE54: N/A | BF54: N/A | BG54: N/A | BH54: N/A | BI54: N/A | BJ54: N/A | BK54: N/A | BL54: N/A | BM54: N/A | BN54: N/A | BO54: N/A | BP54: N/A | BQ54: N/A | BR54: N/A | BS54: N/A | BT54: N/A | BU54: N/A | BV54: N/A | BW54: N/A | BX54: N/A | BY54: N/A
B55: Highly contaminated (>100 CFU/100 mL) | C55: N/A | D55: N/A | E55: N/A | F55: N/A | G55: N/A | H55: N/A | I55: N/A | J55: N/A | K55: N/A | L55: N/A | M55: N/A | N55: N/A | O55: N/A | P55: N/A | Q55: N/A | R55: N/A | S55: N/A | T55: N/A | U55: N/A | V55: N/A | W55: N/A | X55: N/A | Y55: N/A | BB55: Highly contaminated (>100 CFU/100 mL) | BC55: N/A | BD55: N/A | BE55: N/A | BF55: N/A | BG55: N/A | BH55: N/A | BI55: N/A | BJ55: N/A | BK55: N/A | BL55: N/A | BM55: N/A | BN55: N/A | BO55: N/A | BP55: N/A | BQ55: N/A | BR55: N/A | BS55: N/A | BT55: N/A | BU55: N/A | BV55: N/A | BW55: N/A | BX55: N/A | BY55: N/A
C56: NATIONAL wealth index quintile | H56: URBAN wealth index quintile | M56: RURAL wealth index quintile | R56: SUB-REGIONS: | BA56: Raw numbers of respondents: | BB56: Use of drinking water sources | BC56: NATIONAL wealth index quintile | BH56: URBAN wealth index quintile | BM56: RURAL wealth index quintile | BR56: SUB-REGIONS:
A57: Percentage based on weighted population | C57: Poorest | D57: Poor | E57: Middle | F57: Rich | G57: Richest | H57: Poorest | I57: Poor | J57: Middle | K57: Rich | L57: Richest | M57: Poorest | N57: Poor | O57: Middle | P57: Rich | Q57: Richest | R57: Banjul | S57: Basse | T57: Brikama | U57: Janjanburay | V57: Kanifing | W57: Kerewan | X57: Kuntaur | Y57: Mansakonko | BA57: Water data, raw numbers (weighted) | BC57: Poorest | BD57: Poor | BE57: Middle | BF57: Rich | BG57: Richest | BH57: Poorest | BI57: Poor | BJ57: Middle | BK57: Rich | BL57: Richest | BM57: Poorest | BN57: Poor | BO57: Middle | BP57: Rich | BQ57: Richest | BR57: Banjul | BS57: Basse | BT57: Brikama | BU57: Janjanburay | BV57: Kanifing | BW57: Kerewan | BX57: Kuntaur | BY57: Mansakonko
A58: Main source of drinking water | B58: Piped into dwelling | C58: 0 | D58: 0.3356637541 | E58: 1.641186477 | F58: 6.623728645 | G58: 23.1082134 | H58: 1.421296297 | I58: 5.795345464 | J58: 10.087553 | K58: 16.67048674 | L58: 32.82595456 | M58: 0 | N58: 0 | O58: 0.1769692827 | P58: 1.072371379 | Q58: 8.151796733 | R58: 10.92307692 | S58: 0.9363860893 | T58: 4.729909224 | U58: 1.685563157 | V58: 16.55444833 | W58: 1.827067156 | X58: 0.8037524095 | Y58: 1.084101699
B59: Piped into yard or plot | C59: 0.3829508186 | D59: 1.231642807 | E59: 8.235202208 | F59: 21.28758149 | G59: 50.98702174 | H59: 11.7951003 | I59: 27.32467495 | J59: 41.1566029 | K59: 52.3305223 | L59: 57.53340942 | M59: 0 | N59: 0.1179002657 | O59: 0.3444925224 | P59: 1.76150463 | Q59: 11.19437968 | R59: 66.53846154 | S59: 1.886369319 | T59: 8.220797999 | U59: 1.804054372 | V59: 43.66639734 | W59: 3.594904182 | X59: 1.951970137 | Y59: 1.951383059
B60: Public tap/standpipe | C60: 19.26804838 | D60: 37.5828357 | E60: 46.91496857 | F60: 43.47243276 | G60: 17.99161515 | H60: 64.80707545 | I60: 51.57114785 | J60: 35.57334356 | K60: 22.68757148 | L60: 5.943024118 | M60: 15.15795652 | N60: 22.37617981 | O60: 36.92381146 | P60: 39.01784367 | Q60: 41.95881687 | R60: 2.846153846 | S60: 52.88274883 | T60: 38.06451806 | U60: 10.35212899 | V60: 28.73687046 | W60: 49.10077938 | X60: 6.771533745 | Y60: 35.43653732
B61: Tubewell/borehole | C61: 47.77914026 | D61: 34.47460788 | E61: 16.71300785 | F61: 7.044572495 | G61: 0.6172131485 | H61: 7.738761939 | I61: 0.908438676 | J61: 0.9018323459 | K61: 0 | L61: 0 | M61: 48.26982769 | N61: 47.39192613 | O61: 34.90389645 | P61: 26.02511308 | Q61: 11.83077252 | R61: 0 | S61: 28.3037392 | T61: 19.37491663 | U61: 53.07279161 | V61: 0.305233863 | W61: 16.47583834 | X61: 63.95170394 | Y61: 29.96183153
B62: Protected well | C62: 12.96763985 | D62: 11.25218937 | E62: 9.180553633 | F62: 4.927538453 | G62: 1.090076694 | H62: 2.775777514 | I62: 2.644681796 | J62: 1.107448348 | K62: 1.445408882 | L62: 0 | M62: 14.58309807 | N62: 10.6315697 | O62: 14.30747061 | P62: 12.21783088 | Q62: 7.677808613 | R62: 0 | S62: 3.567274719 | T62: 8.554871027 | U62: 14.76584282 | V62: 1.436394649 | W62: 17.92845839 | X62: 9.917840358 | Y62: 14.20663523
B63: Unprotected well | C63: 19.40797614 | D63: 14.12591063 | E63: 13.38371659 | F63: 11.147919 | G63: 1.006598734 | H63: 3.996587221 | I63: 3.51469114 | J63: 1.580257685 | K63: 0.5028564232 | L63: 0.02931980703 | M63: 21.98911772 | N63: 19.21561783 | O63: 12.99381797 | P63: 18.9059574 | Q63: 17.40367712 | R63: 0 | S63: 12.42348184 | T63: 19.51519783 | U63: 18.29934878 | V63: 1.265822785 | W63: 10.69478208 | X63: 16.60319941 | Y63: 16.80315608
B64: Rainwater collection | C64: 0 | D64: 0.1410980433 | E64: 0 | F64: 0 | G64: 0 | H64: 0 | I64: 0 | J64: 0 | K64: 0 | L64: 0 | M64: 0 | N64: 0.1538787608 | O64: 0.07767593257 | P64: 0 | Q64: 0 | R64: 0 | S64: 0 | T64: 0.03819637107 | U64: 0 | V64: 0 | W64: 0.1640252239 | X64: 0 | Y64: 0
B65: Tanker-truck | C65: 0.06894873178 | D65: 0 | E65: 0 | F65: 0 | G65: 0 | H65: 0 | I65: 0 | J65: 0 | K65: 0 | L65: 0 | M65: 0 | N65: 0.1129275054 | O65: 0 | P65: 0 | Q65: 0 | R65: 0 | S65: 0 | T65: 0 | U65: 0 | V65: 0 | W65: 0 | X65: 0 | Y65: 0.208633154
B66: Surface water | C66: 0 | D66: 0.008707794474 | E66: 0 | F66: 0 | G66: 0 | H66: 0.0224255974 | I66: 0 | J66: 0 | K66: 0 | L66: 0 | M66: 0 | N66: 0 | O66: 0 | P66: 0 | Q66: 0 | R66: 0 | S66: 0 | T66: 0 | U66: 0.02027027385 | V66: 0 | W66: 0 | X66: 0 | Y66: 0
B67: Bottled water | C67: 0 | D67: 0.1137057929 | E67: 0.341188167 | F67: 0.1912815509 | G67: 0.05693346132 | H67: 0.4685311014 | I67: 0.4335870322 | J67: 0.05854604067 | K67: 0 | L67: 0.1465990351 | M67: 0 | N67: 0 | O67: 0 | P67: 0.4443501478 | Q67: 0 | R67: 0.4615384615 | S67: 0 | T67: 0.2196291336 | U67: 0 | V67: 0.2783014633 | W67: 0 | X67: 0 | Y67: 0
B68: Other | C68: 0.1252958081 | D68: 0.6744997759 | E68: 3.416402593 | F68: 5.3049456 | G68: 4.896869841 | H68: 6.710895834 | I68: 7.807433092 | J68: 9.534416126 | K68: 6.363154173 | L68: 2.8896591 | M68: 0 | N68: 0 | O68: 0.1747708483 | P68: 0.4391113843 | Q68: 1.782748452 | R68: 17.76923077 | S68: 0 | T68: 1.176923709 | U68: 0 | V68: 7.675733908 | W68: 0.214145244 | X68: 0 | Y68: 0.3477219233
B69: Missing | C69: 0 | D69: 0.05913844814 | E69: 0.1737739136 | F69: 0 | G69: 0.2454578292 | H69: 0.2635487445 | I69: 0 | J69: 0 | K69: 0 | L69: 0.6320339584 | M69: 0 | N69: 0 | O69: 0.09709491571 | P69: 0.1159174299 | Q69: 0 | R69: 1.461538462 | S69: 0 | T69: 0.1050400204 | U69: 0 | V69: 0.08079719903 | W69: 0 | X69: 0 | Y69: 0
A108: =A1026 -> Gambia
A109: =A1034 -> 2006
A110: Use of sanitation facilities
A111: by wealth quintile and sub-national region
A112: Notes:
A113: WHO/UNICEF JMP customised wealth index excludes water,
A114: sanitation and hygiene assets.
A115: Survey used for analysis: | B115: =A1025 -> MICS06
A116: =B1030 -> 
A117: =B1029 -> 
A120: Use of sanitation facilities | C120: NATIONAL wealth index quintile | H120: URBAN wealth index quintile | M120: RURAL wealth index quintile | R120: SUB-REGIONS: | BA120: Raw numbers of respondents: | BB120: Use of sanitation facilities | BC120: NATIONAL wealth index quintile | BH120: URBAN wealth index quintile | BM120: RURAL wealth index quintile | BR120: SUB-REGIONS:
A121: Weighted percentage (used in graphs) | C121: Poorest | D121: Poor | E121: Middle | F121: Rich | G121: Richest | H121: Poorest | I121: Poor | J121: Middle | K121: Rich | L121: Richest | M121: Poorest | N121: Poor | O121: Middle | P121: Rich | Q121: Richest | R121: Banjul | S121: Basse | T121: Brikama | U121: Janjanburay | V121: Kanifing | W121: Kerewan | X121: Kuntaur | Y121: Mansakonko | BA121: Sanitation data, raw numbers (weighted) | BC121: Poorest | BD121: Poor | BE121: Middle | BF121: Rich | BG121: Richest | BH121: Poorest | BI121: Poor | BJ121: Middle | BK121: Rich | BL121: Richest | BM121: Poorest | BN121: Poor | BO121: Middle | BP121: Rich | BQ121: Richest | BR121: Banjul | BS121: Basse | BT121: Brikama | BU121: Janjanburay | BV121: Kanifing | BW121: Kerewan | BX121: Kuntaur | BY121: Mansakonko
A122: Sanitation | B122: Improved | C122: 60.05886917 | D122: 78.90375421 | E122: 90.16704906 | F122: 94.61859873 | G122: 97.55410649 | H122: 81.25569254 | I122: 93.99609755 | J122: 96.72767632 | K122: 95.75301457 | L122: 99.64816232 | M122: 57.79898468 | N122: 68.94869638 | O122: 81.57156092 | P122: 89.19607958 | Q122: 94.45990749 | R122: 97.46153846 | S122: 86.42036653 | T122: 94.04981491 | U122: 30.70745408 | V122: 95.78059072 | W122: 86.44140356 | X122: 77.14928359 | Y122: 65.50807092 | BA122: Sanitation | BB122: Improved | BC122: 5388.364832 | BD122: 7091.510898 | BE122: 8081.767109 | BF122: 8496.223224 | BG122: 8755.312873 | BH122: 2835.691963 | BI122: 3280.454824 | BJ122: 3376.812283 | BK122: 3343.318184 | BL122: 3473.216734 | BM122: 3173.485796 | BN122: 3776.87359 | BO122: 4465.327483 | BP122: 4907.82762 | BQ122: 5180.170459 | BR122: 1469.014281 | BS122: 5065.362125 | BT122: 10469.76322 | BU122: 1185.58712 | BV122: 10903.03518 | BW122: 4442.180906 | BX122: 2335.930284 | BY122: 1942.30582
B123: Not Improved | C123: 39.94113083 | D123: 21.09624579 | E123: 9.832950936 | F123: 5.381401266 | G123: 2.445893512 | H123: 18.74430746 | I123: 6.003902453 | J123: 3.272323685 | K123: 4.246985425 | L123: 0.3518376843 | M123: 42.20101532 | N123: 31.05130362 | O123: 18.42843908 | P123: 10.80392042 | Q123: 5.540092513 | R123: 2.538461538 | S123: 13.57963347 | T123: 5.950185093 | U123: 69.29254592 | V123: 4.219409283 | W123: 13.55859644 | X123: 22.85071641 | Y123: 34.49192908 | BB123: Not Improved | BC123: 3583.440509 | BD123: 1896.034712 | BE123: 881.337698 | BF123: 483.219864 | BG123: 219.514726 | BH123: 654.145948 | BI123: 209.535622 | BJ123: 114.238481 | BK123: 148.288006 | BL123: 12.263232 | BM123: 2317.070506 | BN123: 1700.929165 | BO123: 1008.795401 | BP123: 594.463112 | BQ123: 303.818036 | BR123: 38.261619 | BS123: 795.943871 | BT123: 662.383324 | BU123: 2675.322732 | BV123: 480.30992 | BW123: 696.769554 | BX123: 691.875258 | BY123: 1022.681231
A124: Sanitation ladder | B124: Basic | C124: =C122*C129/100 -> 40.54508104 | D124: =D122*D129/100 -> 54.00214744 | E124: =E122*E129/100 -> 51.3178473 | F124: 50.37009974 | G124: 71.01125851 | H124: 33.43835035 | I124: 33.14570225 | J124: 39.52317793 | K124: 56.86465605 | L124: 90.26878188 | M124: 39.91668293 | N124: 47.18027517 | O124: 59.54799346 | P124: 62.93447676 | Q124: 66.55519686 | R124: 39.76923077 | S124: 77.58153337 | T124: 57.99963213 | U124: 27.14193121 | V124: 54.14896704 | W124: 52.36096039 | X124: 43.16148319 | Y124: 39.53241153 | BA124: Sanitation ladder | BB124: Basic | BC124: 3637.625746 | BD124: 4850.324894 | BE124: 4599.672438 | BF124: 4520.234307 | BG124: 6364.002081 | BH124: 1165.054558 | BI124: 1154.980023 | BJ124: 1379.774205 | BK124: 1982.455375 | BL124: 3146.300308 | BM124: 2191.64795 | BN124: 2584.442413 | BO124: 3259.730337 | BP124: 3462.837882 | BQ124: 3644.636415 | BR124: 599.432031 | BS124: 4547.291067 | BT124: 6452.015165 | BU124: 1047.925496 | BV124: 6158.186336 | BW124: 2690.803815 | BX124: 1306.84578 | BY124: 1169.359776
B125: Limited | C125: =C122*C128/100 -> 19.51378813 | D125: =D122*D128/100 -> 24.90160677 | E125: =E122*E128/100 -> 38.84920177 | F125: 44.248499 | G125: 26.54284798 | H125: 47.81734218 | I125: 60.8503953 | J125: 57.20449839 | K125: 38.88835852 | L125: 9.379380435 | M125: 17.88230176 | N125: 21.76842121 | O125: 22.02356746 | P125: 26.26160282 | Q125: 27.90471063 | R125: 57.69230769 | S125: 8.83883316 | T125: 36.05018278 | U125: 3.565522876 | V125: 41.63162368 | W125: 34.08044317 | X125: 33.9878004 | Y125: 25.97565938 | BB125: Limited | BC125: 1750.739086 | BD125: 2236.594079 | BE125: 3482.094671 | BF125: 3970.879237 | BG125: 2378.759979 | BH125: 1666.04548 | BI125: 2120.365121 | BJ125: 1997.038078 | BK125: 1355.753129 | BL125: 326.916426 | BM125: 981.837846 | BN125: 1192.431177 | BO125: 1205.597146 | BP125: 1444.989738 | BQ125: 1528.092911 | BR125: 869.58225 | BS125: 518.071058 | BT125: 4010.306918 | BU125: 137.661624 | BV125: 4734.629488 | BW125: 1751.377091 | BX125: 1029.084504 | BY125: 768.354119
B126: Unimproved | C126: =100-C124-C125-C127 -> 24.96063743 | D126: =100-D124-D125-D127 -> 15.95749825 | E126: =100-E124-E125-E127 -> 8.753397956 | F126: 5.013440934 | G126: 2.251839642 | H126: 16.48516784 | I126: 5.196690359 | J126: 3.272323685 | K126: 3.748156732 | L126: 0.3518376843 | M126: 26.46386679 | N126: 18.39018097 | O126: 14.86911738 | P126: 9.831388223 | Q126: 5.12766113 | R126: 0.5384615385 | S126: 11.91310797 | T126: 3.389316454 | U126: 59.48765188 | V126: 4.138539483 | W126: 4.488742863 | X126: 4.270756434 | Y126: 30.31422791 | BB126: Unimproved | BC126: 2239.419802 | BD126: 1434.423401 | BE126: 784.576233 | BF126: 450.197877 | BG126: 202.123081 | BH126: 575.409375 | BI126: 181.405243 | BJ126: 114.238481 | BK126: 130.896361 | BL126: 12.263232 | BM126: 1453.013506 | BN126: 1007.37784 | BO126: 813.953757 | BP126: 540.951563 | BQ126: 281.231036 | BR126: 8.116101 | BS126: 698.263712 | BT126: 377.494232 | BU126: 2296.764612 | BV126: 471.112496 | BW126: 230.674272 | BX126: 129.3102 | BY126: 899.004769
B127: Open defecation | C127: 14.9804934 | D127: 5.138747534 | E127: 1.07955298 | F127: 0.367960332 | G127: 0.1940538706 | H127: 2.259139622 | I127: 0.8072120939 | J127: 0 | K127: 0.4988286938 | L127: 0 | M127: 15.73714852 | N127: 12.66112264 | O127: 3.559321706 | P127: 0.9725321981 | Q127: 0.4124313825 | R127: 2 | S127: 1.666525499 | T127: 2.560868639 | U127: 9.804894041 | V127: 0.08086979962 | W127: 9.069853575 | X127: 18.57995998 | Y127: 4.177701176 | BB127: Open defecation | BC127: 1344.020707 | BD127: 461.611311 | BE127: 96.761465 | BF127: 33.021987 | BG127: 17.391645 | BH127: 78.736573 | BI127: 28.130379 | BJ127: 0 | BK127: 17.391645 | BL127: 0 | BM127: 864.057 | BN127: 693.551325 | BO127: 194.841644 | BP127: 53.511549 | BQ127: 22.587 | BR127: 30.145518 | BS127: 97.680159 | BT127: 284.889092 | BU127: 378.55812 | BV127: 9.197424 | BW127: 466.095282 | BX127: 562.565058 | BY127: 123.676462
A128: Shared among Improved Sanitation | B128: Yes | C128: 32.49110149 | D128: 31.55947017 | E128: 43.08580814 | F128: 46.76511763 | G128: 27.20833488 | H128: 58.84799045 | I128: 64.73715068 | J128: 59.13974218 | K128: 40.61319499 | L128: 9.412497147 | M128: 30.9387818 | N128: 31.57191123 | O128: 26.99907567 | P128: 29.44255279 | Q128: 29.5413275 | R128: 59.1949487 | S128: 10.22772006 | T128: 38.33094495 | U128: 11.61126177 | V128: 43.46561591 | W128: 39.42606409 | X128: 44.05458977 | Y128: 39.65260924 | BA128: Shared among improved sanitation facilities | BB128: Yes | BC128: N/A | BD128: N/A | BE128: N/A | BF128: N/A | BG128: N/A | BH128: N/A | BI128: N/A | BJ128: N/A | BK128: N/A | BL128: N/A | BM128: N/A | BN128: N/A | BO128: N/A | BP128: N/A | BQ128: N/A | BR128: N/A | BS128: N/A | BT128: N/A | BU128: N/A | BV128: N/A | BW128: N/A | BX128: N/A | BY128: N/A
B129: No | C129: 67.50889851 | D129: 68.44052983 | E129: 56.91419186 | F129: 53.23488237 | G129: 72.79166512 | H129: 41.15200955 | I129: 35.26284932 | J129: 40.86025782 | K129: 59.38680501 | L129: 90.58750285 | M129: 69.0612182 | N129: 68.42808877 | O129: 73.00092433 | P129: 70.55744721 | Q129: 70.4586725 | R129: 40.8050513 | S129: 89.77227994 | T129: 61.66905505 | U129: 88.38873823 | V129: 56.53438409 | W129: 60.57393591 | X129: 55.94541023 | Y129: 60.34739076 | BB129: No | BC129: N/A | BD129: N/A | BE129: N/A | BF129: N/A | BG129: N/A | BH129: N/A | BI129: N/A | BJ129: N/A | BK129: N/A | BL129: N/A | BM129: N/A | BN129: N/A | BO129: N/A | BP129: N/A | BQ129: N/A | BR129: N/A | BS129: N/A | BT129: N/A | BU129: N/A | BV129: N/A | BW129: N/A | BX129: N/A | BY129: N/A
A130: Manually calculated ratios | B130: Improved latrines | C130: =C159/(C159+C160)*100 -> 70.71277247 | D130: =D159/(D159+D160)*100 -> 83.4020261 | E130: 91.15481019 | F130: 94.40012915 | G130: 97.18475085 | H130: 83.03425308 | I130: 94.04024695 | J130: 95.26695858 | K130: 95.01839463 | L130: 100 | M130: 68.77168745 | N130: 79.15311739 | O130: 84.64162409 | P130: 90.15406882 | Q130: 95.50588981 | R130: 100 | S130: 87.76485436 | T130: 97.34682523 | U130: 32.84369305 | V130: 93.64944962 | W130: 95.57817916 | X130: 94.72116191 | Y130: 66.10332657
B131: Other
B132: Other
C133: NATIONAL wealth index quintile | H133: URBAN wealth index quintile | M133: RURAL wealth index quintile | R133: SUB-REGIONS: | BA133: Raw numbers of respondents: | BB133: Use of sanitation facilities | BC133: NATIONAL wealth index quintile | BH133: URBAN wealth index quintile | BM133: RURAL wealth index quintile | BR133: SUB-REGIONS:
A134: Percentage based on weighted population | C134: Poorest | D134: Poor | E134: Middle | F134: Rich | G134: Richest | H134: Poorest | I134: Poor | J134: Middle | K134: Rich | L134: Richest | M134: Poorest | N134: Poor | O134: Middle | P134: Rich | Q134: Richest | R134: Banjul | S134: Basse | T134: Brikama | U134: Janjanburay | V134: Kanifing | W134: Kerewan | X134: Kuntaur | Y134: Mansakonko | BA134: Sanitation data, raw numbers (weighted) | BC134: Poorest | BD134: Poor | BE134: Middle | BF134: Rich | BG134: Richest | BH134: Poorest | BI134: Poor | BJ134: Middle | BK134: Rich | BL134: Richest | BM134: Poorest | BN134: Poor | BO134: Middle | BP134: Rich | BQ134: Richest | BR134: Banjul | BS134: Basse | BT134: Brikama | BU134: Janjanburay | BV134: Kanifing | BW134: Kerewan | BX134: Kuntaur | BY134: Mansakonko
A135: Sanitation type | B135: Sewer connection | C135: 0 | D135: 0.09030386439 | E135: 1.118735217 | F135: 2.909511419 | G135: 12.7533064 | H135: 0.5752401548 | I135: 5.098182266 | J135: 7.016491812 | K135: 12.76834877 | L135: 13.12608101 | M135: 0 | N135: 0 | O135: 0 | P135: 0 | Q135: 3.062679693 | R135: 45.53846154 | S135: 0 | T135: 1.739766085 | U135: 0.1621621908 | V135: 5.278750337 | W135: 0.5256292352 | X135: 0 | Y135: 0 | BA135: Sanitation type | BB135: Sewer connection | BC135: N/A | BD135: N/A | BE135: N/A | BF135: N/A | BG135: N/A | BH135: N/A | BI135: N/A | BJ135: N/A | BK135: N/A | BL135: N/A | BM135: N/A | BN135: N/A | BO135: N/A | BP135: N/A | BQ135: N/A | BR135: N/A | BS135: N/A | BT135: N/A | BU135: N/A | BV135: N/A | BW135: N/A | BX135: N/A | BY135: N/A
B136: Septic tank connection | C136: 0 | D136: 0.048607197 | E136: 2.45428325 | F136: 8.450568499 | G136: 44.05130463 | H136: 2.598814911 | I136: 7.158935357 | J136: 15.84393947 | K136: 31.34950714 | L136: 68.22326177 | M136: 0 | N136: 0 | O136: 0 | P136: 0.9851114679 | Q136: 9.414999712 | R136: 27.38461538 | S136: 0.9361512611 | T136: 4.42304536 | U136: 0.9795440311 | V136: 32.91139241 | W136: 1.181730131 | X136: 0.5166979776 | Y136: 3.914657771 | BB136: Septic tank connection | BC136: N/A | BD136: N/A | BE136: N/A | BF136: N/A | BG136: N/A | BH136: N/A | BI136: N/A | BJ136: N/A | BK136: N/A | BL136: N/A | BM136: N/A | BN136: N/A | BO136: N/A | BP136: N/A | BQ136: N/A | BR136: N/A | BS136: N/A | BT136: N/A | BU136: N/A | BV136: N/A | BW136: N/A | BX136: N/A | BY136: N/A
B137: Improved latrines | C137: 60.05886917 | D137: 78.76484315 | E137: 86.5940306 | F137: 83.25851882 | G137: 40.74949545 | H137: 78.08163747 | I137: 81.73897992 | J137: 73.86724503 | K137: 51.63515866 | L137: 18.29881954 | M137: 57.79898468 | N137: 68.94869638 | O137: 81.57156092 | P137: 88.21096811 | Q137: 81.98222808 | R137: 24.53846154 | S137: 85.48421527 | T137: 87.88700346 | U137: 29.56574786 | V137: 57.59044798 | W137: 84.7340442 | X137: 76.63258561 | Y137: 61.59341314 | BB137: Improved latrines | BC137: N/A | BD137: N/A | BE137: N/A | BF137: N/A | BG137: N/A | BH137: N/A | BI137: N/A | BJ137: N/A | BK137: N/A | BL137: N/A | BM137: N/A | BN137: N/A | BO137: N/A | BP137: N/A | BQ137: N/A | BR137: N/A | BS137: N/A | BT137: N/A | BU137: N/A | BV137: N/A | BW137: N/A | BX137: N/A | BY137: N/A
B138: Unimproved facilities | C138: 24.96063743 | D138: 15.96012375 | E138: 8.753397956 | F138: 5.013650319 | G138: 2.252111016 | H138: 16.48814041 | I138: 5.197872195 | J138: 3.272323685 | K138: 3.748886727 | L138: 0.3518376843 | M138: 26.46386679 | N138: 18.39018097 | O138: 14.86911738 | P138: 9.831388223 | Q138: 5.128220751 | R138: 0.5384615385 | S138: 11.91310797 | T138: 3.391028232 | U138: 59.48765188 | V138: 4.138612084 | W138: 4.488742863 | X138: 4.270756434 | Y138: 30.32069798 | BB138: Unimproved facilities | BC138: N/A | BD138: N/A | BE138: N/A | BF138: N/A | BG138: N/A | BH138: N/A | BI138: N/A | BJ138: N/A | BK138: N/A | BL138: N/A | BM138: N/A | BN138: N/A | BO138: N/A | BP138: N/A | BQ138: N/A | BR138: N/A | BS138: N/A | BT138: N/A | BU138: N/A | BV138: N/A | BW138: N/A | BX138: N/A | BY138: N/A
B139: Open defecation | C139: 14.9804934 | D139: 5.136122041 | E139: 1.07955298 | F139: 0.3677509471 | G139: 0.1937824967 | H139: 2.256167049 | I139: 0.8060302581 | J139: 0 | K139: 0.4980986988 | L139: 0 | M139: 15.73714852 | N139: 12.66112264 | O139: 3.559321706 | P139: 0.9725321981 | Q139: 0.4118717612 | R139: 2 | S139: 1.666525499 | T139: 2.559156861 | U139: 9.804894041 | V139: 0.08079719903 | W139: 9.069853575 | X139: 18.57995998 | Y139: 4.171231101 | BB139: Open defecation | BC139: N/A | BD139: N/A | BE139: N/A | BF139: N/A | BG139: N/A | BH139: N/A | BI139: N/A | BJ139: N/A | BK139: N/A | BL139: N/A | BM139: N/A | BN139: N/A | BO139: N/A | BP139: N/A | BQ139: N/A | BR139: N/A | BS139: N/A | BT139: N/A | BU139: N/A | BV139: N/A | BW139: N/A | BX139: N/A | BY139: N/A
A140: Septic tank emptying practices | B140: Not emptied/treated and disposed in situ | C140: N/A | D140: N/A | E140: N/A | F140: N/A | G140: N/A | H140: N/A | I140: N/A | J140: N/A | K140: N/A | L140: N/A | M140: N/A | N140: N/A | O140: N/A | P140: N/A | Q140: N/A | R140: N/A | S140: N/A | T140: N/A | U140: N/A | V140: N/A | W140: N/A | X140: N/A | Y140: N/A | BA140: Septic tank emptying practices | BB140: Not emptied/treated and disposed in situ | BC140: N/A | BD140: N/A | BE140: N/A | BF140: N/A | BG140: N/A | BH140: N/A | BI140: N/A | BJ140: N/A | BK140: N/A | BL140: N/A | BM140: N/A | BN140: N/A | BO140: N/A | BP140: N/A | BQ140: N/A | BR140: N/A | BS140: N/A | BT140: N/A | BU140: N/A | BV140: N/A | BW140: N/A | BX140: N/A | BY140: N/A
B141: Emptied and buried on site | C141: N/A | D141: N/A | E141: N/A | F141: N/A | G141: N/A | H141: N/A | I141: N/A | J141: N/A | K141: N/A | L141: N/A | M141: N/A | N141: N/A | O141: N/A | P141: N/A | Q141: N/A | R141: N/A | S141: N/A | T141: N/A | U141: N/A | V141: N/A | W141: N/A | X141: N/A | Y141: N/A | BB141: Emptied and buried on site | BC141: N/A | BD141: N/A | BE141: N/A | BF141: N/A | BG141: N/A | BH141: N/A | BI141: N/A | BJ141: N/A | BK141: N/A | BL141: N/A | BM141: N/A | BN141: N/A | BO141: N/A | BP141: N/A | BQ141: N/A | BR141: N/A | BS141: N/A | BT141: N/A | BU141: N/A | BV141: N/A | BW141: N/A | BX141: N/A | BY141: N/A
B142: Emptied and discharged locally | C142: N/A | D142: N/A | E142: N/A | F142: N/A | G142: N/A | H142: N/A | I142: N/A | J142: N/A | K142: N/A | L142: N/A | M142: N/A | N142: N/A | O142: N/A | P142: N/A | Q142: N/A | R142: N/A | S142: N/A | T142: N/A | U142: N/A | V142: N/A | W142: N/A | X142: N/A | Y142: N/A | BB142: Emptied and discharged locally | BC142: N/A | BD142: N/A | BE142: N/A | BF142: N/A | BG142: N/A | BH142: N/A | BI142: N/A | BJ142: N/A | BK142: N/A | BL142: N/A | BM142: N/A | BN142: N/A | BO142: N/A | BP142: N/A | BQ142: N/A | BR142: N/A | BS142: N/A | BT142: N/A | BU142: N/A | BV142: N/A | BW142: N/A | BX142: N/A | BY142: N/A
B143: Emptied and removed offsite | C143: N/A | D143: N/A | E143: N/A | F143: N/A | G143: N/A | H143: N/A | I143: N/A | J143: N/A | K143: N/A | L143: N/A | M143: N/A | N143: N/A | O143: N/A | P143: N/A | Q143: N/A | R143: N/A | S143: N/A | T143: N/A | U143: N/A | V143: N/A | W143: N/A | X143: N/A | Y143: N/A | BB143: Emptied and removed offsite | BC143: N/A | BD143: N/A | BE143: N/A | BF143: N/A | BG143: N/A | BH143: N/A | BI143: N/A | BJ143: N/A | BK143: N/A | BL143: N/A | BM143: N/A | BN143: N/A | BO143: N/A | BP143: N/A | BQ143: N/A | BR143: N/A | BS143: N/A | BT143: N/A | BU143: N/A | BV143: N/A | BW143: N/A | BX143: N/A | BY143: N/A
A144: Latrine emptying practices | B144: Not emptied/treated and disposed in situ | C144: N/A | D144: N/A | E144: N/A | F144: N/A | G144: N/A | H144: N/A | I144: N/A | J144: N/A | K144: N/A | L144: N/A | M144: N/A | N144: N/A | O144: N/A | P144: N/A | Q144: N/A | R144: N/A | S144: N/A | T144: N/A | U144: N/A | V144: N/A | W144: N/A | X144: N/A | Y144: N/A | BA144: Latrine emptying practices | BB144: Not emptied/treated and disposed in situ | BC144: N/A | BD144: N/A | BE144: N/A | BF144: N/A | BG144: N/A | BH144: N/A | BI144: N/A | BJ144: N/A | BK144: N/A | BL144: N/A | BM144: N/A | BN144: N/A | BO144: N/A | BP144: N/A | BQ144: N/A | BR144: N/A | BS144: N/A | BT144: N/A | BU144: N/A | BV144: N/A | BW144: N/A | BX144: N/A | BY144: N/A
B145: Emptied and buried on site | C145: N/A | D145: N/A | E145: N/A | F145: N/A | G145: N/A | H145: N/A | I145: N/A | J145: N/A | K145: N/A | L145: N/A | M145: N/A | N145: N/A | O145: N/A | P145: N/A | Q145: N/A | R145: N/A | S145: N/A | T145: N/A | U145: N/A | V145: N/A | W145: N/A | X145: N/A | Y145: N/A | BB145: Emptied and buried on site | BC145: N/A | BD145: N/A | BE145: N/A | BF145: N/A | BG145: N/A | BH145: N/A | BI145: N/A | BJ145: N/A | BK145: N/A | BL145: N/A | BM145: N/A | BN145: N/A | BO145: N/A | BP145: N/A | BQ145: N/A | BR145: N/A | BS145: N/A | BT145: N/A | BU145: N/A | BV145: N/A | BW145: N/A | BX145: N/A | BY145: N/A
B146: Emptied and discharged locally | C146: N/A | D146: N/A | E146: N/A | F146: N/A | G146: N/A | H146: N/A | I146: N/A | J146: N/A | K146: N/A | L146: N/A | M146: N/A | N146: N/A | O146: N/A | P146: N/A | Q146: N/A | R146: N/A | S146: N/A | T146: N/A | U146: N/A | V146: N/A | W146: N/A | X146: N/A | Y146: N/A | BB146: Emptied and discharged locally | BC146: N/A | BD146: N/A | BE146: N/A | BF146: N/A | BG146: N/A | BH146: N/A | BI146: N/A | BJ146: N/A | BK146: N/A | BL146: N/A | BM146: N/A | BN146: N/A | BO146: N/A | BP146: N/A | BQ146: N/A | BR146: N/A | BS146: N/A | BT146: N/A | BU146: N/A | BV146: N/A | BW146: N/A | BX146: N/A | BY146: N/A
B147: Emptied and removed offsite | C147: N/A | D147: N/A | E147: N/A | F147: N/A | G147: N/A | H147: N/A | I147: N/A | J147: N/A | K147: N/A | L147: N/A | M147: N/A | N147: N/A | O147: N/A | P147: N/A | Q147: N/A | R147: N/A | S147: N/A | T147: N/A | U147: N/A | V147: N/A | W147: N/A | X147: N/A | Y147: N/A | BB147: Emptied and removed offsite | BC147: N/A | BD147: N/A | BE147: N/A | BF147: N/A | BG147: N/A | BH147: N/A | BI147: N/A | BJ147: N/A | BK147: N/A | BL147: N/A | BM147: N/A | BN147: N/A | BO147: N/A | BP147: N/A | BQ147: N/A | BR147: N/A | BS147: N/A | BT147: N/A | BU147: N/A | BV147: N/A | BW147: N/A | BX147: N/A | BY147: N/A
A148: Shared among improved sanitation facilities | B148: Yes | C148: 19.51378813 | D148: 24.88548238 | E148: 38.84920177 | F148: 44.22188768 | G148: 26.50479859 | H148: 47.73991006 | I148: 60.75561391 | J148: 57.20449839 | K148: 38.82892443 | L148: 9.379380435 | M148: 17.88230176 | N148: 21.76842121 | O148: 22.02356746 | P148: 26.26160282 | Q148: 27.86462649 | R148: 57.69230769 | S148: 8.83883316 | T148: 36.02456097 | U148: 3.565522876 | V148: 41.59260257 | W148: 34.08044317 | X148: 33.9878004 | Y148: 25.91424872 | BA148: Shared among improved sanitation facilities | BB148: Yes | BC148: N/A | BD148: N/A | BE148: N/A | BF148: N/A | BG148: N/A | BH148: N/A | BI148: N/A | BJ148: N/A | BK148: N/A | BL148: N/A | BM148: N/A | BN148: N/A | BO148: N/A | BP148: N/A | BQ148: N/A | BR148: N/A | BS148: N/A | BT148: N/A | BU148: N/A | BV148: N/A | BW148: N/A | BX148: N/A | BY148: N/A
B149: No | C149: 40.54508104 | D149: 53.96717974 | E149: 51.3178473 | F149: 50.33980685 | G149: 70.90946328 | H149: 33.38420258 | I149: 33.09407406 | J149: 39.52317793 | K149: 56.77774832 | L149: 90.26878188 | M149: 39.91668293 | N149: 47.18027517 | O149: 59.54799346 | P149: 62.93447676 | Q149: 66.45959265 | R149: 39.76923077 | S149: 77.58153337 | T149: 57.95841028 | U149: 27.14193121 | V149: 54.09821348 | W149: 52.36096039 | X149: 43.16148319 | Y149: 39.43895052 | BB149: No | BC149: N/A | BD149: N/A | BE149: N/A | BF149: N/A | BG149: N/A | BH149: N/A | BI149: N/A | BJ149: N/A | BK149: N/A | BL149: N/A | BM149: N/A | BN149: N/A | BO149: N/A | BP149: N/A | BQ149: N/A | BR149: N/A | BS149: N/A | BT149: N/A | BU149: N/A | BV149: N/A | BW149: N/A | BX149: N/A | BY149: N/A
B150: DK/missing | C150: 39.94113083 | D150: 21.14733788 | E150: 9.832950936 | F150: 5.438305463 | G150: 2.585738126 | H150: 18.87588736 | I150: 6.150312023 | J150: 3.272323685 | K150: 4.393327244 | L150: 0.3518376843 | M150: 42.20101532 | N150: 31.05130362 | O150: 18.42843908 | P150: 10.80392042 | Q150: 5.675780853 | R150: 2.538461538 | S150: 13.57963347 | T150: 6.017028743 | U150: 69.29254592 | V150: 4.309183948 | W150: 13.55859644 | X150: 22.85071641 | Y150: 34.64680076 | BB150: DK/missing | BC150: N/A | BD150: N/A | BE150: N/A | BF150: N/A | BG150: N/A | BH150: N/A | BI150: N/A | BJ150: N/A | BK150: N/A | BL150: N/A | BM150: N/A | BN150: N/A | BO150: N/A | BP150: N/A | BQ150: N/A | BR150: N/A | BS150: N/A | BT150: N/A | BU150: N/A | BV150: N/A | BW150: N/A | BX150: N/A | BY150: N/A
A151: Shared among all sanitation facilities | B151: Yes | C151: 30.47954558 | D151: 29.82740121 | E151: 42.69333378 | F151: 46.75553354 | G151: 26.99056098 | H151: 56.55311918 | I151: 64.92186171 | J151: 59.66017099 | K151: 39.85016678 | L151: 9.379380435 | M151: 27.43748406 | N151: 30.38696281 | O151: 26.64664906 | P151: 29.12702598 | Q151: 28.99171624 | R151: 58.92307692 | S151: 10.49123316 | T151: 37.16475801 | U151: 23.51482243 | V151: 44.30379747 | W151: 39.35037665 | X151: 37.23415234 | Y151: 37.83158492 | BA151: Shared among all sanitation facilities | BB151: Yes | BC151: N/A | BD151: N/A | BE151: N/A | BF151: N/A | BG151: N/A | BH151: N/A | BI151: N/A | BJ151: N/A | BK151: N/A | BL151: N/A | BM151: N/A | BN151: N/A | BO151: N/A | BP151: N/A | BQ151: N/A | BR151: N/A | BS151: N/A | BT151: N/A | BU151: N/A | BV151: N/A | BW151: N/A | BX151: N/A | BY151: N/A
B152: No | C152: 67.45419583 | D152: 69.54447605 | E152: 57.20969703 | F152: 53.18756226 | G152: 72.86959441 | H152: 43.31530093 | I152: 34.68268936 | J152: 40.33982901 | K152: 60.0034914 | L152: 90.62061956 | M152: 69.68182564 | N152: 68.40558889 | O152: 73.11707504 | P152: 70.87297402 | Q152: 70.87259542 | R152: 41.07692308 | S152: 89.43990054 | T152: 62.65380923 | U152: 76.48517757 | V152: 55.60642787 | W152: 60.55849822 | X152: 55.35264127 | Y152: 62.01354341 | BB152: No | BC152: N/A | BD152: N/A | BE152: N/A | BF152: N/A | BG152: N/A | BH152: N/A | BI152: N/A | BJ152: N/A | BK152: N/A | BL152: N/A | BM152: N/A | BN152: N/A | BO152: N/A | BP152: N/A | BQ152: N/A | BR152: N/A | BS152: N/A | BT152: N/A | BU152: N/A | BV152: N/A | BW152: N/A | BX152: N/A | BY152: N/A
A153: Kind of toilet facility | B153: Flush to piped sewer system | C153: 0 | D153: 0.09030386439 | E153: 1.118735217 | F153: 2.909511419 | G153: 12.7533064 | H153: 0.5752401548 | I153: 5.098182266 | J153: 7.016491812 | K153: 12.76834877 | L153: 13.12608101 | M153: 0 | N153: 0 | O153: 0 | P153: 0 | Q153: 3.062679693 | R153: 45.53846154 | S153: 0 | T153: 1.739766085 | U153: 0.1621621908 | V153: 5.278750337 | W153: 0.5256292352 | X153: 0 | Y153: 0 | BA153: Kind of toilet facility | BB153: Flush to piped sewer system | BC153: 0 | BD153: 8.116101 | BE153: 100.27341 | BF153: 261.257922 | BG153: 1144.587263 | BH153: 20.074949 | BI153: 177.926074 | BJ153: 244.949291 | BK153: 445.820456 | BL153: 457.506924 | BM153: 0 | BN153: 0 | BO153: 0 | BP153: 0 | BQ153: 167.957002 | BR153: 686.390256 | BS153: 0 | BT153: 193.67331 | BU153: 6.260936 | BV153: 600.898368 | BW153: 27.011826 | BX153: 0 | BY153: 0
B154: Flush to septic tank | C154: 0 | D154: 0.048607197 | E154: 2.45428325 | F154: 8.450568499 | G154: 44.05130463 | H154: 2.598814911 | I154: 7.158935357 | J154: 15.84393947 | K154: 31.34950714 | L154: 68.22326177 | M154: 0 | N154: 0 | O154: 0 | P154: 0.9851114679 | Q154: 9.414999712 | R154: 27.38461538 | S154: 0.9361512611 | T154: 4.42304536 | U154: 0.9795440311 | V154: 32.91139241 | W154: 1.181730131 | X154: 0.5166979776 | Y154: 3.914657771 | BB154: Flush to septic tank | BC154: 0 | BD154: 4.368594 | BE154: 219.97998 | BF154: 758.813989 | BG154: 3953.528646 | BH154: 90.694428 | BI154: 249.84616 | BJ154: 553.11997 | BK154: 1094.601332 | BL154: 2377.908121 | BM154: 0 | BN154: 0 | BO154: 0 | BP154: 54.203697 | BQ154: 516.317501 | BR154: 412.761708 | BS154: 54.87069 | BT154: 492.379891 | BU154: 37.819312 | BV154: 3746.417376 | BW154: 60.728526 | BX154: 15.64461 | BY154: 116.069096
B155: Flush to pit (latrine) | C155: 0.5950282354 | D155: 0.7105538572 | E155: 2.958391023 | F155: 4.570569477 | G155: 5.75713684 | H155: 2.378151855 | I155: 5.508276856 | J155: 7.147544704 | K155: 6.596579839 | L155: 5.342496609 | M155: 0.8699541972 | N155: 0.188074041 | O155: 0.5988196775 | P155: 2.336291251 | Q155: 2.713766817 | R155: 1.846153846 | S155: 0 | T155: 1.929462941 | U155: 0.747179735 | V155: 7.101176048 | W155: 2.954944286 | X155: 0 | Y155: 2.625471736 | BB155: Flush to pit (latrine) | BC155: 53.384775 | BD155: 63.861352 | BE155: 265.163688 | BF155: 410.411685 | BG155: 516.693106 | BH155: 82.993645 | BI155: 192.238336 | BJ155: 249.524414 | BK155: 230.32659 | BL155: 186.211649 | BM155: 47.765325 | BN155: 10.302325 | BO155: 32.780125 | BP155: 128.549537 | BQ155: 148.82266 | BR155: 27.826632 | BS155: 0 | BT155: 214.790642 | BU155: 28.847936 | BV155: 808.351376 | BW155: 151.853123 | BX155: 0 | BY155: 77.844897
B156: Flush to somewhere else | C156: 0 | D156: 0 | E156: 0.01687723208 | F156: 0.339668426 | G156: 1.274508538 | H156: 0.0433465404 | I156: 0.1517062606 | J156: 0.02166574052 | K156: 1.463418187 | L156: 0.3518376843 | M156: 0 | N156: 0 | O156: 0 | P156: 0 | Q156: 1.376267457 | R156: 0 | S156: 0 | T156: 0.7459295357 | U156: 0 | V156: 0.5566029267 | W156: 0 | X156: 0 | Y156: 0 | BB156: Flush to somewhere else | BC156: 0 | BD156: 0 | BE156: 1.512724 | BF156: 30.500333 | BG156: 114.384944 | BH156: 1.512724 | BI156: 5.294534 | BJ156: 0.756362 | BK156: 51.0968 | BL156: 12.263232 | BM156: 0 | BN156: 0 | BO156: 0 | BP156: 0 | BQ156: 75.474349 | BR156: 0 | BS156: 0 | BT156: 83.037969 | BU156: 0 | BV156: 63.360032 | BW156: 0 | BX156: 0 | BY156: 0
B157: Flush to unknown place/not sure/DK where | C157: 0 | D157: 0 | E157: 0.1116173493 | F157: 0.03873657827 | G157: 0.1033506649 | H157: 0 | I157: 0.3863250977 | J157: 0.2656949047 | K157: 0 | L157: 0 | M157: 0 | N157: 0 | O157: 0 | P157: 0 | Q157: 0 | R157: 0.8461538462 | S157: 0 | T157: 0 | U157: 0 | V157: 0 | W157: 0.1946774945 | X157: 0 | Y157: 0 | BB157: Flush to unknown place/not sure/DK where | BC157: 0 | BD157: 0 | BE157: 10.00438 | BF157: 3.478329 | BG157: 9.275544 | BH157: 0 | BI157: 13.482709 | BJ157: 9.275544 | BK157: 0 | BL157: 0 | BM157: 0 | BN157: 0 | BO157: 0 | BP157: 0 | BQ157: 0 | BR157: 12.753873 | BS157: 0 | BT157: 0 | BU157: 0 | BV157: 0 | BW157: 10.00438 | BX157: 0 | BY157: 0
B158: Ventilated Improved Pit latrine (VIP) | C158: 0.1034230977 | D158: 0.2418202916 | E158: 0.07981109397 | F158: 0.6555706899 | G158: 1.14135427 | H158: 0.05856638767 | I158: 0.3513829677 | J158: 1.024555712 | K158: 1.445894218 | L158: 0.08795942108 | M158: 0 | N158: 0.169391258 | O158: 0.3970263266 | P158: 0 | Q158: 1.18215279 | R158: 0 | S158: 0.5233839356 | T158: 0.4690058455 | U158: 0 | V158: 0.8438818565 | W158: 0.2187002986 | X158: 0 | Y158: 0.312949731 | BB158: Ventilated Improved Pit latrine (VIP) | BC158: 9.278919 | BD158: 21.733709 | BE158: 7.153552 | BF158: 58.866597 | BG158: 102.434578 | BH158: 2.043872 | BI158: 12.263232 | BJ158: 35.76776 | BK158: 50.484932 | BL158: 3.065808 | BM158: 0 | BN158: 9.278919 | BO158: 21.733709 | BP158: 0 | BQ158: 64.829123 | BR158: 0 | BS158: 30.677134 | BT158: 52.210418 | BU158: 0 | BV158: 96.061984 | BW158: 11.2389 | BX158: 0 | BY158: 9.278919
B159: Pit latrine with slab | C159: 59.36041784 | D159: 77.812469 | E159: 83.44421113 | F159: 77.99364207 | G159: 33.74765367 | H159: 75.64491923 | I159: 75.492995 | J159: 65.42944971 | K159: 43.5926846 | L159: 12.86836351 | M159: 56.92903049 | N159: 68.59123108 | O159: 80.57571491 | P159: 85.87467686 | Q159: 78.08630848 | R159: 21.84615385 | S159: 84.96083133 | T159: 85.48853468 | U159: 28.81856813 | V159: 49.64539007 | W159: 81.36572212 | X159: 76.63258561 | Y159: 58.65499168 | BB159: Pit latrine with slab | BC159: 5325.701138 | BD159: 6993.431142 | BE159: 7479.192099 | BF159: 7003.394702 | BG159: 3028.793736 | BH159: 2639.885069 | BI159: 2634.698313 | BJ159: 2284.175304 | BK159: 1522.084874 | BL159: 448.524232 | BM159: 3125.720471 | BN159: 3757.292346 | BO159: 4410.813649 | BP159: 4725.074386 | BQ159: 4282.244173 | BR159: 329.281812 | BS159: 4979.814301 | BT159: 9516.708955 | BU159: 1112.658936 | BV159: 5651.30608 | BW159: 4181.344151 | BX159: 2320.285674 | BY159: 1739.112908
B160: Pit latrine without slab/open pit | C160: 24.58540378 | D160: 15.48558698 | E160: 8.096993281 | F160: 4.626628444 | G160: 0.977602478 | H160: 15.45594147 | I160: 4.784330347 | J160: 3.250657944 | K160: 2.28546854 | L160: 0 | M160: 25.85071885 | N160: 18.0651551 | O160: 14.62060933 | P160: 9.378569039 | Q160: 3.6744171 | R160: 0 | S160: 11.84424167 | T160: 2.329978635 | U160: 58.92603503 | V160: 3.36654996 | W160: 3.764296922 | X160: 4.270756434 | Y160: 30.07729264 | BB160: Pit latrine without slab/open pit | BC160: 2205.754569 | BD160: 1391.774193 | BE160: 725.741994 | BF160: 415.445468 | BG160: 87.738137 | BH160: 539.387305 | BI160: 166.972672 | BJ160: 113.482119 | BK160: 79.799561 | BL160: 0 | BM160: 1419.348273 | BN160: 989.573564 | BO160: 800.350121 | BP160: 516.036135 | BQ160: 201.504611 | BR160: 0 | BS160: 694.227247 | BT160: 259.376636 | BU160: 2275.081092 | BV160: 383.226 | BW160: 193.445354 | BX160: 129.3102 | BY160: 891.787832
B161: Bucket | C161: 0 | D161: 0 | E161: 0.01140158485 | F161: 0 | G161: 0 | H161: 0 | I161: 0.02928191397 | J161: 0 | K161: 0 | L161: 0 | M161: 0 | N161: 0 | O161: 0 | P161: 0 | Q161: 0 | R161: 0 | S161: 0 | T161: 0 | U161: 0 | V161: 0.008977466559 | W161: 0 | X161: 0 | Y161: 0 | BB161: Bucket | BC161: 0 | BD161: 0 | BE161: 1.021936 | BF161: 0 | BG161: 0 | BH161: 0 | BI161: 1.021936 | BJ161: 0 | BK161: 0 | BL161: 0 | BM161: 0 | BN161: 0 | BO161: 0 | BP161: 0 | BQ161: 0 | BR161: 0 | BS161: 0 | BT161: 0 | BU161: 0 | BV161: 1.021936 | BW161: 0 | BX161: 0 | BY161: 0
B162: No facilities or bush or field | C162: 14.9804934 | D162: 5.136122041 | E162: 1.07955298 | F162: 0.3677509471 | G162: 0.1937824967 | H162: 2.256167049 | I162: 0.8060302581 | J162: 0 | K162: 0.4980986988 | L162: 0 | M162: 15.73714852 | N162: 12.66112264 | O162: 3.559321706 | P162: 0.9725321981 | Q162: 0.4118717612 | R162: 2 | S162: 1.666525499 | T162: 2.559156861 | U162: 9.804894041 | V162: 0.08079719903 | W162: 9.069853575 | X162: 18.57995998 | Y162: 4.171231101 | BB162: No facilities or bush or field | BC162: 1344.020707 | BD162: 461.611311 | BE162: 96.761465 | BF162: 33.021987 | BG162: 17.391645 | BH162: 78.736573 | BI162: 28.130379 | BJ162: 0 | BK162: 17.391645 | BL162: 0 | BM162: 864.057 | BN162: 693.551325 | BO162: 194.841644 | BP162: 53.511549 | BQ162: 22.587 | BR162: 30.145518 | BS162: 97.680159 | BT162: 284.889092 | BU162: 378.55812 | BV162: 9.197424 | BW162: 466.095282 | BX162: 562.565058 | BY162: 123.676462
B163: Other | C163: 0.3752336539 | D163: 0.3231757953 | E163: 0.4408681127 | F163: 0 | G163: 0 | H163: 0.9888524017 | I163: 0.2325536739 | J163: 0 | K163: 0 | L163: 0 | M163: 0.6131479425 | N163: 0.3250258689 | O163: 0 | P163: 0.1477806317 | Q163: 0 | R163: 0.5384615385 | S163: 0 | T163: 0.1050400204 | U163: 0.5616168424 | V163: 0.2064817309 | W163: 0.7244459407 | X163: 0 | Y163: 0 | BB163: Other | BC163: 33.665233 | BD163: 29.045572 | BE163: 39.515471 | BF163: 0 | BG163: 0 | BH163: 34.509346 | BI163: 8.116101 | BJ163: 0 | BK163: 0 | BL163: 0 | BM163: 33.665233 | BN163: 17.804276 | BO163: 0 | BP163: 8.13132 | BQ163: 0 | BR163: 8.116101 | BS163: 0 | BT163: 11.693209 | BU163: 21.68352 | BV163: 23.504528 | BW163: 37.228918 | BX163: 0 | BY163: 0
B164: Missing | C164: 0 | D164: 0.1513609676 | E164: 0.1872577456 | F164: 0.04735344896 | G164: 0 | H164: 0 | I164: 0 | J164: 0 | K164: 0 | L164: 0 | M164: 0 | N164: 0 | O164: 0.2485080494 | P164: 0.3050385524 | Q164: 0.07753619476 | R164: 0 | S164: 0.06886630732 | T164: 0.2100800409 | U164: 0 | V164: 0 | W164: 0 | X164: 0 | Y164: 0.2434053463 | BB164: Missing | BC164: 0 | BD164: 13.603636 | BE164: 16.784108 | BF164: 4.252076 | BG164: 0 | BH164: 0 | BI164: 0 | BJ164: 0 | BK164: 0 | BL164: 0 | BM164: 0 | BN164: 0 | BO164: 13.603636 | BP164: 16.784108 | BQ164: 4.252076 | BR164: 0 | BS164: 4.036465 | BT164: 23.386418 | BU164: 0 | BV164: 0 | BW164: 0 | BX164: 0 | BY164: 7.216937
BB165: Total | BC165: 8971.805341 | BD165: 8987.54561 | BE165: 8963.104807 | BF165: 8979.443088 | BG165: 8974.827599 | BH165: 3489.837911 | BI165: 3489.990446 | BJ165: 3491.050764 | BK165: 3491.60619 | BL165: 3485.479966 | BM165: 5490.556302 | BN165: 5477.802755 | BO165: 5474.122884 | BP165: 5502.290732 | BQ165: 5483.988495 | BR165: 1507.2759 | BS165: 5861.305996 | BT165: 11132.14654 | BU165: 3860.909852 | BV165: 11383.3451 | BW165: 5138.95046 | BX165: 3027.805542 | BY165: 2964.987051
A208: =A1026 -> Gambia
A209: =A1034 -> 2006
A210: Access to hygiene facilities
A211: by wealth quintile and sub-national region
A212: Notes:
A213: WHO/UNICEF JMP customised wealth index excludes water,
A214: sanitation and hygiene assets.
A215: Survey used for analysis: | B215: =A1025 -> MICS06
A220: Access to handwashing | C220: NATIONAL wealth index quintile | H220: URBAN wealth index quintile | M220: RURAL wealth index quintile | R220: SUB-REGIONS: | BA220: Raw numbers of respondents: | BB220: Access to handwashing | BC220: NATIONAL wealth index quintile | BH220: URBAN wealth index quintile | BM220: RURAL wealth index quintile | BR220: SUB-REGIONS:
A221: Weighted percentage (used in graphs) | C221: Poorest | D221: Poor | E221: Middle | F221: Rich | G221: Richest | H221: Poorest | I221: Poor | J221: Middle | K221: Rich | L221: Richest | M221: Poorest | N221: Poor | O221: Middle | P221: Rich | Q221: Richest | R221: Banjul | S221: Basse | T221: Brikama | U221: Janjanburay | V221: Kanifing | W221: Kerewan | X221: Kuntaur | Y221: Mansakonko | BA221: Hygiene data, raw numbers (weighted) | BC221: Poorest | BD221: Poor | BE221: Middle | BF221: Rich | BG221: Richest | BH221: Poorest | BI221: Poor | BJ221: Middle | BK221: Rich | BL221: Richest | BM221: Poorest | BN221: Poor | BO221: Middle | BP221: Rich | BQ221: Richest | BR221: Banjul | BS221: Basse | BT221: Brikama | BU221: Janjanburay | BV221: Kanifing | BW221: Kerewan | BX221: Kuntaur | BY221: Mansakonko
A222: Hygiene ladder | B222: Basic | C222: N/A | D222: N/A | E222: N/A | F222: N/A | G222: N/A | H222: N/A | I222: N/A | J222: N/A | K222: N/A | L222: N/A | M222: N/A | N222: N/A | O222: N/A | P222: N/A | Q222: N/A | R222: N/A | S222: N/A | T222: N/A | U222: N/A | V222: N/A | W222: N/A | X222: N/A | Y222: N/A | BA222: Hygiene ladder | BB222: Basic | BC222: N/A | BD222: N/A | BE222: N/A | BF222: N/A | BG222: N/A | BH222: N/A | BI222: N/A | BJ222: N/A | BK222: N/A | BL222: N/A | BM222: N/A | BN222: N/A | BO222: N/A | BP222: N/A | BQ222: N/A | BR222: N/A | BS222: N/A | BT222: N/A | BU222: N/A | BV222: N/A | BW222: N/A | BX222: N/A | BY222: N/A
B223: Limited | C223: N/A | D223: N/A | E223: N/A | F223: N/A | G223: N/A | H223: N/A | I223: N/A | J223: N/A | K223: N/A | L223: N/A | M223: N/A | N223: N/A | O223: N/A | P223: N/A | Q223: N/A | R223: N/A | S223: N/A | T223: N/A | U223: N/A | V223: N/A | W223: N/A | X223: N/A | Y223: N/A | BB223: Limited | BC223: N/A | BD223: N/A | BE223: N/A | BF223: N/A | BG223: N/A | BH223: N/A | BI223: N/A | BJ223: N/A | BK223: N/A | BL223: N/A | BM223: N/A | BN223: N/A | BO223: N/A | BP223: N/A | BQ223: N/A | BR223: N/A | BS223: N/A | BT223: N/A | BU223: N/A | BV223: N/A | BW223: N/A | BX223: N/A | BY223: N/A
B224: No facility | C224: N/A | D224: N/A | E224: N/A | F224: N/A | G224: N/A | H224: N/A | I224: N/A | J224: N/A | K224: N/A | L224: N/A | M224: N/A | N224: N/A | O224: N/A | P224: N/A | Q224: N/A | R224: N/A | S224: N/A | T224: N/A | U224: N/A | V224: N/A | W224: N/A | X224: N/A | Y224: N/A | BB224: No facility | BC224: N/A | BD224: N/A | BE224: N/A | BF224: N/A | BG224: N/A | BH224: N/A | BI224: N/A | BJ224: N/A | BK224: N/A | BL224: N/A | BM224: N/A | BN224: N/A | BO224: N/A | BP224: N/A | BQ224: N/A | BR224: N/A | BS224: N/A | BT224: N/A | BU224: N/A | BV224: N/A | BW224: N/A | BX224: N/A | BY224: N/A
BA225: Observed handwashing place | BB225: Fixed | BC225: N/A | BD225: N/A | BE225: N/A | BF225: N/A | BG225: N/A | BH225: N/A | BI225: N/A | BJ225: N/A | BK225: N/A | BL225: N/A | BM225: N/A | BN225: N/A | BO225: N/A | BP225: N/A | BQ225: N/A | BR225: N/A | BS225: N/A | BT225: N/A | BU225: N/A | BV225: N/A | BW225: N/A | BX225: N/A | BY225: N/A
BB226: Mobile | BC226: N/A | BD226: N/A | BE226: N/A | BF226: N/A | BG226: N/A | BH226: N/A | BI226: N/A | BJ226: N/A | BK226: N/A | BL226: N/A | BM226: N/A | BN226: N/A | BO226: N/A | BP226: N/A | BQ226: N/A | BR226: N/A | BS226: N/A | BT226: N/A | BU226: N/A | BV226: N/A | BW226: N/A | BX226: N/A | BY226: N/A
BA227: Water / Soap | BB227: Water and soap | BC227: N/A | BD227: N/A | BE227: N/A | BF227: N/A | BG227: N/A | BH227: N/A | BI227: N/A | BJ227: N/A | BK227: N/A | BL227: N/A | BM227: N/A | BN227: N/A | BO227: N/A | BP227: N/A | BQ227: N/A | BR227: N/A | BS227: N/A | BT227: N/A | BU227: N/A | BV227: N/A | BW227: N/A | BX227: N/A | BY227: N/A
BB228: Water only | BC228: N/A | BD228: N/A | BE228: N/A | BF228: N/A | BG228: N/A | BH228: N/A | BI228: N/A | BJ228: N/A | BK228: N/A | BL228: N/A | BM228: N/A | BN228: N/A | BO228: N/A | BP228: N/A | BQ228: N/A | BR228: N/A | BS228: N/A | BT228: N/A | BU228: N/A | BV228: N/A | BW228: N/A | BX228: N/A | BY228: N/A
BB229: Soap only | BC229: N/A | BD229: N/A | BE229: N/A | BF229: N/A | BG229: N/A | BH229: N/A | BI229: N/A | BJ229: N/A | BK229: N/A | BL229: N/A | BM229: N/A | BN229: N/A | BO229: N/A | BP229: N/A | BQ229: N/A | BR229: N/A | BS229: N/A | BT229: N/A | BU229: N/A | BV229: N/A | BW229: N/A | BX229: N/A | BY229: N/A
BB230: Neither | BC230: N/A | BD230: N/A | BE230: N/A | BF230: N/A | BG230: N/A | BH230: N/A | BI230: N/A | BJ230: N/A | BK230: N/A | BL230: N/A | BM230: N/A | BN230: N/A | BO230: N/A | BP230: N/A | BQ230: N/A | BR230: N/A | BS230: N/A | BT230: N/A | BU230: N/A | BV230: N/A | BW230: N/A | BX230: N/A | BY230: N/A
BA259: Raw numbers of respondents: | BB259: Menstrual health and hygiene | BC259: NATIONAL wealth index quintile | BH259: URBAN wealth index quintile | BM259: RURAL wealth index quintile | BR259: SUB-REGIONS:
BA260: MHH data, raw numbers (weighted) | BC260: Poorest | BD260: Poor | BE260: Middle | BF260: Rich | BG260: Richest | BH260: Poorest | BI260: Poor | BJ260: Middle | BK260: Rich | BL260: Richest | BM260: Poorest | BN260: Poor | BO260: Middle | BP260: Rich | BQ260: Richest | BR260: Banjul | BS260: Basse | BT260: Brikama | BU260: Janjanburay | BV260: Kanifing | BW260: Kerewan | BX260: Kuntaur | BY260: Mansakonko
BA261: Private place to wash and change | BB261: Yes | BC261: N/A | BD261: N/A | BE261: N/A | BF261: N/A | BG261: N/A | BH261: N/A | BI261: N/A | BJ261: N/A | BK261: N/A | BL261: N/A | BM261: N/A | BN261: N/A | BO261: N/A | BP261: N/A | BQ261: N/A | BR261: N/A | BS261: N/A | BT261: N/A | BU261: N/A | BV261: N/A | BW261: N/A | BX261: N/A | BY261: N/A
BB262: No | BC262: N/A | BD262: N/A | BE262: N/A | BF262: N/A | BG262: N/A | BH262: N/A | BI262: N/A | BJ262: N/A | BK262: N/A | BL262: N/A | BM262: N/A | BN262: N/A | BO262: N/A | BP262: N/A | BQ262: N/A | BR262: N/A | BS262: N/A | BT262: N/A | BU262: N/A | BV262: N/A | BW262: N/A | BX262: N/A | BY262: N/A
BB263: DK/not sure/missing | BC263: N/A | BD263: N/A | BE263: N/A | BF263: N/A | BG263: N/A | BH263: N/A | BI263: N/A | BJ263: N/A | BK263: N/A | BL263: N/A | BM263: N/A | BN263: N/A | BO263: N/A | BP263: N/A | BQ263: N/A | BR263: N/A | BS263: N/A | BT263: N/A | BU263: N/A | BV263: N/A | BW263: N/A | BX263: N/A | BY263: N/A
BA264: Use of menstrual materials | BB264: Materials reusable | BC264: N/A | BD264: N/A | BE264: N/A | BF264: N/A | BG264: N/A | BH264: N/A | BI264: N/A | BJ264: N/A | BK264: N/A | BL264: N/A | BM264: N/A | BN264: N/A | BO264: N/A | BP264: N/A | BQ264: N/A | BR264: N/A | BS264: N/A | BT264: N/A | BU264: N/A | BV264: N/A | BW264: N/A | BX264: N/A | BY264: N/A
BB265: Materials not reusable | BC265: N/A | BD265: N/A | BE265: N/A | BF265: N/A | BG265: N/A | BH265: N/A | BI265: N/A | BJ265: N/A | BK265: N/A | BL265: N/A | BM265: N/A | BN265: N/A | BO265: N/A | BP265: N/A | BQ265: N/A | BR265: N/A | BS265: N/A | BT265: N/A | BU265: N/A | BV265: N/A | BW265: N/A | BX265: N/A | BY265: N/A
BB266: No materials used | BC266: N/A | BD266: N/A | BE266: N/A | BF266: N/A | BG266: N/A | BH266: N/A | BI266: N/A | BJ266: N/A | BK266: N/A | BL266: N/A | BM266: N/A | BN266: N/A | BO266: N/A | BP266: N/A | BQ266: N/A | BR266: N/A | BS266: N/A | BT266: N/A | BU266: N/A | BV266: N/A | BW266: N/A | BX266: N/A | BY266: N/A
BB267: DK/not sure/missing | BC267: N/A | BD267: N/A | BE267: N/A | BF267: N/A | BG267: N/A | BH267: N/A | BI267: N/A | BJ267: N/A | BK267: N/A | BL267: N/A | BM267: N/A | BN267: N/A | BO267: N/A | BP267: N/A | BQ267: N/A | BR267: N/A | BS267: N/A | BT267: N/A | BU267: N/A | BV267: N/A | BW267: N/A | BX267: N/A | BY267: N/A
BA268: Use of menstrual materials with private place to wash and change | BB268: Materials reusable | BC268: N/A | BD268: N/A | BE268: N/A | BF268: N/A | BG268: N/A | BH268: N/A | BI268: N/A | BJ268: N/A | BK268: N/A | BL268: N/A | BM268: N/A | BN268: N/A | BO268: N/A | BP268: N/A | BQ268: N/A | BR268: N/A | BS268: N/A | BT268: N/A | BU268: N/A | BV268: N/A | BW268: N/A | BX268: N/A | BY268: N/A
BB269: Materials not reusable | BC269: N/A | BD269: N/A | BE269: N/A | BF269: N/A | BG269: N/A | BH269: N/A | BI269: N/A | BJ269: N/A | BK269: N/A | BL269: N/A | BM269: N/A | BN269: N/A | BO269: N/A | BP269: N/A | BQ269: N/A | BR269: N/A | BS269: N/A | BT269: N/A | BU269: N/A | BV269: N/A | BW269: N/A | BX269: N/A | BY269: N/A
BB270: No materials used | BC270: N/A | BD270: N/A | BE270: N/A | BF270: N/A | BG270: N/A | BH270: N/A | BI270: N/A | BJ270: N/A | BK270: N/A | BL270: N/A | BM270: N/A | BN270: N/A | BO270: N/A | BP270: N/A | BQ270: N/A | BR270: N/A | BS270: N/A | BT270: N/A | BU270: N/A | BV270: N/A | BW270: N/A | BX270: N/A | BY270: N/A
BA271: Awareness of menstruation before menarche | BB271: Yes | BC271: N/A | BD271: N/A | BE271: N/A | BF271: N/A | BG271: N/A | BH271: N/A | BI271: N/A | BJ271: N/A | BK271: N/A | BL271: N/A | BM271: N/A | BN271: N/A | BO271: N/A | BP271: N/A | BQ271: N/A | BR271: N/A | BS271: N/A | BT271: N/A | BU271: N/A | BV271: N/A | BW271: N/A | BX271: N/A | BY271: N/A
BB272: No | BC272: N/A | BD272: N/A | BE272: N/A | BF272: N/A | BG272: N/A | BH272: N/A | BI272: N/A | BJ272: N/A | BK272: N/A | BL272: N/A | BM272: N/A | BN272: N/A | BO272: N/A | BP272: N/A | BQ272: N/A | BR272: N/A | BS272: N/A | BT272: N/A | BU272: N/A | BV272: N/A | BW272: N/A | BX272: N/A | BY272: N/A
BB273: DK/not sure/missing | BC273: N/A | BD273: N/A | BE273: N/A | BF273: N/A | BG273: N/A | BH273: N/A | BI273: N/A | BJ273: N/A | BK273: N/A | BL273: N/A | BM273: N/A | BN273: N/A | BO273: N/A | BP273: N/A | BQ273: N/A | BR273: N/A | BS273: N/A | BT273: N/A | BU273: N/A | BV273: N/A | BW273: N/A | BX273: N/A | BY273: N/A
BA274: Participation in (all) activities during menstruation | BB274: Yes | BC274: N/A | BD274: N/A | BE274: N/A | BF274: N/A | BG274: N/A | BH274: N/A | BI274: N/A | BJ274: N/A | BK274: N/A | BL274: N/A | BM274: N/A | BN274: N/A | BO274: N/A | BP274: N/A | BQ274: N/A | BR274: N/A | BS274: N/A | BT274: N/A | BU274: N/A | BV274: N/A | BW274: N/A | BX274: N/A | BY274: N/A
BB275: No | BC275: N/A | BD275: N/A | BE275: N/A | BF275: N/A | BG275: N/A | BH275: N/A | BI275: N/A | BJ275: N/A | BK275: N/A | BL275: N/A | BM275: N/A | BN275: N/A | BO275: N/A | BP275: N/A | BQ275: N/A | BR275: N/A | BS275: N/A | BT275: N/A | BU275: N/A | BV275: N/A | BW275: N/A | BX275: N/A | BY275: N/A
BB276: DK/not sure/missing/no such activity | BC276: N/A | BD276: N/A | BE276: N/A | BF276: N/A | BG276: N/A | BH276: N/A | BI276: N/A | BJ276: N/A | BK276: N/A | BL276: N/A | BM276: N/A | BN276: N/A | BO276: N/A | BP276: N/A | BQ276: N/A | BR276: N/A | BS276: N/A | BT276: N/A | BU276: N/A | BV276: N/A | BW276: N/A | BX276: N/A | BY276: N/A
BA277: Participation in specific activities during menstruation | BB277: Did not go to school (amongst those usually attending school) | BC277: N/A | BD277: N/A | BE277: N/A | BF277: N/A | BG277: N/A | BH277: N/A | BI277: N/A | BJ277: N/A | BK277: N/A | BL277: N/A | BM277: N/A | BN277: N/A | BO277: N/A | BP277: N/A | BQ277: N/A | BR277: N/A | BS277: N/A | BT277: N/A | BU277: N/A | BV277: N/A | BW277: N/A | BX277: N/A | BY277: N/A
BB278: Did not go to work (amongst those who usually work) | BC278: N/A | BD278: N/A | BE278: N/A | BF278: N/A | BG278: N/A | BH278: N/A | BI278: N/A | BJ278: N/A | BK278: N/A | BL278: N/A | BM278: N/A | BN278: N/A | BO278: N/A | BP278: N/A | BQ278: N/A | BR278: N/A | BS278: N/A | BT278: N/A | BU278: N/A | BV278: N/A | BW278: N/A | BX278: N/A | BY278: N/A
BB279: Did not participate in social activities | BC279: N/A | BD279: N/A | BE279: N/A | BF279: N/A | BG279: N/A | BH279: N/A | BI279: N/A | BJ279: N/A | BK279: N/A | BL279: N/A | BM279: N/A | BN279: N/A | BO279: N/A | BP279: N/A | BQ279: N/A | BR279: N/A | BS279: N/A | BT279: N/A | BU279: N/A | BV279: N/A | BW279: N/A | BX279: N/A | BY279: N/A
BB280: Did not cook food | BC280: N/A | BD280: N/A | BE280: N/A | BF280: N/A | BG280: N/A | BH280: N/A | BI280: N/A | BJ280: N/A | BK280: N/A | BL280: N/A | BM280: N/A | BN280: N/A | BO280: N/A | BP280: N/A | BQ280: N/A | BR280: N/A | BS280: N/A | BT280: N/A | BU280: N/A | BV280: N/A | BW280: N/A | BX280: N/A | BY280: N/A
BB281: Did not eat with others | BC281: N/A | BD281: N/A | BE281: N/A | BF281: N/A | BG281: N/A | BH281: N/A | BI281: N/A | BJ281: N/A | BK281: N/A | BL281: N/A | BM281: N/A | BN281: N/A | BO281: N/A | BP281: N/A | BQ281: N/A | BR281: N/A | BS281: N/A | BT281: N/A | BU281: N/A | BV281: N/A | BW281: N/A | BX281: N/A | BY281: N/A
BB282: Did not bathe in regular place | BC282: N/A | BD282: N/A | BE282: N/A | BF282: N/A | BG282: N/A | BH282: N/A | BI282: N/A | BJ282: N/A | BK282: N/A | BL282: N/A | BM282: N/A | BN282: N/A | BO282: N/A | BP282: N/A | BQ282: N/A | BR282: N/A | BS282: N/A | BT282: N/A | BU282: N/A | BV282: N/A | BW282: N/A | BX282: N/A | BY282: N/A
BB283: Did not participate in other activities | BC283: N/A | BD283: N/A | BE283: N/A | BF283: N/A | BG283: N/A | BH283: N/A | BI283: N/A | BJ283: N/A | BK283: N/A | BL283: N/A | BM283: N/A | BN283: N/A | BO283: N/A | BP283: N/A | BQ283: N/A | BR283: N/A | BS283: N/A | BT283: N/A | BU283: N/A | BV283: N/A | BW283: N/A | BX283: N/A | BY283: N/A
BB284: DK/not sure/missing/no such activity | BC284: N/A | BD284: N/A | BE284: N/A | BF284: N/A | BG284: N/A | BH284: N/A | BI284: N/A | BJ284: N/A | BK284: N/A | BL284: N/A | BM284: N/A | BN284: N/A | BO284: N/A | BP284: N/A | BQ284: N/A | BR284: N/A | BS284: N/A | BT284: N/A | BU284: N/A | BV284: N/A | BW284: N/A | BX284: N/A | BY284: N/A
BA339: Raw numbers of respondents: | BB339: Basic water, sanitation and hygiene | BC339: NATIONAL wealth index quintile | BH339: URBAN wealth index quintile | BM339: RURAL wealth index quintile | BR339: SUB-REGIONS:
BA340: WatSan data, raw numbers (weighted) | BC340: Poorest | BD340: Poor | BE340: Middle | BF340: Rich | BG340: Richest | BH340: Poorest | BI340: Poor | BJ340: Middle | BK340: Rich | BL340: Richest | BM340: Poorest | BN340: Poor | BO340: Middle | BP340: Rich | BQ340: Richest | BR340: Banjul | BS340: Basse | BT340: Brikama | BU340: Janjanburay | BV340: Kanifing | BW340: Kerewan | BX340: Kuntaur | BY340: Mansakonko
BA341: Use of Basic Water Sanitation and Hygiene | BB341: Yes | BC341: N/A | BD341: N/A | BE341: N/A | BF341: N/A | BG341: N/A | BH341: N/A | BI341: N/A | BJ341: N/A | BK341: N/A | BL341: N/A | BM341: N/A | BN341: N/A | BO341: N/A | BP341: N/A | BQ341: N/A | BR341: N/A | BS341: N/A | BT341: N/A | BU341: N/A | BV341: N/A | BW341: N/A | BX341: N/A | BY341: N/A
BB342: No | BC342: N/A | BD342: N/A | BE342: N/A | BF342: N/A | BG342: N/A | BH342: N/A | BI342: N/A | BJ342: N/A | BK342: N/A | BL342: N/A | BM342: N/A | BN342: N/A | BO342: N/A | BP342: N/A | BQ342: N/A | BR342: N/A | BS342: N/A | BT342: N/A | BU342: N/A | BV342: N/A | BW342: N/A | BX342: N/A | BY342: N/A
BA343: Use of Basic Water and Sanitation | BB343: Yes | BC343: N/A | BD343: N/A | BE343: N/A | BF343: N/A | BG343: N/A | BH343: N/A | BI343: N/A | BJ343: N/A | BK343: N/A | BL343: N/A | BM343: N/A | BN343: N/A | BO343: N/A | BP343: N/A | BQ343: N/A | BR343: N/A | BS343: N/A | BT343: N/A | BU343: N/A | BV343: N/A | BW343: N/A | BX343: N/A | BY343: N/A
BB344: No | BC344: N/A | BD344: N/A | BE344: N/A | BF344: N/A | BG344: N/A | BH344: N/A | BI344: N/A | BJ344: N/A | BK344: N/A | BL344: N/A | BM344: N/A | BN344: N/A | BO344: N/A | BP344: N/A | BQ344: N/A | BR344: N/A | BS344: N/A | BT344: N/A | BU344: N/A | BV344: N/A | BW344: N/A | BX344: N/A | BY344: N/A
BA345: Use of Basic Water and Hygiene | BB345: Yes | BC345: N/A | BD345: N/A | BE345: N/A | BF345: N/A | BG345: N/A | BH345: N/A | BI345: N/A | BJ345: N/A | BK345: N/A | BL345: N/A | BM345: N/A | BN345: N/A | BO345: N/A | BP345: N/A | BQ345: N/A | BR345: N/A | BS345: N/A | BT345: N/A | BU345: N/A | BV345: N/A | BW345: N/A | BX345: N/A | BY345: N/A
BB346: No | BC346: N/A | BD346: N/A | BE346: N/A | BF346: N/A | BG346: N/A | BH346: N/A | BI346: N/A | BJ346: N/A | BK346: N/A | BL346: N/A | BM346: N/A | BN346: N/A | BO346: N/A | BP346: N/A | BQ346: N/A | BR346: N/A | BS346: N/A | BT346: N/A | BU346: N/A | BV346: N/A | BW346: N/A | BX346: N/A | BY346: N/A
BA347: Use of Basic Sanitation and Hygiene | BB347: Yes | BC347: N/A | BD347: N/A | BE347: N/A | BF347: N/A | BG347: N/A | BH347: N/A | BI347: N/A | BJ347: N/A | BK347: N/A | BL347: N/A | BM347: N/A | BN347: N/A | BO347: N/A | BP347: N/A | BQ347: N/A | BR347: N/A | BS347: N/A | BT347: N/A | BU347: N/A | BV347: N/A | BW347: N/A | BX347: N/A | BY347: N/A
BB348: No | BC348: N/A | BD348: N/A | BE348: N/A | BF348: N/A | BG348: N/A | BH348: N/A | BI348: N/A | BJ348: N/A | BK348: N/A | BL348: N/A | BM348: N/A | BN348: N/A | BO348: N/A | BP348: N/A | BQ348: N/A | BR348: N/A | BS348: N/A | BT348: N/A | BU348: N/A | BV348: N/A | BW348: N/A | BX348: N/A | BY348: N/A
BA349: Use of Basic Water | BB349: Yes | BC349: N/A | BD349: N/A | BE349: N/A | BF349: N/A | BG349: N/A | BH349: N/A | BI349: N/A | BJ349: N/A | BK349: N/A | BL349: N/A | BM349: N/A | BN349: N/A | BO349: N/A | BP349: N/A | BQ349: N/A | BR349: N/A | BS349: N/A | BT349: N/A | BU349: N/A | BV349: N/A | BW349: N/A | BX349: N/A | BY349: N/A
BB350: No | BC350: N/A | BD350: N/A | BE350: N/A | BF350: N/A | BG350: N/A | BH350: N/A | BI350: N/A | BJ350: N/A | BK350: N/A | BL350: N/A | BM350: N/A | BN350: N/A | BO350: N/A | BP350: N/A | BQ350: N/A | BR350: N/A | BS350: N/A | BT350: N/A | BU350: N/A | BV350: N/A | BW350: N/A | BX350: N/A | BY350: N/A
BA351: Use of Basic Sanitation | BB351: Yes | BC351: N/A | BD351: N/A | BE351: N/A | BF351: N/A | BG351: N/A | BH351: N/A | BI351: N/A | BJ351: N/A | BK351: N/A | BL351: N/A | BM351: N/A | BN351: N/A | BO351: N/A | BP351: N/A | BQ351: N/A | BR351: N/A | BS351: N/A | BT351: N/A | BU351: N/A | BV351: N/A | BW351: N/A | BX351: N/A | BY351: N/A
BB352: No | BC352: N/A | BD352: N/A | BE352: N/A | BF352: N/A | BG352: N/A | BH352: N/A | BI352: N/A | BJ352: N/A | BK352: N/A | BL352: N/A | BM352: N/A | BN352: N/A | BO352: N/A | BP352: N/A | BQ352: N/A | BR352: N/A | BS352: N/A | BT352: N/A | BU352: N/A | BV352: N/A | BW352: N/A | BX352: N/A | BY352: N/A
BA353: Access to Basic Hygiene | BB353: Yes | BC353: N/A | BD353: N/A | BE353: N/A | BF353: N/A | BG353: N/A | BH353: N/A | BI353: N/A | BJ353: N/A | BK353: N/A | BL353: N/A | BM353: N/A | BN353: N/A | BO353: N/A | BP353: N/A | BQ353: N/A | BR353: N/A | BS353: N/A | BT353: N/A | BU353: N/A | BV353: N/A | BW353: N/A | BX353: N/A | BY353: N/A
BB354: No | BC354: N/A | BD354: N/A | BE354: N/A | BF354: N/A | BG354: N/A | BH354: N/A | BI354: N/A | BJ354: N/A | BK354: N/A | BL354: N/A | BM354: N/A | BN354: N/A | BO354: N/A | BP354: N/A | BQ354: N/A | BR354: N/A | BS354: N/A | BT354: N/A | BU354: N/A | BV354: N/A | BW354: N/A | BX354: N/A | BY354: N/A
C399: INITIAL (national) Wealth Index | H399: URBAN Wealth Index | M399: RURAL Wealth Index
C400: Component Matrix | H400: Component Matrix | M400: Component Matrix
E401: Component | J401: Component | O401: Component
B402: Note: The INITIAL (national) Wealth Index is based on the first component of the Principal Component Analysis (PCA) which has been obtained at national level. The final national-level (NATIONAL) Wealth Index is based on the URBAN and RURAL specific wealth indexes. Regression procedures are used to establish the relationships between the two sets of scores (urban and rural) and the initial (national) wealth factors. This allows best use of the available information for each area and a better precision of the FINAL (NATIONAL) Wealth Index. For dependency reasons, all WASH variables (contained in the generic MICS and DHS scripts) have been excluded from the sets of asset variables used in the PCAs. The PCA can extracts as many components as there are asset variables in the input. Only the first of the components is used to represent the Wealth Index. The scores represent the weights of the asset variables on the Wealth Index (correlations between the variables and the component). The communalities are the proportion of each variable's variance that can be explained by the component. Proportion of explained variance is the part of the model's total variance that is explained by the component. For more information on the procedure used: The DHS Wealth Index, DHS Comparative Reports No. 6, Shea Oscar Rutstein, Kiersten Johnson, ORC Macro International Inc., 2004. The DHS Wealth Index: Approaches for Rural and Urban Areas, Shea O. Rutstein, ORC Macro International Inc., 2008. MICS Methodological Paper No. 4, Review of options for reporting water, sanitation and hygiene coverage by wealth quintile, UNICEF, 2016. | E402: 1 | J402: 1 | O402: 1
C403: Household member owns: black and white tv | E403: 0.7912764801 | H403: Household member owns: vacuum cleaner | J403: 0.7679221241 | M403: Household member owns: Video playerr | O403: 0.6413871906
C404: Household member owns: vacuum cleaner | E404: 0.7806774509 | H404: Household member owns: black and white tv | J404: 0.762984179 | M404: satellit | O404: 0.6249046651
C405: Household member owns: blender | E405: 0.7478942943 | H405: Household member owns: blender | J405: 0.732859817 | M405: Household member owns: black and white tv | O405: 0.6103178969
C406: Household member owns: dish washer | E406: 0.7299220523 | H406: Household member owns: dish washer | J406: 0.6946877426 | M406: Household member owns: vacuum cleaner | O406: 0.6076601661
C407: Household member owns: Video playerr | E407: 0.7220473683 | H407: Household member owns: Video playerr | J407: 0.6766465416 | M407: Household member owns: dish washer | O407: 0.5942617852
C408: Household member owns: sewing machine | E408: 0.7132035395 | H408: Household member owns: sewing machine | J408: 0.6621715564 | M408: Household member owns: video recorder | O408: 0.5757957711
C409: Household member owns: video recorder | E409: 0.6980807552 | H409: satellit | J409: 0.6291099458 | M409: Household cooks at open sky | O409: -0.5496544784
C410: satellit | E410: 0.6833683621 | H410: Household member owns: video recorder | J410: 0.6211707644 | M410: Household cooks on closed owen | O410: 0.5459597142
C411: Household member owns: freezer | E411: 0.6549570906 | H411: Household member owns: freezer | J411: 0.5945273391 | M411: Household member owns: freezer | O411: 0.5362979318
C412: Has mud wall | E412: -0.6188779382 | H412: Has ceramic tile floor | J412: 0.5555822768 | M412: Household member owns: blender | O412: 0.5335851119
C413: Has cement blocks wall | E413: 0.5630886589 | H413: Household member owns: iron | J413: 0.5440480773 | M413: goat0 | O413: 0.5333702658
C414: Household member owns: iron | E414: 0.5483611215 | H414: Household member owns: truck | J414: 0.4878226356 | M414: Has earth/sand floor | O414: -0.519241477
C415: Household cooks at open sky | E415: -0.5470353353 | H415: Has mud wall | J415: -0.4625028057 | M415: Has cement blocks wall | O415: 0.5131587198
... 316 more rows

Sheet MICS10
A2: =A1026 -> Gambia
A3: =A1034 -> 2010
A4: Use of drinking water sources
A5: by wealth quintile and sub-national region
A6: Notes:
A7: WHO/UNICEF JMP customised wealth index excludes water,
A8: sanitation and hygiene assets.
A9: Survey used for analysis: | B9: =A1025 -> MICS10
A10: =B1028 -> 
A11: =B1027 -> 
A14: Use of drinking water sources | C14: NATIONAL wealth index quintile | H14: URBAN wealth index quintile | M14: RURAL wealth index quintile | R14: SUB-REGIONS: | BA14: Raw numbers of respondents: | BB14: Use of drinking water sources | BC14: NATIONAL wealth index quintile | BH14: URBAN wealth index quintile | BM14: RURAL wealth index quintile | BR14: SUB-REGIONS:
A15: Weighted percentage (used in graphs) | C15: Poorest | D15: Poor | E15: Middle | F15: Rich | G15: Richest | H15: Poorest | I15: Poor | J15: Middle | K15: Rich | L15: Richest | M15: Poorest | N15: Poor | O15: Middle | P15: Rich | Q15: Richest | R15: Banjul | S15: Basse | T15: Brikama | U15: Janjanburay | V15: Kanifing | W15: Kerewan | X15: Kuntaur | Y15: Mansakonko | BA15: Water data, raw numbers (weighted) | BC15: Poorest | BD15: Poor | BE15: Middle | BF15: Rich | BG15: Richest | BH15: Poorest | BI15: Poor | BJ15: Middle | BK15: Rich | BL15: Richest | BM15: Poorest | BN15: Poor | BO15: Middle | BP15: Rich | BQ15: Richest | BR15: Banjul | BS15: Basse | BT15: Brikama | BU15: Janjanburay | BV15: Kanifing | BW15: Kerewan | BX15: Kuntaur | BY15: Mansakonko
A16: Water | B16: Improved | C16: 74.73544787 | D16: 80.25846548 | E16: 86.73286566 | F16: 89.83278665 | G16: 97.61792207 | H16: 89.16361938 | I16: 93.28907075 | J16: 95.26975298 | K16: 97.48745104 | L16: 98.5760516 | M16: 72.4519171 | N16: 74.85439922 | O16: 78.72440149 | P16: 78.97190468 | Q16: 85.26369928 | R16: 100 | S16: 88.26014113 | T16: 80.39487228 | U16: 70.26512635 | V16: 99.59178307 | W16: 82.94846414 | X16: 85.62126298 | Y16: 79.7222429 | BA16: Water | BB16: Improved | BC16: N/A | BD16: N/A | BE16: N/A | BF16: N/A | BG16: N/A | BH16: N/A | BI16: N/A | BJ16: N/A | BK16: N/A | BL16: N/A | BM16: N/A | BN16: N/A | BO16: N/A | BP16: N/A | BQ16: N/A | BR16: N/A | BS16: N/A | BT16: N/A | BU16: N/A | BV16: N/A | BW16: N/A | BX16: N/A | BY16: N/A
B17: Not Improved | C17: 25.26455213 | D17: 19.74153452 | E17: 13.26713434 | F17: 10.16721335 | G17: 2.382077929 | H17: 10.83638062 | I17: 6.710929248 | J17: 4.730247018 | K17: 2.512548962 | L17: 1.423948397 | M17: 27.5480829 | N17: 25.14560078 | O17: 21.27559851 | P17: 21.02809532 | Q17: 14.73630072 | R17: 0 | S17: 11.73985887 | T17: 19.60512772 | U17: 29.73487365 | V17: 0.4082169301 | W17: 17.05153586 | X17: 14.37873702 | Y17: 20.2777571 | BB17: Not Improved | BC17: N/A | BD17: N/A | BE17: N/A | BF17: N/A | BG17: N/A | BH17: N/A | BI17: N/A | BJ17: N/A | BK17: N/A | BL17: N/A | BM17: N/A | BN17: N/A | BO17: N/A | BP17: N/A | BQ17: N/A | BR17: N/A | BS17: N/A | BT17: N/A | BU17: N/A | BV17: N/A | BW17: N/A | BX17: N/A | BY17: N/A
A18: Water ladder | B18: Basic | C18: =C16*C23/100 -> 58.80429345 | D18: =D16*D23/100 -> 65.40831299 | E18: =E16*E23/100 -> 74.38726794 | F18: 77.51880971 | G18: 94.08881985 | H18: 81.04643675 | I18: 86.30376942 | J18: 90.67735187 | K18: 95.47883332 | L18: 98.24989973 | M18: 55.14470621 | N18: 59.59359514 | O18: 61.5190718 | P18: 61.94253536 | Q18: 64.49588329 | R18: 100 | S18: 53.3494209 | T18: 75.01218435 | U18: 66.51188585 | V18: 97.36338035 | W18: 77.23111355 | X18: 36.97269381 | Y18: 72.49098291 | BA18: Water ladder | BB18: Basic | BC18: N/A | BD18: N/A | BE18: N/A | BF18: N/A | BG18: N/A | BH18: N/A | BI18: N/A | BJ18: N/A | BK18: N/A | BL18: N/A | BM18: N/A | BN18: N/A | BO18: N/A | BP18: N/A | BQ18: N/A | BR18: N/A | BS18: N/A | BT18: N/A | BU18: N/A | BV18: N/A | BW18: N/A | BX18: N/A | BY18: N/A
B19: Limited | C19: =C16*C22/100 -> 15.93115442 | D19: =D16*D22/100 -> 14.85015249 | E19: =E16*E22/100 -> 12.34559772 | F19: 12.31397694 | G19: 3.529102222 | H19: 8.11718263 | I19: 6.98530133 | J19: 4.592401112 | K19: 2.008617719 | L19: 0.3261518757 | M19: 17.30721088 | N19: 15.26080409 | O19: 17.20532969 | P19: 17.02936932 | Q19: 20.76781599 | R19: 0 | S19: 34.91072024 | T19: 5.382687935 | U19: 3.753240503 | V19: 2.22840272 | W19: 5.717350595 | X19: 48.64856917 | Y19: 7.231259981 | BB19: Limited | BC19: N/A | BD19: N/A | BE19: N/A | BF19: N/A | BG19: N/A | BH19: N/A | BI19: N/A | BJ19: N/A | BK19: N/A | BL19: N/A | BM19: N/A | BN19: N/A | BO19: N/A | BP19: N/A | BQ19: N/A | BR19: N/A | BS19: N/A | BT19: N/A | BU19: N/A | BV19: N/A | BW19: N/A | BX19: N/A | BY19: N/A
B20: Unimproved | C20: =100-C18-C19-C21 -> 25.24398526 | D20: =100-D18-D19-D21 -> 19.66712222 | E20: =100-E18-E19-E21 -> 13.23987499 | F20: 10.16721335 | G20: 2.382077929 | H20: 10.83638062 | I20: 6.710929248 | J20: 4.730247018 | K20: 2.512548962 | L20: 1.423948397 | M20: 27.5100148 | N20: 25.01166891 | O20: 21.27559851 | P20: 20.98208459 | Q20: 14.73630072 | R20: 0 | S20: 11.73985887 | T20: 19.60512772 | U20: 29.44987656 | V20: 0.4082169301 | W20: 17.05153586 | X20: 14.37873702 | Y20: 20.2777571 | BB20: Unimproved | BC20: N/A | BD20: N/A | BE20: N/A | BF20: N/A | BG20: N/A | BH20: N/A | BI20: N/A | BJ20: N/A | BK20: N/A | BL20: N/A | BM20: N/A | BN20: N/A | BO20: N/A | BP20: N/A | BQ20: N/A | BR20: N/A | BS20: N/A | BT20: N/A | BU20: N/A | BV20: N/A | BW20: N/A | BX20: N/A | BY20: N/A
B21: Surface water | C21: 0.02056686788 | D21: 0.07441230125 | E21: 0.02725934881 | F21: 0 | G21: 0 | H21: 0 | I21: 0 | J21: 0 | K21: 0 | L21: 0 | M21: 0.03806810203 | N21: 0.1339318661 | O21: 0 | P21: 0.0460107222 | Q21: 0 | R21: 0 | S21: 0 | T21: 0 | U21: 0.2849970921 | V21: 0 | W21: 0 | X21: 0 | Y21: 0 | BB21: Surface water | BC21: N/A | BD21: N/A | BE21: N/A | BF21: N/A | BG21: N/A | BH21: N/A | BI21: N/A | BJ21: N/A | BK21: N/A | BL21: N/A | BM21: N/A | BN21: N/A | BO21: N/A | BP21: N/A | BQ21: N/A | BR21: N/A | BS21: N/A | BT21: N/A | BU21: N/A | BV21: N/A | BW21: N/A | BX21: N/A | BY21: N/A
A22: Improved water point at more than 30 minutes | B22: Yes | C22: 21.31673105 | D22: 18.50291107 | E22: 14.23404799 | F22: 13.70766443 | G22: 3.61521957 | H22: 9.103693509 | I22: 7.487802455 | J22: 4.82041883 | K22: 2.060385924 | L22: 0.3308631969 | M22: 23.88785774 | N22: 20.38731757 | O22: 21.85514195 | P22: 21.56383259 | Q22: 24.35716039 | R22: 0 | S22: 39.55434445 | T22: 6.695312503 | U22: 5.341540957 | V22: 2.237536723 | W22: 6.892653956 | X22: 56.81832699 | Y22: 9.070567659 | BA22: Improved water point at more than 30 minutes | BB22: Yes | BC22: N/A | BD22: N/A | BE22: N/A | BF22: N/A | BG22: N/A | BH22: N/A | BI22: N/A | BJ22: N/A | BK22: N/A | BL22: N/A | BM22: N/A | BN22: N/A | BO22: N/A | BP22: N/A | BQ22: N/A | BR22: N/A | BS22: N/A | BT22: N/A | BU22: N/A | BV22: N/A | BW22: N/A | BX22: N/A | BY22: N/A
B23: No | C23: 78.68326895 | D23: 81.49708893 | E23: 85.76595201 | F23: 86.29233557 | G23: 96.38478043 | H23: 90.89630649 | I23: 92.51219755 | J23: 95.17958117 | K23: 97.93961408 | L23: 99.6691368 | M23: 76.11214226 | N23: 79.61268243 | O23: 78.14485805 | P23: 78.43616741 | Q23: 75.64283961 | R23: 100 | S23: 60.44565555 | T23: 93.3046875 | U23: 94.65845904 | V23: 97.76246328 | W23: 93.10734604 | X23: 43.18167301 | Y23: 90.92943234 | BB23: No | BC23: N/A | BD23: N/A | BE23: N/A | BF23: N/A | BG23: N/A | BH23: N/A | BI23: N/A | BJ23: N/A | BK23: N/A | BL23: N/A | BM23: N/A | BN23: N/A | BO23: N/A | BP23: N/A | BQ23: N/A | BR23: N/A | BS23: N/A | BT23: N/A | BU23: N/A | BV23: N/A | BW23: N/A | BX23: N/A | BY23: N/A
A24: Manually calculated ratios | B24: Improved wells
B25: Improved springs
B26: Other
C27: NATIONAL wealth index quintile | H27: URBAN wealth index quintile | M27: RURAL wealth index quintile | R27: SUB-REGIONS: | BA27: Raw numbers of respondents: | BB27: Use of drinking water sources | BC27: NATIONAL wealth index quintile | BH27: URBAN wealth index quintile | BM27: RURAL wealth index quintile | BR27: SUB-REGIONS:
A28: Percentage based on weighted population | C28: Poorest | D28: Poor | E28: Middle | F28: Rich | G28: Richest | H28: Poorest | I28: Poor | J28: Middle | K28: Rich | L28: Richest | M28: Poorest | N28: Poor | O28: Middle | P28: Rich | Q28: Richest | R28: Banjul | S28: Basse | T28: Brikama | U28: Janjanburay | V28: Kanifing | W28: Kerewan | X28: Kuntaur | Y28: Mansakonko | BA28: Water data, raw numbers (weighted) | BC28: Poorest | BD28: Poor | BE28: Middle | BF28: Rich | BG28: Richest | BH28: Poorest | BI28: Poor | BJ28: Middle | BK28: Rich | BL28: Richest | BM28: Poorest | BN28: Poor | BO28: Middle | BP28: Rich | BQ28: Richest | BR28: Banjul | BS28: Basse | BT28: Brikama | BU28: Janjanburay | BV28: Kanifing | BW28: Kerewan | BX28: Kuntaur | BY28: Mansakonko
A29: Piped water | B29: Yes | C29: 33.69641717 | D29: 51.81069459 | E29: 68.97867129 | F29: 77.66419451 | G29: 92.0139616 | H29: 81.25381911 | I29: 86.45823454 | J29: 90.17500697 | K29: 93.9647867 | L29: 97.20891897 | M29: 28.90453792 | N29: 35.77535762 | O29: 40.62141017 | P29: 49.8477399 | Q29: 60.06746027 | R29: 100 | S29: 50.56857634 | T29: 63.60141036 | U29: 36.56345598 | V29: 99.03102759 | W29: 62.23110002 | X29: 20.90838827 | Y29: 54.9237745 | BA29: Piped water | BB29: Yes | BC29: N/A | BD29: N/A | BE29: N/A | BF29: N/A | BG29: N/A | BH29: N/A | BI29: N/A | BJ29: N/A | BK29: N/A | BL29: N/A | BM29: N/A | BN29: N/A | BO29: N/A | BP29: N/A | BQ29: N/A | BR29: N/A | BS29: N/A | BT29: N/A | BU29: N/A | BV29: N/A | BW29: N/A | BX29: N/A | BY29: N/A
B30: No | C30: 66.30358283 | D30: 48.18930541 | E30: 31.02132871 | F30: 22.33580549 | G30: 7.986038402 | H30: 18.74618089 | I30: 13.54176546 | J30: 9.824993026 | K30: 6.035213301 | L30: 2.791081027 | M30: 71.09546208 | N30: 64.22464238 | O30: 59.37858983 | P30: 50.1522601 | Q30: 39.93253973 | R30: 0 | S30: 49.43142366 | T30: 36.39858964 | U30: 63.43654402 | V30: 0.9689724079 | W30: 37.76889998 | X30: 79.09161173 | Y30: 45.0762255 | BB30: No | BC30: N/A | BD30: N/A | BE30: N/A | BF30: N/A | BG30: N/A | BH30: N/A | BI30: N/A | BJ30: N/A | BK30: N/A | BL30: N/A | BM30: N/A | BN30: N/A | BO30: N/A | BP30: N/A | BQ30: N/A | BR30: N/A | BS30: N/A | BT30: N/A | BU30: N/A | BV30: N/A | BW30: N/A | BX30: N/A | BY30: N/A
A31: Piped water on premises | B31: Yes | C31: 0.3898719529 | D31: 2.506645605 | E31: 14.10561821 | F31: 28.43088825 | G31: 71.25418595 | H31: 9.847962049 | I31: 25.73984626 | J31: 41.57887003 | K31: 67.91443825 | L31: 88.35466631 | M31: 0.1981753498 | N31: 0.0383305314 | O31: 1.065619492 | P31: 4.707633448 | Q31: 8.846560744 | R31: 90.69457811 | S31: 5.786676511 | T31: 17.18338111 | U31: 4.754336642 | V31: 62.55436335 | W31: 9.129430782 | X31: 2.129521351 | Y31: 7.251992624 | BA31: Piped water on premises | BB31: Yes | BC31: N/A | BD31: N/A | BE31: N/A | BF31: N/A | BG31: N/A | BH31: N/A | BI31: N/A | BJ31: N/A | BK31: N/A | BL31: N/A | BM31: N/A | BN31: N/A | BO31: N/A | BP31: N/A | BQ31: N/A | BR31: N/A | BS31: N/A | BT31: N/A | BU31: N/A | BV31: N/A | BW31: N/A | BX31: N/A | BY31: N/A
B32: No | C32: 99.61012805 | D32: 97.49335439 | E32: 85.89438179 | F32: 71.56911175 | G32: 28.74581405 | H32: 90.15203795 | I32: 74.26015374 | J32: 58.42112997 | K32: 32.08556175 | L32: 11.64533369 | M32: 99.80182465 | N32: 99.96166947 | O32: 98.93438051 | P32: 95.29236655 | Q32: 91.15343926 | R32: 9.305421893 | S32: 94.21332349 | T32: 82.81661889 | U32: 95.24566336 | V32: 37.44563665 | W32: 90.87056922 | X32: 97.87047865 | Y32: 92.74800738 | BB32: No | BC32: N/A | BD32: N/A | BE32: N/A | BF32: N/A | BG32: N/A | BH32: N/A | BI32: N/A | BJ32: N/A | BK32: N/A | BL32: N/A | BM32: N/A | BN32: N/A | BO32: N/A | BP32: N/A | BQ32: N/A | BR32: N/A | BS32: N/A | BT32: N/A | BU32: N/A | BV32: N/A | BW32: N/A | BX32: N/A | BY32: N/A
A33: Piped water into dwelling | B33: Yes | C33: N/A | D33: N/A | E33: N/A | F33: N/A | G33: N/A | H33: N/A | I33: N/A | J33: N/A | K33: N/A | L33: N/A | M33: N/A | N33: N/A | O33: N/A | P33: N/A | Q33: N/A | R33: N/A | S33: N/A | T33: N/A | U33: N/A | V33: N/A | W33: N/A | X33: N/A | Y33: N/A | BA33: Piped water into dwelling | BB33: Yes | BC33: N/A | BD33: N/A | BE33: N/A | BF33: N/A | BG33: N/A | BH33: N/A | BI33: N/A | BJ33: N/A | BK33: N/A | BL33: N/A | BM33: N/A | BN33: N/A | BO33: N/A | BP33: N/A | BQ33: N/A | BR33: N/A | BS33: N/A | BT33: N/A | BU33: N/A | BV33: N/A | BW33: N/A | BX33: N/A | BY33: N/A
B34: No | C34: N/A | D34: N/A | E34: N/A | F34: N/A | G34: N/A | H34: N/A | I34: N/A | J34: N/A | K34: N/A | L34: N/A | M34: N/A | N34: N/A | O34: N/A | P34: N/A | Q34: N/A | R34: N/A | S34: N/A | T34: N/A | U34: N/A | V34: N/A | W34: N/A | X34: N/A | Y34: N/A | BB34: No | BC34: N/A | BD34: N/A | BE34: N/A | BF34: N/A | BG34: N/A | BH34: N/A | BI34: N/A | BJ34: N/A | BK34: N/A | BL34: N/A | BM34: N/A | BN34: N/A | BO34: N/A | BP34: N/A | BQ34: N/A | BR34: N/A | BS34: N/A | BT34: N/A | BU34: N/A | BV34: N/A | BW34: N/A | BX34: N/A | BY34: N/A
A35: Water source on premises | B35: Yes | C35: 5.143697481 | D35: 7.687998496 | E35: 20.09620425 | F35: 34.89849096 | G35: 75.58451771 | H35: 15.68903868 | I35: 31.45921586 | J35: 47.18576826 | K35: 72.27418133 | L35: 90.63046543 | M35: 4.755475373 | N35: 5.407012193 | O35: 6.072531857 | P35: 10.84976125 | Q35: 17.04646457 | R35: 90.69457811 | S35: 15.19901328 | T35: 28.24967114 | U35: 9.268054168 | V35: 62.62468119 | W35: 11.99180971 | X35: 2.419425362 | Y35: 8.445602933 | BA35: Water source on premises | BB35: Yes | BC35: N/A | BD35: N/A | BE35: N/A | BF35: N/A | BG35: N/A | BH35: N/A | BI35: N/A | BJ35: N/A | BK35: N/A | BL35: N/A | BM35: N/A | BN35: N/A | BO35: N/A | BP35: N/A | BQ35: N/A | BR35: N/A | BS35: N/A | BT35: N/A | BU35: N/A | BV35: N/A | BW35: N/A | BX35: N/A | BY35: N/A
B36: No | C36: 94.85630252 | D36: 92.3120015 | E36: 79.90379575 | F36: 65.10150904 | G36: 24.41548229 | H36: 84.31096132 | I36: 68.54078414 | J36: 52.81423174 | K36: 27.72581867 | L36: 9.369534574 | M36: 95.24452463 | N36: 94.59298781 | O36: 93.92746814 | P36: 89.15023875 | Q36: 82.95353543 | R36: 9.305421893 | S36: 84.80098672 | T36: 71.75032886 | U36: 90.73194583 | V36: 37.37531881 | W36: 88.00819029 | X36: 97.58057464 | Y36: 91.55439707 | BB36: No | BC36: N/A | BD36: N/A | BE36: N/A | BF36: N/A | BG36: N/A | BH36: N/A | BI36: N/A | BJ36: N/A | BK36: N/A | BL36: N/A | BM36: N/A | BN36: N/A | BO36: N/A | BP36: N/A | BQ36: N/A | BR36: N/A | BS36: N/A | BT36: N/A | BU36: N/A | BV36: N/A | BW36: N/A | BX36: N/A | BY36: N/A
A37: Improved Water source on premises | B37: Yes | C37: 2.280745274 | D37: 4.652600423 | E37: 19.26512914 | F37: 33.98000512 | G37: 76.5272923 | H37: 13.16897137 | I37: 29.76439145 | J37: 45.74083154 | K37: 72.15008868 | L37: 90.79948091 | M37: 2.296736664 | N37: 1.382680803 | O37: 3.042483439 | P37: 9.438765469 | Q37: 16.47697292 | R37: 90.69457811 | S37: 13.21146942 | T37: 25.49316434 | U37: 8.073448028 | V37: 62.8813736 | W37: 12.89071241 | X37: 2.694323953 | Y37: 9.862198914 | BA37: Improved water source on premises | BB37: Yes | BC37: N/A | BD37: N/A | BE37: N/A | BF37: N/A | BG37: N/A | BH37: N/A | BI37: N/A | BJ37: N/A | BK37: N/A | BL37: N/A | BM37: N/A | BN37: N/A | BO37: N/A | BP37: N/A | BQ37: N/A | BR37: N/A | BS37: N/A | BT37: N/A | BU37: N/A | BV37: N/A | BW37: N/A | BX37: N/A | BY37: N/A
B38: No | C38: 97.71925473 | D38: 95.34739958 | E38: 80.73487086 | F38: 66.01999488 | G38: 23.4727077 | H38: 86.83102863 | I38: 70.23560855 | J38: 54.25916846 | K38: 27.84991132 | L38: 9.200519086 | M38: 97.70326334 | N38: 98.6173192 | O38: 96.95751656 | P38: 90.56123453 | Q38: 83.52302708 | R38: 9.305421893 | S38: 86.78853058 | T38: 74.50683566 | U38: 91.92655197 | V38: 37.1186264 | W38: 87.10928759 | X38: 97.30567605 | Y38: 90.13780109 | BB38: No | BC38: N/A | BD38: N/A | BE38: N/A | BF38: N/A | BG38: N/A | BH38: N/A | BI38: N/A | BJ38: N/A | BK38: N/A | BL38: N/A | BM38: N/A | BN38: N/A | BO38: N/A | BP38: N/A | BQ38: N/A | BR38: N/A | BS38: N/A | BT38: N/A | BU38: N/A | BV38: N/A | BW38: N/A | BX38: N/A | BY38: N/A
